Workbook

Sheet dbf-e-data
A1: Дбф файли для порталу е-дата! | H1: 1000 | K1: =IF(ЗАПОЛНИТЬ!$B$18="1 квітня",1,IF(ЗАПОЛНИТЬ!$B$18="1 липня",2,IF(ЗАПОЛНИТЬ!$B$18="1 жовтня",3,4))) -> 4 | L1: =RIGHT(LEFT(ЗАПОЛНИТЬ!$C$18,4),2) -> 18 | M1: =IF(K1=4,L1-1,L1) -> 17
A9: В тому ж місці де у вас відкритий цей файл, з'являться дбф файли:
A16: Форма 2 - Fxxxppk.dbf
A17: Форма 4-1 - RKxxxppк.dbf,
A18: Форма 4-2 - DKxxxppк.dbf,
A19: Форма 4-3 - SKxxxppк.dbf,
A20: де:
A21: xxx – код відомчої класифікаціїї;
A22: рр – дві останні цифри звітного року;
A23: k - звітний квартал
A26: Тема где обсуждается этот файл:
A27: http://budget.factor.ua/viewtopic.php?f=125&t=5712
A29: Для того чтоб создать ДБФ файл необходимо разрешить выполнение МАКРОСОВ
A30: в 2003 офисе заходим СЕРВИС-ПАРАМЕТРЫ-БЕЗОПАСНОТЬ-БЕЗОПАСНОСТЬ МАКРОСОВ и установите уровень безопасности либо низкий либо средний
A31: в 2007 офисе ФАЙЛ (слева в углу) -ПАРАМЕТРЫ - ЦЕНТР УПРАВЛЕНИЯ БЕЗОПАСНОТЬЮ - ПАРАМЕТРЫ ЦЕНТРА - БЕЗОПАСНОСТЬ МАКРОСОВ и разрешить выполнение макросов

Sheet DBF
C1: Для того чтоб создать ДБФ файл необходимо разрешить выполнение МАКРОСОВ
C2: в 2003 офисе заходим СЕРВИС-ПАРАМЕТРЫ-БЕЗОПАСНОТЬ-БЕЗОПАСНОСТЬ МАКРОСОВ и установите уровень безопасности либо низкий либо средний
C3: в 2007 офисе ФАЙЛ (слева в углу) -ПАРАМЕТРЫ - ЦЕНТР УПРАВЛЕНИЯ БЕЗОПАСНОТЬЮ - ПАРАМЕТРЫ ЦЕНТРА - БЕЗОПАСНОСТЬ МАКРОСОВ и разрешить выполнение макросов
C4: Файл будет сохранён там же открыт этот ексель, в той же папке
D21: Це дбф тільки для казначейства, не для е-дата!

Sheet ЗАПОЛНИТЬ
B1: Жовтим кольором виділені поля для обов'язкового заповнення
A3: Установа | B3: Новгород-Сіверська міська рада
A4: Назва казначейства де обслуговуєтесь | D4: Управління Державної казначейської служби України у Новгород-Сіверському районі Чернігівської області | O4: змінити на ваше УДК
A5: Територія | B5: 16000 Чернігівська обл.,м.Новгород-Сіверський вул. Губернська, 2 | G5: наприклад -смт.Слов'яносербськ (Згідно довідника КОАТУУ)
A7: Вид бюджету | F7: 2 | L7: Державний
L8: Місцевий
A9: Код відомчої класифікації видатків та кредитування державного бюджету | I9: сюда ставят распорядители госбюджетных средств к примеру - 670,280,350
A10: Код типової відомчої класифікації видатків місцевих бюджетів | H10: 01 | I10: рада | Q10: вписати назву КВК
A11: тип ліній в таблицях--->>>
A12: КОДИ
A13: за ЄДРПОУ | B13: 04061978
A14: за КОАТУУ | B14: 7410500000
A15: за КОПФГ | B15: 420 | D15: =VLOOKUP(B15,КОПФГ!A:B,2,FALSE) -> Орган місцевого самоврядування
A16: Звіт за
A17: Звіт за | C17: 2017 р.
A18: Звіт на | B18: 1 січня | C18: 2018 р. | D18: =IF(B18="1 квітня",1,IF(B18="1 липня",2,IF(B18="1 жовтня",3,0))) -> 0 | E18: 01.01.2018 р. | F18: 18
A19: Дата подання звіту | C19: "10"січня 2018 року
A20: КПОЛ | B20: 20654 | C20: для ДБФ
A21: Код ГУДКСУ | B21: 25 | C21: двухзначный код вашей области для ДБФ
A22: Код УДКСУ | B22: 13 | C22: двухзначный код вашего района для ДБФ
A23: Тип бюджета | B23: 2 | C23: 1- обласний, 2 - міський , 3 - район у місті , 4 - районий, 5 - міста у районах, 6 - селищний, 7 - сільський (нужен для дбф файла)
A24: Код бюджета | B24: 335 | C24: трёхзначный код бюджета из которого вы финансируетесь, его знают ваши казначеи, обычно это последние три цифры доходных счетов
A26: Ініціали та прізвище КЕРІВНИКА | F26: Бондаренко О.А.
A28: Ініціали та прізвище ГОЛОВНОГО БУХГАЛТЕРА | F28: Топчій Н.М.
A30: Посада першого підпису | F30: Міський голова
A31: Посада другого підпису | F31: Начальник відділу бухгалтерського обліку, планування та звітності
A35: Для відкриття скритих листів треба зайти ФОРМАТ -ЛИСТ - ОТОБРАЗИТЬ
A36: ДЛЯ НОРМАЛЬНОЇ РОБОТИ ФОРМУЛ ЛИСТИ НЕОБХІДНО СКРИВАТИ А НЕ ВИДАЛЯТИ!!!!!
A37: БАЛАНС ЗАПОВНЮЄТЬСЯ В ОСТАННЮ ЧЕРГУ, СПОЧАТКУ ЗАПОВНІТЬ ВСІ ФОРМИ ПОТІМ БАЛАНС!!
A38: Ці та інші корисні бланки можно завантажити на https://buhgalter.com.ua
A39: автор розробки: Токарев Євген Васильович

Sheet Ф.2.ЗВЕД
G1: Додаток 1 до Порядку складання бюджетної звітності розпорядниками та одержувачами бюджетних коштів, звітності фондами загальнообов’язкового державного соціального і пенсійного страхування (пункт 1 розділу ІІ)
A4: ЗВІТ
A5: =IF(ЗАПОЛНИТЬ!$F$7=1,CONCATENATE(шапки!A2),CONCATENATE(шапки!A2,шапки!C2)) -> про надходження та використання коштів загального фонду (форма №2д, | G5: =IF(ЗАПОЛНИТЬ!$F$7=1,шапки!C2,шапки!D2) -> №2м) | H5: =IF(ЗАПОЛНИТЬ!$F$7=1,шапки!D2,"") -> 
A6: =CONCATENATE("за ",ЗАПОЛНИТЬ!$B$17," ",ЗАПОЛНИТЬ!$C$17) -> за 2017 р.
J7: коди
A9: Установа | B9: =ЗАПОЛНИТЬ!B3 -> Новгород-Сіверська міська рада | H9: за ЄДРПОУ | J9: =ЗАПОЛНИТЬ!B13 -> 04061978
A10: Територія | B10: =ЗАПОЛНИТЬ!B5 -> 16000 Чернігівська обл.,м.Новгород-Сіверський вул. Губернська, 2 | H10: за КОАТУУ | J10: =ЗАПОЛНИТЬ!B14 -> 7410500000
A11: Організаційно-правова форма господарювання | B11: =ЗАПОЛНИТЬ!D15 -> Орган місцевого самоврядування | H11: за КОПФГ | J11: =ЗАПОЛНИТЬ!B15 -> 420
A12: Код та назва відомчої класифікації видатків та кредитування державного бюджету | D12: =ЗАПОЛНИТЬ!H9 -> 0 | E12: =IF(D12>0,VLOOKUP(D12,'ДовидникКВК(ГОС)'!A:B,2,FALSE),"") -> 
A13: Код та назва програмної класифікації видатків та кредитування державного бюджету
A14: Код та назва типової відомчої класифікації видатків та кредитування місцевих бюджетів | D14: =ЗАПОЛНИТЬ!H10 -> 01 | E14: =ЗАПОЛНИТЬ!I10 -> рада
A15: Код та назва програмної класифікації видатків та кредитування місцевих бюджетів (код та назва Типової програмної класифікації видатків та кредитування місцевих бюджетів / Тимчасової класифікації видатків та кредитування для бюджетів місцевого самоврядування, які не застосовують програмно-цільового методу)
A16: Періодичність: квартальна, річна
A17: Одиниця виміру: грн, коп.
A19: Показники | B19: КЕКВ та/або ККК | C19: Код рядка | D19: Затверджено на звітний рік | E19: Затверджено на звітний період (рік)1 | F19: Залишок на початок звітного року | G19: Надійшло коштів за звітний період (рік) | H19: Касові за звітний період (рік) | I19: Фактичні за звітний період (рік) | J19: Залишок на кінець звітного періоду (року)
A22: 1 | B22: 2 | C22: 3 | D22: 4 | E22: 5 | F22: 6 | G22: 7 | H22: 8 | I22: 9 | J22: 9
A23: Видатки та надання кредитів - усього | B23: Х | C23: 010 | D23: =SUM(Ф.2.1:Ф.2.50!D23) -> 11989000 | E23: =SUM(Ф.2.1:Ф.2.50!E23) -> 11989000 | F23: =SUM(Ф.2.1:Ф.2.50!F23) -> 0 | G23: =SUM(Ф.2.1:Ф.2.50!G23) -> 11869183.13 | H23: =SUM(Ф.2.1:Ф.2.50!H23) -> 11869183.13 | I23: =SUM(Ф.2.1:Ф.2.50!I23) -> 0 | J23: =SUM(Ф.2.1:Ф.2.50!J23) -> 0
A24: у тому числі: Поточні видатки | B24: 2000 | C24: 020 | D24: =SUM(Ф.2.1:Ф.2.50!D24) -> 11989000 | E24: =SUM(Ф.2.1:Ф.2.50!E24) -> 0 | F24: =SUM(Ф.2.1:Ф.2.50!F24) -> 0 | G24: =SUM(Ф.2.1:Ф.2.50!G24) -> 11869183.13 | H24: =SUM(Ф.2.1:Ф.2.50!H24) -> 11869183.13 | I24: =SUM(Ф.2.1:Ф.2.50!I24) -> 0 | J24: =SUM(Ф.2.1:Ф.2.50!J24) -> 0
A25: Оплата праці і нарахування на заробітну плату | B25: 2100 | C25: 030 | D25: =SUM(Ф.2.1:Ф.2.50!D25) -> 5963400 | E25: =SUM(Ф.2.1:Ф.2.50!E25) -> 0 | F25: =SUM(Ф.2.1:Ф.2.50!F25) -> 0 | G25: =SUM(Ф.2.1:Ф.2.50!G25) -> 5961310.35 | H25: =SUM(Ф.2.1:Ф.2.50!H25) -> 5961310.35 | I25: =SUM(Ф.2.1:Ф.2.50!I25) -> 0 | J25: =SUM(Ф.2.1:Ф.2.50!J25) -> 0
A26: Оплата праці | B26: 2110 | C26: 040 | D26: =SUM(Ф.2.1:Ф.2.50!D26) -> 4911425 | E26: =SUM(Ф.2.1:Ф.2.50!E26) -> 4911425 | F26: =SUM(Ф.2.1:Ф.2.50!F26) -> 0 | G26: =SUM(Ф.2.1:Ф.2.50!G26) -> 4909807.02 | H26: =SUM(Ф.2.1:Ф.2.50!H26) -> 4909807.02 | I26: =SUM(Ф.2.1:Ф.2.50!I26) -> 0 | J26: =SUM(Ф.2.1:Ф.2.50!J26) -> 0
A27: Заробітна плата | B27: 2111 | C27: 050 | D27: =SUM(Ф.2.1:Ф.2.50!D27) -> 4911425 | E27: =SUM(Ф.2.1:Ф.2.50!E27) -> 0 | F27: =SUM(Ф.2.1:Ф.2.50!F27) -> 0 | G27: =SUM(Ф.2.1:Ф.2.50!G27) -> 4909807.02 | H27: =SUM(Ф.2.1:Ф.2.50!H27) -> 4909807.02 | I27: =SUM(Ф.2.1:Ф.2.50!I27) -> 0 | J27: =SUM(Ф.2.1:Ф.2.50!J27) -> 0
A28: Грошове забезпечення військовослужбовців | B28: 2112 | C28: 060 | D28: =SUM(Ф.2.1:Ф.2.50!D28) -> 0 | E28: =SUM(Ф.2.1:Ф.2.50!E28) -> 0 | F28: =SUM(Ф.2.1:Ф.2.50!F28) -> 0 | G28: =SUM(Ф.2.1:Ф.2.50!G28) -> 0 | H28: =SUM(Ф.2.1:Ф.2.50!H28) -> 0 | I28: =SUM(Ф.2.1:Ф.2.50!I28) -> 0 | J28: =SUM(Ф.2.1:Ф.2.50!J28) -> 0
A29: Нарахування на оплату праці | B29: 2120 | C29: 070 | D29: =SUM(Ф.2.1:Ф.2.50!D29) -> 1051975 | E29: =SUM(Ф.2.1:Ф.2.50!E29) -> 1051975 | F29: =SUM(Ф.2.1:Ф.2.50!F29) -> 0 | G29: =SUM(Ф.2.1:Ф.2.50!G29) -> 1051503.33 | H29: =SUM(Ф.2.1:Ф.2.50!H29) -> 1051503.33 | I29: =SUM(Ф.2.1:Ф.2.50!I29) -> 0 | J29: =SUM(Ф.2.1:Ф.2.50!J29) -> 0
A30: Використання товарів і послуг | B30: 2200 | C30: 080 | D30: =SUM(Ф.2.1:Ф.2.50!D30) -> 5579150 | E30: =SUM(Ф.2.1:Ф.2.50!E30) -> 0 | F30: =SUM(Ф.2.1:Ф.2.50!F30) -> 0 | G30: =SUM(Ф.2.1:Ф.2.50!G30) -> 5466400.65 | H30: =SUM(Ф.2.1:Ф.2.50!H30) -> 5466400.65 | I30: =SUM(Ф.2.1:Ф.2.50!I30) -> 0 | J30: =SUM(Ф.2.1:Ф.2.50!J30) -> 0
A31: Предмети, матеріали, обладнання та інвентар | B31: 2210 | C31: 090 | D31: =SUM(Ф.2.1:Ф.2.50!D31) -> 1191610 | E31: =SUM(Ф.2.1:Ф.2.50!E31) -> 0 | F31: =SUM(Ф.2.1:Ф.2.50!F31) -> 0 | G31: =SUM(Ф.2.1:Ф.2.50!G31) -> 1166976.7 | H31: =SUM(Ф.2.1:Ф.2.50!H31) -> 1166976.7 | I31: =SUM(Ф.2.1:Ф.2.50!I31) -> 0 | J31: =SUM(Ф.2.1:Ф.2.50!J31) -> 0
A32: Медикаменти та перев’язувальні матеріали | B32: 2220 | C32: 100 | D32: =SUM(Ф.2.1:Ф.2.50!D32) -> 0 | E32: =SUM(Ф.2.1:Ф.2.50!E32) -> 0 | F32: =SUM(Ф.2.1:Ф.2.50!F32) -> 0 | G32: =SUM(Ф.2.1:Ф.2.50!G32) -> 0 | H32: =SUM(Ф.2.1:Ф.2.50!H32) -> 0 | I32: =SUM(Ф.2.1:Ф.2.50!I32) -> 0 | J32: =SUM(Ф.2.1:Ф.2.50!J32) -> 0
A33: Продукти харчування | B33: 2230 | C33: 110 | D33: =SUM(Ф.2.1:Ф.2.50!D33) -> 0 | E33: =SUM(Ф.2.1:Ф.2.50!E33) -> 0 | F33: =SUM(Ф.2.1:Ф.2.50!F33) -> 0 | G33: =SUM(Ф.2.1:Ф.2.50!G33) -> 0 | H33: =SUM(Ф.2.1:Ф.2.50!H33) -> 0 | I33: =SUM(Ф.2.1:Ф.2.50!I33) -> 0 | J33: =SUM(Ф.2.1:Ф.2.50!J33) -> 0
A34: Оплата послуг (крім комунальних) | B34: 2240 | C34: 120 | D34: =SUM(Ф.2.1:Ф.2.50!D34) -> 4024740 | E34: =SUM(Ф.2.1:Ф.2.50!E34) -> 0 | F34: =SUM(Ф.2.1:Ф.2.50!F34) -> 0 | G34: =SUM(Ф.2.1:Ф.2.50!G34) -> 3999729.3 | H34: =SUM(Ф.2.1:Ф.2.50!H34) -> 3999729.3 | I34: =SUM(Ф.2.1:Ф.2.50!I34) -> 0 | J34: =SUM(Ф.2.1:Ф.2.50!J34) -> 0
A35: Видатки на відрядження | B35: 2250 | C35: 130 | D35: =SUM(Ф.2.1:Ф.2.50!D35) -> 20000 | E35: =SUM(Ф.2.1:Ф.2.50!E35) -> 0 | F35: =SUM(Ф.2.1:Ф.2.50!F35) -> 0 | G35: =SUM(Ф.2.1:Ф.2.50!G35) -> 13623.27 | H35: =SUM(Ф.2.1:Ф.2.50!H35) -> 13623.27 | I35: =SUM(Ф.2.1:Ф.2.50!I35) -> 0 | J35: =SUM(Ф.2.1:Ф.2.50!J35) -> 0
A36: Видатки та заходи спеціального призначення | B36: 2260 | C36: 140 | D36: =SUM(Ф.2.1:Ф.2.50!D36) -> 0 | E36: =SUM(Ф.2.1:Ф.2.50!E36) -> 0 | F36: =SUM(Ф.2.1:Ф.2.50!F36) -> 0 | G36: =SUM(Ф.2.1:Ф.2.50!G36) -> 0 | H36: =SUM(Ф.2.1:Ф.2.50!H36) -> 0 | I36: =SUM(Ф.2.1:Ф.2.50!I36) -> 0 | J36: =SUM(Ф.2.1:Ф.2.50!J36) -> 0
A37: Оплата комунальних послуг та енергоносіїв | B37: 2270 | C37: 150 | D37: =SUM(Ф.2.1:Ф.2.50!D37) -> 332800 | E37: =SUM(Ф.2.1:Ф.2.50!E37) -> 332800 | F37: =SUM(Ф.2.1:Ф.2.50!F37) -> 0 | G37: =SUM(Ф.2.1:Ф.2.50!G37) -> 283491.38 | H37: =SUM(Ф.2.1:Ф.2.50!H37) -> 283491.38 | I37: =SUM(Ф.2.1:Ф.2.50!I37) -> 0 | J37: =SUM(Ф.2.1:Ф.2.50!J37) -> 0
A38: Оплата теплопостачання | B38: 2271 | C38: 160 | D38: =SUM(Ф.2.1:Ф.2.50!D38) -> 0 | E38: =SUM(Ф.2.1:Ф.2.50!E38) -> 0 | F38: =SUM(Ф.2.1:Ф.2.50!F38) -> 0 | G38: =SUM(Ф.2.1:Ф.2.50!G38) -> 0 | H38: =SUM(Ф.2.1:Ф.2.50!H38) -> 0 | I38: =SUM(Ф.2.1:Ф.2.50!I38) -> 0 | J38: =SUM(Ф.2.1:Ф.2.50!J38) -> 0
A39: Оплата водопостачання та водовідведення | B39: 2272 | C39: 170 | D39: =SUM(Ф.2.1:Ф.2.50!D39) -> 7000 | E39: =SUM(Ф.2.1:Ф.2.50!E39) -> 0 | F39: =SUM(Ф.2.1:Ф.2.50!F39) -> 0 | G39: =SUM(Ф.2.1:Ф.2.50!G39) -> 4139.99 | H39: =SUM(Ф.2.1:Ф.2.50!H39) -> 4139.99 | I39: =SUM(Ф.2.1:Ф.2.50!I39) -> 0 | J39: =SUM(Ф.2.1:Ф.2.50!J39) -> 0
A40: Оплата електроенергії | B40: 2273 | C40: 180 | D40: =SUM(Ф.2.1:Ф.2.50!D40) -> 191100 | E40: =SUM(Ф.2.1:Ф.2.50!E40) -> 0 | F40: =SUM(Ф.2.1:Ф.2.50!F40) -> 0 | G40: =SUM(Ф.2.1:Ф.2.50!G40) -> 182040.07 | H40: =SUM(Ф.2.1:Ф.2.50!H40) -> 182040.07 | I40: =SUM(Ф.2.1:Ф.2.50!I40) -> 0 | J40: =SUM(Ф.2.1:Ф.2.50!J40) -> 0
A41: Оплата природного газу | B41: 2274 | C41: 190 | D41: =SUM(Ф.2.1:Ф.2.50!D41) -> 124700 | E41: =SUM(Ф.2.1:Ф.2.50!E41) -> 0 | F41: =SUM(Ф.2.1:Ф.2.50!F41) -> 0 | G41: =SUM(Ф.2.1:Ф.2.50!G41) -> 94807.84 | H41: =SUM(Ф.2.1:Ф.2.50!H41) -> 94807.84 | I41: =SUM(Ф.2.1:Ф.2.50!I41) -> 0 | J41: =SUM(Ф.2.1:Ф.2.50!J41) -> 0
A42: Оплата інших енергоносіїв | B42: 2275 | C42: 200 | D42: =SUM(Ф.2.1:Ф.2.50!D42) -> 10000 | E42: =SUM(Ф.2.1:Ф.2.50!E42) -> 0 | F42: =SUM(Ф.2.1:Ф.2.50!F42) -> 0 | G42: =SUM(Ф.2.1:Ф.2.50!G42) -> 2503.48 | H42: =SUM(Ф.2.1:Ф.2.50!H42) -> 2503.48 | I42: =SUM(Ф.2.1:Ф.2.50!I42) -> 0 | J42: =SUM(Ф.2.1:Ф.2.50!J42) -> 0
A43: Оплата енергосервісу | B43: 2276 | C43: 210 | D43: =SUM(Ф.2.1:Ф.2.50!D43) -> 0 | E43: =SUM(Ф.2.1:Ф.2.50!E43) -> 0 | F43: =SUM(Ф.2.1:Ф.2.50!F43) -> 0 | G43: =SUM(Ф.2.1:Ф.2.50!G43) -> 0 | H43: =SUM(Ф.2.1:Ф.2.50!H43) -> 0 | I43: =SUM(Ф.2.1:Ф.2.50!I43) -> 0 | J43: =SUM(Ф.2.1:Ф.2.50!J43) -> 0
A44: Дослідження і розробки, окремі заходи по реалізації державних (регіональних) програм | B44: 2280 | C44: 220 | D44: =SUM(Ф.2.1:Ф.2.50!D44) -> 10000 | E44: =SUM(Ф.2.1:Ф.2.50!E44) -> 0 | F44: =SUM(Ф.2.1:Ф.2.50!F44) -> 0 | G44: =SUM(Ф.2.1:Ф.2.50!G44) -> 2580 | H44: =SUM(Ф.2.1:Ф.2.50!H44) -> 2580 | I44: =SUM(Ф.2.1:Ф.2.50!I44) -> 0 | J44: =SUM(Ф.2.1:Ф.2.50!J44) -> 0
A45: Дослідження і розробки, окремі заходи розвитку по реалізації державних (регіональних) програм | B45: 2281 | C45: 230 | D45: =SUM(Ф.2.1:Ф.2.50!D45) -> 0 | E45: =SUM(Ф.2.1:Ф.2.50!E45) -> 0 | F45: =SUM(Ф.2.1:Ф.2.50!F45) -> 0 | G45: =SUM(Ф.2.1:Ф.2.50!G45) -> 0 | H45: =SUM(Ф.2.1:Ф.2.50!H45) -> 0 | I45: =SUM(Ф.2.1:Ф.2.50!I45) -> 0 | J45: =SUM(Ф.2.1:Ф.2.50!J45) -> 0
A46: Окремі заходи по реалізації державних (регіональних) програм, не віднесені до заходів розвитку | B46: 2282 | C46: 240 | D46: =SUM(Ф.2.1:Ф.2.50!D46) -> 10000 | E46: =SUM(Ф.2.1:Ф.2.50!E46) -> 10000 | F46: =SUM(Ф.2.1:Ф.2.50!F46) -> 0 | G46: =SUM(Ф.2.1:Ф.2.50!G46) -> 2580 | H46: =SUM(Ф.2.1:Ф.2.50!H46) -> 2580 | I46: =SUM(Ф.2.1:Ф.2.50!I46) -> 0 | J46: =SUM(Ф.2.1:Ф.2.50!J46) -> 0
A47: Обслуговування боргових зобов’язань | B47: 2400 | C47: 250 | D47: =SUM(Ф.2.1:Ф.2.50!D47) -> 0 | E47: =SUM(Ф.2.1:Ф.2.50!E47) -> 0 | F47: =SUM(Ф.2.1:Ф.2.50!F47) -> 0 | G47: =SUM(Ф.2.1:Ф.2.50!G47) -> 0 | H47: =SUM(Ф.2.1:Ф.2.50!H47) -> 0 | I47: =SUM(Ф.2.1:Ф.2.50!I47) -> 0 | J47: =SUM(Ф.2.1:Ф.2.50!J47) -> 0
A48: Обслуговування внутрішніх боргових зобов’язань | B48: 2410 | C48: 260 | D48: =SUM(Ф.2.1:Ф.2.50!D48) -> 0 | E48: =SUM(Ф.2.1:Ф.2.50!E48) -> 0 | F48: =SUM(Ф.2.1:Ф.2.50!F48) -> 0 | G48: =SUM(Ф.2.1:Ф.2.50!G48) -> 0 | H48: =SUM(Ф.2.1:Ф.2.50!H48) -> 0 | I48: =SUM(Ф.2.1:Ф.2.50!I48) -> 0 | J48: =SUM(Ф.2.1:Ф.2.50!J48) -> 0
A49: Обслуговування зовнішніх боргових зобов’язань | B49: 2420 | C49: 270 | D49: =SUM(Ф.2.1:Ф.2.50!D49) -> 0 | E49: =SUM(Ф.2.1:Ф.2.50!E49) -> 0 | F49: =SUM(Ф.2.1:Ф.2.50!F49) -> 0 | G49: =SUM(Ф.2.1:Ф.2.50!G49) -> 0 | H49: =SUM(Ф.2.1:Ф.2.50!H49) -> 0 | I49: =SUM(Ф.2.1:Ф.2.50!I49) -> 0 | J49: =SUM(Ф.2.1:Ф.2.50!J49) -> 0
A50: Поточні трансферти | B50: 2600 | C50: 280 | D50: =SUM(Ф.2.1:Ф.2.50!D50) -> 65000 | E50: =SUM(Ф.2.1:Ф.2.50!E50) -> 0 | F50: =SUM(Ф.2.1:Ф.2.50!F50) -> 0 | G50: =SUM(Ф.2.1:Ф.2.50!G50) -> 65000 | H50: =SUM(Ф.2.1:Ф.2.50!H50) -> 65000 | I50: =SUM(Ф.2.1:Ф.2.50!I50) -> 0 | J50: =SUM(Ф.2.1:Ф.2.50!J50) -> 0
A51: Субсидії та поточні трансферти підприємствам (установам, організаціям) | B51: 2610 | C51: 290 | D51: =SUM(Ф.2.1:Ф.2.50!D51) -> 65000 | E51: =SUM(Ф.2.1:Ф.2.50!E51) -> 0 | F51: =SUM(Ф.2.1:Ф.2.50!F51) -> 0 | G51: =SUM(Ф.2.1:Ф.2.50!G51) -> 65000 | H51: =SUM(Ф.2.1:Ф.2.50!H51) -> 65000 | I51: =SUM(Ф.2.1:Ф.2.50!I51) -> 0 | J51: =SUM(Ф.2.1:Ф.2.50!J51) -> 0
A52: Поточні трансферти органам державного управління інших рівнів | B52: 2620 | C52: 300 | D52: =SUM(Ф.2.1:Ф.2.50!D52) -> 0 | E52: =SUM(Ф.2.1:Ф.2.50!E52) -> 0 | F52: =SUM(Ф.2.1:Ф.2.50!F52) -> 0 | G52: =SUM(Ф.2.1:Ф.2.50!G52) -> 0 | H52: =SUM(Ф.2.1:Ф.2.50!H52) -> 0 | I52: =SUM(Ф.2.1:Ф.2.50!I52) -> 0 | J52: =SUM(Ф.2.1:Ф.2.50!J52) -> 0
A53: Поточні трансферти урядам іноземних держав та міжнародним організаціям | B53: 2630 | C53: 310 | D53: =SUM(Ф.2.1:Ф.2.50!D53) -> 0 | E53: =SUM(Ф.2.1:Ф.2.50!E53) -> 0 | F53: =SUM(Ф.2.1:Ф.2.50!F53) -> 0 | G53: =SUM(Ф.2.1:Ф.2.50!G53) -> 0 | H53: =SUM(Ф.2.1:Ф.2.50!H53) -> 0 | I53: =SUM(Ф.2.1:Ф.2.50!I53) -> 0 | J53: =SUM(Ф.2.1:Ф.2.50!J53) -> 0
A54: Соціальне забезпечення | B54: 2700 | C54: 320 | D54: =SUM(Ф.2.1:Ф.2.50!D54) -> 337300 | E54: =SUM(Ф.2.1:Ф.2.50!E54) -> 337300 | F54: =SUM(Ф.2.1:Ф.2.50!F54) -> 0 | G54: =SUM(Ф.2.1:Ф.2.50!G54) -> 336777.85 | H54: =SUM(Ф.2.1:Ф.2.50!H54) -> 336777.85 | I54: =SUM(Ф.2.1:Ф.2.50!I54) -> 0 | J54: =SUM(Ф.2.1:Ф.2.50!J54) -> 0
A55: Виплата пенсій і допомоги | B55: 2710 | C55: 330 | D55: =SUM(Ф.2.1:Ф.2.50!D55) -> 0 | E55: =SUM(Ф.2.1:Ф.2.50!E55) -> 0 | F55: =SUM(Ф.2.1:Ф.2.50!F55) -> 0 | G55: =SUM(Ф.2.1:Ф.2.50!G55) -> 0 | H55: =SUM(Ф.2.1:Ф.2.50!H55) -> 0 | I55: =SUM(Ф.2.1:Ф.2.50!I55) -> 0 | J55: =SUM(Ф.2.1:Ф.2.50!J55) -> 0
A56: Стипендії | B56: 2720 | C56: 340 | D56: =SUM(Ф.2.1:Ф.2.50!D56) -> 0 | E56: =SUM(Ф.2.1:Ф.2.50!E56) -> 0 | F56: =SUM(Ф.2.1:Ф.2.50!F56) -> 0 | G56: =SUM(Ф.2.1:Ф.2.50!G56) -> 0 | H56: =SUM(Ф.2.1:Ф.2.50!H56) -> 0 | I56: =SUM(Ф.2.1:Ф.2.50!I56) -> 0 | J56: =SUM(Ф.2.1:Ф.2.50!J56) -> 0
A57: Інші виплати населенню | B57: 2730 | C57: 350 | D57: =SUM(Ф.2.1:Ф.2.50!D57) -> 337300 | E57: =SUM(Ф.2.1:Ф.2.50!E57) -> 0 | F57: =SUM(Ф.2.1:Ф.2.50!F57) -> 0 | G57: =SUM(Ф.2.1:Ф.2.50!G57) -> 336777.85 | H57: =SUM(Ф.2.1:Ф.2.50!H57) -> 336777.85 | I57: =SUM(Ф.2.1:Ф.2.50!I57) -> 0 | J57: =SUM(Ф.2.1:Ф.2.50!J57) -> 0
A58: Інші поточні видатки | B58: 2800 | C58: 360 | D58: =SUM(Ф.2.1:Ф.2.50!D58) -> 44150 | E58: =SUM(Ф.2.1:Ф.2.50!E58) -> 0 | F58: =SUM(Ф.2.1:Ф.2.50!F58) -> 0 | G58: =SUM(Ф.2.1:Ф.2.50!G58) -> 39694.28 | H58: =SUM(Ф.2.1:Ф.2.50!H58) -> 39694.28 | I58: =SUM(Ф.2.1:Ф.2.50!I58) -> 0 | J58: =SUM(Ф.2.1:Ф.2.50!J58) -> 0
A59: Капітальні видатки | B59: 3000 | C59: 370 | D59: =SUM(Ф.2.1:Ф.2.50!D59) -> 0 | E59: =SUM(Ф.2.1:Ф.2.50!E59) -> 0 | F59: =SUM(Ф.2.1:Ф.2.50!F59) -> 0 | G59: =SUM(Ф.2.1:Ф.2.50!G59) -> 0 | H59: =SUM(Ф.2.1:Ф.2.50!H59) -> 0 | I59: =SUM(Ф.2.1:Ф.2.50!I59) -> 0 | J59: =SUM(Ф.2.1:Ф.2.50!J59) -> 0
A60: Придбання основного капіталу | B60: 3100 | C60: 380 | D60: =SUM(Ф.2.1:Ф.2.50!D60) -> 0 | E60: =SUM(Ф.2.1:Ф.2.50!E60) -> 0 | F60: =SUM(Ф.2.1:Ф.2.50!F60) -> 0 | G60: =SUM(Ф.2.1:Ф.2.50!G60) -> 0 | H60: =SUM(Ф.2.1:Ф.2.50!H60) -> 0 | I60: =SUM(Ф.2.1:Ф.2.50!I60) -> 0 | J60: =SUM(Ф.2.1:Ф.2.50!J60) -> 0
A61: Придбання обладнання і предметів довгострокового користування | B61: 3110 | C61: 390 | D61: =SUM(Ф.2.1:Ф.2.50!D61) -> 0 | E61: =SUM(Ф.2.1:Ф.2.50!E61) -> 0 | F61: =SUM(Ф.2.1:Ф.2.50!F61) -> 0 | G61: =SUM(Ф.2.1:Ф.2.50!G61) -> 0 | H61: =SUM(Ф.2.1:Ф.2.50!H61) -> 0 | I61: =SUM(Ф.2.1:Ф.2.50!I61) -> 0 | J61: =SUM(Ф.2.1:Ф.2.50!J61) -> 0
A62: Капітальне будівництво (придбання) | B62: 3120 | C62: 400 | D62: =SUM(Ф.2.1:Ф.2.50!D62) -> 0 | E62: =SUM(Ф.2.1:Ф.2.50!E62) -> 0 | F62: =SUM(Ф.2.1:Ф.2.50!F62) -> 0 | G62: =SUM(Ф.2.1:Ф.2.50!G62) -> 0 | H62: =SUM(Ф.2.1:Ф.2.50!H62) -> 0 | I62: =SUM(Ф.2.1:Ф.2.50!I62) -> 0 | J62: =SUM(Ф.2.1:Ф.2.50!J62) -> 0
A63: Капітальне будівництво (придбання) житла | B63: 3121 | C63: 410 | D63: =SUM(Ф.2.1:Ф.2.50!D63) -> 0 | E63: =SUM(Ф.2.1:Ф.2.50!E63) -> 0 | F63: =SUM(Ф.2.1:Ф.2.50!F63) -> 0 | G63: =SUM(Ф.2.1:Ф.2.50!G63) -> 0 | H63: =SUM(Ф.2.1:Ф.2.50!H63) -> 0 | I63: =SUM(Ф.2.1:Ф.2.50!I63) -> 0 | J63: =SUM(Ф.2.1:Ф.2.50!J63) -> 0
A64: Капітальне будівництво (придбання) інших об’єктів | B64: 3122 | C64: 420 | D64: =SUM(Ф.2.1:Ф.2.50!D64) -> 0 | E64: =SUM(Ф.2.1:Ф.2.50!E64) -> 0 | F64: =SUM(Ф.2.1:Ф.2.50!F64) -> 0 | G64: =SUM(Ф.2.1:Ф.2.50!G64) -> 0 | H64: =SUM(Ф.2.1:Ф.2.50!H64) -> 0 | I64: =SUM(Ф.2.1:Ф.2.50!I64) -> 0 | J64: =SUM(Ф.2.1:Ф.2.50!J64) -> 0
A65: Капітальний ремонт | B65: 3130 | C65: 430 | D65: =SUM(Ф.2.1:Ф.2.50!D65) -> 0 | E65: =SUM(Ф.2.1:Ф.2.50!E65) -> 0 | F65: =SUM(Ф.2.1:Ф.2.50!F65) -> 0 | G65: =SUM(Ф.2.1:Ф.2.50!G65) -> 0 | H65: =SUM(Ф.2.1:Ф.2.50!H65) -> 0 | I65: =SUM(Ф.2.1:Ф.2.50!I65) -> 0 | J65: =SUM(Ф.2.1:Ф.2.50!J65) -> 0
A66: Капітальний ремонт житлового фонду (приміщень) | B66: 3131 | C66: 440 | D66: =SUM(Ф.2.1:Ф.2.50!D66) -> 0 | E66: =SUM(Ф.2.1:Ф.2.50!E66) -> 0 | F66: =SUM(Ф.2.1:Ф.2.50!F66) -> 0 | G66: =SUM(Ф.2.1:Ф.2.50!G66) -> 0 | H66: =SUM(Ф.2.1:Ф.2.50!H66) -> 0 | I66: =SUM(Ф.2.1:Ф.2.50!I66) -> 0 | J66: =SUM(Ф.2.1:Ф.2.50!J66) -> 0
A67: Капітальний ремонт інших об’єктів | B67: 3132 | C67: 450 | D67: =SUM(Ф.2.1:Ф.2.50!D67) -> 0 | E67: =SUM(Ф.2.1:Ф.2.50!E67) -> 0 | F67: =SUM(Ф.2.1:Ф.2.50!F67) -> 0 | G67: =SUM(Ф.2.1:Ф.2.50!G67) -> 0 | H67: =SUM(Ф.2.1:Ф.2.50!H67) -> 0 | I67: =SUM(Ф.2.1:Ф.2.50!I67) -> 0 | J67: =SUM(Ф.2.1:Ф.2.50!J67) -> 0
A68: Реконструкція та реставрація | B68: 3140 | C68: 460 | D68: =SUM(Ф.2.1:Ф.2.50!D68) -> 0 | E68: =SUM(Ф.2.1:Ф.2.50!E68) -> 0 | F68: =SUM(Ф.2.1:Ф.2.50!F68) -> 0 | G68: =SUM(Ф.2.1:Ф.2.50!G68) -> 0 | H68: =SUM(Ф.2.1:Ф.2.50!H68) -> 0 | I68: =SUM(Ф.2.1:Ф.2.50!I68) -> 0 | J68: =SUM(Ф.2.1:Ф.2.50!J68) -> 0
A69: Реконструкція житлового фонду (приміщень) | B69: 3141 | C69: 470 | D69: =SUM(Ф.2.1:Ф.2.50!D69) -> 0 | E69: =SUM(Ф.2.1:Ф.2.50!E69) -> 0 | F69: =SUM(Ф.2.1:Ф.2.50!F69) -> 0 | G69: =SUM(Ф.2.1:Ф.2.50!G69) -> 0 | H69: =SUM(Ф.2.1:Ф.2.50!H69) -> 0 | I69: =SUM(Ф.2.1:Ф.2.50!I69) -> 0 | J69: =SUM(Ф.2.1:Ф.2.50!J69) -> 0
A70: Реконструкція та реставрація інших об’єктів | B70: 3142 | C70: 480 | D70: =SUM(Ф.2.1:Ф.2.50!D70) -> 0 | E70: =SUM(Ф.2.1:Ф.2.50!E70) -> 0 | F70: =SUM(Ф.2.1:Ф.2.50!F70) -> 0 | G70: =SUM(Ф.2.1:Ф.2.50!G70) -> 0 | H70: =SUM(Ф.2.1:Ф.2.50!H70) -> 0 | I70: =SUM(Ф.2.1:Ф.2.50!I70) -> 0 | J70: =SUM(Ф.2.1:Ф.2.50!J70) -> 0
A71: Реставрація пам’яток культури, історії та архітектури | B71: 3143 | C71: 490 | D71: =SUM(Ф.2.1:Ф.2.50!D71) -> 0 | E71: =SUM(Ф.2.1:Ф.2.50!E71) -> 0 | F71: =SUM(Ф.2.1:Ф.2.50!F71) -> 0 | G71: =SUM(Ф.2.1:Ф.2.50!G71) -> 0 | H71: =SUM(Ф.2.1:Ф.2.50!H71) -> 0 | I71: =SUM(Ф.2.1:Ф.2.50!I71) -> 0 | J71: =SUM(Ф.2.1:Ф.2.50!J71) -> 0
A72: Створення державних запасів і резервів | B72: 3150 | C72: 500 | D72: =SUM(Ф.2.1:Ф.2.50!D72) -> 0 | E72: =SUM(Ф.2.1:Ф.2.50!E72) -> 0 | F72: =SUM(Ф.2.1:Ф.2.50!F72) -> 0 | G72: =SUM(Ф.2.1:Ф.2.50!G72) -> 0 | H72: =SUM(Ф.2.1:Ф.2.50!H72) -> 0 | I72: =SUM(Ф.2.1:Ф.2.50!I72) -> 0 | J72: =SUM(Ф.2.1:Ф.2.50!J72) -> 0
A73: Придбання землі та нематеріальних активів | B73: 3160 | C73: 510 | D73: =SUM(Ф.2.1:Ф.2.50!D73) -> 0 | E73: =SUM(Ф.2.1:Ф.2.50!E73) -> 0 | F73: =SUM(Ф.2.1:Ф.2.50!F73) -> 0 | G73: =SUM(Ф.2.1:Ф.2.50!G73) -> 0 | H73: =SUM(Ф.2.1:Ф.2.50!H73) -> 0 | I73: =SUM(Ф.2.1:Ф.2.50!I73) -> 0 | J73: =SUM(Ф.2.1:Ф.2.50!J73) -> 0
A74: Капітальні трансферти | B74: 3200 | C74: 520 | D74: =SUM(Ф.2.1:Ф.2.50!D74) -> 0 | E74: =SUM(Ф.2.1:Ф.2.50!E74) -> 0 | F74: =SUM(Ф.2.1:Ф.2.50!F74) -> 0 | G74: =SUM(Ф.2.1:Ф.2.50!G74) -> 0 | H74: =SUM(Ф.2.1:Ф.2.50!H74) -> 0 | I74: =SUM(Ф.2.1:Ф.2.50!I74) -> 0 | J74: =SUM(Ф.2.1:Ф.2.50!J74) -> 0
A75: Капітальні трансферти підприємствам (установам, організаціям) | B75: 3210 | C75: 530 | D75: =SUM(Ф.2.1:Ф.2.50!D75) -> 0 | E75: =SUM(Ф.2.1:Ф.2.50!E75) -> 0 | F75: =SUM(Ф.2.1:Ф.2.50!F75) -> 0 | G75: =SUM(Ф.2.1:Ф.2.50!G75) -> 0 | H75: =SUM(Ф.2.1:Ф.2.50!H75) -> 0 | I75: =SUM(Ф.2.1:Ф.2.50!I75) -> 0 | J75: =SUM(Ф.2.1:Ф.2.50!J75) -> 0
A76: Капітальні трансферти органам державного управління інших рівнів | B76: 3220 | C76: 540 | D76: =SUM(Ф.2.1:Ф.2.50!D76) -> 0 | E76: =SUM(Ф.2.1:Ф.2.50!E76) -> 0 | F76: =SUM(Ф.2.1:Ф.2.50!F76) -> 0 | G76: =SUM(Ф.2.1:Ф.2.50!G76) -> 0 | H76: =SUM(Ф.2.1:Ф.2.50!H76) -> 0 | I76: =SUM(Ф.2.1:Ф.2.50!I76) -> 0 | J76: =SUM(Ф.2.1:Ф.2.50!J76) -> 0
A77: Капітальні трансферти урядам іноземних держав та міжнародним організаціям | B77: 3230 | C77: 550 | D77: =SUM(Ф.2.1:Ф.2.50!D77) -> 0 | E77: =SUM(Ф.2.1:Ф.2.50!E77) -> 0 | F77: =SUM(Ф.2.1:Ф.2.50!F77) -> 0 | G77: =SUM(Ф.2.1:Ф.2.50!G77) -> 0 | H77: =SUM(Ф.2.1:Ф.2.50!H77) -> 0 | I77: =SUM(Ф.2.1:Ф.2.50!I77) -> 0 | J77: =SUM(Ф.2.1:Ф.2.50!J77) -> 0
A78: Капітальні трансферти населенню | B78: 3240 | C78: 560 | D78: =SUM(Ф.2.1:Ф.2.50!D78) -> 0 | E78: =SUM(Ф.2.1:Ф.2.50!E78) -> 0 | F78: =SUM(Ф.2.1:Ф.2.50!F78) -> 0 | G78: =SUM(Ф.2.1:Ф.2.50!G78) -> 0 | H78: =SUM(Ф.2.1:Ф.2.50!H78) -> 0 | I78: =SUM(Ф.2.1:Ф.2.50!I78) -> 0 | J78: =SUM(Ф.2.1:Ф.2.50!J78) -> 0
A79: Внутрішнє кредитування | B79: 4100 | C79: 570 | D79: =SUM(Ф.2.1:Ф.2.50!D79) -> 0 | E79: =SUM(Ф.2.1:Ф.2.50!E79) -> 0 | F79: =SUM(Ф.2.1:Ф.2.50!F79) -> 0 | G79: =SUM(Ф.2.1:Ф.2.50!G79) -> 0 | H79: =SUM(Ф.2.1:Ф.2.50!H79) -> 0 | I79: =SUM(Ф.2.1:Ф.2.50!I79) -> 0 | J79: =SUM(Ф.2.1:Ф.2.50!J79) -> 0
A80: Надання внутрішніх кредитів | B80: 4110 | C80: 580 | D80: =SUM(Ф.2.1:Ф.2.50!D80) -> 0 | E80: =SUM(Ф.2.1:Ф.2.50!E80) -> 0 | F80: =SUM(Ф.2.1:Ф.2.50!F80) -> 0 | G80: =SUM(Ф.2.1:Ф.2.50!G80) -> 0 | H80: =SUM(Ф.2.1:Ф.2.50!H80) -> 0 | I80: =SUM(Ф.2.1:Ф.2.50!I80) -> 0 | J80: =SUM(Ф.2.1:Ф.2.50!J80) -> 0
A81: Надання кредитів органам державного управління інших рівнів | B81: 4111 | C81: 590 | D81: =SUM(Ф.2.1:Ф.2.50!D81) -> 0 | E81: =SUM(Ф.2.1:Ф.2.50!E81) -> 0 | F81: =SUM(Ф.2.1:Ф.2.50!F81) -> 0 | G81: =SUM(Ф.2.1:Ф.2.50!G81) -> 0 | H81: =SUM(Ф.2.1:Ф.2.50!H81) -> 0 | I81: =SUM(Ф.2.1:Ф.2.50!I81) -> 0 | J81: =SUM(Ф.2.1:Ф.2.50!J81) -> 0
A82: Надання кредитів підприємствам, установам, організаціям | B82: 4112 | C82: 600 | D82: =SUM(Ф.2.1:Ф.2.50!D82) -> 0 | E82: =SUM(Ф.2.1:Ф.2.50!E82) -> 0 | F82: =SUM(Ф.2.1:Ф.2.50!F82) -> 0 | G82: =SUM(Ф.2.1:Ф.2.50!G82) -> 0 | H82: =SUM(Ф.2.1:Ф.2.50!H82) -> 0 | I82: =SUM(Ф.2.1:Ф.2.50!I82) -> 0 | J82: =SUM(Ф.2.1:Ф.2.50!J82) -> 0
A83: Надання інших внутрішніх кредитів | B83: 4113 | C83: 610 | D83: =SUM(Ф.2.1:Ф.2.50!D83) -> 0 | E83: =SUM(Ф.2.1:Ф.2.50!E83) -> 0 | F83: =SUM(Ф.2.1:Ф.2.50!F83) -> 0 | G83: =SUM(Ф.2.1:Ф.2.50!G83) -> 0 | H83: =SUM(Ф.2.1:Ф.2.50!H83) -> 0 | I83: =SUM(Ф.2.1:Ф.2.50!I83) -> 0 | J83: =SUM(Ф.2.1:Ф.2.50!J83) -> 0
A84: Зовнішнє кредитування | B84: 4200 | C84: 620 | D84: =SUM(Ф.2.1:Ф.2.50!D84) -> 0 | E84: =SUM(Ф.2.1:Ф.2.50!E84) -> 0 | F84: =SUM(Ф.2.1:Ф.2.50!F84) -> 0 | G84: =SUM(Ф.2.1:Ф.2.50!G84) -> 0 | H84: =SUM(Ф.2.1:Ф.2.50!H84) -> 0 | I84: =SUM(Ф.2.1:Ф.2.50!I84) -> 0 | J84: =SUM(Ф.2.1:Ф.2.50!J84) -> 0
A85: Надання зовнішніх кредитів | B85: 4210 | C85: 630 | D85: =SUM(Ф.2.1:Ф.2.50!D85) -> 0 | E85: =SUM(Ф.2.1:Ф.2.50!E85) -> 0 | F85: =SUM(Ф.2.1:Ф.2.50!F85) -> 0 | G85: =SUM(Ф.2.1:Ф.2.50!G85) -> 0 | H85: =SUM(Ф.2.1:Ф.2.50!H85) -> 0 | I85: =SUM(Ф.2.1:Ф.2.50!I85) -> 0 | J85: =SUM(Ф.2.1:Ф.2.50!J85) -> 0
A86: Інші видатки | B86: 5000 | C86: 640 | D86: X | E86: =SUM(Ф.2.1:Ф.2.50!E86) -> 5345500 | F86: X | G86: X | H86: X | I86: X | J86: X
A87: Нерозподілені видатки | B87: 9000 | C87: 650 | D87: =SUM(Ф.2.1:Ф.2.50!D87) -> 0 | E87: =SUM(Ф.2.1:Ф.2.50!E87) -> 0 | F87: =SUM(Ф.2.1:Ф.2.50!F87) -> 0 | G87: =SUM(Ф.2.1:Ф.2.50!G87) -> 0 | H87: =SUM(Ф.2.1:Ф.2.50!H87) -> 0 | I87: =SUM(Ф.2.1:Ф.2.50!I87) -> 0 | J87: =SUM(Ф.2.1:Ф.2.50!J87) -> 0
C88: 650
A100: 1 Заповнюється розпорядниками бюджетних коштів.
A101: =ЗАПОЛНИТЬ!F30 -> Міський голова | G101: =ЗАПОЛНИТЬ!F26 -> Бондаренко О.А.
D102: (підпис) | G102: (ініціали, прізвище)
A103: =ЗАПОЛНИТЬ!F31 -> Начальник відділу бухгалтерського обліку, планування та звітності | G103: =ЗАПОЛНИТЬ!F28 -> Топчій Н.М.
A104: =ЗАПОЛНИТЬ!C19 -> "10"січня 2018 року | D104: (підпис) | G104: (ініціали, прізвище)

Sheet Ф.2.1
G1: Додаток 1 до Порядку складання бюджетної звітності розпорядниками та одержувачами бюджетних коштів, звітності фондами загальнообов’язкового державного соціального і пенсійного страхування (пункт 1 розділу ІІ)
A4: ЗВІТ
A5: =IF(ЗАПОЛНИТЬ!$F$7=1,CONCATENATE(шапки!A2),CONCATENATE(шапки!A2,шапки!C2)) -> про надходження та використання коштів загального фонду (форма №2д, | G5: =IF(ЗАПОЛНИТЬ!$F$7=1,шапки!C2,шапки!D2) -> №2м) | H5: =IF(ЗАПОЛНИТЬ!$F$7=1,шапки!D2,"") -> 
A6: =CONCATENATE("за ",ЗАПОЛНИТЬ!$B$17," ",ЗАПОЛНИТЬ!$C$17) -> за 2017 р.
J7: коди
A9: Установа | B9: =ЗАПОЛНИТЬ!B3 -> Новгород-Сіверська міська рада | H9: за ЄДРПОУ | J9: =ЗАПОЛНИТЬ!B13 -> 04061978
A10: Територія | B10: =ЗАПОЛНИТЬ!B5 -> 16000 Чернігівська обл.,м.Новгород-Сіверський вул. Губернська, 2 | H10: за КОАТУУ | J10: =ЗАПОЛНИТЬ!B14 -> 7410500000
A11: Організаційно-правова форма господарювання | B11: =ЗАПОЛНИТЬ!D15 -> Орган місцевого самоврядування | H11: за КОПФГ | J11: =ЗАПОЛНИТЬ!B15 -> 420
A12: Код та назва відомчої класифікації видатків та кредитування державного бюджету | D12: =ЗАПОЛНИТЬ!H9 -> 0 | E12: =IF(D12>0,VLOOKUP(D12,'ДовидникКВК(ГОС)'!A:B,2,FALSE),"") -> 
A13: Код та назва програмної класифікації видатків та кредитування державного бюджету | E13: =IF(D13>0,VLOOKUP(D13,ДовидникКПК!B:C,2,FALSE),"") -> 
A14: Код та назва типової відомчої класифікації видатків та кредитування місцевих бюджетів | D14: =ЗАПОЛНИТЬ!H10 -> 01 | E14: =ЗАПОЛНИТЬ!I10 -> рада
A15: Код та назва програмної класифікації видатків та кредитування місцевих бюджетів (код та назва Типової програмної класифікації видатків та кредитування місцевих бюджетів / Тимчасової класифікації видатків та кредитування для бюджетів місцевого самоврядування, які не застосовують програмно-цільового методу) | D15: 110170 | E15: =VLOOKUP(RIGHT(D15,4),КПКВМБ!A:B,2,FALSE) -> Організаційне, інформаційно-аналітичне та матеріально-технічне забезпечення діяльності обласної ради, районної ради, районної у місті ради (у разі її створення), міської, селищної, сільської рад
A16: Періодичність: квартальна, річна
A17: Одиниця виміру: грн, коп.
A19: Показники | B19: КЕКВ та/або ККК | C19: Код рядка | D19: Затверджено на звітний рік | E19: Затверджено на звітний період (рік)1 | F19: Залишок на початок звітного року | G19: Надійшло коштів за звітний період (рік) | H19: Касові за звітний період (рік) | I19: Фактичні за звітний період (рік) | J19: Залишок на кінець звітного періоду (року)
A22: 1 | B22: 2 | C22: 3 | D22: 4 | E22: 5 | F22: 6 | G22: 7 | H22: 8 | I22: 9 | J22: 9
A23: Видатки та надання кредитів - усього | B23: Х | C23: 010 | D23: =D24+D59+D79+D84+D87 -> 5779300 | E23: =E26+E29+E32+E33+E37+E45+E46+E86+E54 -> 5779300 | F23: =F24+F59+F79+F84+F87 -> 0 | G23: =G24+G59+G79+G84+G87 -> 5687570.77 | H23: =H24+H59+H79+H84+H87 -> 5687570.77 | I23: =I24+I59+I79+I84+I87 -> 0 | J23: =F23+G23-H23 -> 0
A24: у тому числі: Поточні видатки | B24: 2000 | C24: 020 | D24: =D25+D30+D47+D50+D54+D58 -> 5779300 | E24: 0 | F24: 0 | G24: 5687570.77 | H24: 5687570.77 | I24: 0 | J24: =F24+G24-H24 -> 0
A25: Оплата праці і нарахування на заробітну плату | B25: 2100 | C25: 030 | D25: =D26+D29 -> 5071500 | E25: 0 | F25: =F26+F29 -> 0 | G25: =G26+G29 -> 5070543.35 | H25: =H26+H29 -> 5070543.35 | I25: =I26+I29 -> 0 | J25: 0
A26: Оплата праці | B26: 2110 | C26: 040 | D26: =SUM(D27:D28) -> 4180525 | E26: 4180525 | F26: 0 | G26: 4180007.33 | H26: 4180007.33 | I26: 0 | J26: 0
A27: Заробітна плата | B27: 2111 | C27: 050 | D27: 4180525 | E27: 0 | F27: 0 | G27: 4180007.33 | H27: 4180007.33 | I27: 0 | J27: 0
A28: Грошове забезпечення військовослужбовців | B28: 2112 | C28: 060 | D28: 0 | E28: 0 | F28: 0 | G28: 0 | H28: 0 | I28: 0 | J28: 0
A29: Нарахування на оплату праці | B29: 2120 | C29: 070 | D29: 890975 | E29: 890975 | F29: 0 | G29: 890536.02 | H29: 890536.02 | I29: 0 | J29: 0
A30: Використання товарів і послуг | B30: 2200 | C30: 080 | D30: =SUM(D31:D37)+D44 -> 682800 | E30: 0 | F30: =SUM(F31:F37)+F44 -> 0 | G30: =SUM(G31:G37)+G44 -> 596308.42 | H30: =SUM(H31:H37)+H44 -> 596308.42 | I30: =SUM(I31:I37)+I44 -> 0 | J30: 0
A31: Предмети, матеріали, обладнання та інвентар | B31: 2210 | C31: 090 | D31: 300000 | E31: 0 | F31: 0 | G31: 285929.47 | H31: 285929.47 | I31: 0 | J31: 0
A32: Медикаменти та перев’язувальні матеріали | B32: 2220 | C32: 100 | D32: 0 | E32: 0 | F32: 0 | G32: 0 | H32: 0 | I32: 0 | J32: 0
A33: Продукти харчування | B33: 2230 | C33: 110 | D33: 0 | E33: 0 | F33: 0 | G33: 0 | H33: 0 | I33: 0 | J33: 0
A34: Оплата послуг (крім комунальних) | B34: 2240 | C34: 120 | D34: 178500 | E34: 0 | F34: 0 | G34: 163310.97 | H34: 163310.97 | I34: 0 | J34: 0
A35: Видатки на відрядження | B35: 2250 | C35: 130 | D35: 20000 | E35: 0 | F35: 0 | G35: 13623.27 | H35: 13623.27 | I35: 0 | J35: 0
A36: Видатки та заходи спеціального призначення | B36: 2260 | C36: 140 | D36: 0 | E36: 0 | F36: 0 | G36: 0 | H36: 0 | I36: 0 | J36: 0
A37: Оплата комунальних послуг та енергоносіїв | B37: 2270 | C37: 150 | D37: =SUM(D38:D43) -> 174300 | E37: 174300 | F37: =SUM(F38:F43) -> 0 | G37: =SUM(G38:G43) -> 130864.71 | H37: =SUM(H38:H43) -> 130864.71 | I37: =SUM(I38:I43) -> 0 | J37: =F37+G37-H37 -> 0
A38: Оплата теплопостачання | B38: 2271 | C38: 160 | D38: 0 | E38: 0 | F38: 0 | G38: 0 | H38: 0 | I38: 0 | J38: 0
A39: Оплата водопостачання та водовідведення | B39: 2272 | C39: 170 | D39: 7000 | E39: 0 | F39: 0 | G39: 4139.99 | H39: 4139.99 | I39: 0 | J39: 0
A40: Оплата електроенергії | B40: 2273 | C40: 180 | D40: 32600 | E40: 0 | F40: 0 | G40: 29413.4 | H40: 29413.4 | I40: 0 | J40: 0
A41: Оплата природного газу | B41: 2274 | C41: 190 | D41: 124700 | E41: 0 | F41: 0 | G41: 94807.84 | H41: 94807.84 | I41: 0 | J41: 0
A42: Оплата інших енергоносіїв | B42: 2275 | C42: 200 | D42: 10000 | E42: 0 | F42: 0 | G42: 2503.48 | H42: 2503.48 | I42: 0 | J42: 0
A43: Оплата енергосервісу | B43: 2276 | C43: 210 | D43: 0 | E43: 0 | F43: 0 | G43: 0 | H43: 0 | I43: 0 | J43: =F43+G43-H43 -> 0
A44: Дослідження і розробки, окремі заходи по реалізації державних (регіональних) програм | B44: 2280 | C44: 220 | D44: =SUM(D45:D46) -> 10000 | E44: 0 | F44: =SUM(F45:F46) -> 0 | G44: =SUM(G45:G46) -> 2580 | H44: =SUM(H45:H46) -> 2580 | I44: =SUM(I45:I46) -> 0 | J44: 0
A45: Дослідження і розробки, окремі заходи розвитку по реалізації державних (регіональних) програм | B45: 2281 | C45: 230 | D45: 0 | E45: 0 | F45: 0 | G45: 0 | H45: 0 | I45: 0 | J45: 0
A46: Окремі заходи по реалізації державних (регіональних) програм, не віднесені до заходів розвитку | B46: 2282 | C46: 240 | D46: 10000 | E46: 10000 | F46: 0 | G46: 2580 | H46: 2580 | I46: 0 | J46: 0
A47: Обслуговування боргових зобов’язань | B47: 2400 | C47: 250 | D47: =SUM(D48:D49) -> 0 | E47: 0 | F47: 0 | G47: 0 | H47: 0 | I47: 0 | J47: 0
A48: Обслуговування внутрішніх боргових зобов’язань | B48: 2410 | C48: 260 | D48: 0 | E48: 0 | F48: 0 | G48: 0 | H48: 0 | I48: 0 | J48: 0
A49: Обслуговування зовнішніх боргових зобов’язань | B49: 2420 | C49: 270 | D49: 0 | E49: 0 | F49: 0 | G49: 0 | H49: 0 | I49: 0 | J49: 0
A50: Поточні трансферти | B50: 2600 | C50: 280 | D50: =SUM(D51:D53) -> 0 | E50: 0 | F50: 0 | G50: 0 | H50: 0 | I50: 0 | J50: 0
A51: Субсидії та поточні трансферти підприємствам (установам, організаціям) | B51: 2610 | C51: 290 | D51: 0 | E51: 0 | F51: 0 | G51: 0 | H51: 0 | I51: 0 | J51: 0
A52: Поточні трансферти органам державного управління інших рівнів | B52: 2620 | C52: 300 | D52: 0 | E52: 0 | F52: 0 | G52: 0 | H52: 0 | I52: 0 | J52: 0
A53: Поточні трансферти урядам іноземних держав та міжнародним організаціям | B53: 2630 | C53: 310 | D53: 0 | E53: 0 | F53: 0 | G53: 0 | H53: 0 | I53: 0 | J53: 0
A54: Соціальне забезпечення | B54: 2700 | C54: 320 | D54: =SUM(D55:D57) -> 0 | E54: 0 | F54: 0 | G54: 0 | H54: 0 | I54: 0 | J54: 0
A55: Виплата пенсій і допомоги | B55: 2710 | C55: 330 | D55: 0 | E55: 0 | F55: 0 | G55: 0 | H55: 0 | I55: 0 | J55: 0
A56: Стипендії | B56: 2720 | C56: 340 | D56: 0 | E56: 0 | F56: 0 | G56: 0 | H56: 0 | I56: 0 | J56: 0
A57: Інші виплати населенню | B57: 2730 | C57: 350 | D57: 0 | E57: 0 | F57: 0 | G57: 0 | H57: 0 | I57: 0 | J57: 0
A58: Інші поточні видатки | B58: 2800 | C58: 360 | D58: 25000 | E58: 0 | F58: 0 | G58: 20719 | H58: 20719 | I58: 0 | J58: 0
A59: Капітальні видатки | B59: 3000 | C59: 370 | D59: =D60+D74 -> 0 | E59: 0 | F59: 0 | G59: 0 | H59: 0 | I59: 0 | J59: 0
A60: Придбання основного капіталу | B60: 3100 | C60: 380 | D60: =D61+D62+D65+D68+D72+D73 -> 0 | E60: 0 | F60: 0 | G60: 0 | H60: 0 | I60: 0 | J60: 0
A61: Придбання обладнання і предметів довгострокового користування | B61: 3110 | C61: 390 | D61: 0 | E61: 0 | F61: 0 | G61: 0 | H61: 0 | I61: 0 | J61: 0
A62: Капітальне будівництво (придбання) | B62: 3120 | C62: 400 | D62: =SUM(D63:D64) -> 0 | E62: 0 | F62: 0 | G62: 0 | H62: 0 | I62: 0 | J62: 0
A63: Капітальне будівництво (придбання) житла | B63: 3121 | C63: 410 | D63: 0 | E63: 0 | F63: 0 | G63: 0 | H63: 0 | I63: 0 | J63: 0
A64: Капітальне будівництво (придбання) інших об’єктів | B64: 3122 | C64: 420 | D64: 0 | E64: 0 | F64: 0 | G64: 0 | H64: 0 | I64: 0 | J64: 0
A65: Капітальний ремонт | B65: 3130 | C65: 430 | D65: =SUM(D66:D67) -> 0 | E65: 0 | F65: 0 | G65: 0 | H65: 0 | I65: 0 | J65: 0
A66: Капітальний ремонт житлового фонду (приміщень) | B66: 3131 | C66: 440 | D66: 0 | E66: 0 | F66: 0 | G66: 0 | H66: 0 | I66: 0 | J66: 0
A67: Капітальний ремонт інших об’єктів | B67: 3132 | C67: 450 | D67: 0 | E67: 0 | F67: 0 | G67: 0 | H67: 0 | I67: 0 | J67: 0
A68: Реконструкція та реставрація | B68: 3140 | C68: 460 | D68: =SUM(D69:D71) -> 0 | E68: 0 | F68: 0 | G68: 0 | H68: 0 | I68: 0 | J68: 0
A69: Реконструкція житлового фонду (приміщень) | B69: 3141 | C69: 470 | D69: 0 | E69: 0 | F69: 0 | G69: 0 | H69: 0 | I69: 0 | J69: 0
A70: Реконструкція та реставрація інших об’єктів | B70: 3142 | C70: 480 | D70: 0 | E70: 0 | F70: 0 | G70: 0 | H70: 0 | I70: 0 | J70: 0
A71: Реставрація пам’яток культури, історії та архітектури | B71: 3143 | C71: 490 | D71: 0 | E71: 0 | F71: 0 | G71: 0 | H71: 0 | I71: 0 | J71: 0
A72: Створення державних запасів і резервів | B72: 3150 | C72: 500 | D72: 0 | E72: 0 | F72: 0 | G72: 0 | H72: 0 | I72: 0 | J72: 0
A73: Придбання землі та нематеріальних активів | B73: 3160 | C73: 510 | D73: 0 | E73: 0 | F73: 0 | G73: 0 | H73: 0 | I73: 0 | J73: 0
A74: Капітальні трансферти | B74: 3200 | C74: 520 | D74: =SUM(D75:D78) -> 0 | E74: 0 | F74: 0 | G74: 0 | H74: 0 | I74: 0 | J74: 0
A75: Капітальні трансферти підприємствам (установам, організаціям) | B75: 3210 | C75: 530 | D75: 0 | E75: 0 | F75: 0 | G75: 0 | H75: 0 | I75: 0 | J75: 0
A76: Капітальні трансферти органам державного управління інших рівнів | B76: 3220 | C76: 540 | D76: 0 | E76: 0 | F76: 0 | G76: 0 | H76: 0 | I76: 0 | J76: 0
A77: Капітальні трансферти урядам іноземних держав та міжнародним організаціям | B77: 3230 | C77: 550 | D77: 0 | E77: 0 | F77: 0 | G77: 0 | H77: 0 | I77: 0 | J77: 0
A78: Капітальні трансферти населенню | B78: 3240 | C78: 560 | D78: 0 | E78: 0 | F78: 0 | G78: 0 | H78: 0 | I78: 0 | J78: 0
A79: Внутрішнє кредитування | B79: 4100 | C79: 570 | D79: =SUM(D80) -> 0 | E79: 0 | F79: 0 | G79: 0 | H79: 0 | I79: 0 | J79: 0
A80: Надання внутрішніх кредитів | B80: 4110 | C80: 580 | D80: =SUM(D81:D83) -> 0 | E80: 0 | F80: 0 | G80: 0 | H80: 0 | I80: 0 | J80: 0
A81: Надання кредитів органам державного управління інших рівнів | B81: 4111 | C81: 590 | D81: 0 | E81: 0 | F81: 0 | G81: 0 | H81: 0 | I81: 0 | J81: 0
A82: Надання кредитів підприємствам, установам, організаціям | B82: 4112 | C82: 600 | D82: 0 | E82: 0 | F82: 0 | G82: 0 | H82: 0 | I82: 0 | J82: 0
A83: Надання інших внутрішніх кредитів | B83: 4113 | C83: 610 | D83: 0 | E83: 0 | F83: 0 | G83: 0 | H83: 0 | I83: 0 | J83: 0
A84: Зовнішнє кредитування | B84: 4200 | C84: 620 | D84: =D85 -> 0 | E84: 0 | F84: 0 | G84: 0 | H84: 0 | I84: 0 | J84: 0
A85: Надання зовнішніх кредитів | B85: 4210 | C85: 630 | D85: 0 | E85: 0 | F85: 0 | G85: 0 | H85: 0 | I85: 0 | J85: 0
A86: Інші видатки | B86: 5000 | C86: 640 | D86: X | E86: 523500 | F86: X | G86: X | H86: X | I86: X | J86: X
A87: Нерозподілені видатки | B87: 9000 | C87: 650 | D87: 0 | E87: 0 | F87: 0 | G87: 0 | H87: 0 | I87: 0 | J87: 0
C88: 650
A100: 1 Заповнюється розпорядниками бюджетних коштів.
A101: =ЗАПОЛНИТЬ!F30 -> Міський голова | G101: =ЗАПОЛНИТЬ!F26 -> Бондаренко О.А.
D102: (підпис) | G102: (ініціали, прізвище)
A103: =ЗАПОЛНИТЬ!F31 -> Начальник відділу бухгалтерського обліку, планування та звітності | G103: =ЗАПОЛНИТЬ!F28 -> Топчій Н.М.
A104: =ЗАПОЛНИТЬ!C19 -> "10"січня 2018 року | D104: (підпис) | G104: (ініціали, прізвище)

Sheet Ф.2.2
G1: Додаток 1 до Порядку складання бюджетної звітності розпорядниками та одержувачами бюджетних коштів, звітності фондами загальнообов’язкового державного соціального і пенсійного страхування (пункт 1 розділу ІІ)
A4: ЗВІТ
A5: =IF(ЗАПОЛНИТЬ!$F$7=1,CONCATENATE(шапки!A2),CONCATENATE(шапки!A2,шапки!C2)) -> про надходження та використання коштів загального фонду (форма №2д, | G5: =IF(ЗАПОЛНИТЬ!$F$7=1,шапки!C2,шапки!D2) -> №2м) | H5: =IF(ЗАПОЛНИТЬ!$F$7=1,шапки!D2,"") -> 
A6: =CONCATENATE("за ",ЗАПОЛНИТЬ!$B$17," ",ЗАПОЛНИТЬ!$C$17) -> за 2017 р.
J7: коди
A9: Установа | B9: =ЗАПОЛНИТЬ!B3 -> Новгород-Сіверська міська рада | H9: за ЄДРПОУ | J9: =ЗАПОЛНИТЬ!B13 -> 04061978
A10: Територія | B10: =ЗАПОЛНИТЬ!B5 -> 16000 Чернігівська обл.,м.Новгород-Сіверський вул. Губернська, 2 | H10: за КОАТУУ | J10: =ЗАПОЛНИТЬ!B14 -> 7410500000
A11: Організаційно-правова форма господарювання | B11: =ЗАПОЛНИТЬ!D15 -> Орган місцевого самоврядування | H11: за КОПФГ | J11: =ЗАПОЛНИТЬ!B15 -> 420
A12: Код та назва відомчої класифікації видатків та кредитування державного бюджету | D12: =ЗАПОЛНИТЬ!H9 -> 0 | E12: =IF(D12>0,VLOOKUP(D12,'ДовидникКВК(ГОС)'!A:B,2,FALSE),"") -> 
A13: Код та назва програмної класифікації видатків та кредитування державного бюджету | E13: =IF(D13>0,VLOOKUP(D13,ДовидникКПК!B:C,2,FALSE),"") -> 
A14: Код та назва типової відомчої класифікації видатків та кредитування місцевих бюджетів | D14: =ЗАПОЛНИТЬ!H10 -> 01 | E14: =ЗАПОЛНИТЬ!I10 -> рада
A15: Код та назва програмної класифікації видатків та кредитування місцевих бюджетів (код та назва Типової програмної класифікації видатків та кредитування місцевих бюджетів / Тимчасової класифікації видатків та кредитування для бюджетів місцевого самоврядування, які не застосовують програмно-цільового методу) | D15: 113112 | E15: =VLOOKUP(RIGHT(D15,4),КПКВМБ!A:B,2,FALSE) -> Заходи державної політики з питань дітей та їх соціального захисту
A16: Періодичність: квартальна, річна
A17: Одиниця виміру: грн, коп.
A19: Показники | B19: КЕКВ та/або ККК | C19: Код рядка | D19: Затверджено на звітний рік | E19: Затверджено на звітний період (рік)1 | F19: Залишок на початок звітного року | G19: Надійшло коштів за звітний період (рік) | H19: Касові за звітний період (рік) | I19: Фактичні за звітний період (рік) | J19: Залишок на кінець звітного періоду (року)
A22: 1 | B22: 2 | C22: 3 | D22: 4 | E22: 5 | F22: 6 | G22: 7 | H22: 8 | I22: 9 | J22: 9
A23: Видатки та надання кредитів - усього | B23: Х | C23: 010 | D23: =D24+D59+D79+D84+D87 -> 35000 | E23: =E26+E29+E32+E33+E37+E45+E46+E86+E54 -> 35000 | F23: =F24+F59+F79+F84+F87 -> 0 | G23: =G24+G59+G79+G84+G87 -> 30529.92 | H23: =H24+H59+H79+H84+H87 -> 30529.92 | I23: =I24+I59+I79+I84+I87 -> 0 | J23: =F23+G23-H23 -> 0
A24: у тому числі: Поточні видатки | B24: 2000 | C24: 020 | D24: =D25+D30+D47+D50+D54+D58 -> 35000 | E24: 0 | F24: 0 | G24: 30529.92 | H24: 30529.92 | I24: 0 | J24: =F24+G24-H24 -> 0
A25: Оплата праці і нарахування на заробітну плату | B25: 2100 | C25: 030 | D25: =D26+D29 -> 0 | E25: 0 | F25: =F26+F29 -> 0 | G25: =G26+G29 -> 0 | H25: =H26+H29 -> 0 | I25: =I26+I29 -> 0 | J25: 0
A26: Оплата праці | B26: 2110 | C26: 040 | D26: =SUM(D27:D28) -> 0 | E26: 0 | F26: 0 | G26: 0 | H26: 0 | I26: 0 | J26: 0
A27: Заробітна плата | B27: 2111 | C27: 050 | D27: 0 | E27: 0 | F27: 0 | G27: 0 | H27: 0 | I27: 0 | J27: 0
A28: Грошове забезпечення військовослужбовців | B28: 2112 | C28: 060 | D28: 0 | E28: 0 | F28: 0 | G28: 0 | H28: 0 | I28: 0 | J28: 0
A29: Нарахування на оплату праці | B29: 2120 | C29: 070 | D29: 0 | E29: 0 | F29: 0 | G29: 0 | H29: 0 | I29: 0 | J29: 0
A30: Використання товарів і послуг | B30: 2200 | C30: 080 | D30: =SUM(D31:D37)+D44 -> 35000 | E30: 0 | F30: =SUM(F31:F37)+F44 -> 0 | G30: =SUM(G31:G37)+G44 -> 30529.92 | H30: =SUM(H31:H37)+H44 -> 30529.92 | I30: =SUM(I31:I37)+I44 -> 0 | J30: 0
A31: Предмети, матеріали, обладнання та інвентар | B31: 2210 | C31: 090 | D31: 31600 | E31: 0 | F31: 0 | G31: 28829.92 | H31: 28829.92 | I31: 0 | J31: 0
A32: Медикаменти та перев’язувальні матеріали | B32: 2220 | C32: 100 | D32: 0 | E32: 0 | F32: 0 | G32: 0 | H32: 0 | I32: 0 | J32: 0
A33: Продукти харчування | B33: 2230 | C33: 110 | D33: 0 | E33: 0 | F33: 0 | G33: 0 | H33: 0 | I33: 0 | J33: 0
A34: Оплата послуг (крім комунальних) | B34: 2240 | C34: 120 | D34: 3400 | E34: 0 | F34: 0 | G34: 1700 | H34: 1700 | I34: 0 | J34: 0
A35: Видатки на відрядження | B35: 2250 | C35: 130 | D35: 0 | E35: 0 | F35: 0 | G35: 0 | H35: 0 | I35: 0 | J35: 0
A36: Видатки та заходи спеціального призначення | B36: 2260 | C36: 140 | D36: 0 | E36: 0 | F36: 0 | G36: 0 | H36: 0 | I36: 0 | J36: 0
A37: Оплата комунальних послуг та енергоносіїв | B37: 2270 | C37: 150 | D37: =SUM(D38:D43) -> 0 | E37: 0 | F37: =SUM(F38:F43) -> 0 | G37: =SUM(G38:G43) -> 0 | H37: =SUM(H38:H43) -> 0 | I37: =SUM(I38:I43) -> 0 | J37: =F37+G37-H37 -> 0
A38: Оплата теплопостачання | B38: 2271 | C38: 160 | D38: 0 | E38: 0 | F38: 0 | G38: 0 | H38: 0 | I38: 0 | J38: 0
A39: Оплата водопостачання та водовідведення | B39: 2272 | C39: 170 | D39: 0 | E39: 0 | F39: 0 | G39: 0 | H39: 0 | I39: 0 | J39: 0
A40: Оплата електроенергії | B40: 2273 | C40: 180 | D40: 0 | E40: 0 | F40: 0 | G40: 0 | H40: 0 | I40: 0 | J40: 0
A41: Оплата природного газу | B41: 2274 | C41: 190 | D41: 0 | E41: 0 | F41: 0 | G41: 0 | H41: 0 | I41: 0 | J41: 0
A42: Оплата інших енергоносіїв | B42: 2275 | C42: 200 | D42: 0 | E42: 0 | F42: 0 | G42: 0 | H42: 0 | I42: 0 | J42: 0
A43: Оплата енергосервісу | B43: 2276 | C43: 210 | D43: 0 | E43: 0 | F43: 0 | G43: 0 | H43: 0 | I43: 0 | J43: =F43+G43-H43 -> 0
A44: Дослідження і розробки, окремі заходи по реалізації державних (регіональних) програм | B44: 2280 | C44: 220 | D44: =SUM(D45:D46) -> 0 | E44: 0 | F44: =SUM(F45:F46) -> 0 | G44: =SUM(G45:G46) -> 0 | H44: =SUM(H45:H46) -> 0 | I44: =SUM(I45:I46) -> 0 | J44: 0
A45: Дослідження і розробки, окремі заходи розвитку по реалізації державних (регіональних) програм | B45: 2281 | C45: 230 | D45: 0 | E45: 0 | F45: 0 | G45: 0 | H45: 0 | I45: 0 | J45: 0
A46: Окремі заходи по реалізації державних (регіональних) програм, не віднесені до заходів розвитку | B46: 2282 | C46: 240 | D46: 0 | E46: 0 | F46: 0 | G46: 0 | H46: 0 | I46: 0 | J46: 0
A47: Обслуговування боргових зобов’язань | B47: 2400 | C47: 250 | D47: =SUM(D48:D49) -> 0 | E47: 0 | F47: 0 | G47: 0 | H47: 0 | I47: 0 | J47: 0
A48: Обслуговування внутрішніх боргових зобов’язань | B48: 2410 | C48: 260 | D48: 0 | E48: 0 | F48: 0 | G48: 0 | H48: 0 | I48: 0 | J48: 0
A49: Обслуговування зовнішніх боргових зобов’язань | B49: 2420 | C49: 270 | D49: 0 | E49: 0 | F49: 0 | G49: 0 | H49: 0 | I49: 0 | J49: 0
A50: Поточні трансферти | B50: 2600 | C50: 280 | D50: =SUM(D51:D53) -> 0 | E50: 0 | F50: 0 | G50: 0 | H50: 0 | I50: 0 | J50: 0
A51: Субсидії та поточні трансферти підприємствам (установам, організаціям) | B51: 2610 | C51: 290 | D51: 0 | E51: 0 | F51: 0 | G51: 0 | H51: 0 | I51: 0 | J51: 0
A52: Поточні трансферти органам державного управління інших рівнів | B52: 2620 | C52: 300 | D52: 0 | E52: 0 | F52: 0 | G52: 0 | H52: 0 | I52: 0 | J52: 0
A53: Поточні трансферти урядам іноземних держав та міжнародним організаціям | B53: 2630 | C53: 310 | D53: 0 | E53: 0 | F53: 0 | G53: 0 | H53: 0 | I53: 0 | J53: 0
A54: Соціальне забезпечення | B54: 2700 | C54: 320 | D54: =SUM(D55:D57) -> 0 | E54: 0 | F54: 0 | G54: 0 | H54: 0 | I54: 0 | J54: 0
A55: Виплата пенсій і допомоги | B55: 2710 | C55: 330 | D55: 0 | E55: 0 | F55: 0 | G55: 0 | H55: 0 | I55: 0 | J55: 0
A56: Стипендії | B56: 2720 | C56: 340 | D56: 0 | E56: 0 | F56: 0 | G56: 0 | H56: 0 | I56: 0 | J56: 0
A57: Інші виплати населенню | B57: 2730 | C57: 350 | D57: 0 | E57: 0 | F57: 0 | G57: 0 | H57: 0 | I57: 0 | J57: 0
A58: Інші поточні видатки | B58: 2800 | C58: 360 | D58: 0 | E58: 0 | F58: 0 | G58: 0 | H58: 0 | I58: 0 | J58: 0
A59: Капітальні видатки | B59: 3000 | C59: 370 | D59: =D60+D74 -> 0 | E59: 0 | F59: 0 | G59: 0 | H59: 0 | I59: 0 | J59: 0
A60: Придбання основного капіталу | B60: 3100 | C60: 380 | D60: =D61+D62+D65+D68+D72+D73 -> 0 | E60: 0 | F60: 0 | G60: 0 | H60: 0 | I60: 0 | J60: 0
A61: Придбання обладнання і предметів довгострокового користування | B61: 3110 | C61: 390 | D61: 0 | E61: 0 | F61: 0 | G61: 0 | H61: 0 | I61: 0 | J61: 0
A62: Капітальне будівництво (придбання) | B62: 3120 | C62: 400 | D62: =SUM(D63:D64) -> 0 | E62: 0 | F62: 0 | G62: 0 | H62: 0 | I62: 0 | J62: 0
A63: Капітальне будівництво (придбання) житла | B63: 3121 | C63: 410 | D63: 0 | E63: 0 | F63: 0 | G63: 0 | H63: 0 | I63: 0 | J63: 0
A64: Капітальне будівництво (придбання) інших об’єктів | B64: 3122 | C64: 420 | D64: 0 | E64: 0 | F64: 0 | G64: 0 | H64: 0 | I64: 0 | J64: 0
A65: Капітальний ремонт | B65: 3130 | C65: 430 | D65: =SUM(D66:D67) -> 0 | E65: 0 | F65: 0 | G65: 0 | H65: 0 | I65: 0 | J65: 0
A66: Капітальний ремонт житлового фонду (приміщень) | B66: 3131 | C66: 440 | D66: 0 | E66: 0 | F66: 0 | G66: 0 | H66: 0 | I66: 0 | J66: 0
A67: Капітальний ремонт інших об’єктів | B67: 3132 | C67: 450 | D67: 0 | E67: 0 | F67: 0 | G67: 0 | H67: 0 | I67: 0 | J67: 0
A68: Реконструкція та реставрація | B68: 3140 | C68: 460 | D68: =SUM(D69:D71) -> 0 | E68: 0 | F68: 0 | G68: 0 | H68: 0 | I68: 0 | J68: 0
A69: Реконструкція житлового фонду (приміщень) | B69: 3141 | C69: 470 | D69: 0 | E69: 0 | F69: 0 | G69: 0 | H69: 0 | I69: 0 | J69: 0
A70: Реконструкція та реставрація інших об’єктів | B70: 3142 | C70: 480 | D70: 0 | E70: 0 | F70: 0 | G70: 0 | H70: 0 | I70: 0 | J70: 0
A71: Реставрація пам’яток культури, історії та архітектури | B71: 3143 | C71: 490 | D71: 0 | E71: 0 | F71: 0 | G71: 0 | H71: 0 | I71: 0 | J71: 0
A72: Створення державних запасів і резервів | B72: 3150 | C72: 500 | D72: 0 | E72: 0 | F72: 0 | G72: 0 | H72: 0 | I72: 0 | J72: 0
A73: Придбання землі та нематеріальних активів | B73: 3160 | C73: 510 | D73: 0 | E73: 0 | F73: 0 | G73: 0 | H73: 0 | I73: 0 | J73: 0
A74: Капітальні трансферти | B74: 3200 | C74: 520 | D74: =SUM(D75:D78) -> 0 | E74: 0 | F74: 0 | G74: 0 | H74: 0 | I74: 0 | J74: 0
A75: Капітальні трансферти підприємствам (установам, організаціям) | B75: 3210 | C75: 530 | D75: 0 | E75: 0 | F75: 0 | G75: 0 | H75: 0 | I75: 0 | J75: 0
A76: Капітальні трансферти органам державного управління інших рівнів | B76: 3220 | C76: 540 | D76: 0 | E76: 0 | F76: 0 | G76: 0 | H76: 0 | I76: 0 | J76: 0
A77: Капітальні трансферти урядам іноземних держав та міжнародним організаціям | B77: 3230 | C77: 550 | D77: 0 | E77: 0 | F77: 0 | G77: 0 | H77: 0 | I77: 0 | J77: 0
A78: Капітальні трансферти населенню | B78: 3240 | C78: 560 | D78: 0 | E78: 0 | F78: 0 | G78: 0 | H78: 0 | I78: 0 | J78: 0
A79: Внутрішнє кредитування | B79: 4100 | C79: 570 | D79: =SUM(D80) -> 0 | E79: 0 | F79: 0 | G79: 0 | H79: 0 | I79: 0 | J79: 0
A80: Надання внутрішніх кредитів | B80: 4110 | C80: 580 | D80: =SUM(D81:D83) -> 0 | E80: 0 | F80: 0 | G80: 0 | H80: 0 | I80: 0 | J80: 0
A81: Надання кредитів органам державного управління інших рівнів | B81: 4111 | C81: 590 | D81: 0 | E81: 0 | F81: 0 | G81: 0 | H81: 0 | I81: 0 | J81: 0
A82: Надання кредитів підприємствам, установам, організаціям | B82: 4112 | C82: 600 | D82: 0 | E82: 0 | F82: 0 | G82: 0 | H82: 0 | I82: 0 | J82: 0
A83: Надання інших внутрішніх кредитів | B83: 4113 | C83: 610 | D83: 0 | E83: 0 | F83: 0 | G83: 0 | H83: 0 | I83: 0 | J83: 0
A84: Зовнішнє кредитування | B84: 4200 | C84: 620 | D84: =D85 -> 0 | E84: 0 | F84: 0 | G84: 0 | H84: 0 | I84: 0 | J84: 0
A85: Надання зовнішніх кредитів | B85: 4210 | C85: 630 | D85: 0 | E85: 0 | F85: 0 | G85: 0 | H85: 0 | I85: 0 | J85: 0
A86: Інші видатки | B86: 5000 | C86: 640 | D86: X | E86: 35000 | F86: X | G86: X | H86: X | I86: X | J86: X
A87: Нерозподілені видатки | B87: 9000 | C87: 650 | D87: 0 | E87: 0 | F87: 0 | G87: 0 | H87: 0 | I87: 0 | J87: 0
C88: 650
A100: 1 Заповнюється розпорядниками бюджетних коштів.
A101: =ЗАПОЛНИТЬ!F30 -> Міський голова | G101: =ЗАПОЛНИТЬ!F26 -> Бондаренко О.А.
D102: (підпис) | G102: (ініціали, прізвище)
A103: =ЗАПОЛНИТЬ!F31 -> Начальник відділу бухгалтерського обліку, планування та звітності | G103: =ЗАПОЛНИТЬ!F28 -> Топчій Н.М.
A104: =ЗАПОЛНИТЬ!C19 -> "10"січня 2018 року | D104: (підпис) | G104: (ініціали, прізвище)

Sheet Ф.2.3
G1: Додаток 1 до Порядку складання бюджетної звітності розпорядниками та одержувачами бюджетних коштів, звітності фондами загальнообов’язкового державного соціального і пенсійного страхування (пункт 1 розділу ІІ)
A4: ЗВІТ
A5: =IF(ЗАПОЛНИТЬ!$F$7=1,CONCATENATE(шапки!A2),CONCATENATE(шапки!A2,шапки!C2)) -> про надходження та використання коштів загального фонду (форма №2д, | G5: =IF(ЗАПОЛНИТЬ!$F$7=1,шапки!C2,шапки!D2) -> №2м) | H5: =IF(ЗАПОЛНИТЬ!$F$7=1,шапки!D2,"") -> 
A6: =CONCATENATE("за ",ЗАПОЛНИТЬ!$B$17," ",ЗАПОЛНИТЬ!$C$17) -> за 2017 р.
J7: коди
A9: Установа | B9: =ЗАПОЛНИТЬ!B3 -> Новгород-Сіверська міська рада | H9: за ЄДРПОУ | J9: =ЗАПОЛНИТЬ!B13 -> 04061978
A10: Територія | B10: =ЗАПОЛНИТЬ!B5 -> 16000 Чернігівська обл.,м.Новгород-Сіверський вул. Губернська, 2 | H10: за КОАТУУ | J10: =ЗАПОЛНИТЬ!B14 -> 7410500000
A11: Організаційно-правова форма господарювання | B11: =ЗАПОЛНИТЬ!D15 -> Орган місцевого самоврядування | H11: за КОПФГ | J11: =ЗАПОЛНИТЬ!B15 -> 420
A12: Код та назва відомчої класифікації видатків та кредитування державного бюджету | D12: =ЗАПОЛНИТЬ!H9 -> 0 | E12: =IF(D12>0,VLOOKUP(D12,'ДовидникКВК(ГОС)'!A:B,2,FALSE),"") -> 
A13: Код та назва програмної класифікації видатків та кредитування державного бюджету | E13: =IF(D13>0,VLOOKUP(D13,ДовидникКПК!B:C,2,FALSE),"") -> 
A14: Код та назва типової відомчої класифікації видатків та кредитування місцевих бюджетів | D14: =ЗАПОЛНИТЬ!H10 -> 01 | E14: =ЗАПОЛНИТЬ!I10 -> рада
A15: Код та назва програмної класифікації видатків та кредитування місцевих бюджетів (код та назва Типової програмної класифікації видатків та кредитування місцевих бюджетів / Тимчасової класифікації видатків та кредитування для бюджетів місцевого самоврядування, які не застосовують програмно-цільового методу) | D15: 113400 | E15: =VLOOKUP(RIGHT(D15,4),КПКВМБ!A:B,2,FALSE) -> Інші видатки на соціальний захист населення
A16: Періодичність: квартальна, річна
A17: Одиниця виміру: грн, коп.
A19: Показники | B19: КЕКВ та/або ККК | C19: Код рядка | D19: Затверджено на звітний рік | E19: Затверджено на звітний період (рік)1 | F19: Залишок на початок звітного року | G19: Надійшло коштів за звітний період (рік) | H19: Касові за звітний період (рік) | I19: Фактичні за звітний період (рік) | J19: Залишок на кінець звітного періоду (року)
A22: 1 | B22: 2 | C22: 3 | D22: 4 | E22: 5 | F22: 6 | G22: 7 | H22: 8 | I22: 9 | J22: 9
A23: Видатки та надання кредитів - усього | B23: Х | C23: 010 | D23: =D24+D59+D79+D84+D87 -> 337300 | E23: =E26+E29+E32+E33+E37+E45+E46+E86+E54 -> 337300 | F23: =F24+F59+F79+F84+F87 -> 0 | G23: =G24+G59+G79+G84+G87 -> 336777.85 | H23: =H24+H59+H79+H84+H87 -> 336777.85 | I23: =I24+I59+I79+I84+I87 -> 0 | J23: =F23+G23-H23 -> 0
A24: у тому числі: Поточні видатки | B24: 2000 | C24: 020 | D24: =D25+D30+D47+D50+D54+D58 -> 337300 | E24: 0 | F24: 0 | G24: 336777.85 | H24: 336777.85 | I24: 0 | J24: =F24+G24-H24 -> 0
A25: Оплата праці і нарахування на заробітну плату | B25: 2100 | C25: 030 | D25: =D26+D29 -> 0 | E25: 0 | F25: =F26+F29 -> 0 | G25: =G26+G29 -> 0 | H25: =H26+H29 -> 0 | I25: =I26+I29 -> 0 | J25: 0
A26: Оплата праці | B26: 2110 | C26: 040 | D26: =SUM(D27:D28) -> 0 | E26: 0 | F26: 0 | G26: 0 | H26: 0 | I26: 0 | J26: 0
A27: Заробітна плата | B27: 2111 | C27: 050 | D27: 0 | E27: 0 | F27: 0 | G27: 0 | H27: 0 | I27: 0 | J27: 0
A28: Грошове забезпечення військовослужбовців | B28: 2112 | C28: 060 | D28: 0 | E28: 0 | F28: 0 | G28: 0 | H28: 0 | I28: 0 | J28: 0
A29: Нарахування на оплату праці | B29: 2120 | C29: 070 | D29: 0 | E29: 0 | F29: 0 | G29: 0 | H29: 0 | I29: 0 | J29: 0
A30: Використання товарів і послуг | B30: 2200 | C30: 080 | D30: =SUM(D31:D37)+D44 -> 0 | E30: 0 | F30: =SUM(F31:F37)+F44 -> 0 | G30: =SUM(G31:G37)+G44 -> 0 | H30: =SUM(H31:H37)+H44 -> 0 | I30: =SUM(I31:I37)+I44 -> 0 | J30: 0
A31: Предмети, матеріали, обладнання та інвентар | B31: 2210 | C31: 090 | D31: 0 | E31: 0 | F31: 0 | G31: 0 | H31: 0 | I31: 0 | J31: 0
A32: Медикаменти та перев’язувальні матеріали | B32: 2220 | C32: 100 | D32: 0 | E32: 0 | F32: 0 | G32: 0 | H32: 0 | I32: 0 | J32: 0
A33: Продукти харчування | B33: 2230 | C33: 110 | D33: 0 | E33: 0 | F33: 0 | G33: 0 | H33: 0 | I33: 0 | J33: 0
A34: Оплата послуг (крім комунальних) | B34: 2240 | C34: 120 | D34: 0 | E34: 0 | F34: 0 | G34: 0 | H34: 0 | I34: 0 | J34: 0
A35: Видатки на відрядження | B35: 2250 | C35: 130 | D35: 0 | E35: 0 | F35: 0 | G35: 0 | H35: 0 | I35: 0 | J35: 0
A36: Видатки та заходи спеціального призначення | B36: 2260 | C36: 140 | D36: 0 | E36: 0 | F36: 0 | G36: 0 | H36: 0 | I36: 0 | J36: 0
A37: Оплата комунальних послуг та енергоносіїв | B37: 2270 | C37: 150 | D37: =SUM(D38:D43) -> 0 | E37: 0 | F37: =SUM(F38:F43) -> 0 | G37: =SUM(G38:G43) -> 0 | H37: =SUM(H38:H43) -> 0 | I37: =SUM(I38:I43) -> 0 | J37: =F37+G37-H37 -> 0
A38: Оплата теплопостачання | B38: 2271 | C38: 160 | D38: 0 | E38: 0 | F38: 0 | G38: 0 | H38: 0 | I38: 0 | J38: 0
A39: Оплата водопостачання та водовідведення | B39: 2272 | C39: 170 | D39: 0 | E39: 0 | F39: 0 | G39: 0 | H39: 0 | I39: 0 | J39: 0
A40: Оплата електроенергії | B40: 2273 | C40: 180 | D40: 0 | E40: 0 | F40: 0 | G40: 0 | H40: 0 | I40: 0 | J40: 0
A41: Оплата природного газу | B41: 2274 | C41: 190 | D41: 0 | E41: 0 | F41: 0 | G41: 0 | H41: 0 | I41: 0 | J41: 0
A42: Оплата інших енергоносіїв | B42: 2275 | C42: 200 | D42: 0 | E42: 0 | F42: 0 | G42: 0 | H42: 0 | I42: 0 | J42: 0
A43: Оплата енергосервісу | B43: 2276 | C43: 210 | D43: 0 | E43: 0 | F43: 0 | G43: 0 | H43: 0 | I43: 0 | J43: =F43+G43-H43 -> 0
A44: Дослідження і розробки, окремі заходи по реалізації державних (регіональних) програм | B44: 2280 | C44: 220 | D44: =SUM(D45:D46) -> 0 | E44: 0 | F44: =SUM(F45:F46) -> 0 | G44: =SUM(G45:G46) -> 0 | H44: =SUM(H45:H46) -> 0 | I44: =SUM(I45:I46) -> 0 | J44: 0
A45: Дослідження і розробки, окремі заходи розвитку по реалізації державних (регіональних) програм | B45: 2281 | C45: 230 | D45: 0 | E45: 0 | F45: 0 | G45: 0 | H45: 0 | I45: 0 | J45: 0
A46: Окремі заходи по реалізації державних (регіональних) програм, не віднесені до заходів розвитку | B46: 2282 | C46: 240 | D46: 0 | E46: 0 | F46: 0 | G46: 0 | H46: 0 | I46: 0 | J46: 0
A47: Обслуговування боргових зобов’язань | B47: 2400 | C47: 250 | D47: =SUM(D48:D49) -> 0 | E47: 0 | F47: 0 | G47: 0 | H47: 0 | I47: 0 | J47: 0
A48: Обслуговування внутрішніх боргових зобов’язань | B48: 2410 | C48: 260 | D48: 0 | E48: 0 | F48: 0 | G48: 0 | H48: 0 | I48: 0 | J48: 0
A49: Обслуговування зовнішніх боргових зобов’язань | B49: 2420 | C49: 270 | D49: 0 | E49: 0 | F49: 0 | G49: 0 | H49: 0 | I49: 0 | J49: 0
A50: Поточні трансферти | B50: 2600 | C50: 280 | D50: =SUM(D51:D53) -> 0 | E50: 0 | F50: 0 | G50: 0 | H50: 0 | I50: 0 | J50: 0
A51: Субсидії та поточні трансферти підприємствам (установам, організаціям) | B51: 2610 | C51: 290 | D51: 0 | E51: 0 | F51: 0 | G51: 0 | H51: 0 | I51: 0 | J51: 0
A52: Поточні трансферти органам державного управління інших рівнів | B52: 2620 | C52: 300 | D52: 0 | E52: 0 | F52: 0 | G52: 0 | H52: 0 | I52: 0 | J52: 0
A53: Поточні трансферти урядам іноземних держав та міжнародним організаціям | B53: 2630 | C53: 310 | D53: 0 | E53: 0 | F53: 0 | G53: 0 | H53: 0 | I53: 0 | J53: 0
A54: Соціальне забезпечення | B54: 2700 | C54: 320 | D54: =SUM(D55:D57) -> 337300 | E54: 337300 | F54: 0 | G54: 336777.85 | H54: 336777.85 | I54: 0 | J54: 0
A55: Виплата пенсій і допомоги | B55: 2710 | C55: 330 | D55: 0 | E55: 0 | F55: 0 | G55: 0 | H55: 0 | I55: 0 | J55: 0
A56: Стипендії | B56: 2720 | C56: 340 | D56: 0 | E56: 0 | F56: 0 | G56: 0 | H56: 0 | I56: 0 | J56: 0
A57: Інші виплати населенню | B57: 2730 | C57: 350 | D57: 337300 | E57: 0 | F57: 0 | G57: 336777.85 | H57: 336777.85 | I57: 0 | J57: 0
A58: Інші поточні видатки | B58: 2800 | C58: 360 | D58: 0 | E58: 0 | F58: 0 | G58: 0 | H58: 0 | I58: 0 | J58: 0
A59: Капітальні видатки | B59: 3000 | C59: 370 | D59: =D60+D74 -> 0 | E59: 0 | F59: 0 | G59: 0 | H59: 0 | I59: 0 | J59: 0
A60: Придбання основного капіталу | B60: 3100 | C60: 380 | D60: =D61+D62+D65+D68+D72+D73 -> 0 | E60: 0 | F60: 0 | G60: 0 | H60: 0 | I60: 0 | J60: 0
A61: Придбання обладнання і предметів довгострокового користування | B61: 3110 | C61: 390 | D61: 0 | E61: 0 | F61: 0 | G61: 0 | H61: 0 | I61: 0 | J61: 0
A62: Капітальне будівництво (придбання) | B62: 3120 | C62: 400 | D62: =SUM(D63:D64) -> 0 | E62: 0 | F62: 0 | G62: 0 | H62: 0 | I62: 0 | J62: 0
A63: Капітальне будівництво (придбання) житла | B63: 3121 | C63: 410 | D63: 0 | E63: 0 | F63: 0 | G63: 0 | H63: 0 | I63: 0 | J63: 0
A64: Капітальне будівництво (придбання) інших об’єктів | B64: 3122 | C64: 420 | D64: 0 | E64: 0 | F64: 0 | G64: 0 | H64: 0 | I64: 0 | J64: 0
A65: Капітальний ремонт | B65: 3130 | C65: 430 | D65: =SUM(D66:D67) -> 0 | E65: 0 | F65: 0 | G65: 0 | H65: 0 | I65: 0 | J65: 0
A66: Капітальний ремонт житлового фонду (приміщень) | B66: 3131 | C66: 440 | D66: 0 | E66: 0 | F66: 0 | G66: 0 | H66: 0 | I66: 0 | J66: 0
A67: Капітальний ремонт інших об’єктів | B67: 3132 | C67: 450 | D67: 0 | E67: 0 | F67: 0 | G67: 0 | H67: 0 | I67: 0 | J67: 0
A68: Реконструкція та реставрація | B68: 3140 | C68: 460 | D68: =SUM(D69:D71) -> 0 | E68: 0 | F68: 0 | G68: 0 | H68: 0 | I68: 0 | J68: 0
A69: Реконструкція житлового фонду (приміщень) | B69: 3141 | C69: 470 | D69: 0 | E69: 0 | F69: 0 | G69: 0 | H69: 0 | I69: 0 | J69: 0
A70: Реконструкція та реставрація інших об’єктів | B70: 3142 | C70: 480 | D70: 0 | E70: 0 | F70: 0 | G70: 0 | H70: 0 | I70: 0 | J70: 0
A71: Реставрація пам’яток культури, історії та архітектури | B71: 3143 | C71: 490 | D71: 0 | E71: 0 | F71: 0 | G71: 0 | H71: 0 | I71: 0 | J71: 0
A72: Створення державних запасів і резервів | B72: 3150 | C72: 500 | D72: 0 | E72: 0 | F72: 0 | G72: 0 | H72: 0 | I72: 0 | J72: 0
A73: Придбання землі та нематеріальних активів | B73: 3160 | C73: 510 | D73: 0 | E73: 0 | F73: 0 | G73: 0 | H73: 0 | I73: 0 | J73: 0
A74: Капітальні трансферти | B74: 3200 | C74: 520 | D74: =SUM(D75:D78) -> 0 | E74: 0 | F74: 0 | G74: 0 | H74: 0 | I74: 0 | J74: 0
A75: Капітальні трансферти підприємствам (установам, організаціям) | B75: 3210 | C75: 530 | D75: 0 | E75: 0 | F75: 0 | G75: 0 | H75: 0 | I75: 0 | J75: 0
A76: Капітальні трансферти органам державного управління інших рівнів | B76: 3220 | C76: 540 | D76: 0 | E76: 0 | F76: 0 | G76: 0 | H76: 0 | I76: 0 | J76: 0
A77: Капітальні трансферти урядам іноземних держав та міжнародним організаціям | B77: 3230 | C77: 550 | D77: 0 | E77: 0 | F77: 0 | G77: 0 | H77: 0 | I77: 0 | J77: 0
A78: Капітальні трансферти населенню | B78: 3240 | C78: 560 | D78: 0 | E78: 0 | F78: 0 | G78: 0 | H78: 0 | I78: 0 | J78: 0
A79: Внутрішнє кредитування | B79: 4100 | C79: 570 | D79: =SUM(D80) -> 0 | E79: 0 | F79: 0 | G79: 0 | H79: 0 | I79: 0 | J79: 0
A80: Надання внутрішніх кредитів | B80: 4110 | C80: 580 | D80: =SUM(D81:D83) -> 0 | E80: 0 | F80: 0 | G80: 0 | H80: 0 | I80: 0 | J80: 0
A81: Надання кредитів органам державного управління інших рівнів | B81: 4111 | C81: 590 | D81: 0 | E81: 0 | F81: 0 | G81: 0 | H81: 0 | I81: 0 | J81: 0
A82: Надання кредитів підприємствам, установам, організаціям | B82: 4112 | C82: 600 | D82: 0 | E82: 0 | F82: 0 | G82: 0 | H82: 0 | I82: 0 | J82: 0
A83: Надання інших внутрішніх кредитів | B83: 4113 | C83: 610 | D83: 0 | E83: 0 | F83: 0 | G83: 0 | H83: 0 | I83: 0 | J83: 0
A84: Зовнішнє кредитування | B84: 4200 | C84: 620 | D84: =D85 -> 0 | E84: 0 | F84: 0 | G84: 0 | H84: 0 | I84: 0 | J84: 0
A85: Надання зовнішніх кредитів | B85: 4210 | C85: 630 | D85: 0 | E85: 0 | F85: 0 | G85: 0 | H85: 0 | I85: 0 | J85: 0
A86: Інші видатки | B86: 5000 | C86: 640 | D86: X | E86: 0 | F86: X | G86: X | H86: X | I86: X | J86: X
A87: Нерозподілені видатки | B87: 9000 | C87: 650 | D87: 0 | E87: 0 | F87: 0 | G87: 0 | H87: 0 | I87: 0 | J87: 0
C88: 650
A100: 1 Заповнюється розпорядниками бюджетних коштів.
A101: =ЗАПОЛНИТЬ!F30 -> Міський голова | G101: =ЗАПОЛНИТЬ!F26 -> Бондаренко О.А.
D102: (підпис) | G102: (ініціали, прізвище)
A103: =ЗАПОЛНИТЬ!F31 -> Начальник відділу бухгалтерського обліку, планування та звітності | G103: =ЗАПОЛНИТЬ!F28 -> Топчій Н.М.
A104: =ЗАПОЛНИТЬ!C19 -> "10"січня 2018 року | D104: (підпис) | G104: (ініціали, прізвище)

Sheet Ф.2.4
G1: Додаток 1 до Порядку складання бюджетної звітності розпорядниками та одержувачами бюджетних коштів, звітності фондами загальнообов’язкового державного соціального і пенсійного страхування (пункт 1 розділу ІІ)
A4: ЗВІТ
A5: =IF(ЗАПОЛНИТЬ!$F$7=1,CONCATENATE(шапки!A2),CONCATENATE(шапки!A2,шапки!C2)) -> про надходження та використання коштів загального фонду (форма №2д, | G5: =IF(ЗАПОЛНИТЬ!$F$7=1,шапки!C2,шапки!D2) -> №2м) | H5: =IF(ЗАПОЛНИТЬ!$F$7=1,шапки!D2,"") -> 
A6: =CONCATENATE("за ",ЗАПОЛНИТЬ!$B$17," ",ЗАПОЛНИТЬ!$C$17) -> за 2017 р.
J7: коди
A9: Установа | B9: =ЗАПОЛНИТЬ!B3 -> Новгород-Сіверська міська рада | H9: за ЄДРПОУ | J9: =ЗАПОЛНИТЬ!B13 -> 04061978
A10: Територія | B10: =ЗАПОЛНИТЬ!B5 -> 16000 Чернігівська обл.,м.Новгород-Сіверський вул. Губернська, 2 | H10: за КОАТУУ | J10: =ЗАПОЛНИТЬ!B14 -> 7410500000
A11: Організаційно-правова форма господарювання | B11: =ЗАПОЛНИТЬ!D15 -> Орган місцевого самоврядування | H11: за КОПФГ | J11: =ЗАПОЛНИТЬ!B15 -> 420
A12: Код та назва відомчої класифікації видатків та кредитування державного бюджету | D12: =ЗАПОЛНИТЬ!H9 -> 0 | E12: =IF(D12>0,VLOOKUP(D12,'ДовидникКВК(ГОС)'!A:B,2,FALSE),"") -> 
A13: Код та назва програмної класифікації видатків та кредитування державного бюджету | E13: =IF(D13>0,VLOOKUP(D13,ДовидникКПК!B:C,2,FALSE),"") -> 
A14: Код та назва типової відомчої класифікації видатків та кредитування місцевих бюджетів | D14: =ЗАПОЛНИТЬ!H10 -> 01 | E14: =ЗАПОЛНИТЬ!I10 -> рада
A15: Код та назва програмної класифікації видатків та кредитування місцевих бюджетів (код та назва Типової програмної класифікації видатків та кредитування місцевих бюджетів / Тимчасової класифікації видатків та кредитування для бюджетів місцевого самоврядування, які не застосовують програмно-цільового методу) | D15: 116054 | E15: =VLOOKUP(RIGHT(D15,4),КПКВМБ!A:B,2,FALSE) -> Підтримка діяльності підприємств і організацій побутового обслуговування, що належать до комунальної власності
A16: Періодичність: квартальна, річна
A17: Одиниця виміру: грн, коп.
A19: Показники | B19: КЕКВ та/або ККК | C19: Код рядка | D19: Затверджено на звітний рік | E19: Затверджено на звітний період (рік)1 | F19: Залишок на початок звітного року | G19: Надійшло коштів за звітний період (рік) | H19: Касові за звітний період (рік) | I19: Фактичні за звітний період (рік) | J19: Залишок на кінець звітного періоду (року)
A22: 1 | B22: 2 | C22: 3 | D22: 4 | E22: 5 | F22: 6 | G22: 7 | H22: 8 | I22: 9 | J22: 9
A23: Видатки та надання кредитів - усього | B23: Х | C23: 010 | D23: =D24+D59+D79+D84+D87 -> 65000 | E23: =E26+E29+E32+E33+E37+E45+E46+E86+E54 -> 65000 | F23: =F24+F59+F79+F84+F87 -> 0 | G23: =G24+G59+G79+G84+G87 -> 65000 | H23: =H24+H59+H79+H84+H87 -> 65000 | I23: =I24+I59+I79+I84+I87 -> 0 | J23: =F23+G23-H23 -> 0
A24: у тому числі: Поточні видатки | B24: 2000 | C24: 020 | D24: =D25+D30+D47+D50+D54+D58 -> 65000 | E24: 0 | F24: 0 | G24: 65000 | H24: 65000 | I24: 0 | J24: =F24+G24-H24 -> 0
A25: Оплата праці і нарахування на заробітну плату | B25: 2100 | C25: 030 | D25: =D26+D29 -> 0 | E25: 0 | F25: =F26+F29 -> 0 | G25: =G26+G29 -> 0 | H25: =H26+H29 -> 0 | I25: =I26+I29 -> 0 | J25: 0
A26: Оплата праці | B26: 2110 | C26: 040 | D26: =SUM(D27:D28) -> 0 | E26: 0 | F26: 0 | G26: 0 | H26: 0 | I26: 0 | J26: 0
A27: Заробітна плата | B27: 2111 | C27: 050 | D27: 0 | E27: 0 | F27: 0 | G27: 0 | H27: 0 | I27: 0 | J27: 0
A28: Грошове забезпечення військовослужбовців | B28: 2112 | C28: 060 | D28: 0 | E28: 0 | F28: 0 | G28: 0 | H28: 0 | I28: 0 | J28: 0
A29: Нарахування на оплату праці | B29: 2120 | C29: 070 | D29: 0 | E29: 0 | F29: 0 | G29: 0 | H29: 0 | I29: 0 | J29: 0
A30: Використання товарів і послуг | B30: 2200 | C30: 080 | D30: =SUM(D31:D37)+D44 -> 0 | E30: 0 | F30: =SUM(F31:F37)+F44 -> 0 | G30: =SUM(G31:G37)+G44 -> 0 | H30: =SUM(H31:H37)+H44 -> 0 | I30: =SUM(I31:I37)+I44 -> 0 | J30: 0
A31: Предмети, матеріали, обладнання та інвентар | B31: 2210 | C31: 090 | D31: 0 | E31: 0 | F31: 0 | G31: 0 | H31: 0 | I31: 0 | J31: 0
A32: Медикаменти та перев’язувальні матеріали | B32: 2220 | C32: 100 | D32: 0 | E32: 0 | F32: 0 | G32: 0 | H32: 0 | I32: 0 | J32: 0
A33: Продукти харчування | B33: 2230 | C33: 110 | D33: 0 | E33: 0 | F33: 0 | G33: 0 | H33: 0 | I33: 0 | J33: 0
A34: Оплата послуг (крім комунальних) | B34: 2240 | C34: 120 | D34: 0 | E34: 0 | F34: 0 | G34: 0 | H34: 0 | I34: 0 | J34: 0
A35: Видатки на відрядження | B35: 2250 | C35: 130 | D35: 0 | E35: 0 | F35: 0 | G35: 0 | H35: 0 | I35: 0 | J35: 0
A36: Видатки та заходи спеціального призначення | B36: 2260 | C36: 140 | D36: 0 | E36: 0 | F36: 0 | G36: 0 | H36: 0 | I36: 0 | J36: 0
A37: Оплата комунальних послуг та енергоносіїв | B37: 2270 | C37: 150 | D37: =SUM(D38:D43) -> 0 | E37: 0 | F37: =SUM(F38:F43) -> 0 | G37: =SUM(G38:G43) -> 0 | H37: =SUM(H38:H43) -> 0 | I37: =SUM(I38:I43) -> 0 | J37: =F37+G37-H37 -> 0
A38: Оплата теплопостачання | B38: 2271 | C38: 160 | D38: 0 | E38: 0 | F38: 0 | G38: 0 | H38: 0 | I38: 0 | J38: 0
A39: Оплата водопостачання та водовідведення | B39: 2272 | C39: 170 | D39: 0 | E39: 0 | F39: 0 | G39: 0 | H39: 0 | I39: 0 | J39: 0
A40: Оплата електроенергії | B40: 2273 | C40: 180 | D40: 0 | E40: 0 | F40: 0 | G40: 0 | H40: 0 | I40: 0 | J40: 0
A41: Оплата природного газу | B41: 2274 | C41: 190 | D41: 0 | E41: 0 | F41: 0 | G41: 0 | H41: 0 | I41: 0 | J41: 0
A42: Оплата інших енергоносіїв | B42: 2275 | C42: 200 | D42: 0 | E42: 0 | F42: 0 | G42: 0 | H42: 0 | I42: 0 | J42: 0
A43: Оплата енергосервісу | B43: 2276 | C43: 210 | D43: 0 | E43: 0 | F43: 0 | G43: 0 | H43: 0 | I43: 0 | J43: =F43+G43-H43 -> 0
A44: Дослідження і розробки, окремі заходи по реалізації державних (регіональних) програм | B44: 2280 | C44: 220 | D44: =SUM(D45:D46) -> 0 | E44: 0 | F44: =SUM(F45:F46) -> 0 | G44: =SUM(G45:G46) -> 0 | H44: =SUM(H45:H46) -> 0 | I44: =SUM(I45:I46) -> 0 | J44: 0
A45: Дослідження і розробки, окремі заходи розвитку по реалізації державних (регіональних) програм | B45: 2281 | C45: 230 | D45: 0 | E45: 0 | F45: 0 | G45: 0 | H45: 0 | I45: 0 | J45: 0
A46: Окремі заходи по реалізації державних (регіональних) програм, не віднесені до заходів розвитку | B46: 2282 | C46: 240 | D46: 0 | E46: 0 | F46: 0 | G46: 0 | H46: 0 | I46: 0 | J46: 0
A47: Обслуговування боргових зобов’язань | B47: 2400 | C47: 250 | D47: =SUM(D48:D49) -> 0 | E47: 0 | F47: 0 | G47: 0 | H47: 0 | I47: 0 | J47: 0
A48: Обслуговування внутрішніх боргових зобов’язань | B48: 2410 | C48: 260 | D48: 0 | E48: 0 | F48: 0 | G48: 0 | H48: 0 | I48: 0 | J48: 0
A49: Обслуговування зовнішніх боргових зобов’язань | B49: 2420 | C49: 270 | D49: 0 | E49: 0 | F49: 0 | G49: 0 | H49: 0 | I49: 0 | J49: 0
A50: Поточні трансферти | B50: 2600 | C50: 280 | D50: =SUM(D51:D53) -> 65000 | E50: 0 | F50: 0 | G50: 65000 | H50: 65000 | I50: 0 | J50: 0
A51: Субсидії та поточні трансферти підприємствам (установам, організаціям) | B51: 2610 | C51: 290 | D51: 65000 | E51: 0 | F51: 0 | G51: 65000 | H51: 65000 | I51: 0 | J51: 0
A52: Поточні трансферти органам державного управління інших рівнів | B52: 2620 | C52: 300 | D52: 0 | E52: 0 | F52: 0 | G52: 0 | H52: 0 | I52: 0 | J52: 0
A53: Поточні трансферти урядам іноземних держав та міжнародним організаціям | B53: 2630 | C53: 310 | D53: 0 | E53: 0 | F53: 0 | G53: 0 | H53: 0 | I53: 0 | J53: 0
A54: Соціальне забезпечення | B54: 2700 | C54: 320 | D54: =SUM(D55:D57) -> 0 | E54: 0 | F54: 0 | G54: 0 | H54: 0 | I54: 0 | J54: 0
A55: Виплата пенсій і допомоги | B55: 2710 | C55: 330 | D55: 0 | E55: 0 | F55: 0 | G55: 0 | H55: 0 | I55: 0 | J55: 0
A56: Стипендії | B56: 2720 | C56: 340 | D56: 0 | E56: 0 | F56: 0 | G56: 0 | H56: 0 | I56: 0 | J56: 0
A57: Інші виплати населенню | B57: 2730 | C57: 350 | D57: 0 | E57: 0 | F57: 0 | G57: 0 | H57: 0 | I57: 0 | J57: 0
A58: Інші поточні видатки | B58: 2800 | C58: 360 | D58: 0 | E58: 0 | F58: 0 | G58: 0 | H58: 0 | I58: 0 | J58: 0
A59: Капітальні видатки | B59: 3000 | C59: 370 | D59: =D60+D74 -> 0 | E59: 0 | F59: 0 | G59: 0 | H59: 0 | I59: 0 | J59: 0
A60: Придбання основного капіталу | B60: 3100 | C60: 380 | D60: =D61+D62+D65+D68+D72+D73 -> 0 | E60: 0 | F60: 0 | G60: 0 | H60: 0 | I60: 0 | J60: 0
A61: Придбання обладнання і предметів довгострокового користування | B61: 3110 | C61: 390 | D61: 0 | E61: 0 | F61: 0 | G61: 0 | H61: 0 | I61: 0 | J61: 0
A62: Капітальне будівництво (придбання) | B62: 3120 | C62: 400 | D62: =SUM(D63:D64) -> 0 | E62: 0 | F62: 0 | G62: 0 | H62: 0 | I62: 0 | J62: 0
A63: Капітальне будівництво (придбання) житла | B63: 3121 | C63: 410 | D63: 0 | E63: 0 | F63: 0 | G63: 0 | H63: 0 | I63: 0 | J63: 0
A64: Капітальне будівництво (придбання) інших об’єктів | B64: 3122 | C64: 420 | D64: 0 | E64: 0 | F64: 0 | G64: 0 | H64: 0 | I64: 0 | J64: 0
A65: Капітальний ремонт | B65: 3130 | C65: 430 | D65: =SUM(D66:D67) -> 0 | E65: 0 | F65: 0 | G65: 0 | H65: 0 | I65: 0 | J65: 0
A66: Капітальний ремонт житлового фонду (приміщень) | B66: 3131 | C66: 440 | D66: 0 | E66: 0 | F66: 0 | G66: 0 | H66: 0 | I66: 0 | J66: 0
A67: Капітальний ремонт інших об’єктів | B67: 3132 | C67: 450 | D67: 0 | E67: 0 | F67: 0 | G67: 0 | H67: 0 | I67: 0 | J67: 0
A68: Реконструкція та реставрація | B68: 3140 | C68: 460 | D68: =SUM(D69:D71) -> 0 | E68: 0 | F68: 0 | G68: 0 | H68: 0 | I68: 0 | J68: 0
A69: Реконструкція житлового фонду (приміщень) | B69: 3141 | C69: 470 | D69: 0 | E69: 0 | F69: 0 | G69: 0 | H69: 0 | I69: 0 | J69: 0
A70: Реконструкція та реставрація інших об’єктів | B70: 3142 | C70: 480 | D70: 0 | E70: 0 | F70: 0 | G70: 0 | H70: 0 | I70: 0 | J70: 0
A71: Реставрація пам’яток культури, історії та архітектури | B71: 3143 | C71: 490 | D71: 0 | E71: 0 | F71: 0 | G71: 0 | H71: 0 | I71: 0 | J71: 0
A72: Створення державних запасів і резервів | B72: 3150 | C72: 500 | D72: 0 | E72: 0 | F72: 0 | G72: 0 | H72: 0 | I72: 0 | J72: 0
A73: Придбання землі та нематеріальних активів | B73: 3160 | C73: 510 | D73: 0 | E73: 0 | F73: 0 | G73: 0 | H73: 0 | I73: 0 | J73: 0
A74: Капітальні трансферти | B74: 3200 | C74: 520 | D74: =SUM(D75:D78) -> 0 | E74: 0 | F74: 0 | G74: 0 | H74: 0 | I74: 0 | J74: 0
A75: Капітальні трансферти підприємствам (установам, організаціям) | B75: 3210 | C75: 530 | D75: 0 | E75: 0 | F75: 0 | G75: 0 | H75: 0 | I75: 0 | J75: 0
A76: Капітальні трансферти органам державного управління інших рівнів | B76: 3220 | C76: 540 | D76: 0 | E76: 0 | F76: 0 | G76: 0 | H76: 0 | I76: 0 | J76: 0
A77: Капітальні трансферти урядам іноземних держав та міжнародним організаціям | B77: 3230 | C77: 550 | D77: 0 | E77: 0 | F77: 0 | G77: 0 | H77: 0 | I77: 0 | J77: 0
A78: Капітальні трансферти населенню | B78: 3240 | C78: 560 | D78: 0 | E78: 0 | F78: 0 | G78: 0 | H78: 0 | I78: 0 | J78: 0
A79: Внутрішнє кредитування | B79: 4100 | C79: 570 | D79: =SUM(D80) -> 0 | E79: 0 | F79: 0 | G79: 0 | H79: 0 | I79: 0 | J79: 0
A80: Надання внутрішніх кредитів | B80: 4110 | C80: 580 | D80: =SUM(D81:D83) -> 0 | E80: 0 | F80: 0 | G80: 0 | H80: 0 | I80: 0 | J80: 0
A81: Надання кредитів органам державного управління інших рівнів | B81: 4111 | C81: 590 | D81: 0 | E81: 0 | F81: 0 | G81: 0 | H81: 0 | I81: 0 | J81: 0
A82: Надання кредитів підприємствам, установам, організаціям | B82: 4112 | C82: 600 | D82: 0 | E82: 0 | F82: 0 | G82: 0 | H82: 0 | I82: 0 | J82: 0
A83: Надання інших внутрішніх кредитів | B83: 4113 | C83: 610 | D83: 0 | E83: 0 | F83: 0 | G83: 0 | H83: 0 | I83: 0 | J83: 0
A84: Зовнішнє кредитування | B84: 4200 | C84: 620 | D84: =D85 -> 0 | E84: 0 | F84: 0 | G84: 0 | H84: 0 | I84: 0 | J84: 0
A85: Надання зовнішніх кредитів | B85: 4210 | C85: 630 | D85: 0 | E85: 0 | F85: 0 | G85: 0 | H85: 0 | I85: 0 | J85: 0
A86: Інші видатки | B86: 5000 | C86: 640 | D86: X | E86: 65000 | F86: X | G86: X | H86: X | I86: X | J86: X
A87: Нерозподілені видатки | B87: 9000 | C87: 650 | D87: 0 | E87: 0 | F87: 0 | G87: 0 | H87: 0 | I87: 0 | J87: 0
C88: 650
A100: 1 Заповнюється розпорядниками бюджетних коштів.
A101: =ЗАПОЛНИТЬ!F30 -> Міський голова | G101: =ЗАПОЛНИТЬ!F26 -> Бондаренко О.А.
D102: (підпис) | G102: (ініціали, прізвище)
A103: =ЗАПОЛНИТЬ!F31 -> Начальник відділу бухгалтерського обліку, планування та звітності | G103: =ЗАПОЛНИТЬ!F28 -> Топчій Н.М.
A104: =ЗАПОЛНИТЬ!C19 -> "10"січня 2018 року | D104: (підпис) | G104: (ініціали, прізвище)

Sheet Ф.2.5
G1: Додаток 1 до Порядку складання бюджетної звітності розпорядниками та одержувачами бюджетних коштів, звітності фондами загальнообов’язкового державного соціального і пенсійного страхування (пункт 1 розділу ІІ)
A4: ЗВІТ
A5: =IF(ЗАПОЛНИТЬ!$F$7=1,CONCATENATE(шапки!A2),CONCATENATE(шапки!A2,шапки!C2)) -> про надходження та використання коштів загального фонду (форма №2д, | G5: =IF(ЗАПОЛНИТЬ!$F$7=1,шапки!C2,шапки!D2) -> №2м) | H5: =IF(ЗАПОЛНИТЬ!$F$7=1,шапки!D2,"") -> 
A6: =CONCATENATE("за ",ЗАПОЛНИТЬ!$B$17," ",ЗАПОЛНИТЬ!$C$17) -> за 2017 р.
J7: коди
A9: Установа | B9: =ЗАПОЛНИТЬ!B3 -> Новгород-Сіверська міська рада | H9: за ЄДРПОУ | J9: =ЗАПОЛНИТЬ!B13 -> 04061978
A10: Територія | B10: =ЗАПОЛНИТЬ!B5 -> 16000 Чернігівська обл.,м.Новгород-Сіверський вул. Губернська, 2 | H10: за КОАТУУ | J10: =ЗАПОЛНИТЬ!B14 -> 7410500000
A11: Організаційно-правова форма господарювання | B11: =ЗАПОЛНИТЬ!D15 -> Орган місцевого самоврядування | H11: за КОПФГ | J11: =ЗАПОЛНИТЬ!B15 -> 420
A12: Код та назва відомчої класифікації видатків та кредитування державного бюджету | D12: =ЗАПОЛНИТЬ!H9 -> 0 | E12: =IF(D12>0,VLOOKUP(D12,'ДовидникКВК(ГОС)'!A:B,2,FALSE),"") -> 
A13: Код та назва програмної класифікації видатків та кредитування державного бюджету | E13: =IF(D13>0,VLOOKUP(D13,ДовидникКПК!B:C,2,FALSE),"") -> 
A14: Код та назва типової відомчої класифікації видатків та кредитування місцевих бюджетів | D14: =ЗАПОЛНИТЬ!H10 -> 01 | E14: =ЗАПОЛНИТЬ!I10 -> рада
A15: Код та назва програмної класифікації видатків та кредитування місцевих бюджетів (код та назва Типової програмної класифікації видатків та кредитування місцевих бюджетів / Тимчасової класифікації видатків та кредитування для бюджетів місцевого самоврядування, які не застосовують програмно-цільового методу) | D15: 116060 | E15: =VLOOKUP(RIGHT(D15,4),КПКВМБ!A:B,2,FALSE) -> Благоустрій міст, сіл, селищ
A16: Періодичність: квартальна, річна
A17: Одиниця виміру: грн, коп.
A19: Показники | B19: КЕКВ та/або ККК | C19: Код рядка | D19: Затверджено на звітний рік | E19: Затверджено на звітний період (рік)1 | F19: Залишок на початок звітного року | G19: Надійшло коштів за звітний період (рік) | H19: Касові за звітний період (рік) | I19: Фактичні за звітний період (рік) | J19: Залишок на кінець звітного періоду (року)
A22: 1 | B22: 2 | C22: 3 | D22: 4 | E22: 5 | F22: 6 | G22: 7 | H22: 8 | I22: 9 | J22: 9
A23: Видатки та надання кредитів - усього | B23: Х | C23: 010 | D23: =D24+D59+D79+D84+D87 -> 2951600 | E23: =E26+E29+E32+E33+E37+E45+E46+E86+E54 -> 2951600 | F23: =F24+F59+F79+F84+F87 -> 0 | G23: =G24+G59+G79+G84+G87 -> 2939457.83 | H23: =H24+H59+H79+H84+H87 -> 2939457.83 | I23: =I24+I59+I79+I84+I87 -> 0 | J23: =F23+G23-H23 -> 0
A24: у тому числі: Поточні видатки | B24: 2000 | C24: 020 | D24: =D25+D30+D47+D50+D54+D58 -> 2951600 | E24: 0 | F24: 0 | G24: 2939457.83 | H24: 2939457.83 | I24: 0 | J24: =F24+G24-H24 -> 0
A25: Оплата праці і нарахування на заробітну плату | B25: 2100 | C25: 030 | D25: =D26+D29 -> 891900 | E25: 0 | F25: =F26+F29 -> 0 | G25: =G26+G29 -> 890767 | H25: =H26+H29 -> 890767 | I25: =I26+I29 -> 0 | J25: 0
A26: Оплата праці | B26: 2110 | C26: 040 | D26: =SUM(D27:D28) -> 730900 | E26: 730900 | F26: 0 | G26: 729799.69 | H26: 729799.69 | I26: 0 | J26: 0
A27: Заробітна плата | B27: 2111 | C27: 050 | D27: 730900 | E27: 0 | F27: 0 | G27: 729799.69 | H27: 729799.69 | I27: 0 | J27: 0
A28: Грошове забезпечення військовослужбовців | B28: 2112 | C28: 060 | D28: 0 | E28: 0 | F28: 0 | G28: 0 | H28: 0 | I28: 0 | J28: 0
A29: Нарахування на оплату праці | B29: 2120 | C29: 070 | D29: 161000 | E29: 161000 | F29: 0 | G29: 160967.31 | H29: 160967.31 | I29: 0 | J29: 0
A30: Використання товарів і послуг | B30: 2200 | C30: 080 | D30: =SUM(D31:D37)+D44 -> 2047550 | E30: 0 | F30: =SUM(F31:F37)+F44 -> 0 | G30: =SUM(G31:G37)+G44 -> 2036541.55 | H30: =SUM(H31:H37)+H44 -> 2036541.55 | I30: =SUM(I31:I37)+I44 -> 0 | J30: 0
A31: Предмети, матеріали, обладнання та інвентар | B31: 2210 | C31: 090 | D31: 769600 | E31: 0 | F31: 0 | G31: 768467.19 | H31: 768467.19 | I31: 0 | J31: 0
A32: Медикаменти та перев’язувальні матеріали | B32: 2220 | C32: 100 | D32: 0 | E32: 0 | F32: 0 | G32: 0 | H32: 0 | I32: 0 | J32: 0
A33: Продукти харчування | B33: 2230 | C33: 110 | D33: 0 | E33: 0 | F33: 0 | G33: 0 | H33: 0 | I33: 0 | J33: 0
A34: Оплата послуг (крім комунальних) | B34: 2240 | C34: 120 | D34: 1119450 | E34: 0 | F34: 0 | G34: 1115447.69 | H34: 1115447.69 | I34: 0 | J34: 0
A35: Видатки на відрядження | B35: 2250 | C35: 130 | D35: 0 | E35: 0 | F35: 0 | G35: 0 | H35: 0 | I35: 0 | J35: 0
A36: Видатки та заходи спеціального призначення | B36: 2260 | C36: 140 | D36: 0 | E36: 0 | F36: 0 | G36: 0 | H36: 0 | I36: 0 | J36: 0
A37: Оплата комунальних послуг та енергоносіїв | B37: 2270 | C37: 150 | D37: =SUM(D38:D43) -> 158500 | E37: 158500 | F37: =SUM(F38:F43) -> 0 | G37: =SUM(G38:G43) -> 152626.67 | H37: =SUM(H38:H43) -> 152626.67 | I37: =SUM(I38:I43) -> 0 | J37: =F37+G37-H37 -> 0
A38: Оплата теплопостачання | B38: 2271 | C38: 160 | D38: 0 | E38: 0 | F38: 0 | G38: 0 | H38: 0 | I38: 0 | J38: 0
A39: Оплата водопостачання та водовідведення | B39: 2272 | C39: 170 | D39: 0 | E39: 0 | F39: 0 | G39: 0 | H39: 0 | I39: 0 | J39: 0
A40: Оплата електроенергії | B40: 2273 | C40: 180 | D40: 158500 | E40: 0 | F40: 0 | G40: 152626.67 | H40: 152626.67 | I40: 0 | J40: 0
A41: Оплата природного газу | B41: 2274 | C41: 190 | D41: 0 | E41: 0 | F41: 0 | G41: 0 | H41: 0 | I41: 0 | J41: 0
A42: Оплата інших енергоносіїв | B42: 2275 | C42: 200 | D42: 0 | E42: 0 | F42: 0 | G42: 0 | H42: 0 | I42: 0 | J42: 0
A43: Оплата енергосервісу | B43: 2276 | C43: 210 | D43: 0 | E43: 0 | F43: 0 | G43: 0 | H43: 0 | I43: 0 | J43: =F43+G43-H43 -> 0
A44: Дослідження і розробки, окремі заходи по реалізації державних (регіональних) програм | B44: 2280 | C44: 220 | D44: =SUM(D45:D46) -> 0 | E44: 0 | F44: =SUM(F45:F46) -> 0 | G44: =SUM(G45:G46) -> 0 | H44: =SUM(H45:H46) -> 0 | I44: =SUM(I45:I46) -> 0 | J44: 0
A45: Дослідження і розробки, окремі заходи розвитку по реалізації державних (регіональних) програм | B45: 2281 | C45: 230 | D45: 0 | E45: 0 | F45: 0 | G45: 0 | H45: 0 | I45: 0 | J45: 0
A46: Окремі заходи по реалізації державних (регіональних) програм, не віднесені до заходів розвитку | B46: 2282 | C46: 240 | D46: 0 | E46: 0 | F46: 0 | G46: 0 | H46: 0 | I46: 0 | J46: 0
A47: Обслуговування боргових зобов’язань | B47: 2400 | C47: 250 | D47: =SUM(D48:D49) -> 0 | E47: 0 | F47: 0 | G47: 0 | H47: 0 | I47: 0 | J47: 0
A48: Обслуговування внутрішніх боргових зобов’язань | B48: 2410 | C48: 260 | D48: 0 | E48: 0 | F48: 0 | G48: 0 | H48: 0 | I48: 0 | J48: 0
A49: Обслуговування зовнішніх боргових зобов’язань | B49: 2420 | C49: 270 | D49: 0 | E49: 0 | F49: 0 | G49: 0 | H49: 0 | I49: 0 | J49: 0
A50: Поточні трансферти | B50: 2600 | C50: 280 | D50: =SUM(D51:D53) -> 0 | E50: 0 | F50: 0 | G50: 0 | H50: 0 | I50: 0 | J50: 0
A51: Субсидії та поточні трансферти підприємствам (установам, організаціям) | B51: 2610 | C51: 290 | D51: 0 | E51: 0 | F51: 0 | G51: 0 | H51: 0 | I51: 0 | J51: 0
A52: Поточні трансферти органам державного управління інших рівнів | B52: 2620 | C52: 300 | D52: 0 | E52: 0 | F52: 0 | G52: 0 | H52: 0 | I52: 0 | J52: 0
A53: Поточні трансферти урядам іноземних держав та міжнародним організаціям | B53: 2630 | C53: 310 | D53: 0 | E53: 0 | F53: 0 | G53: 0 | H53: 0 | I53: 0 | J53: 0
A54: Соціальне забезпечення | B54: 2700 | C54: 320 | D54: =SUM(D55:D57) -> 0 | E54: 0 | F54: 0 | G54: 0 | H54: 0 | I54: 0 | J54: 0
A55: Виплата пенсій і допомоги | B55: 2710 | C55: 330 | D55: 0 | E55: 0 | F55: 0 | G55: 0 | H55: 0 | I55: 0 | J55: 0
A56: Стипендії | B56: 2720 | C56: 340 | D56: 0 | E56: 0 | F56: 0 | G56: 0 | H56: 0 | I56: 0 | J56: 0
A57: Інші виплати населенню | B57: 2730 | C57: 350 | D57: 0 | E57: 0 | F57: 0 | G57: 0 | H57: 0 | I57: 0 | J57: 0
A58: Інші поточні видатки | B58: 2800 | C58: 360 | D58: 12150 | E58: 0 | F58: 0 | G58: 12149.28 | H58: 12149.28 | I58: 0 | J58: 0
A59: Капітальні видатки | B59: 3000 | C59: 370 | D59: =D60+D74 -> 0 | E59: 0 | F59: 0 | G59: 0 | H59: 0 | I59: 0 | J59: 0
A60: Придбання основного капіталу | B60: 3100 | C60: 380 | D60: =D61+D62+D65+D68+D72+D73 -> 0 | E60: 0 | F60: 0 | G60: 0 | H60: 0 | I60: 0 | J60: 0
A61: Придбання обладнання і предметів довгострокового користування | B61: 3110 | C61: 390 | D61: 0 | E61: 0 | F61: 0 | G61: 0 | H61: 0 | I61: 0 | J61: 0
A62: Капітальне будівництво (придбання) | B62: 3120 | C62: 400 | D62: =SUM(D63:D64) -> 0 | E62: 0 | F62: 0 | G62: 0 | H62: 0 | I62: 0 | J62: 0
A63: Капітальне будівництво (придбання) житла | B63: 3121 | C63: 410 | D63: 0 | E63: 0 | F63: 0 | G63: 0 | H63: 0 | I63: 0 | J63: 0
A64: Капітальне будівництво (придбання) інших об’єктів | B64: 3122 | C64: 420 | D64: 0 | E64: 0 | F64: 0 | G64: 0 | H64: 0 | I64: 0 | J64: 0
A65: Капітальний ремонт | B65: 3130 | C65: 430 | D65: =SUM(D66:D67) -> 0 | E65: 0 | F65: 0 | G65: 0 | H65: 0 | I65: 0 | J65: 0
A66: Капітальний ремонт житлового фонду (приміщень) | B66: 3131 | C66: 440 | D66: 0 | E66: 0 | F66: 0 | G66: 0 | H66: 0 | I66: 0 | J66: 0
A67: Капітальний ремонт інших об’єктів | B67: 3132 | C67: 450 | D67: 0 | E67: 0 | F67: 0 | G67: 0 | H67: 0 | I67: 0 | J67: 0
A68: Реконструкція та реставрація | B68: 3140 | C68: 460 | D68: =SUM(D69:D71) -> 0 | E68: 0 | F68: 0 | G68: 0 | H68: 0 | I68: 0 | J68: 0
A69: Реконструкція житлового фонду (приміщень) | B69: 3141 | C69: 470 | D69: 0 | E69: 0 | F69: 0 | G69: 0 | H69: 0 | I69: 0 | J69: 0
A70: Реконструкція та реставрація інших об’єктів | B70: 3142 | C70: 480 | D70: 0 | E70: 0 | F70: 0 | G70: 0 | H70: 0 | I70: 0 | J70: 0
A71: Реставрація пам’яток культури, історії та архітектури | B71: 3143 | C71: 490 | D71: 0 | E71: 0 | F71: 0 | G71: 0 | H71: 0 | I71: 0 | J71: 0
A72: Створення державних запасів і резервів | B72: 3150 | C72: 500 | D72: 0 | E72: 0 | F72: 0 | G72: 0 | H72: 0 | I72: 0 | J72: 0
A73: Придбання землі та нематеріальних активів | B73: 3160 | C73: 510 | D73: 0 | E73: 0 | F73: 0 | G73: 0 | H73: 0 | I73: 0 | J73: 0
A74: Капітальні трансферти | B74: 3200 | C74: 520 | D74: =SUM(D75:D78) -> 0 | E74: 0 | F74: 0 | G74: 0 | H74: 0 | I74: 0 | J74: 0
A75: Капітальні трансферти підприємствам (установам, організаціям) | B75: 3210 | C75: 530 | D75: 0 | E75: 0 | F75: 0 | G75: 0 | H75: 0 | I75: 0 | J75: 0
A76: Капітальні трансферти органам державного управління інших рівнів | B76: 3220 | C76: 540 | D76: 0 | E76: 0 | F76: 0 | G76: 0 | H76: 0 | I76: 0 | J76: 0
A77: Капітальні трансферти урядам іноземних держав та міжнародним організаціям | B77: 3230 | C77: 550 | D77: 0 | E77: 0 | F77: 0 | G77: 0 | H77: 0 | I77: 0 | J77: 0
A78: Капітальні трансферти населенню | B78: 3240 | C78: 560 | D78: 0 | E78: 0 | F78: 0 | G78: 0 | H78: 0 | I78: 0 | J78: 0
A79: Внутрішнє кредитування | B79: 4100 | C79: 570 | D79: =SUM(D80) -> 0 | E79: 0 | F79: 0 | G79: 0 | H79: 0 | I79: 0 | J79: 0
A80: Надання внутрішніх кредитів | B80: 4110 | C80: 580 | D80: =SUM(D81:D83) -> 0 | E80: 0 | F80: 0 | G80: 0 | H80: 0 | I80: 0 | J80: 0
A81: Надання кредитів органам державного управління інших рівнів | B81: 4111 | C81: 590 | D81: 0 | E81: 0 | F81: 0 | G81: 0 | H81: 0 | I81: 0 | J81: 0
A82: Надання кредитів підприємствам, установам, організаціям | B82: 4112 | C82: 600 | D82: 0 | E82: 0 | F82: 0 | G82: 0 | H82: 0 | I82: 0 | J82: 0
A83: Надання інших внутрішніх кредитів | B83: 4113 | C83: 610 | D83: 0 | E83: 0 | F83: 0 | G83: 0 | H83: 0 | I83: 0 | J83: 0
A84: Зовнішнє кредитування | B84: 4200 | C84: 620 | D84: =D85 -> 0 | E84: 0 | F84: 0 | G84: 0 | H84: 0 | I84: 0 | J84: 0
A85: Надання зовнішніх кредитів | B85: 4210 | C85: 630 | D85: 0 | E85: 0 | F85: 0 | G85: 0 | H85: 0 | I85: 0 | J85: 0
A86: Інші видатки | B86: 5000 | C86: 640 | D86: X | E86: 1901200 | F86: X | G86: X | H86: X | I86: X | J86: X
A87: Нерозподілені видатки | B87: 9000 | C87: 650 | D87: 0 | E87: 0 | F87: 0 | G87: 0 | H87: 0 | I87: 0 | J87: 0
C88: 650
A100: 1 Заповнюється розпорядниками бюджетних коштів.
A101: =ЗАПОЛНИТЬ!F30 -> Міський голова | G101: =ЗАПОЛНИТЬ!F26 -> Бондаренко О.А.
D102: (підпис) | G102: (ініціали, прізвище)
A103: =ЗАПОЛНИТЬ!F31 -> Начальник відділу бухгалтерського обліку, планування та звітності | G103: =ЗАПОЛНИТЬ!F28 -> Топчій Н.М.
A104: =ЗАПОЛНИТЬ!C19 -> "10"січня 2018 року | D104: (підпис) | G104: (ініціали, прізвище)

Sheet Ф.2.6
G1: Додаток 1 до Порядку складання бюджетної звітності розпорядниками та одержувачами бюджетних коштів, звітності фондами загальнообов’язкового державного соціального і пенсійного страхування (пункт 1 розділу ІІ)
A4: ЗВІТ
A5: =IF(ЗАПОЛНИТЬ!$F$7=1,CONCATENATE(шапки!A2),CONCATENATE(шапки!A2,шапки!C2)) -> про надходження та використання коштів загального фонду (форма №2д, | G5: =IF(ЗАПОЛНИТЬ!$F$7=1,шапки!C2,шапки!D2) -> №2м) | H5: =IF(ЗАПОЛНИТЬ!$F$7=1,шапки!D2,"") -> 
A6: =CONCATENATE("за ",ЗАПОЛНИТЬ!$B$17," ",ЗАПОЛНИТЬ!$C$17) -> за 2017 р.
J7: коди
A9: Установа | B9: =ЗАПОЛНИТЬ!B3 -> Новгород-Сіверська міська рада | H9: за ЄДРПОУ | J9: =ЗАПОЛНИТЬ!B13 -> 04061978
A10: Територія | B10: =ЗАПОЛНИТЬ!B5 -> 16000 Чернігівська обл.,м.Новгород-Сіверський вул. Губернська, 2 | H10: за КОАТУУ | J10: =ЗАПОЛНИТЬ!B14 -> 7410500000
A11: Організаційно-правова форма господарювання | B11: =ЗАПОЛНИТЬ!D15 -> Орган місцевого самоврядування | H11: за КОПФГ | J11: =ЗАПОЛНИТЬ!B15 -> 420
A12: Код та назва відомчої класифікації видатків та кредитування державного бюджету | D12: =ЗАПОЛНИТЬ!H9 -> 0 | E12: =IF(D12>0,VLOOKUP(D12,'ДовидникКВК(ГОС)'!A:B,2,FALSE),"") -> 
A13: Код та назва програмної класифікації видатків та кредитування державного бюджету | E13: =IF(D13>0,VLOOKUP(D13,ДовидникКПК!B:C,2,FALSE),"") -> 
A14: Код та назва типової відомчої класифікації видатків та кредитування місцевих бюджетів | D14: =ЗАПОЛНИТЬ!H10 -> 01 | E14: =ЗАПОЛНИТЬ!I10 -> рада
A15: Код та назва програмної класифікації видатків та кредитування місцевих бюджетів (код та назва Типової програмної класифікації видатків та кредитування місцевих бюджетів / Тимчасової класифікації видатків та кредитування для бюджетів місцевого самоврядування, які не застосовують програмно-цільового методу) | D15: 116610 | E15: =VLOOKUP(RIGHT(D15,4),КПКВМБ!A:B,2,FALSE) -> Регулювання цін на послуги місцевого автотранспорту
A16: Періодичність: квартальна, річна
A17: Одиниця виміру: грн, коп.
A19: Показники | B19: КЕКВ та/або ККК | C19: Код рядка | D19: Затверджено на звітний рік | E19: Затверджено на звітний період (рік)1 | F19: Залишок на початок звітного року | G19: Надійшло коштів за звітний період (рік) | H19: Касові за звітний період (рік) | I19: Фактичні за звітний період (рік) | J19: Залишок на кінець звітного періоду (року)
A22: 1 | B22: 2 | C22: 3 | D22: 4 | E22: 5 | F22: 6 | G22: 7 | H22: 8 | I22: 9 | J22: 9
A23: Видатки та надання кредитів - усього | B23: Х | C23: 010 | D23: =D24+D59+D79+D84+D87 -> 198600 | E23: =E26+E29+E32+E33+E37+E45+E46+E86+E54 -> 198600 | F23: =F24+F59+F79+F84+F87 -> 0 | G23: =G24+G59+G79+G84+G87 -> 197782.23 | H23: =H24+H59+H79+H84+H87 -> 197782.23 | I23: =I24+I59+I79+I84+I87 -> 0 | J23: =F23+G23-H23 -> 0
A24: у тому числі: Поточні видатки | B24: 2000 | C24: 020 | D24: =D25+D30+D47+D50+D54+D58 -> 198600 | E24: 0 | F24: 0 | G24: 197782.23 | H24: 197782.23 | I24: 0 | J24: =F24+G24-H24 -> 0
A25: Оплата праці і нарахування на заробітну плату | B25: 2100 | C25: 030 | D25: =D26+D29 -> 0 | E25: 0 | F25: =F26+F29 -> 0 | G25: =G26+G29 -> 0 | H25: =H26+H29 -> 0 | I25: =I26+I29 -> 0 | J25: 0
A26: Оплата праці | B26: 2110 | C26: 040 | D26: =SUM(D27:D28) -> 0 | E26: 0 | F26: 0 | G26: 0 | H26: 0 | I26: 0 | J26: 0
A27: Заробітна плата | B27: 2111 | C27: 050 | D27: 0 | E27: 0 | F27: 0 | G27: 0 | H27: 0 | I27: 0 | J27: 0
A28: Грошове забезпечення військовослужбовців | B28: 2112 | C28: 060 | D28: 0 | E28: 0 | F28: 0 | G28: 0 | H28: 0 | I28: 0 | J28: 0
A29: Нарахування на оплату праці | B29: 2120 | C29: 070 | D29: 0 | E29: 0 | F29: 0 | G29: 0 | H29: 0 | I29: 0 | J29: 0
A30: Використання товарів і послуг | B30: 2200 | C30: 080 | D30: =SUM(D31:D37)+D44 -> 198600 | E30: 0 | F30: =SUM(F31:F37)+F44 -> 0 | G30: =SUM(G31:G37)+G44 -> 197782.23 | H30: =SUM(H31:H37)+H44 -> 197782.23 | I30: =SUM(I31:I37)+I44 -> 0 | J30: 0
A31: Предмети, матеріали, обладнання та інвентар | B31: 2210 | C31: 090 | D31: 0 | E31: 0 | F31: 0 | G31: 0 | H31: 0 | I31: 0 | J31: 0
A32: Медикаменти та перев’язувальні матеріали | B32: 2220 | C32: 100 | D32: 0 | E32: 0 | F32: 0 | G32: 0 | H32: 0 | I32: 0 | J32: 0
A33: Продукти харчування | B33: 2230 | C33: 110 | D33: 0 | E33: 0 | F33: 0 | G33: 0 | H33: 0 | I33: 0 | J33: 0
A34: Оплата послуг (крім комунальних) | B34: 2240 | C34: 120 | D34: 198600 | E34: 0 | F34: 0 | G34: 197782.23 | H34: 197782.23 | I34: 0 | J34: 0
A35: Видатки на відрядження | B35: 2250 | C35: 130 | D35: 0 | E35: 0 | F35: 0 | G35: 0 | H35: 0 | I35: 0 | J35: 0
A36: Видатки та заходи спеціального призначення | B36: 2260 | C36: 140 | D36: 0 | E36: 0 | F36: 0 | G36: 0 | H36: 0 | I36: 0 | J36: 0
A37: Оплата комунальних послуг та енергоносіїв | B37: 2270 | C37: 150 | D37: =SUM(D38:D43) -> 0 | E37: 0 | F37: =SUM(F38:F43) -> 0 | G37: =SUM(G38:G43) -> 0 | H37: =SUM(H38:H43) -> 0 | I37: =SUM(I38:I43) -> 0 | J37: =F37+G37-H37 -> 0
A38: Оплата теплопостачання | B38: 2271 | C38: 160 | D38: 0 | E38: 0 | F38: 0 | G38: 0 | H38: 0 | I38: 0 | J38: 0
A39: Оплата водопостачання та водовідведення | B39: 2272 | C39: 170 | D39: 0 | E39: 0 | F39: 0 | G39: 0 | H39: 0 | I39: 0 | J39: 0
A40: Оплата електроенергії | B40: 2273 | C40: 180 | D40: 0 | E40: 0 | F40: 0 | G40: 0 | H40: 0 | I40: 0 | J40: 0
A41: Оплата природного газу | B41: 2274 | C41: 190 | D41: 0 | E41: 0 | F41: 0 | G41: 0 | H41: 0 | I41: 0 | J41: 0
A42: Оплата інших енергоносіїв | B42: 2275 | C42: 200 | D42: 0 | E42: 0 | F42: 0 | G42: 0 | H42: 0 | I42: 0 | J42: 0
A43: Оплата енергосервісу | B43: 2276 | C43: 210 | D43: 0 | E43: 0 | F43: 0 | G43: 0 | H43: 0 | I43: 0 | J43: =F43+G43-H43 -> 0
A44: Дослідження і розробки, окремі заходи по реалізації державних (регіональних) програм | B44: 2280 | C44: 220 | D44: =SUM(D45:D46) -> 0 | E44: 0 | F44: =SUM(F45:F46) -> 0 | G44: =SUM(G45:G46) -> 0 | H44: =SUM(H45:H46) -> 0 | I44: =SUM(I45:I46) -> 0 | J44: 0
A45: Дослідження і розробки, окремі заходи розвитку по реалізації державних (регіональних) програм | B45: 2281 | C45: 230 | D45: 0 | E45: 0 | F45: 0 | G45: 0 | H45: 0 | I45: 0 | J45: 0
A46: Окремі заходи по реалізації державних (регіональних) програм, не віднесені до заходів розвитку | B46: 2282 | C46: 240 | D46: 0 | E46: 0 | F46: 0 | G46: 0 | H46: 0 | I46: 0 | J46: 0
A47: Обслуговування боргових зобов’язань | B47: 2400 | C47: 250 | D47: =SUM(D48:D49) -> 0 | E47: 0 | F47: 0 | G47: 0 | H47: 0 | I47: 0 | J47: 0
A48: Обслуговування внутрішніх боргових зобов’язань | B48: 2410 | C48: 260 | D48: 0 | E48: 0 | F48: 0 | G48: 0 | H48: 0 | I48: 0 | J48: 0
A49: Обслуговування зовнішніх боргових зобов’язань | B49: 2420 | C49: 270 | D49: 0 | E49: 0 | F49: 0 | G49: 0 | H49: 0 | I49: 0 | J49: 0
A50: Поточні трансферти | B50: 2600 | C50: 280 | D50: =SUM(D51:D53) -> 0 | E50: 0 | F50: 0 | G50: 0 | H50: 0 | I50: 0 | J50: 0
A51: Субсидії та поточні трансферти підприємствам (установам, організаціям) | B51: 2610 | C51: 290 | D51: 0 | E51: 0 | F51: 0 | G51: 0 | H51: 0 | I51: 0 | J51: 0
A52: Поточні трансферти органам державного управління інших рівнів | B52: 2620 | C52: 300 | D52: 0 | E52: 0 | F52: 0 | G52: 0 | H52: 0 | I52: 0 | J52: 0
A53: Поточні трансферти урядам іноземних держав та міжнародним організаціям | B53: 2630 | C53: 310 | D53: 0 | E53: 0 | F53: 0 | G53: 0 | H53: 0 | I53: 0 | J53: 0
A54: Соціальне забезпечення | B54: 2700 | C54: 320 | D54: =SUM(D55:D57) -> 0 | E54: 0 | F54: 0 | G54: 0 | H54: 0 | I54: 0 | J54: 0
A55: Виплата пенсій і допомоги | B55: 2710 | C55: 330 | D55: 0 | E55: 0 | F55: 0 | G55: 0 | H55: 0 | I55: 0 | J55: 0
A56: Стипендії | B56: 2720 | C56: 340 | D56: 0 | E56: 0 | F56: 0 | G56: 0 | H56: 0 | I56: 0 | J56: 0
A57: Інші виплати населенню | B57: 2730 | C57: 350 | D57: 0 | E57: 0 | F57: 0 | G57: 0 | H57: 0 | I57: 0 | J57: 0
A58: Інші поточні видатки | B58: 2800 | C58: 360 | D58: 0 | E58: 0 | F58: 0 | G58: 0 | H58: 0 | I58: 0 | J58: 0
A59: Капітальні видатки | B59: 3000 | C59: 370 | D59: =D60+D74 -> 0 | E59: 0 | F59: 0 | G59: 0 | H59: 0 | I59: 0 | J59: 0
A60: Придбання основного капіталу | B60: 3100 | C60: 380 | D60: =D61+D62+D65+D68+D72+D73 -> 0 | E60: 0 | F60: 0 | G60: 0 | H60: 0 | I60: 0 | J60: 0
A61: Придбання обладнання і предметів довгострокового користування | B61: 3110 | C61: 390 | D61: 0 | E61: 0 | F61: 0 | G61: 0 | H61: 0 | I61: 0 | J61: 0
A62: Капітальне будівництво (придбання) | B62: 3120 | C62: 400 | D62: =SUM(D63:D64) -> 0 | E62: 0 | F62: 0 | G62: 0 | H62: 0 | I62: 0 | J62: 0
A63: Капітальне будівництво (придбання) житла | B63: 3121 | C63: 410 | D63: 0 | E63: 0 | F63: 0 | G63: 0 | H63: 0 | I63: 0 | J63: 0
A64: Капітальне будівництво (придбання) інших об’єктів | B64: 3122 | C64: 420 | D64: 0 | E64: 0 | F64: 0 | G64: 0 | H64: 0 | I64: 0 | J64: 0
A65: Капітальний ремонт | B65: 3130 | C65: 430 | D65: =SUM(D66:D67) -> 0 | E65: 0 | F65: 0 | G65: 0 | H65: 0 | I65: 0 | J65: 0
A66: Капітальний ремонт житлового фонду (приміщень) | B66: 3131 | C66: 440 | D66: 0 | E66: 0 | F66: 0 | G66: 0 | H66: 0 | I66: 0 | J66: 0
A67: Капітальний ремонт інших об’єктів | B67: 3132 | C67: 450 | D67: 0 | E67: 0 | F67: 0 | G67: 0 | H67: 0 | I67: 0 | J67: 0
A68: Реконструкція та реставрація | B68: 3140 | C68: 460 | D68: =SUM(D69:D71) -> 0 | E68: 0 | F68: 0 | G68: 0 | H68: 0 | I68: 0 | J68: 0
A69: Реконструкція житлового фонду (приміщень) | B69: 3141 | C69: 470 | D69: 0 | E69: 0 | F69: 0 | G69: 0 | H69: 0 | I69: 0 | J69: 0
A70: Реконструкція та реставрація інших об’єктів | B70: 3142 | C70: 480 | D70: 0 | E70: 0 | F70: 0 | G70: 0 | H70: 0 | I70: 0 | J70: 0
A71: Реставрація пам’яток культури, історії та архітектури | B71: 3143 | C71: 490 | D71: 0 | E71: 0 | F71: 0 | G71: 0 | H71: 0 | I71: 0 | J71: 0
A72: Створення державних запасів і резервів | B72: 3150 | C72: 500 | D72: 0 | E72: 0 | F72: 0 | G72: 0 | H72: 0 | I72: 0 | J72: 0
A73: Придбання землі та нематеріальних активів | B73: 3160 | C73: 510 | D73: 0 | E73: 0 | F73: 0 | G73: 0 | H73: 0 | I73: 0 | J73: 0
A74: Капітальні трансферти | B74: 3200 | C74: 520 | D74: =SUM(D75:D78) -> 0 | E74: 0 | F74: 0 | G74: 0 | H74: 0 | I74: 0 | J74: 0
A75: Капітальні трансферти підприємствам (установам, організаціям) | B75: 3210 | C75: 530 | D75: 0 | E75: 0 | F75: 0 | G75: 0 | H75: 0 | I75: 0 | J75: 0
A76: Капітальні трансферти органам державного управління інших рівнів | B76: 3220 | C76: 540 | D76: 0 | E76: 0 | F76: 0 | G76: 0 | H76: 0 | I76: 0 | J76: 0
A77: Капітальні трансферти урядам іноземних держав та міжнародним організаціям | B77: 3230 | C77: 550 | D77: 0 | E77: 0 | F77: 0 | G77: 0 | H77: 0 | I77: 0 | J77: 0
A78: Капітальні трансферти населенню | B78: 3240 | C78: 560 | D78: 0 | E78: 0 | F78: 0 | G78: 0 | H78: 0 | I78: 0 | J78: 0
A79: Внутрішнє кредитування | B79: 4100 | C79: 570 | D79: =SUM(D80) -> 0 | E79: 0 | F79: 0 | G79: 0 | H79: 0 | I79: 0 | J79: 0
A80: Надання внутрішніх кредитів | B80: 4110 | C80: 580 | D80: =SUM(D81:D83) -> 0 | E80: 0 | F80: 0 | G80: 0 | H80: 0 | I80: 0 | J80: 0
A81: Надання кредитів органам державного управління інших рівнів | B81: 4111 | C81: 590 | D81: 0 | E81: 0 | F81: 0 | G81: 0 | H81: 0 | I81: 0 | J81: 0
A82: Надання кредитів підприємствам, установам, організаціям | B82: 4112 | C82: 600 | D82: 0 | E82: 0 | F82: 0 | G82: 0 | H82: 0 | I82: 0 | J82: 0
A83: Надання інших внутрішніх кредитів | B83: 4113 | C83: 610 | D83: 0 | E83: 0 | F83: 0 | G83: 0 | H83: 0 | I83: 0 | J83: 0
A84: Зовнішнє кредитування | B84: 4200 | C84: 620 | D84: =D85 -> 0 | E84: 0 | F84: 0 | G84: 0 | H84: 0 | I84: 0 | J84: 0
A85: Надання зовнішніх кредитів | B85: 4210 | C85: 630 | D85: 0 | E85: 0 | F85: 0 | G85: 0 | H85: 0 | I85: 0 | J85: 0
A86: Інші видатки | B86: 5000 | C86: 640 | D86: X | E86: 198600 | F86: X | G86: X | H86: X | I86: X | J86: X
A87: Нерозподілені видатки | B87: 9000 | C87: 650 | D87: 0 | E87: 0 | F87: 0 | G87: 0 | H87: 0 | I87: 0 | J87: 0
C88: 650
A100: 1 Заповнюється розпорядниками бюджетних коштів.
A101: =ЗАПОЛНИТЬ!F30 -> Міський голова | G101: =ЗАПОЛНИТЬ!F26 -> Бондаренко О.А.
D102: (підпис) | G102: (ініціали, прізвище)
A103: =ЗАПОЛНИТЬ!F31 -> Начальник відділу бухгалтерського обліку, планування та звітності | G103: =ЗАПОЛНИТЬ!F28 -> Топчій Н.М.
A104: =ЗАПОЛНИТЬ!C19 -> "10"січня 2018 року | D104: (підпис) | G104: (ініціали, прізвище)

Sheet Ф.2.7
G1: Додаток 1 до Порядку складання бюджетної звітності розпорядниками та одержувачами бюджетних коштів, звітності фондами загальнообов’язкового державного соціального і пенсійного страхування (пункт 1 розділу ІІ)
A4: ЗВІТ
A5: =IF(ЗАПОЛНИТЬ!$F$7=1,CONCATENATE(шапки!A2),CONCATENATE(шапки!A2,шапки!C2)) -> про надходження та використання коштів загального фонду (форма №2д, | G5: =IF(ЗАПОЛНИТЬ!$F$7=1,шапки!C2,шапки!D2) -> №2м) | H5: =IF(ЗАПОЛНИТЬ!$F$7=1,шапки!D2,"") -> 
A6: =CONCATENATE("за ",ЗАПОЛНИТЬ!$B$17," ",ЗАПОЛНИТЬ!$C$17) -> за 2017 р.
J7: коди
A9: Установа | B9: =ЗАПОЛНИТЬ!B3 -> Новгород-Сіверська міська рада | H9: за ЄДРПОУ | J9: =ЗАПОЛНИТЬ!B13 -> 04061978
A10: Територія | B10: =ЗАПОЛНИТЬ!B5 -> 16000 Чернігівська обл.,м.Новгород-Сіверський вул. Губернська, 2 | H10: за КОАТУУ | J10: =ЗАПОЛНИТЬ!B14 -> 7410500000
A11: Організаційно-правова форма господарювання | B11: =ЗАПОЛНИТЬ!D15 -> Орган місцевого самоврядування | H11: за КОПФГ | J11: =ЗАПОЛНИТЬ!B15 -> 420
A12: Код та назва відомчої класифікації видатків та кредитування державного бюджету | D12: =ЗАПОЛНИТЬ!H9 -> 0 | E12: =IF(D12>0,VLOOKUP(D12,'ДовидникКВК(ГОС)'!A:B,2,FALSE),"") -> 
A13: Код та назва програмної класифікації видатків та кредитування державного бюджету | E13: =IF(D13>0,VLOOKUP(D13,ДовидникКПК!B:C,2,FALSE),"") -> 
A14: Код та назва типової відомчої класифікації видатків та кредитування місцевих бюджетів | D14: =ЗАПОЛНИТЬ!H10 -> 01 | E14: =ЗАПОЛНИТЬ!I10 -> рада
A15: Код та назва програмної класифікації видатків та кредитування місцевих бюджетів (код та назва Типової програмної класифікації видатків та кредитування місцевих бюджетів / Тимчасової класифікації видатків та кредитування для бюджетів місцевого самоврядування, які не застосовують програмно-цільового методу) | D15: 116650 | E15: =VLOOKUP(RIGHT(D15,4),КПКВМБ!A:B,2,FALSE) -> Утримання та розвиток інфраструктури доріг
A16: Періодичність: квартальна, річна
A17: Одиниця виміру: грн, коп.
A19: Показники | B19: КЕКВ та/або ККК | C19: Код рядка | D19: Затверджено на звітний рік | E19: Затверджено на звітний період (рік)1 | F19: Залишок на початок звітного року | G19: Надійшло коштів за звітний період (рік) | H19: Касові за звітний період (рік) | I19: Фактичні за звітний період (рік) | J19: Залишок на кінець звітного періоду (року)
A22: 1 | B22: 2 | C22: 3 | D22: 4 | E22: 5 | F22: 6 | G22: 7 | H22: 8 | I22: 9 | J22: 9
A23: Видатки та надання кредитів - усього | B23: Х | C23: 010 | D23: =D24+D59+D79+D84+D87 -> 2500000 | E23: =E26+E29+E32+E33+E37+E45+E46+E86+E54 -> 2500000 | F23: =F24+F59+F79+F84+F87 -> 0 | G23: =G24+G59+G79+G84+G87 -> 2497078.66 | H23: =H24+H59+H79+H84+H87 -> 2497078.66 | I23: =I24+I59+I79+I84+I87 -> 0 | J23: =F23+G23-H23 -> 0
A24: у тому числі: Поточні видатки | B24: 2000 | C24: 020 | D24: =D25+D30+D47+D50+D54+D58 -> 2500000 | E24: 0 | F24: 0 | G24: 2497078.66 | H24: 2497078.66 | I24: 0 | J24: =F24+G24-H24 -> 0
A25: Оплата праці і нарахування на заробітну плату | B25: 2100 | C25: 030 | D25: =D26+D29 -> 0 | E25: 0 | F25: =F26+F29 -> 0 | G25: =G26+G29 -> 0 | H25: =H26+H29 -> 0 | I25: =I26+I29 -> 0 | J25: 0
A26: Оплата праці | B26: 2110 | C26: 040 | D26: =SUM(D27:D28) -> 0 | E26: 0 | F26: 0 | G26: 0 | H26: 0 | I26: 0 | J26: 0
A27: Заробітна плата | B27: 2111 | C27: 050 | D27: 0 | E27: 0 | F27: 0 | G27: 0 | H27: 0 | I27: 0 | J27: 0
A28: Грошове забезпечення військовослужбовців | B28: 2112 | C28: 060 | D28: 0 | E28: 0 | F28: 0 | G28: 0 | H28: 0 | I28: 0 | J28: 0
A29: Нарахування на оплату праці | B29: 2120 | C29: 070 | D29: 0 | E29: 0 | F29: 0 | G29: 0 | H29: 0 | I29: 0 | J29: 0
A30: Використання товарів і послуг | B30: 2200 | C30: 080 | D30: =SUM(D31:D37)+D44 -> 2500000 | E30: 0 | F30: =SUM(F31:F37)+F44 -> 0 | G30: =SUM(G31:G37)+G44 -> 2497078.66 | H30: =SUM(H31:H37)+H44 -> 2497078.66 | I30: =SUM(I31:I37)+I44 -> 0 | J30: 0
A31: Предмети, матеріали, обладнання та інвентар | B31: 2210 | C31: 090 | D31: 0 | E31: 0 | F31: 0 | G31: 0 | H31: 0 | I31: 0 | J31: 0
A32: Медикаменти та перев’язувальні матеріали | B32: 2220 | C32: 100 | D32: 0 | E32: 0 | F32: 0 | G32: 0 | H32: 0 | I32: 0 | J32: 0
A33: Продукти харчування | B33: 2230 | C33: 110 | D33: 0 | E33: 0 | F33: 0 | G33: 0 | H33: 0 | I33: 0 | J33: 0
A34: Оплата послуг (крім комунальних) | B34: 2240 | C34: 120 | D34: 2500000 | E34: 0 | F34: 0 | G34: 2497078.66 | H34: 2497078.66 | I34: 0 | J34: 0
A35: Видатки на відрядження | B35: 2250 | C35: 130 | D35: 0 | E35: 0 | F35: 0 | G35: 0 | H35: 0 | I35: 0 | J35: 0
A36: Видатки та заходи спеціального призначення | B36: 2260 | C36: 140 | D36: 0 | E36: 0 | F36: 0 | G36: 0 | H36: 0 | I36: 0 | J36: 0
A37: Оплата комунальних послуг та енергоносіїв | B37: 2270 | C37: 150 | D37: =SUM(D38:D43) -> 0 | E37: 0 | F37: =SUM(F38:F43) -> 0 | G37: =SUM(G38:G43) -> 0 | H37: =SUM(H38:H43) -> 0 | I37: =SUM(I38:I43) -> 0 | J37: =F37+G37-H37 -> 0
A38: Оплата теплопостачання | B38: 2271 | C38: 160 | D38: 0 | E38: 0 | F38: 0 | G38: 0 | H38: 0 | I38: 0 | J38: 0
A39: Оплата водопостачання та водовідведення | B39: 2272 | C39: 170 | D39: 0 | E39: 0 | F39: 0 | G39: 0 | H39: 0 | I39: 0 | J39: 0
A40: Оплата електроенергії | B40: 2273 | C40: 180 | D40: 0 | E40: 0 | F40: 0 | G40: 0 | H40: 0 | I40: 0 | J40: 0
A41: Оплата природного газу | B41: 2274 | C41: 190 | D41: 0 | E41: 0 | F41: 0 | G41: 0 | H41: 0 | I41: 0 | J41: 0
A42: Оплата інших енергоносіїв | B42: 2275 | C42: 200 | D42: 0 | E42: 0 | F42: 0 | G42: 0 | H42: 0 | I42: 0 | J42: 0
A43: Оплата енергосервісу | B43: 2276 | C43: 210 | D43: 0 | E43: 0 | F43: 0 | G43: 0 | H43: 0 | I43: 0 | J43: =F43+G43-H43 -> 0
A44: Дослідження і розробки, окремі заходи по реалізації державних (регіональних) програм | B44: 2280 | C44: 220 | D44: =SUM(D45:D46) -> 0 | E44: 0 | F44: =SUM(F45:F46) -> 0 | G44: =SUM(G45:G46) -> 0 | H44: =SUM(H45:H46) -> 0 | I44: =SUM(I45:I46) -> 0 | J44: 0
A45: Дослідження і розробки, окремі заходи розвитку по реалізації державних (регіональних) програм | B45: 2281 | C45: 230 | D45: 0 | E45: 0 | F45: 0 | G45: 0 | H45: 0 | I45: 0 | J45: 0
A46: Окремі заходи по реалізації державних (регіональних) програм, не віднесені до заходів розвитку | B46: 2282 | C46: 240 | D46: 0 | E46: 0 | F46: 0 | G46: 0 | H46: 0 | I46: 0 | J46: 0
A47: Обслуговування боргових зобов’язань | B47: 2400 | C47: 250 | D47: =SUM(D48:D49) -> 0 | E47: 0 | F47: 0 | G47: 0 | H47: 0 | I47: 0 | J47: 0
A48: Обслуговування внутрішніх боргових зобов’язань | B48: 2410 | C48: 260 | D48: 0 | E48: 0 | F48: 0 | G48: 0 | H48: 0 | I48: 0 | J48: 0
A49: Обслуговування зовнішніх боргових зобов’язань | B49: 2420 | C49: 270 | D49: 0 | E49: 0 | F49: 0 | G49: 0 | H49: 0 | I49: 0 | J49: 0
A50: Поточні трансферти | B50: 2600 | C50: 280 | D50: =SUM(D51:D53) -> 0 | E50: 0 | F50: 0 | G50: 0 | H50: 0 | I50: 0 | J50: 0
A51: Субсидії та поточні трансферти підприємствам (установам, організаціям) | B51: 2610 | C51: 290 | D51: 0 | E51: 0 | F51: 0 | G51: 0 | H51: 0 | I51: 0 | J51: 0
A52: Поточні трансферти органам державного управління інших рівнів | B52: 2620 | C52: 300 | D52: 0 | E52: 0 | F52: 0 | G52: 0 | H52: 0 | I52: 0 | J52: 0
A53: Поточні трансферти урядам іноземних держав та міжнародним організаціям | B53: 2630 | C53: 310 | D53: 0 | E53: 0 | F53: 0 | G53: 0 | H53: 0 | I53: 0 | J53: 0
A54: Соціальне забезпечення | B54: 2700 | C54: 320 | D54: =SUM(D55:D57) -> 0 | E54: 0 | F54: 0 | G54: 0 | H54: 0 | I54: 0 | J54: 0
A55: Виплата пенсій і допомоги | B55: 2710 | C55: 330 | D55: 0 | E55: 0 | F55: 0 | G55: 0 | H55: 0 | I55: 0 | J55: 0
A56: Стипендії | B56: 2720 | C56: 340 | D56: 0 | E56: 0 | F56: 0 | G56: 0 | H56: 0 | I56: 0 | J56: 0
A57: Інші виплати населенню | B57: 2730 | C57: 350 | D57: 0 | E57: 0 | F57: 0 | G57: 0 | H57: 0 | I57: 0 | J57: 0
A58: Інші поточні видатки | B58: 2800 | C58: 360 | D58: 0 | E58: 0 | F58: 0 | G58: 0 | H58: 0 | I58: 0 | J58: 0
A59: Капітальні видатки | B59: 3000 | C59: 370 | D59: =D60+D74 -> 0 | E59: 0 | F59: 0 | G59: 0 | H59: 0 | I59: 0 | J59: 0
A60: Придбання основного капіталу | B60: 3100 | C60: 380 | D60: =D61+D62+D65+D68+D72+D73 -> 0 | E60: 0 | F60: 0 | G60: 0 | H60: 0 | I60: 0 | J60: 0
A61: Придбання обладнання і предметів довгострокового користування | B61: 3110 | C61: 390 | D61: 0 | E61: 0 | F61: 0 | G61: 0 | H61: 0 | I61: 0 | J61: 0
A62: Капітальне будівництво (придбання) | B62: 3120 | C62: 400 | D62: =SUM(D63:D64) -> 0 | E62: 0 | F62: 0 | G62: 0 | H62: 0 | I62: 0 | J62: 0
A63: Капітальне будівництво (придбання) житла | B63: 3121 | C63: 410 | D63: 0 | E63: 0 | F63: 0 | G63: 0 | H63: 0 | I63: 0 | J63: 0
A64: Капітальне будівництво (придбання) інших об’єктів | B64: 3122 | C64: 420 | D64: 0 | E64: 0 | F64: 0 | G64: 0 | H64: 0 | I64: 0 | J64: 0
A65: Капітальний ремонт | B65: 3130 | C65: 430 | D65: =SUM(D66:D67) -> 0 | E65: 0 | F65: 0 | G65: 0 | H65: 0 | I65: 0 | J65: 0
A66: Капітальний ремонт житлового фонду (приміщень) | B66: 3131 | C66: 440 | D66: 0 | E66: 0 | F66: 0 | G66: 0 | H66: 0 | I66: 0 | J66: 0
A67: Капітальний ремонт інших об’єктів | B67: 3132 | C67: 450 | D67: 0 | E67: 0 | F67: 0 | G67: 0 | H67: 0 | I67: 0 | J67: 0
A68: Реконструкція та реставрація | B68: 3140 | C68: 460 | D68: =SUM(D69:D71) -> 0 | E68: 0 | F68: 0 | G68: 0 | H68: 0 | I68: 0 | J68: 0
A69: Реконструкція житлового фонду (приміщень) | B69: 3141 | C69: 470 | D69: 0 | E69: 0 | F69: 0 | G69: 0 | H69: 0 | I69: 0 | J69: 0
A70: Реконструкція та реставрація інших об’єктів | B70: 3142 | C70: 480 | D70: 0 | E70: 0 | F70: 0 | G70: 0 | H70: 0 | I70: 0 | J70: 0
A71: Реставрація пам’яток культури, історії та архітектури | B71: 3143 | C71: 490 | D71: 0 | E71: 0 | F71: 0 | G71: 0 | H71: 0 | I71: 0 | J71: 0
A72: Створення державних запасів і резервів | B72: 3150 | C72: 500 | D72: 0 | E72: 0 | F72: 0 | G72: 0 | H72: 0 | I72: 0 | J72: 0
A73: Придбання землі та нематеріальних активів | B73: 3160 | C73: 510 | D73: 0 | E73: 0 | F73: 0 | G73: 0 | H73: 0 | I73: 0 | J73: 0
A74: Капітальні трансферти | B74: 3200 | C74: 520 | D74: =SUM(D75:D78) -> 0 | E74: 0 | F74: 0 | G74: 0 | H74: 0 | I74: 0 | J74: 0
A75: Капітальні трансферти підприємствам (установам, організаціям) | B75: 3210 | C75: 530 | D75: 0 | E75: 0 | F75: 0 | G75: 0 | H75: 0 | I75: 0 | J75: 0
A76: Капітальні трансферти органам державного управління інших рівнів | B76: 3220 | C76: 540 | D76: 0 | E76: 0 | F76: 0 | G76: 0 | H76: 0 | I76: 0 | J76: 0
A77: Капітальні трансферти урядам іноземних держав та міжнародним організаціям | B77: 3230 | C77: 550 | D77: 0 | E77: 0 | F77: 0 | G77: 0 | H77: 0 | I77: 0 | J77: 0
A78: Капітальні трансферти населенню | B78: 3240 | C78: 560 | D78: 0 | E78: 0 | F78: 0 | G78: 0 | H78: 0 | I78: 0 | J78: 0
A79: Внутрішнє кредитування | B79: 4100 | C79: 570 | D79: =SUM(D80) -> 0 | E79: 0 | F79: 0 | G79: 0 | H79: 0 | I79: 0 | J79: 0
A80: Надання внутрішніх кредитів | B80: 4110 | C80: 580 | D80: =SUM(D81:D83) -> 0 | E80: 0 | F80: 0 | G80: 0 | H80: 0 | I80: 0 | J80: 0
A81: Надання кредитів органам державного управління інших рівнів | B81: 4111 | C81: 590 | D81: 0 | E81: 0 | F81: 0 | G81: 0 | H81: 0 | I81: 0 | J81: 0
A82: Надання кредитів підприємствам, установам, організаціям | B82: 4112 | C82: 600 | D82: 0 | E82: 0 | F82: 0 | G82: 0 | H82: 0 | I82: 0 | J82: 0
A83: Надання інших внутрішніх кредитів | B83: 4113 | C83: 610 | D83: 0 | E83: 0 | F83: 0 | G83: 0 | H83: 0 | I83: 0 | J83: 0
A84: Зовнішнє кредитування | B84: 4200 | C84: 620 | D84: =D85 -> 0 | E84: 0 | F84: 0 | G84: 0 | H84: 0 | I84: 0 | J84: 0
A85: Надання зовнішніх кредитів | B85: 4210 | C85: 630 | D85: 0 | E85: 0 | F85: 0 | G85: 0 | H85: 0 | I85: 0 | J85: 0
A86: Інші видатки | B86: 5000 | C86: 640 | D86: X | E86: 2500000 | F86: X | G86: X | H86: X | I86: X | J86: X
A87: Нерозподілені видатки | B87: 9000 | C87: 650 | D87: 0 | E87: 0 | F87: 0 | G87: 0 | H87: 0 | I87: 0 | J87: 0
C88: 650
A100: 1 Заповнюється розпорядниками бюджетних коштів.
A101: =ЗАПОЛНИТЬ!F30 -> Міський голова | G101: =ЗАПОЛНИТЬ!F26 -> Бондаренко О.А.
D102: (підпис) | G102: (ініціали, прізвище)
A103: =ЗАПОЛНИТЬ!F31 -> Начальник відділу бухгалтерського обліку, планування та звітності | G103: =ЗАПОЛНИТЬ!F28 -> Топчій Н.М.
A104: =ЗАПОЛНИТЬ!C19 -> "10"січня 2018 року | D104: (підпис) | G104: (ініціали, прізвище)

Sheet Ф.2.8
G1: Додаток 1 до Порядку складання бюджетної звітності розпорядниками та одержувачами бюджетних коштів, звітності фондами загальнообов’язкового державного соціального і пенсійного страхування (пункт 1 розділу ІІ)
A4: ЗВІТ
A5: =IF(ЗАПОЛНИТЬ!$F$7=1,CONCATENATE(шапки!A2),CONCATENATE(шапки!A2,шапки!C2)) -> про надходження та використання коштів загального фонду (форма №2д, | G5: =IF(ЗАПОЛНИТЬ!$F$7=1,шапки!C2,шапки!D2) -> №2м) | H5: =IF(ЗАПОЛНИТЬ!$F$7=1,шапки!D2,"") -> 
A6: =CONCATENATE("за ",ЗАПОЛНИТЬ!$B$17," ",ЗАПОЛНИТЬ!$C$17) -> за 2017 р.
J7: коди
A9: Установа | B9: =ЗАПОЛНИТЬ!B3 -> Новгород-Сіверська міська рада | H9: за ЄДРПОУ | J9: =ЗАПОЛНИТЬ!B13 -> 04061978
A10: Територія | B10: =ЗАПОЛНИТЬ!B5 -> 16000 Чернігівська обл.,м.Новгород-Сіверський вул. Губернська, 2 | H10: за КОАТУУ | J10: =ЗАПОЛНИТЬ!B14 -> 7410500000
A11: Організаційно-правова форма господарювання | B11: =ЗАПОЛНИТЬ!D15 -> Орган місцевого самоврядування | H11: за КОПФГ | J11: =ЗАПОЛНИТЬ!B15 -> 420
A12: Код та назва відомчої класифікації видатків та кредитування державного бюджету | D12: =ЗАПОЛНИТЬ!H9 -> 0 | E12: =IF(D12>0,VLOOKUP(D12,'ДовидникКВК(ГОС)'!A:B,2,FALSE),"") -> 
A13: Код та назва програмної класифікації видатків та кредитування державного бюджету | E13: =IF(D13>0,VLOOKUP(D13,ДовидникКПК!B:C,2,FALSE),"") -> 
A14: Код та назва типової відомчої класифікації видатків та кредитування місцевих бюджетів | D14: =ЗАПОЛНИТЬ!H10 -> 01 | E14: =ЗАПОЛНИТЬ!I10 -> рада
A15: Код та назва програмної класифікації видатків та кредитування місцевих бюджетів (код та назва Типової програмної класифікації видатків та кредитування місцевих бюджетів / Тимчасової класифікації видатків та кредитування для бюджетів місцевого самоврядування, які не застосовують програмно-цільового методу) | D15: 117450 | E15: =VLOOKUP(RIGHT(D15,4),КПКВМБ!A:B,2,FALSE) -> Сприяння розвитку малого та середнього підприємництва
A16: Періодичність: квартальна, річна
A17: Одиниця виміру: грн, коп.
A19: Показники | B19: КЕКВ та/або ККК | C19: Код рядка | D19: Затверджено на звітний рік | E19: Затверджено на звітний період (рік)1 | F19: Залишок на початок звітного року | G19: Надійшло коштів за звітний період (рік) | H19: Касові за звітний період (рік) | I19: Фактичні за звітний період (рік) | J19: Залишок на кінець звітного періоду (року)
A22: 1 | B22: 2 | C22: 3 | D22: 4 | E22: 5 | F22: 6 | G22: 7 | H22: 8 | I22: 9 | J22: 9
A23: Видатки та надання кредитів - усього | B23: Х | C23: 010 | D23: =D24+D59+D79+D84+D87 -> 0 | E23: =E26+E29+E32+E33+E37+E45+E46+E86+E54 -> 0 | F23: =F24+F59+F79+F84+F87 -> 0 | G23: =G24+G59+G79+G84+G87 -> 0 | H23: =H24+H59+H79+H84+H87 -> 0 | I23: =I24+I59+I79+I84+I87 -> 0 | J23: =F23+G23-H23 -> 0
A24: у тому числі: Поточні видатки | B24: 2000 | C24: 020 | D24: =D25+D30+D47+D50+D54+D58 -> 0 | E24: 0 | F24: 0 | G24: 0 | H24: 0 | I24: 0 | J24: =F24+G24-H24 -> 0
A25: Оплата праці і нарахування на заробітну плату | B25: 2100 | C25: 030 | D25: =D26+D29 -> 0 | E25: 0 | F25: =F26+F29 -> 0 | G25: =G26+G29 -> 0 | H25: =H26+H29 -> 0 | I25: =I26+I29 -> 0 | J25: 0
A26: Оплата праці | B26: 2110 | C26: 040 | D26: =SUM(D27:D28) -> 0 | E26: 0 | F26: 0 | G26: 0 | H26: 0 | I26: 0 | J26: 0
A27: Заробітна плата | B27: 2111 | C27: 050 | D27: 0 | E27: 0 | F27: 0 | G27: 0 | H27: 0 | I27: 0 | J27: 0
A28: Грошове забезпечення військовослужбовців | B28: 2112 | C28: 060 | D28: 0 | E28: 0 | F28: 0 | G28: 0 | H28: 0 | I28: 0 | J28: 0
A29: Нарахування на оплату праці | B29: 2120 | C29: 070 | D29: 0 | E29: 0 | F29: 0 | G29: 0 | H29: 0 | I29: 0 | J29: 0
A30: Використання товарів і послуг | B30: 2200 | C30: 080 | D30: =SUM(D31:D37)+D44 -> 0 | E30: 0 | F30: =SUM(F31:F37)+F44 -> 0 | G30: =SUM(G31:G37)+G44 -> 0 | H30: =SUM(H31:H37)+H44 -> 0 | I30: =SUM(I31:I37)+I44 -> 0 | J30: 0
A31: Предмети, матеріали, обладнання та інвентар | B31: 2210 | C31: 090 | D31: 0 | E31: 0 | F31: 0 | G31: 0 | H31: 0 | I31: 0 | J31: 0
A32: Медикаменти та перев’язувальні матеріали | B32: 2220 | C32: 100 | D32: 0 | E32: 0 | F32: 0 | G32: 0 | H32: 0 | I32: 0 | J32: 0
A33: Продукти харчування | B33: 2230 | C33: 110 | D33: 0 | E33: 0 | F33: 0 | G33: 0 | H33: 0 | I33: 0 | J33: 0
A34: Оплата послуг (крім комунальних) | B34: 2240 | C34: 120 | D34: 0 | E34: 0 | F34: 0 | G34: 0 | H34: 0 | I34: 0 | J34: 0
A35: Видатки на відрядження | B35: 2250 | C35: 130 | D35: 0 | E35: 0 | F35: 0 | G35: 0 | H35: 0 | I35: 0 | J35: 0
A36: Видатки та заходи спеціального призначення | B36: 2260 | C36: 140 | D36: 0 | E36: 0 | F36: 0 | G36: 0 | H36: 0 | I36: 0 | J36: 0
A37: Оплата комунальних послуг та енергоносіїв | B37: 2270 | C37: 150 | D37: =SUM(D38:D43) -> 0 | E37: 0 | F37: =SUM(F38:F43) -> 0 | G37: =SUM(G38:G43) -> 0 | H37: =SUM(H38:H43) -> 0 | I37: =SUM(I38:I43) -> 0 | J37: =F37+G37-H37 -> 0
A38: Оплата теплопостачання | B38: 2271 | C38: 160 | D38: 0 | E38: 0 | F38: 0 | G38: 0 | H38: 0 | I38: 0 | J38: 0
A39: Оплата водопостачання та водовідведення | B39: 2272 | C39: 170 | D39: 0 | E39: 0 | F39: 0 | G39: 0 | H39: 0 | I39: 0 | J39: 0
A40: Оплата електроенергії | B40: 2273 | C40: 180 | D40: 0 | E40: 0 | F40: 0 | G40: 0 | H40: 0 | I40: 0 | J40: 0
A41: Оплата природного газу | B41: 2274 | C41: 190 | D41: 0 | E41: 0 | F41: 0 | G41: 0 | H41: 0 | I41: 0 | J41: 0
A42: Оплата інших енергоносіїв | B42: 2275 | C42: 200 | D42: 0 | E42: 0 | F42: 0 | G42: 0 | H42: 0 | I42: 0 | J42: 0
A43: Оплата енергосервісу | B43: 2276 | C43: 210 | D43: 0 | E43: 0 | F43: 0 | G43: 0 | H43: 0 | I43: 0 | J43: =F43+G43-H43 -> 0
A44: Дослідження і розробки, окремі заходи по реалізації державних (регіональних) програм | B44: 2280 | C44: 220 | D44: =SUM(D45:D46) -> 0 | E44: 0 | F44: =SUM(F45:F46) -> 0 | G44: =SUM(G45:G46) -> 0 | H44: =SUM(H45:H46) -> 0 | I44: =SUM(I45:I46) -> 0 | J44: 0
A45: Дослідження і розробки, окремі заходи розвитку по реалізації державних (регіональних) програм | B45: 2281 | C45: 230 | D45: 0 | E45: 0 | F45: 0 | G45: 0 | H45: 0 | I45: 0 | J45: 0
A46: Окремі заходи по реалізації державних (регіональних) програм, не віднесені до заходів розвитку | B46: 2282 | C46: 240 | D46: 0 | E46: 0 | F46: 0 | G46: 0 | H46: 0 | I46: 0 | J46: 0
A47: Обслуговування боргових зобов’язань | B47: 2400 | C47: 250 | D47: =SUM(D48:D49) -> 0 | E47: 0 | F47: 0 | G47: 0 | H47: 0 | I47: 0 | J47: 0
A48: Обслуговування внутрішніх боргових зобов’язань | B48: 2410 | C48: 260 | D48: 0 | E48: 0 | F48: 0 | G48: 0 | H48: 0 | I48: 0 | J48: 0
A49: Обслуговування зовнішніх боргових зобов’язань | B49: 2420 | C49: 270 | D49: 0 | E49: 0 | F49: 0 | G49: 0 | H49: 0 | I49: 0 | J49: 0
A50: Поточні трансферти | B50: 2600 | C50: 280 | D50: =SUM(D51:D53) -> 0 | E50: 0 | F50: 0 | G50: 0 | H50: 0 | I50: 0 | J50: 0
A51: Субсидії та поточні трансферти підприємствам (установам, організаціям) | B51: 2610 | C51: 290 | D51: 0 | E51: 0 | F51: 0 | G51: 0 | H51: 0 | I51: 0 | J51: 0
A52: Поточні трансферти органам державного управління інших рівнів | B52: 2620 | C52: 300 | D52: 0 | E52: 0 | F52: 0 | G52: 0 | H52: 0 | I52: 0 | J52: 0
A53: Поточні трансферти урядам іноземних держав та міжнародним організаціям | B53: 2630 | C53: 310 | D53: 0 | E53: 0 | F53: 0 | G53: 0 | H53: 0 | I53: 0 | J53: 0
A54: Соціальне забезпечення | B54: 2700 | C54: 320 | D54: =SUM(D55:D57) -> 0 | E54: 0 | F54: 0 | G54: 0 | H54: 0 | I54: 0 | J54: 0
A55: Виплата пенсій і допомоги | B55: 2710 | C55: 330 | D55: 0 | E55: 0 | F55: 0 | G55: 0 | H55: 0 | I55: 0 | J55: 0
A56: Стипендії | B56: 2720 | C56: 340 | D56: 0 | E56: 0 | F56: 0 | G56: 0 | H56: 0 | I56: 0 | J56: 0
A57: Інші виплати населенню | B57: 2730 | C57: 350 | D57: 0 | E57: 0 | F57: 0 | G57: 0 | H57: 0 | I57: 0 | J57: 0
A58: Інші поточні видатки | B58: 2800 | C58: 360 | D58: 0 | E58: 0 | F58: 0 | G58: 0 | H58: 0 | I58: 0 | J58: 0
A59: Капітальні видатки | B59: 3000 | C59: 370 | D59: =D60+D74 -> 0 | E59: 0 | F59: 0 | G59: 0 | H59: 0 | I59: 0 | J59: 0
A60: Придбання основного капіталу | B60: 3100 | C60: 380 | D60: =D61+D62+D65+D68+D72+D73 -> 0 | E60: 0 | F60: 0 | G60: 0 | H60: 0 | I60: 0 | J60: 0
A61: Придбання обладнання і предметів довгострокового користування | B61: 3110 | C61: 390 | D61: 0 | E61: 0 | F61: 0 | G61: 0 | H61: 0 | I61: 0 | J61: 0
A62: Капітальне будівництво (придбання) | B62: 3120 | C62: 400 | D62: =SUM(D63:D64) -> 0 | E62: 0 | F62: 0 | G62: 0 | H62: 0 | I62: 0 | J62: 0
A63: Капітальне будівництво (придбання) житла | B63: 3121 | C63: 410 | D63: 0 | E63: 0 | F63: 0 | G63: 0 | H63: 0 | I63: 0 | J63: 0
A64: Капітальне будівництво (придбання) інших об’єктів | B64: 3122 | C64: 420 | D64: 0 | E64: 0 | F64: 0 | G64: 0 | H64: 0 | I64: 0 | J64: 0
A65: Капітальний ремонт | B65: 3130 | C65: 430 | D65: =SUM(D66:D67) -> 0 | E65: 0 | F65: 0 | G65: 0 | H65: 0 | I65: 0 | J65: 0
A66: Капітальний ремонт житлового фонду (приміщень) | B66: 3131 | C66: 440 | D66: 0 | E66: 0 | F66: 0 | G66: 0 | H66: 0 | I66: 0 | J66: 0
A67: Капітальний ремонт інших об’єктів | B67: 3132 | C67: 450 | D67: 0 | E67: 0 | F67: 0 | G67: 0 | H67: 0 | I67: 0 | J67: 0
A68: Реконструкція та реставрація | B68: 3140 | C68: 460 | D68: =SUM(D69:D71) -> 0 | E68: 0 | F68: 0 | G68: 0 | H68: 0 | I68: 0 | J68: 0
A69: Реконструкція житлового фонду (приміщень) | B69: 3141 | C69: 470 | D69: 0 | E69: 0 | F69: 0 | G69: 0 | H69: 0 | I69: 0 | J69: 0
A70: Реконструкція та реставрація інших об’єктів | B70: 3142 | C70: 480 | D70: 0 | E70: 0 | F70: 0 | G70: 0 | H70: 0 | I70: 0 | J70: 0
A71: Реставрація пам’яток культури, історії та архітектури | B71: 3143 | C71: 490 | D71: 0 | E71: 0 | F71: 0 | G71: 0 | H71: 0 | I71: 0 | J71: 0
A72: Створення державних запасів і резервів | B72: 3150 | C72: 500 | D72: 0 | E72: 0 | F72: 0 | G72: 0 | H72: 0 | I72: 0 | J72: 0
A73: Придбання землі та нематеріальних активів | B73: 3160 | C73: 510 | D73: 0 | E73: 0 | F73: 0 | G73: 0 | H73: 0 | I73: 0 | J73: 0
A74: Капітальні трансферти | B74: 3200 | C74: 520 | D74: =SUM(D75:D78) -> 0 | E74: 0 | F74: 0 | G74: 0 | H74: 0 | I74: 0 | J74: 0
A75: Капітальні трансферти підприємствам (установам, організаціям) | B75: 3210 | C75: 530 | D75: 0 | E75: 0 | F75: 0 | G75: 0 | H75: 0 | I75: 0 | J75: 0
A76: Капітальні трансферти органам державного управління інших рівнів | B76: 3220 | C76: 540 | D76: 0 | E76: 0 | F76: 0 | G76: 0 | H76: 0 | I76: 0 | J76: 0
A77: Капітальні трансферти урядам іноземних держав та міжнародним організаціям | B77: 3230 | C77: 550 | D77: 0 | E77: 0 | F77: 0 | G77: 0 | H77: 0 | I77: 0 | J77: 0
A78: Капітальні трансферти населенню | B78: 3240 | C78: 560 | D78: 0 | E78: 0 | F78: 0 | G78: 0 | H78: 0 | I78: 0 | J78: 0
A79: Внутрішнє кредитування | B79: 4100 | C79: 570 | D79: =SUM(D80) -> 0 | E79: 0 | F79: 0 | G79: 0 | H79: 0 | I79: 0 | J79: 0
A80: Надання внутрішніх кредитів | B80: 4110 | C80: 580 | D80: =SUM(D81:D83) -> 0 | E80: 0 | F80: 0 | G80: 0 | H80: 0 | I80: 0 | J80: 0
A81: Надання кредитів органам державного управління інших рівнів | B81: 4111 | C81: 590 | D81: 0 | E81: 0 | F81: 0 | G81: 0 | H81: 0 | I81: 0 | J81: 0
A82: Надання кредитів підприємствам, установам, організаціям | B82: 4112 | C82: 600 | D82: 0 | E82: 0 | F82: 0 | G82: 0 | H82: 0 | I82: 0 | J82: 0
A83: Надання інших внутрішніх кредитів | B83: 4113 | C83: 610 | D83: 0 | E83: 0 | F83: 0 | G83: 0 | H83: 0 | I83: 0 | J83: 0
A84: Зовнішнє кредитування | B84: 4200 | C84: 620 | D84: =D85 -> 0 | E84: 0 | F84: 0 | G84: 0 | H84: 0 | I84: 0 | J84: 0
A85: Надання зовнішніх кредитів | B85: 4210 | C85: 630 | D85: 0 | E85: 0 | F85: 0 | G85: 0 | H85: 0 | I85: 0 | J85: 0
A86: Інші видатки | B86: 5000 | C86: 640 | D86: X | E86: 0 | F86: X | G86: X | H86: X | I86: X | J86: X
A87: Нерозподілені видатки | B87: 9000 | C87: 650 | D87: 0 | E87: 0 | F87: 0 | G87: 0 | H87: 0 | I87: 0 | J87: 0
C88: 650
A100: 1 Заповнюється розпорядниками бюджетних коштів.
A101: =ЗАПОЛНИТЬ!F30 -> Міський голова | G101: =ЗАПОЛНИТЬ!F26 -> Бондаренко О.А.
D102: (підпис) | G102: (ініціали, прізвище)
A103: =ЗАПОЛНИТЬ!F31 -> Начальник відділу бухгалтерського обліку, планування та звітності | G103: =ЗАПОЛНИТЬ!F28 -> Топчій Н.М.
A104: =ЗАПОЛНИТЬ!C19 -> "10"січня 2018 року | D104: (підпис) | G104: (ініціали, прізвище)

Sheet Ф.2.9
G1: Додаток 1 до Порядку складання бюджетної звітності розпорядниками та одержувачами бюджетних коштів, звітності фондами загальнообов’язкового державного соціального і пенсійного страхування (пункт 1 розділу ІІ)
A4: ЗВІТ
A5: =IF(ЗАПОЛНИТЬ!$F$7=1,CONCATENATE(шапки!A2),CONCATENATE(шапки!A2,шапки!C2)) -> про надходження та використання коштів загального фонду (форма №2д, | G5: =IF(ЗАПОЛНИТЬ!$F$7=1,шапки!C2,шапки!D2) -> №2м) | H5: =IF(ЗАПОЛНИТЬ!$F$7=1,шапки!D2,"") -> 
A6: =CONCATENATE("за ",ЗАПОЛНИТЬ!$B$17," ",ЗАПОЛНИТЬ!$C$17) -> за 2017 р.
J7: коди
A9: Установа | B9: =ЗАПОЛНИТЬ!B3 -> Новгород-Сіверська міська рада | H9: за ЄДРПОУ | J9: =ЗАПОЛНИТЬ!B13 -> 04061978
A10: Територія | B10: =ЗАПОЛНИТЬ!B5 -> 16000 Чернігівська обл.,м.Новгород-Сіверський вул. Губернська, 2 | H10: за КОАТУУ | J10: =ЗАПОЛНИТЬ!B14 -> 7410500000
A11: Організаційно-правова форма господарювання | B11: =ЗАПОЛНИТЬ!D15 -> Орган місцевого самоврядування | H11: за КОПФГ | J11: =ЗАПОЛНИТЬ!B15 -> 420
A12: Код та назва відомчої класифікації видатків та кредитування державного бюджету | D12: =ЗАПОЛНИТЬ!H9 -> 0 | E12: =IF(D12>0,VLOOKUP(D12,'ДовидникКВК(ГОС)'!A:B,2,FALSE),"") -> 
A13: Код та назва програмної класифікації видатків та кредитування державного бюджету | E13: =IF(D13>0,VLOOKUP(D13,ДовидникКПК!B:C,2,FALSE),"") -> 
A14: Код та назва типової відомчої класифікації видатків та кредитування місцевих бюджетів | D14: =ЗАПОЛНИТЬ!H10 -> 01 | E14: =ЗАПОЛНИТЬ!I10 -> рада
A15: Код та назва програмної класифікації видатків та кредитування місцевих бюджетів (код та назва Типової програмної класифікації видатків та кредитування місцевих бюджетів / Тимчасової класифікації видатків та кредитування для бюджетів місцевого самоврядування, які не застосовують програмно-цільового методу) | D15: 117810 | E15: =VLOOKUP(RIGHT(D15,4),КПКВМБ!A:B,2,FALSE) -> Видатки на запобігання та ліквідацію надзвичайних ситуацій та наслідків стихійного лиха
A16: Періодичність: квартальна, річна
A17: Одиниця виміру: грн, коп.
A19: Показники | B19: КЕКВ та/або ККК | C19: Код рядка | D19: Затверджено на звітний рік | E19: Затверджено на звітний період (рік)1 | F19: Залишок на початок звітного року | G19: Надійшло коштів за звітний період (рік) | H19: Касові за звітний період (рік) | I19: Фактичні за звітний період (рік) | J19: Залишок на кінець звітного періоду (року)
A22: 1 | B22: 2 | C22: 3 | D22: 4 | E22: 5 | F22: 6 | G22: 7 | H22: 8 | I22: 9 | J22: 9
A23: Видатки та надання кредитів - усього | B23: Х | C23: 010 | D23: =D24+D59+D79+D84+D87 -> 60000 | E23: =E26+E29+E32+E33+E37+E45+E46+E86+E54 -> 60000 | F23: =F24+F59+F79+F84+F87 -> 0 | G23: =G24+G59+G79+G84+G87 -> 59331 | H23: =H24+H59+H79+H84+H87 -> 59331 | I23: =I24+I59+I79+I84+I87 -> 0 | J23: =F23+G23-H23 -> 0
A24: у тому числі: Поточні видатки | B24: 2000 | C24: 020 | D24: =D25+D30+D47+D50+D54+D58 -> 60000 | E24: 0 | F24: 0 | G24: 59331 | H24: 59331 | I24: 0 | J24: =F24+G24-H24 -> 0
A25: Оплата праці і нарахування на заробітну плату | B25: 2100 | C25: 030 | D25: =D26+D29 -> 0 | E25: 0 | F25: =F26+F29 -> 0 | G25: =G26+G29 -> 0 | H25: =H26+H29 -> 0 | I25: =I26+I29 -> 0 | J25: 0
A26: Оплата праці | B26: 2110 | C26: 040 | D26: =SUM(D27:D28) -> 0 | E26: 0 | F26: 0 | G26: 0 | H26: 0 | I26: 0 | J26: 0
A27: Заробітна плата | B27: 2111 | C27: 050 | D27: 0 | E27: 0 | F27: 0 | G27: 0 | H27: 0 | I27: 0 | J27: 0
A28: Грошове забезпечення військовослужбовців | B28: 2112 | C28: 060 | D28: 0 | E28: 0 | F28: 0 | G28: 0 | H28: 0 | I28: 0 | J28: 0
A29: Нарахування на оплату праці | B29: 2120 | C29: 070 | D29: 0 | E29: 0 | F29: 0 | G29: 0 | H29: 0 | I29: 0 | J29: 0
A30: Використання товарів і послуг | B30: 2200 | C30: 080 | D30: =SUM(D31:D37)+D44 -> 60000 | E30: 0 | F30: =SUM(F31:F37)+F44 -> 0 | G30: =SUM(G31:G37)+G44 -> 59331 | H30: =SUM(H31:H37)+H44 -> 59331 | I30: =SUM(I31:I37)+I44 -> 0 | J30: 0
A31: Предмети, матеріали, обладнання та інвентар | B31: 2210 | C31: 090 | D31: 60000 | E31: 0 | F31: 0 | G31: 59331 | H31: 59331 | I31: 0 | J31: 0
A32: Медикаменти та перев’язувальні матеріали | B32: 2220 | C32: 100 | D32: 0 | E32: 0 | F32: 0 | G32: 0 | H32: 0 | I32: 0 | J32: 0
A33: Продукти харчування | B33: 2230 | C33: 110 | D33: 0 | E33: 0 | F33: 0 | G33: 0 | H33: 0 | I33: 0 | J33: 0
A34: Оплата послуг (крім комунальних) | B34: 2240 | C34: 120 | D34: 0 | E34: 0 | F34: 0 | G34: 0 | H34: 0 | I34: 0 | J34: 0
A35: Видатки на відрядження | B35: 2250 | C35: 130 | D35: 0 | E35: 0 | F35: 0 | G35: 0 | H35: 0 | I35: 0 | J35: 0
A36: Видатки та заходи спеціального призначення | B36: 2260 | C36: 140 | D36: 0 | E36: 0 | F36: 0 | G36: 0 | H36: 0 | I36: 0 | J36: 0
A37: Оплата комунальних послуг та енергоносіїв | B37: 2270 | C37: 150 | D37: =SUM(D38:D43) -> 0 | E37: 0 | F37: =SUM(F38:F43) -> 0 | G37: =SUM(G38:G43) -> 0 | H37: =SUM(H38:H43) -> 0 | I37: =SUM(I38:I43) -> 0 | J37: =F37+G37-H37 -> 0
A38: Оплата теплопостачання | B38: 2271 | C38: 160 | D38: 0 | E38: 0 | F38: 0 | G38: 0 | H38: 0 | I38: 0 | J38: 0
A39: Оплата водопостачання та водовідведення | B39: 2272 | C39: 170 | D39: 0 | E39: 0 | F39: 0 | G39: 0 | H39: 0 | I39: 0 | J39: 0
A40: Оплата електроенергії | B40: 2273 | C40: 180 | D40: 0 | E40: 0 | F40: 0 | G40: 0 | H40: 0 | I40: 0 | J40: 0
A41: Оплата природного газу | B41: 2274 | C41: 190 | D41: 0 | E41: 0 | F41: 0 | G41: 0 | H41: 0 | I41: 0 | J41: 0
A42: Оплата інших енергоносіїв | B42: 2275 | C42: 200 | D42: 0 | E42: 0 | F42: 0 | G42: 0 | H42: 0 | I42: 0 | J42: 0
A43: Оплата енергосервісу | B43: 2276 | C43: 210 | D43: 0 | E43: 0 | F43: 0 | G43: 0 | H43: 0 | I43: 0 | J43: =F43+G43-H43 -> 0
A44: Дослідження і розробки, окремі заходи по реалізації державних (регіональних) програм | B44: 2280 | C44: 220 | D44: =SUM(D45:D46) -> 0 | E44: 0 | F44: =SUM(F45:F46) -> 0 | G44: =SUM(G45:G46) -> 0 | H44: =SUM(H45:H46) -> 0 | I44: =SUM(I45:I46) -> 0 | J44: 0
A45: Дослідження і розробки, окремі заходи розвитку по реалізації державних (регіональних) програм | B45: 2281 | C45: 230 | D45: 0 | E45: 0 | F45: 0 | G45: 0 | H45: 0 | I45: 0 | J45: 0
A46: Окремі заходи по реалізації державних (регіональних) програм, не віднесені до заходів розвитку | B46: 2282 | C46: 240 | D46: 0 | E46: 0 | F46: 0 | G46: 0 | H46: 0 | I46: 0 | J46: 0
A47: Обслуговування боргових зобов’язань | B47: 2400 | C47: 250 | D47: =SUM(D48:D49) -> 0 | E47: 0 | F47: 0 | G47: 0 | H47: 0 | I47: 0 | J47: 0
A48: Обслуговування внутрішніх боргових зобов’язань | B48: 2410 | C48: 260 | D48: 0 | E48: 0 | F48: 0 | G48: 0 | H48: 0 | I48: 0 | J48: 0
A49: Обслуговування зовнішніх боргових зобов’язань | B49: 2420 | C49: 270 | D49: 0 | E49: 0 | F49: 0 | G49: 0 | H49: 0 | I49: 0 | J49: 0
A50: Поточні трансферти | B50: 2600 | C50: 280 | D50: =SUM(D51:D53) -> 0 | E50: 0 | F50: 0 | G50: 0 | H50: 0 | I50: 0 | J50: 0
A51: Субсидії та поточні трансферти підприємствам (установам, організаціям) | B51: 2610 | C51: 290 | D51: 0 | E51: 0 | F51: 0 | G51: 0 | H51: 0 | I51: 0 | J51: 0
A52: Поточні трансферти органам державного управління інших рівнів | B52: 2620 | C52: 300 | D52: 0 | E52: 0 | F52: 0 | G52: 0 | H52: 0 | I52: 0 | J52: 0
A53: Поточні трансферти урядам іноземних держав та міжнародним організаціям | B53: 2630 | C53: 310 | D53: 0 | E53: 0 | F53: 0 | G53: 0 | H53: 0 | I53: 0 | J53: 0
A54: Соціальне забезпечення | B54: 2700 | C54: 320 | D54: =SUM(D55:D57) -> 0 | E54: 0 | F54: 0 | G54: 0 | H54: 0 | I54: 0 | J54: 0
A55: Виплата пенсій і допомоги | B55: 2710 | C55: 330 | D55: 0 | E55: 0 | F55: 0 | G55: 0 | H55: 0 | I55: 0 | J55: 0
A56: Стипендії | B56: 2720 | C56: 340 | D56: 0 | E56: 0 | F56: 0 | G56: 0 | H56: 0 | I56: 0 | J56: 0
A57: Інші виплати населенню | B57: 2730 | C57: 350 | D57: 0 | E57: 0 | F57: 0 | G57: 0 | H57: 0 | I57: 0 | J57: 0
A58: Інші поточні видатки | B58: 2800 | C58: 360 | D58: 0 | E58: 0 | F58: 0 | G58: 0 | H58: 0 | I58: 0 | J58: 0
A59: Капітальні видатки | B59: 3000 | C59: 370 | D59: =D60+D74 -> 0 | E59: 0 | F59: 0 | G59: 0 | H59: 0 | I59: 0 | J59: 0
A60: Придбання основного капіталу | B60: 3100 | C60: 380 | D60: =D61+D62+D65+D68+D72+D73 -> 0 | E60: 0 | F60: 0 | G60: 0 | H60: 0 | I60: 0 | J60: 0
A61: Придбання обладнання і предметів довгострокового користування | B61: 3110 | C61: 390 | D61: 0 | E61: 0 | F61: 0 | G61: 0 | H61: 0 | I61: 0 | J61: 0
A62: Капітальне будівництво (придбання) | B62: 3120 | C62: 400 | D62: =SUM(D63:D64) -> 0 | E62: 0 | F62: 0 | G62: 0 | H62: 0 | I62: 0 | J62: 0
A63: Капітальне будівництво (придбання) житла | B63: 3121 | C63: 410 | D63: 0 | E63: 0 | F63: 0 | G63: 0 | H63: 0 | I63: 0 | J63: 0
A64: Капітальне будівництво (придбання) інших об’єктів | B64: 3122 | C64: 420 | D64: 0 | E64: 0 | F64: 0 | G64: 0 | H64: 0 | I64: 0 | J64: 0
A65: Капітальний ремонт | B65: 3130 | C65: 430 | D65: =SUM(D66:D67) -> 0 | E65: 0 | F65: 0 | G65: 0 | H65: 0 | I65: 0 | J65: 0
A66: Капітальний ремонт житлового фонду (приміщень) | B66: 3131 | C66: 440 | D66: 0 | E66: 0 | F66: 0 | G66: 0 | H66: 0 | I66: 0 | J66: 0
A67: Капітальний ремонт інших об’єктів | B67: 3132 | C67: 450 | D67: 0 | E67: 0 | F67: 0 | G67: 0 | H67: 0 | I67: 0 | J67: 0
A68: Реконструкція та реставрація | B68: 3140 | C68: 460 | D68: =SUM(D69:D71) -> 0 | E68: 0 | F68: 0 | G68: 0 | H68: 0 | I68: 0 | J68: 0
A69: Реконструкція житлового фонду (приміщень) | B69: 3141 | C69: 470 | D69: 0 | E69: 0 | F69: 0 | G69: 0 | H69: 0 | I69: 0 | J69: 0
A70: Реконструкція та реставрація інших об’єктів | B70: 3142 | C70: 480 | D70: 0 | E70: 0 | F70: 0 | G70: 0 | H70: 0 | I70: 0 | J70: 0
A71: Реставрація пам’яток культури, історії та архітектури | B71: 3143 | C71: 490 | D71: 0 | E71: 0 | F71: 0 | G71: 0 | H71: 0 | I71: 0 | J71: 0
A72: Створення державних запасів і резервів | B72: 3150 | C72: 500 | D72: 0 | E72: 0 | F72: 0 | G72: 0 | H72: 0 | I72: 0 | J72: 0
A73: Придбання землі та нематеріальних активів | B73: 3160 | C73: 510 | D73: 0 | E73: 0 | F73: 0 | G73: 0 | H73: 0 | I73: 0 | J73: 0
A74: Капітальні трансферти | B74: 3200 | C74: 520 | D74: =SUM(D75:D78) -> 0 | E74: 0 | F74: 0 | G74: 0 | H74: 0 | I74: 0 | J74: 0
A75: Капітальні трансферти підприємствам (установам, організаціям) | B75: 3210 | C75: 530 | D75: 0 | E75: 0 | F75: 0 | G75: 0 | H75: 0 | I75: 0 | J75: 0
A76: Капітальні трансферти органам державного управління інших рівнів | B76: 3220 | C76: 540 | D76: 0 | E76: 0 | F76: 0 | G76: 0 | H76: 0 | I76: 0 | J76: 0
A77: Капітальні трансферти урядам іноземних держав та міжнародним організаціям | B77: 3230 | C77: 550 | D77: 0 | E77: 0 | F77: 0 | G77: 0 | H77: 0 | I77: 0 | J77: 0
A78: Капітальні трансферти населенню | B78: 3240 | C78: 560 | D78: 0 | E78: 0 | F78: 0 | G78: 0 | H78: 0 | I78: 0 | J78: 0
A79: Внутрішнє кредитування | B79: 4100 | C79: 570 | D79: =SUM(D80) -> 0 | E79: 0 | F79: 0 | G79: 0 | H79: 0 | I79: 0 | J79: 0
A80: Надання внутрішніх кредитів | B80: 4110 | C80: 580 | D80: =SUM(D81:D83) -> 0 | E80: 0 | F80: 0 | G80: 0 | H80: 0 | I80: 0 | J80: 0
A81: Надання кредитів органам державного управління інших рівнів | B81: 4111 | C81: 590 | D81: 0 | E81: 0 | F81: 0 | G81: 0 | H81: 0 | I81: 0 | J81: 0
A82: Надання кредитів підприємствам, установам, організаціям | B82: 4112 | C82: 600 | D82: 0 | E82: 0 | F82: 0 | G82: 0 | H82: 0 | I82: 0 | J82: 0
A83: Надання інших внутрішніх кредитів | B83: 4113 | C83: 610 | D83: 0 | E83: 0 | F83: 0 | G83: 0 | H83: 0 | I83: 0 | J83: 0
A84: Зовнішнє кредитування | B84: 4200 | C84: 620 | D84: =D85 -> 0 | E84: 0 | F84: 0 | G84: 0 | H84: 0 | I84: 0 | J84: 0
A85: Надання зовнішніх кредитів | B85: 4210 | C85: 630 | D85: 0 | E85: 0 | F85: 0 | G85: 0 | H85: 0 | I85: 0 | J85: 0
A86: Інші видатки | B86: 5000 | C86: 640 | D86: X | E86: 60000 | F86: X | G86: X | H86: X | I86: X | J86: X
A87: Нерозподілені видатки | B87: 9000 | C87: 650 | D87: 0 | E87: 0 | F87: 0 | G87: 0 | H87: 0 | I87: 0 | J87: 0
C88: 650
A100: 1 Заповнюється розпорядниками бюджетних коштів.
A101: =ЗАПОЛНИТЬ!F30 -> Міський голова | G101: =ЗАПОЛНИТЬ!F26 -> Бондаренко О.А.
D102: (підпис) | G102: (ініціали, прізвище)
A103: =ЗАПОЛНИТЬ!F31 -> Начальник відділу бухгалтерського обліку, планування та звітності | G103: =ЗАПОЛНИТЬ!F28 -> Топчій Н.М.
A104: =ЗАПОЛНИТЬ!C19 -> "10"січня 2018 року | D104: (підпис) | G104: (ініціали, прізвище)

Sheet Ф.2.10
G1: Додаток 1 до Порядку складання бюджетної звітності розпорядниками та одержувачами бюджетних коштів, звітності фондами загальнообов’язкового державного соціального і пенсійного страхування (пункт 1 розділу ІІ)
A4: ЗВІТ
A5: =IF(ЗАПОЛНИТЬ!$F$7=1,CONCATENATE(шапки!A2),CONCATENATE(шапки!A2,шапки!C2)) -> про надходження та використання коштів загального фонду (форма №2д, | G5: =IF(ЗАПОЛНИТЬ!$F$7=1,шапки!C2,шапки!D2) -> №2м) | H5: =IF(ЗАПОЛНИТЬ!$F$7=1,шапки!D2,"") -> 
A6: =CONCATENATE("за ",ЗАПОЛНИТЬ!$B$17," ",ЗАПОЛНИТЬ!$C$17) -> за 2017 р.
J7: коди
A9: Установа | B9: =ЗАПОЛНИТЬ!B3 -> Новгород-Сіверська міська рада | H9: за ЄДРПОУ | J9: =ЗАПОЛНИТЬ!B13 -> 04061978
A10: Територія | B10: =ЗАПОЛНИТЬ!B5 -> 16000 Чернігівська обл.,м.Новгород-Сіверський вул. Губернська, 2 | H10: за КОАТУУ | J10: =ЗАПОЛНИТЬ!B14 -> 7410500000
A11: Організаційно-правова форма господарювання | B11: =ЗАПОЛНИТЬ!D15 -> Орган місцевого самоврядування | H11: за КОПФГ | J11: =ЗАПОЛНИТЬ!B15 -> 420
A12: Код та назва відомчої класифікації видатків та кредитування державного бюджету | D12: =ЗАПОЛНИТЬ!H9 -> 0 | E12: =IF(D12>0,VLOOKUP(D12,'ДовидникКВК(ГОС)'!A:B,2,FALSE),"") -> 
A13: Код та назва програмної класифікації видатків та кредитування державного бюджету | E13: =IF(D13>0,VLOOKUP(D13,ДовидникКПК!B:C,2,FALSE),"") -> 
A14: Код та назва типової відомчої класифікації видатків та кредитування місцевих бюджетів | D14: =ЗАПОЛНИТЬ!H10 -> 01 | E14: =ЗАПОЛНИТЬ!I10 -> рада
A15: Код та назва програмної класифікації видатків та кредитування місцевих бюджетів (код та назва Типової програмної класифікації видатків та кредитування місцевих бюджетів / Тимчасової класифікації видатків та кредитування для бюджетів місцевого самоврядування, які не застосовують програмно-цільового методу) | D15: 118600 | E15: =VLOOKUP(RIGHT(D15,4),КПКВМБ!A:B,2,FALSE) -> Інші видатки
A16: Періодичність: квартальна, річна
A17: Одиниця виміру: грн, коп.
A19: Показники | B19: КЕКВ та/або ККК | C19: Код рядка | D19: Затверджено на звітний рік | E19: Затверджено на звітний період (рік)1 | F19: Залишок на початок звітного року | G19: Надійшло коштів за звітний період (рік) | H19: Касові за звітний період (рік) | I19: Фактичні за звітний період (рік) | J19: Залишок на кінець звітного періоду (року)
A22: 1 | B22: 2 | C22: 3 | D22: 4 | E22: 5 | F22: 6 | G22: 7 | H22: 8 | I22: 9 | J22: 9
A23: Видатки та надання кредитів - усього | B23: Х | C23: 010 | D23: =D24+D59+D79+D84+D87 -> 62200 | E23: =E26+E29+E32+E33+E37+E45+E46+E86+E54 -> 62200 | F23: =F24+F59+F79+F84+F87 -> 0 | G23: =G24+G59+G79+G84+G87 -> 55654.87 | H23: =H24+H59+H79+H84+H87 -> 55654.87 | I23: =I24+I59+I79+I84+I87 -> 0 | J23: =F23+G23-H23 -> 0
A24: у тому числі: Поточні видатки | B24: 2000 | C24: 020 | D24: =D25+D30+D47+D50+D54+D58 -> 62200 | E24: 0 | F24: 0 | G24: 55654.87 | H24: 55654.87 | I24: 0 | J24: =F24+G24-H24 -> 0
A25: Оплата праці і нарахування на заробітну плату | B25: 2100 | C25: 030 | D25: =D26+D29 -> 0 | E25: 0 | F25: =F26+F29 -> 0 | G25: =G26+G29 -> 0 | H25: =H26+H29 -> 0 | I25: =I26+I29 -> 0 | J25: 0
A26: Оплата праці | B26: 2110 | C26: 040 | D26: =SUM(D27:D28) -> 0 | E26: 0 | F26: 0 | G26: 0 | H26: 0 | I26: 0 | J26: 0
A27: Заробітна плата | B27: 2111 | C27: 050 | D27: 0 | E27: 0 | F27: 0 | G27: 0 | H27: 0 | I27: 0 | J27: 0
A28: Грошове забезпечення військовослужбовців | B28: 2112 | C28: 060 | D28: 0 | E28: 0 | F28: 0 | G28: 0 | H28: 0 | I28: 0 | J28: 0
A29: Нарахування на оплату праці | B29: 2120 | C29: 070 | D29: 0 | E29: 0 | F29: 0 | G29: 0 | H29: 0 | I29: 0 | J29: 0
A30: Використання товарів і послуг | B30: 2200 | C30: 080 | D30: =SUM(D31:D37)+D44 -> 55200 | E30: 0 | F30: =SUM(F31:F37)+F44 -> 0 | G30: =SUM(G31:G37)+G44 -> 48828.87 | H30: =SUM(H31:H37)+H44 -> 48828.87 | I30: =SUM(I31:I37)+I44 -> 0 | J30: 0
A31: Предмети, матеріали, обладнання та інвентар | B31: 2210 | C31: 090 | D31: 30410 | E31: 0 | F31: 0 | G31: 24419.12 | H31: 24419.12 | I31: 0 | J31: 0
A32: Медикаменти та перев’язувальні матеріали | B32: 2220 | C32: 100 | D32: 0 | E32: 0 | F32: 0 | G32: 0 | H32: 0 | I32: 0 | J32: 0
A33: Продукти харчування | B33: 2230 | C33: 110 | D33: 0 | E33: 0 | F33: 0 | G33: 0 | H33: 0 | I33: 0 | J33: 0
A34: Оплата послуг (крім комунальних) | B34: 2240 | C34: 120 | D34: 24790 | E34: 0 | F34: 0 | G34: 24409.75 | H34: 24409.75 | I34: 0 | J34: 0
A35: Видатки на відрядження | B35: 2250 | C35: 130 | D35: 0 | E35: 0 | F35: 0 | G35: 0 | H35: 0 | I35: 0 | J35: 0
A36: Видатки та заходи спеціального призначення | B36: 2260 | C36: 140 | D36: 0 | E36: 0 | F36: 0 | G36: 0 | H36: 0 | I36: 0 | J36: 0
A37: Оплата комунальних послуг та енергоносіїв | B37: 2270 | C37: 150 | D37: =SUM(D38:D43) -> 0 | E37: 0 | F37: =SUM(F38:F43) -> 0 | G37: =SUM(G38:G43) -> 0 | H37: =SUM(H38:H43) -> 0 | I37: =SUM(I38:I43) -> 0 | J37: =F37+G37-H37 -> 0
A38: Оплата теплопостачання | B38: 2271 | C38: 160 | D38: 0 | E38: 0 | F38: 0 | G38: 0 | H38: 0 | I38: 0 | J38: 0
A39: Оплата водопостачання та водовідведення | B39: 2272 | C39: 170 | D39: 0 | E39: 0 | F39: 0 | G39: 0 | H39: 0 | I39: 0 | J39: 0
A40: Оплата електроенергії | B40: 2273 | C40: 180 | D40: 0 | E40: 0 | F40: 0 | G40: 0 | H40: 0 | I40: 0 | J40: 0
A41: Оплата природного газу | B41: 2274 | C41: 190 | D41: 0 | E41: 0 | F41: 0 | G41: 0 | H41: 0 | I41: 0 | J41: 0
A42: Оплата інших енергоносіїв | B42: 2275 | C42: 200 | D42: 0 | E42: 0 | F42: 0 | G42: 0 | H42: 0 | I42: 0 | J42: 0
A43: Оплата енергосервісу | B43: 2276 | C43: 210 | D43: 0 | E43: 0 | F43: 0 | G43: 0 | H43: 0 | I43: 0 | J43: =F43+G43-H43 -> 0
A44: Дослідження і розробки, окремі заходи по реалізації державних (регіональних) програм | B44: 2280 | C44: 220 | D44: =SUM(D45:D46) -> 0 | E44: 0 | F44: =SUM(F45:F46) -> 0 | G44: =SUM(G45:G46) -> 0 | H44: =SUM(H45:H46) -> 0 | I44: =SUM(I45:I46) -> 0 | J44: 0
A45: Дослідження і розробки, окремі заходи розвитку по реалізації державних (регіональних) програм | B45: 2281 | C45: 230 | D45: 0 | E45: 0 | F45: 0 | G45: 0 | H45: 0 | I45: 0 | J45: 0
A46: Окремі заходи по реалізації державних (регіональних) програм, не віднесені до заходів розвитку | B46: 2282 | C46: 240 | D46: 0 | E46: 0 | F46: 0 | G46: 0 | H46: 0 | I46: 0 | J46: 0
A47: Обслуговування боргових зобов’язань | B47: 2400 | C47: 250 | D47: =SUM(D48:D49) -> 0 | E47: 0 | F47: 0 | G47: 0 | H47: 0 | I47: 0 | J47: 0
A48: Обслуговування внутрішніх боргових зобов’язань | B48: 2410 | C48: 260 | D48: 0 | E48: 0 | F48: 0 | G48: 0 | H48: 0 | I48: 0 | J48: 0
A49: Обслуговування зовнішніх боргових зобов’язань | B49: 2420 | C49: 270 | D49: 0 | E49: 0 | F49: 0 | G49: 0 | H49: 0 | I49: 0 | J49: 0
A50: Поточні трансферти | B50: 2600 | C50: 280 | D50: =SUM(D51:D53) -> 0 | E50: 0 | F50: 0 | G50: 0 | H50: 0 | I50: 0 | J50: 0
A51: Субсидії та поточні трансферти підприємствам (установам, організаціям) | B51: 2610 | C51: 290 | D51: 0 | E51: 0 | F51: 0 | G51: 0 | H51: 0 | I51: 0 | J51: 0
A52: Поточні трансферти органам державного управління інших рівнів | B52: 2620 | C52: 300 | D52: 0 | E52: 0 | F52: 0 | G52: 0 | H52: 0 | I52: 0 | J52: 0
A53: Поточні трансферти урядам іноземних держав та міжнародним організаціям | B53: 2630 | C53: 310 | D53: 0 | E53: 0 | F53: 0 | G53: 0 | H53: 0 | I53: 0 | J53: 0
A54: Соціальне забезпечення | B54: 2700 | C54: 320 | D54: =SUM(D55:D57) -> 0 | E54: 0 | F54: 0 | G54: 0 | H54: 0 | I54: 0 | J54: 0
A55: Виплата пенсій і допомоги | B55: 2710 | C55: 330 | D55: 0 | E55: 0 | F55: 0 | G55: 0 | H55: 0 | I55: 0 | J55: 0
A56: Стипендії | B56: 2720 | C56: 340 | D56: 0 | E56: 0 | F56: 0 | G56: 0 | H56: 0 | I56: 0 | J56: 0
A57: Інші виплати населенню | B57: 2730 | C57: 350 | D57: 0 | E57: 0 | F57: 0 | G57: 0 | H57: 0 | I57: 0 | J57: 0
A58: Інші поточні видатки | B58: 2800 | C58: 360 | D58: 7000 | E58: 0 | F58: 0 | G58: 6826 | H58: 6826 | I58: 0 | J58: 0
A59: Капітальні видатки | B59: 3000 | C59: 370 | D59: =D60+D74 -> 0 | E59: 0 | F59: 0 | G59: 0 | H59: 0 | I59: 0 | J59: 0
A60: Придбання основного капіталу | B60: 3100 | C60: 380 | D60: =D61+D62+D65+D68+D72+D73 -> 0 | E60: 0 | F60: 0 | G60: 0 | H60: 0 | I60: 0 | J60: 0
A61: Придбання обладнання і предметів довгострокового користування | B61: 3110 | C61: 390 | D61: 0 | E61: 0 | F61: 0 | G61: 0 | H61: 0 | I61: 0 | J61: 0
A62: Капітальне будівництво (придбання) | B62: 3120 | C62: 400 | D62: =SUM(D63:D64) -> 0 | E62: 0 | F62: 0 | G62: 0 | H62: 0 | I62: 0 | J62: 0
A63: Капітальне будівництво (придбання) житла | B63: 3121 | C63: 410 | D63: 0 | E63: 0 | F63: 0 | G63: 0 | H63: 0 | I63: 0 | J63: 0
A64: Капітальне будівництво (придбання) інших об’єктів | B64: 3122 | C64: 420 | D64: 0 | E64: 0 | F64: 0 | G64: 0 | H64: 0 | I64: 0 | J64: 0
A65: Капітальний ремонт | B65: 3130 | C65: 430 | D65: =SUM(D66:D67) -> 0 | E65: 0 | F65: 0 | G65: 0 | H65: 0 | I65: 0 | J65: 0
A66: Капітальний ремонт житлового фонду (приміщень) | B66: 3131 | C66: 440 | D66: 0 | E66: 0 | F66: 0 | G66: 0 | H66: 0 | I66: 0 | J66: 0
A67: Капітальний ремонт інших об’єктів | B67: 3132 | C67: 450 | D67: 0 | E67: 0 | F67: 0 | G67: 0 | H67: 0 | I67: 0 | J67: 0
A68: Реконструкція та реставрація | B68: 3140 | C68: 460 | D68: =SUM(D69:D71) -> 0 | E68: 0 | F68: 0 | G68: 0 | H68: 0 | I68: 0 | J68: 0
A69: Реконструкція житлового фонду (приміщень) | B69: 3141 | C69: 470 | D69: 0 | E69: 0 | F69: 0 | G69: 0 | H69: 0 | I69: 0 | J69: 0
A70: Реконструкція та реставрація інших об’єктів | B70: 3142 | C70: 480 | D70: 0 | E70: 0 | F70: 0 | G70: 0 | H70: 0 | I70: 0 | J70: 0
A71: Реставрація пам’яток культури, історії та архітектури | B71: 3143 | C71: 490 | D71: 0 | E71: 0 | F71: 0 | G71: 0 | H71: 0 | I71: 0 | J71: 0
A72: Створення державних запасів і резервів | B72: 3150 | C72: 500 | D72: 0 | E72: 0 | F72: 0 | G72: 0 | H72: 0 | I72: 0 | J72: 0
A73: Придбання землі та нематеріальних активів | B73: 3160 | C73: 510 | D73: 0 | E73: 0 | F73: 0 | G73: 0 | H73: 0 | I73: 0 | J73: 0
A74: Капітальні трансферти | B74: 3200 | C74: 520 | D74: =SUM(D75:D78) -> 0 | E74: 0 | F74: 0 | G74: 0 | H74: 0 | I74: 0 | J74: 0
A75: Капітальні трансферти підприємствам (установам, організаціям) | B75: 3210 | C75: 530 | D75: 0 | E75: 0 | F75: 0 | G75: 0 | H75: 0 | I75: 0 | J75: 0
A76: Капітальні трансферти органам державного управління інших рівнів | B76: 3220 | C76: 540 | D76: 0 | E76: 0 | F76: 0 | G76: 0 | H76: 0 | I76: 0 | J76: 0
A77: Капітальні трансферти урядам іноземних держав та міжнародним організаціям | B77: 3230 | C77: 550 | D77: 0 | E77: 0 | F77: 0 | G77: 0 | H77: 0 | I77: 0 | J77: 0
A78: Капітальні трансферти населенню | B78: 3240 | C78: 560 | D78: 0 | E78: 0 | F78: 0 | G78: 0 | H78: 0 | I78: 0 | J78: 0
A79: Внутрішнє кредитування | B79: 4100 | C79: 570 | D79: =SUM(D80) -> 0 | E79: 0 | F79: 0 | G79: 0 | H79: 0 | I79: 0 | J79: 0
A80: Надання внутрішніх кредитів | B80: 4110 | C80: 580 | D80: =SUM(D81:D83) -> 0 | E80: 0 | F80: 0 | G80: 0 | H80: 0 | I80: 0 | J80: 0
A81: Надання кредитів органам державного управління інших рівнів | B81: 4111 | C81: 590 | D81: 0 | E81: 0 | F81: 0 | G81: 0 | H81: 0 | I81: 0 | J81: 0
A82: Надання кредитів підприємствам, установам, організаціям | B82: 4112 | C82: 600 | D82: 0 | E82: 0 | F82: 0 | G82: 0 | H82: 0 | I82: 0 | J82: 0
A83: Надання інших внутрішніх кредитів | B83: 4113 | C83: 610 | D83: 0 | E83: 0 | F83: 0 | G83: 0 | H83: 0 | I83: 0 | J83: 0
A84: Зовнішнє кредитування | B84: 4200 | C84: 620 | D84: =D85 -> 0 | E84: 0 | F84: 0 | G84: 0 | H84: 0 | I84: 0 | J84: 0
A85: Надання зовнішніх кредитів | B85: 4210 | C85: 630 | D85: 0 | E85: 0 | F85: 0 | G85: 0 | H85: 0 | I85: 0 | J85: 0
A86: Інші видатки | B86: 5000 | C86: 640 | D86: X | E86: 62200 | F86: X | G86: X | H86: X | I86: X | J86: X
A87: Нерозподілені видатки | B87: 9000 | C87: 650 | D87: 0 | E87: 0 | F87: 0 | G87: 0 | H87: 0 | I87: 0 | J87: 0
C88: 650
A100: 1 Заповнюється розпорядниками бюджетних коштів.
A101: =ЗАПОЛНИТЬ!F30 -> Міський голова | G101: =ЗАПОЛНИТЬ!F26 -> Бондаренко О.А.
D102: (підпис) | G102: (ініціали, прізвище)
A103: =ЗАПОЛНИТЬ!F31 -> Начальник відділу бухгалтерського обліку, планування та звітності | G103: =ЗАПОЛНИТЬ!F28 -> Топчій Н.М.
A104: =ЗАПОЛНИТЬ!C19 -> "10"січня 2018 року | D104: (підпис) | G104: (ініціали, прізвище)

Sheet Ф.2.11 (hidden)
G1: Додаток 1 до Порядку складання бюджетної звітності розпорядниками та одержувачами бюджетних коштів, звітності фондами загальнообов’язкового державного соціального і пенсійного страхування (пункт 1 розділу ІІ)
A4: ЗВІТ
A5: =IF(ЗАПОЛНИТЬ!$F$7=1,CONCATENATE(шапки!A2),CONCATENATE(шапки!A2,шапки!C2)) -> про надходження та використання коштів загального фонду (форма №2д, | G5: =IF(ЗАПОЛНИТЬ!$F$7=1,шапки!C2,шапки!D2) -> №2м) | H5: =IF(ЗАПОЛНИТЬ!$F$7=1,шапки!D2,"") -> 
A6: =CONCATENATE("за ",ЗАПОЛНИТЬ!$B$17," ",ЗАПОЛНИТЬ!$C$17) -> за 2017 р.
J7: коди
A9: Установа | B9: =ЗАПОЛНИТЬ!B3 -> Новгород-Сіверська міська рада | H9: за ЄДРПОУ | J9: =ЗАПОЛНИТЬ!B13 -> 04061978
A10: Територія | B10: =ЗАПОЛНИТЬ!B5 -> 16000 Чернігівська обл.,м.Новгород-Сіверський вул. Губернська, 2 | H10: за КОАТУУ | J10: =ЗАПОЛНИТЬ!B14 -> 7410500000
A11: Організаційно-правова форма господарювання | B11: =ЗАПОЛНИТЬ!D15 -> Орган місцевого самоврядування | H11: за КОПФГ | J11: =ЗАПОЛНИТЬ!B15 -> 420
A12: Код та назва відомчої класифікації видатків та кредитування державного бюджету | D12: =ЗАПОЛНИТЬ!H9 -> 0 | E12: =IF(D12>0,VLOOKUP(D12,'ДовидникКВК(ГОС)'!A:B,2,FALSE),"") -> 
A13: Код та назва програмної класифікації видатків та кредитування державного бюджету | E13: =IF(D13>0,VLOOKUP(D13,ДовидникКПК!B:C,2,FALSE),"") -> 
A14: Код та назва типової відомчої класифікації видатків та кредитування місцевих бюджетів | D14: =ЗАПОЛНИТЬ!H10 -> 01 | E14: =ЗАПОЛНИТЬ!I10 -> рада
A15: Код та назва програмної класифікації видатків та кредитування місцевих бюджетів (код та назва Типової програмної класифікації видатків та кредитування місцевих бюджетів / Тимчасової класифікації видатків та кредитування для бюджетів місцевого самоврядування, які не застосовують програмно-цільового методу) | D15: - | E15: =VLOOKUP(RIGHT(D15,4),КПКВМБ!A:B,2,FALSE) -> -
A16: Періодичність: квартальна, річна
A17: Одиниця виміру: грн, коп.
A19: Показники | B19: КЕКВ та/або ККК | C19: Код рядка | D19: Затверджено на звітний рік | E19: Затверджено на звітний період (рік)1 | F19: Залишок на початок звітного року | G19: Надійшло коштів за звітний період (рік) | H19: Касові за звітний період (рік) | I19: Фактичні за звітний період (рік) | J19: Залишок на кінець звітного періоду (року)
A22: 1 | B22: 2 | C22: 3 | D22: 4 | E22: 5 | F22: 6 | G22: 7 | H22: 8 | I22: 9 | J22: 9
A23: Видатки та надання кредитів - усього | B23: Х | C23: 010 | D23: =D24+D59+D79+D84+D87 -> 0 | E23: =E26+E29+E32+E33+E37+E45+E46+E86+E54 -> 0 | F23: =F24+F59+F79+F84+F87 -> 0 | G23: =G24+G59+G79+G84+G87 -> 0 | H23: =H24+H59+H79+H84+H87 -> 0 | I23: =I24+I59+I79+I84+I87 -> 0 | J23: =F23+G23-H23 -> 0
A24: у тому числі: Поточні видатки | B24: 2000 | C24: 020 | D24: =D25+D30+D47+D50+D54+D58 -> 0 | E24: 0 | F24: 0 | G24: 0 | H24: 0 | I24: 0 | J24: =F24+G24-H24 -> 0
A25: Оплата праці і нарахування на заробітну плату | B25: 2100 | C25: 030 | D25: =D26+D29 -> 0 | E25: 0 | F25: =F26+F29 -> 0 | G25: =G26+G29 -> 0 | H25: =H26+H29 -> 0 | I25: =I26+I29 -> 0 | J25: 0
A26: Оплата праці | B26: 2110 | C26: 040 | D26: =SUM(D27:D28) -> 0 | E26: 0 | F26: 0 | G26: 0 | H26: 0 | I26: 0 | J26: 0
A27: Заробітна плата | B27: 2111 | C27: 050 | D27: 0 | E27: 0 | F27: 0 | G27: 0 | H27: 0 | I27: 0 | J27: 0
A28: Грошове забезпечення військовослужбовців | B28: 2112 | C28: 060 | D28: 0 | E28: 0 | F28: 0 | G28: 0 | H28: 0 | I28: 0 | J28: 0
A29: Нарахування на оплату праці | B29: 2120 | C29: 070 | D29: 0 | E29: 0 | F29: 0 | G29: 0 | H29: 0 | I29: 0 | J29: 0
A30: Використання товарів і послуг | B30: 2200 | C30: 080 | D30: =SUM(D31:D37)+D44 -> 0 | E30: 0 | F30: =SUM(F31:F37)+F44 -> 0 | G30: =SUM(G31:G37)+G44 -> 0 | H30: =SUM(H31:H37)+H44 -> 0 | I30: =SUM(I31:I37)+I44 -> 0 | J30: 0
A31: Предмети, матеріали, обладнання та інвентар | B31: 2210 | C31: 090 | D31: 0 | E31: 0 | F31: 0 | G31: 0 | H31: 0 | I31: 0 | J31: 0
A32: Медикаменти та перев’язувальні матеріали | B32: 2220 | C32: 100 | D32: 0 | E32: 0 | F32: 0 | G32: 0 | H32: 0 | I32: 0 | J32: 0
A33: Продукти харчування | B33: 2230 | C33: 110 | D33: 0 | E33: 0 | F33: 0 | G33: 0 | H33: 0 | I33: 0 | J33: 0
A34: Оплата послуг (крім комунальних) | B34: 2240 | C34: 120 | D34: 0 | E34: 0 | F34: 0 | G34: 0 | H34: 0 | I34: 0 | J34: 0
A35: Видатки на відрядження | B35: 2250 | C35: 130 | D35: 0 | E35: 0 | F35: 0 | G35: 0 | H35: 0 | I35: 0 | J35: 0
A36: Видатки та заходи спеціального призначення | B36: 2260 | C36: 140 | D36: 0 | E36: 0 | F36: 0 | G36: 0 | H36: 0 | I36: 0 | J36: 0
A37: Оплата комунальних послуг та енергоносіїв | B37: 2270 | C37: 150 | D37: =SUM(D38:D43) -> 0 | E37: 0 | F37: =SUM(F38:F43) -> 0 | G37: =SUM(G38:G43) -> 0 | H37: =SUM(H38:H43) -> 0 | I37: =SUM(I38:I43) -> 0 | J37: =F37+G37-H37 -> 0
A38: Оплата теплопостачання | B38: 2271 | C38: 160 | D38: 0 | E38: 0 | F38: 0 | G38: 0 | H38: 0 | I38: 0 | J38: 0
A39: Оплата водопостачання та водовідведення | B39: 2272 | C39: 170 | D39: 0 | E39: 0 | F39: 0 | G39: 0 | H39: 0 | I39: 0 | J39: 0
A40: Оплата електроенергії | B40: 2273 | C40: 180 | D40: 0 | E40: 0 | F40: 0 | G40: 0 | H40: 0 | I40: 0 | J40: 0
A41: Оплата природного газу | B41: 2274 | C41: 190 | D41: 0 | E41: 0 | F41: 0 | G41: 0 | H41: 0 | I41: 0 | J41: 0
A42: Оплата інших енергоносіїв | B42: 2275 | C42: 200 | D42: 0 | E42: 0 | F42: 0 | G42: 0 | H42: 0 | I42: 0 | J42: 0
A43: Оплата енергосервісу | B43: 2276 | C43: 210 | D43: 0 | E43: 0 | F43: 0 | G43: 0 | H43: 0 | I43: 0 | J43: =F43+G43-H43 -> 0
A44: Дослідження і розробки, окремі заходи по реалізації державних (регіональних) програм | B44: 2280 | C44: 220 | D44: =SUM(D45:D46) -> 0 | E44: 0 | F44: =SUM(F45:F46) -> 0 | G44: =SUM(G45:G46) -> 0 | H44: =SUM(H45:H46) -> 0 | I44: =SUM(I45:I46) -> 0 | J44: 0
A45: Дослідження і розробки, окремі заходи розвитку по реалізації державних (регіональних) програм | B45: 2281 | C45: 230 | D45: 0 | E45: 0 | F45: 0 | G45: 0 | H45: 0 | I45: 0 | J45: 0
A46: Окремі заходи по реалізації державних (регіональних) програм, не віднесені до заходів розвитку | B46: 2282 | C46: 240 | D46: 0 | E46: 0 | F46: 0 | G46: 0 | H46: 0 | I46: 0 | J46: 0
A47: Обслуговування боргових зобов’язань | B47: 2400 | C47: 250 | D47: =SUM(D48:D49) -> 0 | E47: 0 | F47: 0 | G47: 0 | H47: 0 | I47: 0 | J47: 0
A48: Обслуговування внутрішніх боргових зобов’язань | B48: 2410 | C48: 260 | D48: 0 | E48: 0 | F48: 0 | G48: 0 | H48: 0 | I48: 0 | J48: 0
A49: Обслуговування зовнішніх боргових зобов’язань | B49: 2420 | C49: 270 | D49: 0 | E49: 0 | F49: 0 | G49: 0 | H49: 0 | I49: 0 | J49: 0
A50: Поточні трансферти | B50: 2600 | C50: 280 | D50: =SUM(D51:D53) -> 0 | E50: 0 | F50: 0 | G50: 0 | H50: 0 | I50: 0 | J50: 0
A51: Субсидії та поточні трансферти підприємствам (установам, організаціям) | B51: 2610 | C51: 290 | D51: 0 | E51: 0 | F51: 0 | G51: 0 | H51: 0 | I51: 0 | J51: 0
A52: Поточні трансферти органам державного управління інших рівнів | B52: 2620 | C52: 300 | D52: 0 | E52: 0 | F52: 0 | G52: 0 | H52: 0 | I52: 0 | J52: 0
A53: Поточні трансферти урядам іноземних держав та міжнародним організаціям | B53: 2630 | C53: 310 | D53: 0 | E53: 0 | F53: 0 | G53: 0 | H53: 0 | I53: 0 | J53: 0
A54: Соціальне забезпечення | B54: 2700 | C54: 320 | D54: =SUM(D55:D57) -> 0 | E54: 0 | F54: 0 | G54: 0 | H54: 0 | I54: 0 | J54: 0
A55: Виплата пенсій і допомоги | B55: 2710 | C55: 330 | D55: 0 | E55: 0 | F55: 0 | G55: 0 | H55: 0 | I55: 0 | J55: 0
A56: Стипендії | B56: 2720 | C56: 340 | D56: 0 | E56: 0 | F56: 0 | G56: 0 | H56: 0 | I56: 0 | J56: 0
A57: Інші виплати населенню | B57: 2730 | C57: 350 | D57: 0 | E57: 0 | F57: 0 | G57: 0 | H57: 0 | I57: 0 | J57: 0
A58: Інші поточні видатки | B58: 2800 | C58: 360 | D58: 0 | E58: 0 | F58: 0 | G58: 0 | H58: 0 | I58: 0 | J58: 0
A59: Капітальні видатки | B59: 3000 | C59: 370 | D59: =D60+D74 -> 0 | E59: 0 | F59: 0 | G59: 0 | H59: 0 | I59: 0 | J59: 0
A60: Придбання основного капіталу | B60: 3100 | C60: 380 | D60: =D61+D62+D65+D68+D72+D73 -> 0 | E60: 0 | F60: 0 | G60: 0 | H60: 0 | I60: 0 | J60: 0
A61: Придбання обладнання і предметів довгострокового користування | B61: 3110 | C61: 390 | D61: 0 | E61: 0 | F61: 0 | G61: 0 | H61: 0 | I61: 0 | J61: 0
A62: Капітальне будівництво (придбання) | B62: 3120 | C62: 400 | D62: =SUM(D63:D64) -> 0 | E62: 0 | F62: 0 | G62: 0 | H62: 0 | I62: 0 | J62: 0
A63: Капітальне будівництво (придбання) житла | B63: 3121 | C63: 410 | D63: 0 | E63: 0 | F63: 0 | G63: 0 | H63: 0 | I63: 0 | J63: 0
A64: Капітальне будівництво (придбання) інших об’єктів | B64: 3122 | C64: 420 | D64: 0 | E64: 0 | F64: 0 | G64: 0 | H64: 0 | I64: 0 | J64: 0
A65: Капітальний ремонт | B65: 3130 | C65: 430 | D65: =SUM(D66:D67) -> 0 | E65: 0 | F65: 0 | G65: 0 | H65: 0 | I65: 0 | J65: 0
A66: Капітальний ремонт житлового фонду (приміщень) | B66: 3131 | C66: 440 | D66: 0 | E66: 0 | F66: 0 | G66: 0 | H66: 0 | I66: 0 | J66: 0
A67: Капітальний ремонт інших об’єктів | B67: 3132 | C67: 450 | D67: 0 | E67: 0 | F67: 0 | G67: 0 | H67: 0 | I67: 0 | J67: 0
A68: Реконструкція та реставрація | B68: 3140 | C68: 460 | D68: =SUM(D69:D71) -> 0 | E68: 0 | F68: 0 | G68: 0 | H68: 0 | I68: 0 | J68: 0
A69: Реконструкція житлового фонду (приміщень) | B69: 3141 | C69: 470 | D69: 0 | E69: 0 | F69: 0 | G69: 0 | H69: 0 | I69: 0 | J69: 0
A70: Реконструкція та реставрація інших об’єктів | B70: 3142 | C70: 480 | D70: 0 | E70: 0 | F70: 0 | G70: 0 | H70: 0 | I70: 0 | J70: 0
A71: Реставрація пам’яток культури, історії та архітектури | B71: 3143 | C71: 490 | D71: 0 | E71: 0 | F71: 0 | G71: 0 | H71: 0 | I71: 0 | J71: 0
A72: Створення державних запасів і резервів | B72: 3150 | C72: 500 | D72: 0 | E72: 0 | F72: 0 | G72: 0 | H72: 0 | I72: 0 | J72: 0
A73: Придбання землі та нематеріальних активів | B73: 3160 | C73: 510 | D73: 0 | E73: 0 | F73: 0 | G73: 0 | H73: 0 | I73: 0 | J73: 0
A74: Капітальні трансферти | B74: 3200 | C74: 520 | D74: =SUM(D75:D78) -> 0 | E74: 0 | F74: 0 | G74: 0 | H74: 0 | I74: 0 | J74: 0
A75: Капітальні трансферти підприємствам (установам, організаціям) | B75: 3210 | C75: 530 | D75: 0 | E75: 0 | F75: 0 | G75: 0 | H75: 0 | I75: 0 | J75: 0
A76: Капітальні трансферти органам державного управління інших рівнів | B76: 3220 | C76: 540 | D76: 0 | E76: 0 | F76: 0 | G76: 0 | H76: 0 | I76: 0 | J76: 0
A77: Капітальні трансферти урядам іноземних держав та міжнародним організаціям | B77: 3230 | C77: 550 | D77: 0 | E77: 0 | F77: 0 | G77: 0 | H77: 0 | I77: 0 | J77: 0
A78: Капітальні трансферти населенню | B78: 3240 | C78: 560 | D78: 0 | E78: 0 | F78: 0 | G78: 0 | H78: 0 | I78: 0 | J78: 0
A79: Внутрішнє кредитування | B79: 4100 | C79: 570 | D79: =SUM(D80) -> 0 | E79: 0 | F79: 0 | G79: 0 | H79: 0 | I79: 0 | J79: 0
A80: Надання внутрішніх кредитів | B80: 4110 | C80: 580 | D80: =SUM(D81:D83) -> 0 | E80: 0 | F80: 0 | G80: 0 | H80: 0 | I80: 0 | J80: 0
A81: Надання кредитів органам державного управління інших рівнів | B81: 4111 | C81: 590 | D81: 0 | E81: 0 | F81: 0 | G81: 0 | H81: 0 | I81: 0 | J81: 0
A82: Надання кредитів підприємствам, установам, організаціям | B82: 4112 | C82: 600 | D82: 0 | E82: 0 | F82: 0 | G82: 0 | H82: 0 | I82: 0 | J82: 0
A83: Надання інших внутрішніх кредитів | B83: 4113 | C83: 610 | D83: 0 | E83: 0 | F83: 0 | G83: 0 | H83: 0 | I83: 0 | J83: 0
A84: Зовнішнє кредитування | B84: 4200 | C84: 620 | D84: =D85 -> 0 | E84: 0 | F84: 0 | G84: 0 | H84: 0 | I84: 0 | J84: 0
A85: Надання зовнішніх кредитів | B85: 4210 | C85: 630 | D85: 0 | E85: 0 | F85: 0 | G85: 0 | H85: 0 | I85: 0 | J85: 0
A86: Інші видатки | B86: 5000 | C86: 640 | D86: X | E86: 0 | F86: X | G86: X | H86: X | I86: X | J86: X
A87: Нерозподілені видатки | B87: 9000 | C87: 650 | D87: 0 | E87: 0 | F87: 0 | G87: 0 | H87: 0 | I87: 0 | J87: 0
C88: 650
A100: 1 Заповнюється розпорядниками бюджетних коштів.
A101: =ЗАПОЛНИТЬ!F30 -> Міський голова | G101: =ЗАПОЛНИТЬ!F26 -> Бондаренко О.А.
D102: (підпис) | G102: (ініціали, прізвище)
A103: =ЗАПОЛНИТЬ!F31 -> Начальник відділу бухгалтерського обліку, планування та звітності | G103: =ЗАПОЛНИТЬ!F28 -> Топчій Н.М.
A104: =ЗАПОЛНИТЬ!C19 -> "10"січня 2018 року | D104: (підпис) | G104: (ініціали, прізвище)

Sheet Ф.2.12 (hidden)
G1: Додаток 1 до Порядку складання бюджетної звітності розпорядниками та одержувачами бюджетних коштів, звітності фондами загальнообов’язкового державного соціального і пенсійного страхування (пункт 1 розділу ІІ)
A4: ЗВІТ
A5: =IF(ЗАПОЛНИТЬ!$F$7=1,CONCATENATE(шапки!A2),CONCATENATE(шапки!A2,шапки!C2)) -> про надходження та використання коштів загального фонду (форма №2д, | G5: =IF(ЗАПОЛНИТЬ!$F$7=1,шапки!C2,шапки!D2) -> №2м) | H5: =IF(ЗАПОЛНИТЬ!$F$7=1,шапки!D2,"") -> 
A6: =CONCATENATE("за ",ЗАПОЛНИТЬ!$B$17," ",ЗАПОЛНИТЬ!$C$17) -> за 2017 р.
J7: коди
A9: Установа | B9: =ЗАПОЛНИТЬ!B3 -> Новгород-Сіверська міська рада | H9: за ЄДРПОУ | J9: =ЗАПОЛНИТЬ!B13 -> 04061978
A10: Територія | B10: =ЗАПОЛНИТЬ!B5 -> 16000 Чернігівська обл.,м.Новгород-Сіверський вул. Губернська, 2 | H10: за КОАТУУ | J10: =ЗАПОЛНИТЬ!B14 -> 7410500000
A11: Організаційно-правова форма господарювання | B11: =ЗАПОЛНИТЬ!D15 -> Орган місцевого самоврядування | H11: за КОПФГ | J11: =ЗАПОЛНИТЬ!B15 -> 420
A12: Код та назва відомчої класифікації видатків та кредитування державного бюджету | D12: =ЗАПОЛНИТЬ!H9 -> 0 | E12: =IF(D12>0,VLOOKUP(D12,'ДовидникКВК(ГОС)'!A:B,2,FALSE),"") -> 
A13: Код та назва програмної класифікації видатків та кредитування державного бюджету | E13: =IF(D13>0,VLOOKUP(D13,ДовидникКПК!B:C,2,FALSE),"") -> 
A14: Код та назва типової відомчої класифікації видатків та кредитування місцевих бюджетів | D14: =ЗАПОЛНИТЬ!H10 -> 01 | E14: =ЗАПОЛНИТЬ!I10 -> рада
A15: Код та назва програмної класифікації видатків та кредитування місцевих бюджетів (код та назва Типової програмної класифікації видатків та кредитування місцевих бюджетів / Тимчасової класифікації видатків та кредитування для бюджетів місцевого самоврядування, які не застосовують програмно-цільового методу) | D15: - | E15: =VLOOKUP(RIGHT(D15,4),КПКВМБ!A:B,2,FALSE) -> -
A16: Періодичність: квартальна, річна
A17: Одиниця виміру: грн, коп.
A19: Показники | B19: КЕКВ та/або ККК | C19: Код рядка | D19: Затверджено на звітний рік | E19: Затверджено на звітний період (рік)1 | F19: Залишок на початок звітного року | G19: Надійшло коштів за звітний період (рік) | H19: Касові за звітний період (рік) | I19: Фактичні за звітний період (рік) | J19: Залишок на кінець звітного періоду (року)
A22: 1 | B22: 2 | C22: 3 | D22: 4 | E22: 5 | F22: 6 | G22: 7 | H22: 8 | I22: 9 | J22: 9
A23: Видатки та надання кредитів - усього | B23: Х | C23: 010 | D23: =D24+D59+D79+D84+D87 -> 0 | E23: =E26+E29+E32+E33+E37+E45+E46+E86+E54 -> 0 | F23: =F24+F59+F79+F84+F87 -> 0 | G23: =G24+G59+G79+G84+G87 -> 0 | H23: =H24+H59+H79+H84+H87 -> 0 | I23: =I24+I59+I79+I84+I87 -> 0 | J23: =F23+G23-H23 -> 0
A24: у тому числі: Поточні видатки | B24: 2000 | C24: 020 | D24: =D25+D30+D47+D50+D54+D58 -> 0 | E24: 0 | F24: 0 | G24: 0 | H24: 0 | I24: 0 | J24: =F24+G24-H24 -> 0
A25: Оплата праці і нарахування на заробітну плату | B25: 2100 | C25: 030 | D25: =D26+D29 -> 0 | E25: 0 | F25: =F26+F29 -> 0 | G25: =G26+G29 -> 0 | H25: =H26+H29 -> 0 | I25: =I26+I29 -> 0 | J25: 0
A26: Оплата праці | B26: 2110 | C26: 040 | D26: =SUM(D27:D28) -> 0 | E26: 0 | F26: 0 | G26: 0 | H26: 0 | I26: 0 | J26: 0
A27: Заробітна плата | B27: 2111 | C27: 050 | D27: 0 | E27: 0 | F27: 0 | G27: 0 | H27: 0 | I27: 0 | J27: 0
A28: Грошове забезпечення військовослужбовців | B28: 2112 | C28: 060 | D28: 0 | E28: 0 | F28: 0 | G28: 0 | H28: 0 | I28: 0 | J28: 0
A29: Нарахування на оплату праці | B29: 2120 | C29: 070 | D29: 0 | E29: 0 | F29: 0 | G29: 0 | H29: 0 | I29: 0 | J29: 0
A30: Використання товарів і послуг | B30: 2200 | C30: 080 | D30: =SUM(D31:D37)+D44 -> 0 | E30: 0 | F30: =SUM(F31:F37)+F44 -> 0 | G30: =SUM(G31:G37)+G44 -> 0 | H30: =SUM(H31:H37)+H44 -> 0 | I30: =SUM(I31:I37)+I44 -> 0 | J30: 0
A31: Предмети, матеріали, обладнання та інвентар | B31: 2210 | C31: 090 | D31: 0 | E31: 0 | F31: 0 | G31: 0 | H31: 0 | I31: 0 | J31: 0
A32: Медикаменти та перев’язувальні матеріали | B32: 2220 | C32: 100 | D32: 0 | E32: 0 | F32: 0 | G32: 0 | H32: 0 | I32: 0 | J32: 0
A33: Продукти харчування | B33: 2230 | C33: 110 | D33: 0 | E33: 0 | F33: 0 | G33: 0 | H33: 0 | I33: 0 | J33: 0
A34: Оплата послуг (крім комунальних) | B34: 2240 | C34: 120 | D34: 0 | E34: 0 | F34: 0 | G34: 0 | H34: 0 | I34: 0 | J34: 0
A35: Видатки на відрядження | B35: 2250 | C35: 130 | D35: 0 | E35: 0 | F35: 0 | G35: 0 | H35: 0 | I35: 0 | J35: 0
A36: Видатки та заходи спеціального призначення | B36: 2260 | C36: 140 | D36: 0 | E36: 0 | F36: 0 | G36: 0 | H36: 0 | I36: 0 | J36: 0
A37: Оплата комунальних послуг та енергоносіїв | B37: 2270 | C37: 150 | D37: =SUM(D38:D43) -> 0 | E37: 0 | F37: =SUM(F38:F43) -> 0 | G37: =SUM(G38:G43) -> 0 | H37: =SUM(H38:H43) -> 0 | I37: =SUM(I38:I43) -> 0 | J37: =F37+G37-H37 -> 0
A38: Оплата теплопостачання | B38: 2271 | C38: 160 | D38: 0 | E38: 0 | F38: 0 | G38: 0 | H38: 0 | I38: 0 | J38: 0
A39: Оплата водопостачання та водовідведення | B39: 2272 | C39: 170 | D39: 0 | E39: 0 | F39: 0 | G39: 0 | H39: 0 | I39: 0 | J39: 0
A40: Оплата електроенергії | B40: 2273 | C40: 180 | D40: 0 | E40: 0 | F40: 0 | G40: 0 | H40: 0 | I40: 0 | J40: 0
A41: Оплата природного газу | B41: 2274 | C41: 190 | D41: 0 | E41: 0 | F41: 0 | G41: 0 | H41: 0 | I41: 0 | J41: 0
A42: Оплата інших енергоносіїв | B42: 2275 | C42: 200 | D42: 0 | E42: 0 | F42: 0 | G42: 0 | H42: 0 | I42: 0 | J42: 0
A43: Оплата енергосервісу | B43: 2276 | C43: 210 | D43: 0 | E43: 0 | F43: 0 | G43: 0 | H43: 0 | I43: 0 | J43: =F43+G43-H43 -> 0
A44: Дослідження і розробки, окремі заходи по реалізації державних (регіональних) програм | B44: 2280 | C44: 220 | D44: =SUM(D45:D46) -> 0 | E44: 0 | F44: =SUM(F45:F46) -> 0 | G44: =SUM(G45:G46) -> 0 | H44: =SUM(H45:H46) -> 0 | I44: =SUM(I45:I46) -> 0 | J44: 0
A45: Дослідження і розробки, окремі заходи розвитку по реалізації державних (регіональних) програм | B45: 2281 | C45: 230 | D45: 0 | E45: 0 | F45: 0 | G45: 0 | H45: 0 | I45: 0 | J45: 0
A46: Окремі заходи по реалізації державних (регіональних) програм, не віднесені до заходів розвитку | B46: 2282 | C46: 240 | D46: 0 | E46: 0 | F46: 0 | G46: 0 | H46: 0 | I46: 0 | J46: 0
A47: Обслуговування боргових зобов’язань | B47: 2400 | C47: 250 | D47: =SUM(D48:D49) -> 0 | E47: 0 | F47: 0 | G47: 0 | H47: 0 | I47: 0 | J47: 0
A48: Обслуговування внутрішніх боргових зобов’язань | B48: 2410 | C48: 260 | D48: 0 | E48: 0 | F48: 0 | G48: 0 | H48: 0 | I48: 0 | J48: 0
A49: Обслуговування зовнішніх боргових зобов’язань | B49: 2420 | C49: 270 | D49: 0 | E49: 0 | F49: 0 | G49: 0 | H49: 0 | I49: 0 | J49: 0
A50: Поточні трансферти | B50: 2600 | C50: 280 | D50: =SUM(D51:D53) -> 0 | E50: 0 | F50: 0 | G50: 0 | H50: 0 | I50: 0 | J50: 0
A51: Субсидії та поточні трансферти підприємствам (установам, організаціям) | B51: 2610 | C51: 290 | D51: 0 | E51: 0 | F51: 0 | G51: 0 | H51: 0 | I51: 0 | J51: 0
A52: Поточні трансферти органам державного управління інших рівнів | B52: 2620 | C52: 300 | D52: 0 | E52: 0 | F52: 0 | G52: 0 | H52: 0 | I52: 0 | J52: 0
A53: Поточні трансферти урядам іноземних держав та міжнародним організаціям | B53: 2630 | C53: 310 | D53: 0 | E53: 0 | F53: 0 | G53: 0 | H53: 0 | I53: 0 | J53: 0
A54: Соціальне забезпечення | B54: 2700 | C54: 320 | D54: =SUM(D55:D57) -> 0 | E54: 0 | F54: 0 | G54: 0 | H54: 0 | I54: 0 | J54: 0
A55: Виплата пенсій і допомоги | B55: 2710 | C55: 330 | D55: 0 | E55: 0 | F55: 0 | G55: 0 | H55: 0 | I55: 0 | J55: 0
A56: Стипендії | B56: 2720 | C56: 340 | D56: 0 | E56: 0 | F56: 0 | G56: 0 | H56: 0 | I56: 0 | J56: 0
A57: Інші виплати населенню | B57: 2730 | C57: 350 | D57: 0 | E57: 0 | F57: 0 | G57: 0 | H57: 0 | I57: 0 | J57: 0
A58: Інші поточні видатки | B58: 2800 | C58: 360 | D58: 0 | E58: 0 | F58: 0 | G58: 0 | H58: 0 | I58: 0 | J58: 0
A59: Капітальні видатки | B59: 3000 | C59: 370 | D59: =D60+D74 -> 0 | E59: 0 | F59: 0 | G59: 0 | H59: 0 | I59: 0 | J59: 0
A60: Придбання основного капіталу | B60: 3100 | C60: 380 | D60: =D61+D62+D65+D68+D72+D73 -> 0 | E60: 0 | F60: 0 | G60: 0 | H60: 0 | I60: 0 | J60: 0
A61: Придбання обладнання і предметів довгострокового користування | B61: 3110 | C61: 390 | D61: 0 | E61: 0 | F61: 0 | G61: 0 | H61: 0 | I61: 0 | J61: 0
A62: Капітальне будівництво (придбання) | B62: 3120 | C62: 400 | D62: =SUM(D63:D64) -> 0 | E62: 0 | F62: 0 | G62: 0 | H62: 0 | I62: 0 | J62: 0
A63: Капітальне будівництво (придбання) житла | B63: 3121 | C63: 410 | D63: 0 | E63: 0 | F63: 0 | G63: 0 | H63: 0 | I63: 0 | J63: 0
A64: Капітальне будівництво (придбання) інших об’єктів | B64: 3122 | C64: 420 | D64: 0 | E64: 0 | F64: 0 | G64: 0 | H64: 0 | I64: 0 | J64: 0
A65: Капітальний ремонт | B65: 3130 | C65: 430 | D65: =SUM(D66:D67) -> 0 | E65: 0 | F65: 0 | G65: 0 | H65: 0 | I65: 0 | J65: 0
A66: Капітальний ремонт житлового фонду (приміщень) | B66: 3131 | C66: 440 | D66: 0 | E66: 0 | F66: 0 | G66: 0 | H66: 0 | I66: 0 | J66: 0
A67: Капітальний ремонт інших об’єктів | B67: 3132 | C67: 450 | D67: 0 | E67: 0 | F67: 0 | G67: 0 | H67: 0 | I67: 0 | J67: 0
A68: Реконструкція та реставрація | B68: 3140 | C68: 460 | D68: =SUM(D69:D71) -> 0 | E68: 0 | F68: 0 | G68: 0 | H68: 0 | I68: 0 | J68: 0
A69: Реконструкція житлового фонду (приміщень) | B69: 3141 | C69: 470 | D69: 0 | E69: 0 | F69: 0 | G69: 0 | H69: 0 | I69: 0 | J69: 0
A70: Реконструкція та реставрація інших об’єктів | B70: 3142 | C70: 480 | D70: 0 | E70: 0 | F70: 0 | G70: 0 | H70: 0 | I70: 0 | J70: 0
A71: Реставрація пам’яток культури, історії та архітектури | B71: 3143 | C71: 490 | D71: 0 | E71: 0 | F71: 0 | G71: 0 | H71: 0 | I71: 0 | J71: 0
A72: Створення державних запасів і резервів | B72: 3150 | C72: 500 | D72: 0 | E72: 0 | F72: 0 | G72: 0 | H72: 0 | I72: 0 | J72: 0
A73: Придбання землі та нематеріальних активів | B73: 3160 | C73: 510 | D73: 0 | E73: 0 | F73: 0 | G73: 0 | H73: 0 | I73: 0 | J73: 0
A74: Капітальні трансферти | B74: 3200 | C74: 520 | D74: =SUM(D75:D78) -> 0 | E74: 0 | F74: 0 | G74: 0 | H74: 0 | I74: 0 | J74: 0
A75: Капітальні трансферти підприємствам (установам, організаціям) | B75: 3210 | C75: 530 | D75: 0 | E75: 0 | F75: 0 | G75: 0 | H75: 0 | I75: 0 | J75: 0
A76: Капітальні трансферти органам державного управління інших рівнів | B76: 3220 | C76: 540 | D76: 0 | E76: 0 | F76: 0 | G76: 0 | H76: 0 | I76: 0 | J76: 0
A77: Капітальні трансферти урядам іноземних держав та міжнародним організаціям | B77: 3230 | C77: 550 | D77: 0 | E77: 0 | F77: 0 | G77: 0 | H77: 0 | I77: 0 | J77: 0
A78: Капітальні трансферти населенню | B78: 3240 | C78: 560 | D78: 0 | E78: 0 | F78: 0 | G78: 0 | H78: 0 | I78: 0 | J78: 0
A79: Внутрішнє кредитування | B79: 4100 | C79: 570 | D79: =SUM(D80) -> 0 | E79: 0 | F79: 0 | G79: 0 | H79: 0 | I79: 0 | J79: 0
A80: Надання внутрішніх кредитів | B80: 4110 | C80: 580 | D80: =SUM(D81:D83) -> 0 | E80: 0 | F80: 0 | G80: 0 | H80: 0 | I80: 0 | J80: 0
A81: Надання кредитів органам державного управління інших рівнів | B81: 4111 | C81: 590 | D81: 0 | E81: 0 | F81: 0 | G81: 0 | H81: 0 | I81: 0 | J81: 0
A82: Надання кредитів підприємствам, установам, організаціям | B82: 4112 | C82: 600 | D82: 0 | E82: 0 | F82: 0 | G82: 0 | H82: 0 | I82: 0 | J82: 0
A83: Надання інших внутрішніх кредитів | B83: 4113 | C83: 610 | D83: 0 | E83: 0 | F83: 0 | G83: 0 | H83: 0 | I83: 0 | J83: 0
A84: Зовнішнє кредитування | B84: 4200 | C84: 620 | D84: =D85 -> 0 | E84: 0 | F84: 0 | G84: 0 | H84: 0 | I84: 0 | J84: 0
A85: Надання зовнішніх кредитів | B85: 4210 | C85: 630 | D85: 0 | E85: 0 | F85: 0 | G85: 0 | H85: 0 | I85: 0 | J85: 0
A86: Інші видатки | B86: 5000 | C86: 640 | D86: X | E86: 0 | F86: X | G86: X | H86: X | I86: X | J86: X
A87: Нерозподілені видатки | B87: 9000 | C87: 650 | D87: 0 | E87: 0 | F87: 0 | G87: 0 | H87: 0 | I87: 0 | J87: 0
C88: 650
A100: 1 Заповнюється розпорядниками бюджетних коштів.
A101: =ЗАПОЛНИТЬ!F30 -> Міський голова | G101: =ЗАПОЛНИТЬ!F26 -> Бондаренко О.А.
D102: (підпис) | G102: (ініціали, прізвище)
A103: =ЗАПОЛНИТЬ!F31 -> Начальник відділу бухгалтерського обліку, планування та звітності | G103: =ЗАПОЛНИТЬ!F28 -> Топчій Н.М.
A104: =ЗАПОЛНИТЬ!C19 -> "10"січня 2018 року | D104: (підпис) | G104: (ініціали, прізвище)

Sheet Ф.2.13 (hidden)
G1: Додаток 1 до Порядку складання бюджетної звітності розпорядниками та одержувачами бюджетних коштів, звітності фондами загальнообов’язкового державного соціального і пенсійного страхування (пункт 1 розділу ІІ)
A4: ЗВІТ
A5: =IF(ЗАПОЛНИТЬ!$F$7=1,CONCATENATE(шапки!A2),CONCATENATE(шапки!A2,шапки!C2)) -> про надходження та використання коштів загального фонду (форма №2д, | G5: =IF(ЗАПОЛНИТЬ!$F$7=1,шапки!C2,шапки!D2) -> №2м) | H5: =IF(ЗАПОЛНИТЬ!$F$7=1,шапки!D2,"") -> 
A6: =CONCATENATE("за ",ЗАПОЛНИТЬ!$B$17," ",ЗАПОЛНИТЬ!$C$17) -> за 2017 р.
J7: коди
A9: Установа | B9: =ЗАПОЛНИТЬ!B3 -> Новгород-Сіверська міська рада | H9: за ЄДРПОУ | J9: =ЗАПОЛНИТЬ!B13 -> 04061978
A10: Територія | B10: =ЗАПОЛНИТЬ!B5 -> 16000 Чернігівська обл.,м.Новгород-Сіверський вул. Губернська, 2 | H10: за КОАТУУ | J10: =ЗАПОЛНИТЬ!B14 -> 7410500000
A11: Організаційно-правова форма господарювання | B11: =ЗАПОЛНИТЬ!D15 -> Орган місцевого самоврядування | H11: за КОПФГ | J11: =ЗАПОЛНИТЬ!B15 -> 420
A12: Код та назва відомчої класифікації видатків та кредитування державного бюджету | D12: =ЗАПОЛНИТЬ!H9 -> 0 | E12: =IF(D12>0,VLOOKUP(D12,'ДовидникКВК(ГОС)'!A:B,2,FALSE),"") -> 
A13: Код та назва програмної класифікації видатків та кредитування державного бюджету | E13: =IF(D13>0,VLOOKUP(D13,ДовидникКПК!B:C,2,FALSE),"") -> 
A14: Код та назва типової відомчої класифікації видатків та кредитування місцевих бюджетів | D14: =ЗАПОЛНИТЬ!H10 -> 01 | E14: =ЗАПОЛНИТЬ!I10 -> рада
A15: Код та назва програмної класифікації видатків та кредитування місцевих бюджетів (код та назва Типової програмної класифікації видатків та кредитування місцевих бюджетів / Тимчасової класифікації видатків та кредитування для бюджетів місцевого самоврядування, які не застосовують програмно-цільового методу) | D15: - | E15: =VLOOKUP(RIGHT(D15,4),КПКВМБ!A:B,2,FALSE) -> -
A16: Періодичність: квартальна, річна
A17: Одиниця виміру: грн, коп.
A19: Показники | B19: КЕКВ та/або ККК | C19: Код рядка | D19: Затверджено на звітний рік | E19: Затверджено на звітний період (рік)1 | F19: Залишок на початок звітного року | G19: Надійшло коштів за звітний період (рік) | H19: Касові за звітний період (рік) | I19: Фактичні за звітний період (рік) | J19: Залишок на кінець звітного періоду (року)
A22: 1 | B22: 2 | C22: 3 | D22: 4 | E22: 5 | F22: 6 | G22: 7 | H22: 8 | I22: 9 | J22: 9
A23: Видатки та надання кредитів - усього | B23: Х | C23: 010 | D23: =D24+D59+D79+D84+D87 -> 0 | E23: =E26+E29+E32+E33+E37+E45+E46+E86+E54 -> 0 | F23: =F24+F59+F79+F84+F87 -> 0 | G23: =G24+G59+G79+G84+G87 -> 0 | H23: =H24+H59+H79+H84+H87 -> 0 | I23: =I24+I59+I79+I84+I87 -> 0 | J23: =F23+G23-H23 -> 0
A24: у тому числі: Поточні видатки | B24: 2000 | C24: 020 | D24: =D25+D30+D47+D50+D54+D58 -> 0 | E24: 0 | F24: 0 | G24: 0 | H24: 0 | I24: 0 | J24: =F24+G24-H24 -> 0
A25: Оплата праці і нарахування на заробітну плату | B25: 2100 | C25: 030 | D25: =D26+D29 -> 0 | E25: 0 | F25: =F26+F29 -> 0 | G25: =G26+G29 -> 0 | H25: =H26+H29 -> 0 | I25: =I26+I29 -> 0 | J25: 0
A26: Оплата праці | B26: 2110 | C26: 040 | D26: =SUM(D27:D28) -> 0 | E26: 0 | F26: 0 | G26: 0 | H26: 0 | I26: 0 | J26: 0
A27: Заробітна плата | B27: 2111 | C27: 050 | D27: 0 | E27: 0 | F27: 0 | G27: 0 | H27: 0 | I27: 0 | J27: 0
A28: Грошове забезпечення військовослужбовців | B28: 2112 | C28: 060 | D28: 0 | E28: 0 | F28: 0 | G28: 0 | H28: 0 | I28: 0 | J28: 0
A29: Нарахування на оплату праці | B29: 2120 | C29: 070 | D29: 0 | E29: 0 | F29: 0 | G29: 0 | H29: 0 | I29: 0 | J29: 0
A30: Використання товарів і послуг | B30: 2200 | C30: 080 | D30: =SUM(D31:D37)+D44 -> 0 | E30: 0 | F30: =SUM(F31:F37)+F44 -> 0 | G30: =SUM(G31:G37)+G44 -> 0 | H30: =SUM(H31:H37)+H44 -> 0 | I30: =SUM(I31:I37)+I44 -> 0 | J30: 0
A31: Предмети, матеріали, обладнання та інвентар | B31: 2210 | C31: 090 | D31: 0 | E31: 0 | F31: 0 | G31: 0 | H31: 0 | I31: 0 | J31: 0
A32: Медикаменти та перев’язувальні матеріали | B32: 2220 | C32: 100 | D32: 0 | E32: 0 | F32: 0 | G32: 0 | H32: 0 | I32: 0 | J32: 0
A33: Продукти харчування | B33: 2230 | C33: 110 | D33: 0 | E33: 0 | F33: 0 | G33: 0 | H33: 0 | I33: 0 | J33: 0
A34: Оплата послуг (крім комунальних) | B34: 2240 | C34: 120 | D34: 0 | E34: 0 | F34: 0 | G34: 0 | H34: 0 | I34: 0 | J34: 0
A35: Видатки на відрядження | B35: 2250 | C35: 130 | D35: 0 | E35: 0 | F35: 0 | G35: 0 | H35: 0 | I35: 0 | J35: 0
A36: Видатки та заходи спеціального призначення | B36: 2260 | C36: 140 | D36: 0 | E36: 0 | F36: 0 | G36: 0 | H36: 0 | I36: 0 | J36: 0
A37: Оплата комунальних послуг та енергоносіїв | B37: 2270 | C37: 150 | D37: =SUM(D38:D43) -> 0 | E37: 0 | F37: =SUM(F38:F43) -> 0 | G37: =SUM(G38:G43) -> 0 | H37: =SUM(H38:H43) -> 0 | I37: =SUM(I38:I43) -> 0 | J37: =F37+G37-H37 -> 0
A38: Оплата теплопостачання | B38: 2271 | C38: 160 | D38: 0 | E38: 0 | F38: 0 | G38: 0 | H38: 0 | I38: 0 | J38: 0
A39: Оплата водопостачання та водовідведення | B39: 2272 | C39: 170 | D39: 0 | E39: 0 | F39: 0 | G39: 0 | H39: 0 | I39: 0 | J39: 0
A40: Оплата електроенергії | B40: 2273 | C40: 180 | D40: 0 | E40: 0 | F40: 0 | G40: 0 | H40: 0 | I40: 0 | J40: 0
A41: Оплата природного газу | B41: 2274 | C41: 190 | D41: 0 | E41: 0 | F41: 0 | G41: 0 | H41: 0 | I41: 0 | J41: 0
A42: Оплата інших енергоносіїв | B42: 2275 | C42: 200 | D42: 0 | E42: 0 | F42: 0 | G42: 0 | H42: 0 | I42: 0 | J42: 0
A43: Оплата енергосервісу | B43: 2276 | C43: 210 | D43: 0 | E43: 0 | F43: 0 | G43: 0 | H43: 0 | I43: 0 | J43: =F43+G43-H43 -> 0
A44: Дослідження і розробки, окремі заходи по реалізації державних (регіональних) програм | B44: 2280 | C44: 220 | D44: =SUM(D45:D46) -> 0 | E44: 0 | F44: =SUM(F45:F46) -> 0 | G44: =SUM(G45:G46) -> 0 | H44: =SUM(H45:H46) -> 0 | I44: =SUM(I45:I46) -> 0 | J44: 0
A45: Дослідження і розробки, окремі заходи розвитку по реалізації державних (регіональних) програм | B45: 2281 | C45: 230 | D45: 0 | E45: 0 | F45: 0 | G45: 0 | H45: 0 | I45: 0 | J45: 0
A46: Окремі заходи по реалізації державних (регіональних) програм, не віднесені до заходів розвитку | B46: 2282 | C46: 240 | D46: 0 | E46: 0 | F46: 0 | G46: 0 | H46: 0 | I46: 0 | J46: 0
A47: Обслуговування боргових зобов’язань | B47: 2400 | C47: 250 | D47: =SUM(D48:D49) -> 0 | E47: 0 | F47: 0 | G47: 0 | H47: 0 | I47: 0 | J47: 0
A48: Обслуговування внутрішніх боргових зобов’язань | B48: 2410 | C48: 260 | D48: 0 | E48: 0 | F48: 0 | G48: 0 | H48: 0 | I48: 0 | J48: 0
A49: Обслуговування зовнішніх боргових зобов’язань | B49: 2420 | C49: 270 | D49: 0 | E49: 0 | F49: 0 | G49: 0 | H49: 0 | I49: 0 | J49: 0
A50: Поточні трансферти | B50: 2600 | C50: 280 | D50: =SUM(D51:D53) -> 0 | E50: 0 | F50: 0 | G50: 0 | H50: 0 | I50: 0 | J50: 0
A51: Субсидії та поточні трансферти підприємствам (установам, організаціям) | B51: 2610 | C51: 290 | D51: 0 | E51: 0 | F51: 0 | G51: 0 | H51: 0 | I51: 0 | J51: 0
A52: Поточні трансферти органам державного управління інших рівнів | B52: 2620 | C52: 300 | D52: 0 | E52: 0 | F52: 0 | G52: 0 | H52: 0 | I52: 0 | J52: 0
A53: Поточні трансферти урядам іноземних держав та міжнародним організаціям | B53: 2630 | C53: 310 | D53: 0 | E53: 0 | F53: 0 | G53: 0 | H53: 0 | I53: 0 | J53: 0
A54: Соціальне забезпечення | B54: 2700 | C54: 320 | D54: =SUM(D55:D57) -> 0 | E54: 0 | F54: 0 | G54: 0 | H54: 0 | I54: 0 | J54: 0
A55: Виплата пенсій і допомоги | B55: 2710 | C55: 330 | D55: 0 | E55: 0 | F55: 0 | G55: 0 | H55: 0 | I55: 0 | J55: 0
A56: Стипендії | B56: 2720 | C56: 340 | D56: 0 | E56: 0 | F56: 0 | G56: 0 | H56: 0 | I56: 0 | J56: 0
A57: Інші виплати населенню | B57: 2730 | C57: 350 | D57: 0 | E57: 0 | F57: 0 | G57: 0 | H57: 0 | I57: 0 | J57: 0
A58: Інші поточні видатки | B58: 2800 | C58: 360 | D58: 0 | E58: 0 | F58: 0 | G58: 0 | H58: 0 | I58: 0 | J58: 0
A59: Капітальні видатки | B59: 3000 | C59: 370 | D59: =D60+D74 -> 0 | E59: 0 | F59: 0 | G59: 0 | H59: 0 | I59: 0 | J59: 0
A60: Придбання основного капіталу | B60: 3100 | C60: 380 | D60: =D61+D62+D65+D68+D72+D73 -> 0 | E60: 0 | F60: 0 | G60: 0 | H60: 0 | I60: 0 | J60: 0
A61: Придбання обладнання і предметів довгострокового користування | B61: 3110 | C61: 390 | D61: 0 | E61: 0 | F61: 0 | G61: 0 | H61: 0 | I61: 0 | J61: 0
A62: Капітальне будівництво (придбання) | B62: 3120 | C62: 400 | D62: =SUM(D63:D64) -> 0 | E62: 0 | F62: 0 | G62: 0 | H62: 0 | I62: 0 | J62: 0
A63: Капітальне будівництво (придбання) житла | B63: 3121 | C63: 410 | D63: 0 | E63: 0 | F63: 0 | G63: 0 | H63: 0 | I63: 0 | J63: 0
A64: Капітальне будівництво (придбання) інших об’єктів | B64: 3122 | C64: 420 | D64: 0 | E64: 0 | F64: 0 | G64: 0 | H64: 0 | I64: 0 | J64: 0
A65: Капітальний ремонт | B65: 3130 | C65: 430 | D65: =SUM(D66:D67) -> 0 | E65: 0 | F65: 0 | G65: 0 | H65: 0 | I65: 0 | J65: 0
A66: Капітальний ремонт житлового фонду (приміщень) | B66: 3131 | C66: 440 | D66: 0 | E66: 0 | F66: 0 | G66: 0 | H66: 0 | I66: 0 | J66: 0
A67: Капітальний ремонт інших об’єктів | B67: 3132 | C67: 450 | D67: 0 | E67: 0 | F67: 0 | G67: 0 | H67: 0 | I67: 0 | J67: 0
A68: Реконструкція та реставрація | B68: 3140 | C68: 460 | D68: =SUM(D69:D71) -> 0 | E68: 0 | F68: 0 | G68: 0 | H68: 0 | I68: 0 | J68: 0
A69: Реконструкція житлового фонду (приміщень) | B69: 3141 | C69: 470 | D69: 0 | E69: 0 | F69: 0 | G69: 0 | H69: 0 | I69: 0 | J69: 0
A70: Реконструкція та реставрація інших об’єктів | B70: 3142 | C70: 480 | D70: 0 | E70: 0 | F70: 0 | G70: 0 | H70: 0 | I70: 0 | J70: 0
A71: Реставрація пам’яток культури, історії та архітектури | B71: 3143 | C71: 490 | D71: 0 | E71: 0 | F71: 0 | G71: 0 | H71: 0 | I71: 0 | J71: 0
A72: Створення державних запасів і резервів | B72: 3150 | C72: 500 | D72: 0 | E72: 0 | F72: 0 | G72: 0 | H72: 0 | I72: 0 | J72: 0
A73: Придбання землі та нематеріальних активів | B73: 3160 | C73: 510 | D73: 0 | E73: 0 | F73: 0 | G73: 0 | H73: 0 | I73: 0 | J73: 0
A74: Капітальні трансферти | B74: 3200 | C74: 520 | D74: =SUM(D75:D78) -> 0 | E74: 0 | F74: 0 | G74: 0 | H74: 0 | I74: 0 | J74: 0
A75: Капітальні трансферти підприємствам (установам, організаціям) | B75: 3210 | C75: 530 | D75: 0 | E75: 0 | F75: 0 | G75: 0 | H75: 0 | I75: 0 | J75: 0
A76: Капітальні трансферти органам державного управління інших рівнів | B76: 3220 | C76: 540 | D76: 0 | E76: 0 | F76: 0 | G76: 0 | H76: 0 | I76: 0 | J76: 0
A77: Капітальні трансферти урядам іноземних держав та міжнародним організаціям | B77: 3230 | C77: 550 | D77: 0 | E77: 0 | F77: 0 | G77: 0 | H77: 0 | I77: 0 | J77: 0
A78: Капітальні трансферти населенню | B78: 3240 | C78: 560 | D78: 0 | E78: 0 | F78: 0 | G78: 0 | H78: 0 | I78: 0 | J78: 0
A79: Внутрішнє кредитування | B79: 4100 | C79: 570 | D79: =SUM(D80) -> 0 | E79: 0 | F79: 0 | G79: 0 | H79: 0 | I79: 0 | J79: 0
A80: Надання внутрішніх кредитів | B80: 4110 | C80: 580 | D80: =SUM(D81:D83) -> 0 | E80: 0 | F80: 0 | G80: 0 | H80: 0 | I80: 0 | J80: 0
A81: Надання кредитів органам державного управління інших рівнів | B81: 4111 | C81: 590 | D81: 0 | E81: 0 | F81: 0 | G81: 0 | H81: 0 | I81: 0 | J81: 0
A82: Надання кредитів підприємствам, установам, організаціям | B82: 4112 | C82: 600 | D82: 0 | E82: 0 | F82: 0 | G82: 0 | H82: 0 | I82: 0 | J82: 0
A83: Надання інших внутрішніх кредитів | B83: 4113 | C83: 610 | D83: 0 | E83: 0 | F83: 0 | G83: 0 | H83: 0 | I83: 0 | J83: 0
A84: Зовнішнє кредитування | B84: 4200 | C84: 620 | D84: =D85 -> 0 | E84: 0 | F84: 0 | G84: 0 | H84: 0 | I84: 0 | J84: 0
A85: Надання зовнішніх кредитів | B85: 4210 | C85: 630 | D85: 0 | E85: 0 | F85: 0 | G85: 0 | H85: 0 | I85: 0 | J85: 0
A86: Інші видатки | B86: 5000 | C86: 640 | D86: X | E86: 0 | F86: X | G86: X | H86: X | I86: X | J86: X
A87: Нерозподілені видатки | B87: 9000 | C87: 650 | D87: 0 | E87: 0 | F87: 0 | G87: 0 | H87: 0 | I87: 0 | J87: 0
C88: 650
A100: 1 Заповнюється розпорядниками бюджетних коштів.
A101: =ЗАПОЛНИТЬ!F30 -> Міський голова | G101: =ЗАПОЛНИТЬ!F26 -> Бондаренко О.А.
D102: (підпис) | G102: (ініціали, прізвище)
A103: =ЗАПОЛНИТЬ!F31 -> Начальник відділу бухгалтерського обліку, планування та звітності | G103: =ЗАПОЛНИТЬ!F28 -> Топчій Н.М.
A104: =ЗАПОЛНИТЬ!C19 -> "10"січня 2018 року | D104: (підпис) | G104: (ініціали, прізвище)

Sheet Ф.2.14 (hidden)
G1: Додаток 1 до Порядку складання бюджетної звітності розпорядниками та одержувачами бюджетних коштів, звітності фондами загальнообов’язкового державного соціального і пенсійного страхування (пункт 1 розділу ІІ)
A4: ЗВІТ
A5: =IF(ЗАПОЛНИТЬ!$F$7=1,CONCATENATE(шапки!A2),CONCATENATE(шапки!A2,шапки!C2)) -> про надходження та використання коштів загального фонду (форма №2д, | G5: =IF(ЗАПОЛНИТЬ!$F$7=1,шапки!C2,шапки!D2) -> №2м) | H5: =IF(ЗАПОЛНИТЬ!$F$7=1,шапки!D2,"") -> 
A6: =CONCATENATE("за ",ЗАПОЛНИТЬ!$B$17," ",ЗАПОЛНИТЬ!$C$17) -> за 2017 р.
J7: коди
A9: Установа | B9: =ЗАПОЛНИТЬ!B3 -> Новгород-Сіверська міська рада | H9: за ЄДРПОУ | J9: =ЗАПОЛНИТЬ!B13 -> 04061978
A10: Територія | B10: =ЗАПОЛНИТЬ!B5 -> 16000 Чернігівська обл.,м.Новгород-Сіверський вул. Губернська, 2 | H10: за КОАТУУ | J10: =ЗАПОЛНИТЬ!B14 -> 7410500000
A11: Організаційно-правова форма господарювання | B11: =ЗАПОЛНИТЬ!D15 -> Орган місцевого самоврядування | H11: за КОПФГ | J11: =ЗАПОЛНИТЬ!B15 -> 420
A12: Код та назва відомчої класифікації видатків та кредитування державного бюджету | D12: =ЗАПОЛНИТЬ!H9 -> 0 | E12: =IF(D12>0,VLOOKUP(D12,'ДовидникКВК(ГОС)'!A:B,2,FALSE),"") -> 
A13: Код та назва програмної класифікації видатків та кредитування державного бюджету | E13: =IF(D13>0,VLOOKUP(D13,ДовидникКПК!B:C,2,FALSE),"") -> 
A14: Код та назва типової відомчої класифікації видатків та кредитування місцевих бюджетів | D14: =ЗАПОЛНИТЬ!H10 -> 01 | E14: =ЗАПОЛНИТЬ!I10 -> рада
A15: Код та назва програмної класифікації видатків та кредитування місцевих бюджетів (код та назва Типової програмної класифікації видатків та кредитування місцевих бюджетів / Тимчасової класифікації видатків та кредитування для бюджетів місцевого самоврядування, які не застосовують програмно-цільового методу) | D15: - | E15: =VLOOKUP(RIGHT(D15,4),КПКВМБ!A:B,2,FALSE) -> -
A16: Періодичність: квартальна, річна
A17: Одиниця виміру: грн, коп.
A19: Показники | B19: КЕКВ та/або ККК | C19: Код рядка | D19: Затверджено на звітний рік | E19: Затверджено на звітний період (рік)1 | F19: Залишок на початок звітного року | G19: Надійшло коштів за звітний період (рік) | H19: Касові за звітний період (рік) | I19: Фактичні за звітний період (рік) | J19: Залишок на кінець звітного періоду (року)
A22: 1 | B22: 2 | C22: 3 | D22: 4 | E22: 5 | F22: 6 | G22: 7 | H22: 8 | I22: 9 | J22: 9
A23: Видатки та надання кредитів - усього | B23: Х | C23: 010 | D23: =D24+D59+D79+D84+D87 -> 0 | E23: =E26+E29+E32+E33+E37+E45+E46+E86+E54 -> 0 | F23: =F24+F59+F79+F84+F87 -> 0 | G23: =G24+G59+G79+G84+G87 -> 0 | H23: =H24+H59+H79+H84+H87 -> 0 | I23: =I24+I59+I79+I84+I87 -> 0 | J23: =F23+G23-H23 -> 0
A24: у тому числі: Поточні видатки | B24: 2000 | C24: 020 | D24: =D25+D30+D47+D50+D54+D58 -> 0 | E24: 0 | F24: 0 | G24: 0 | H24: 0 | I24: 0 | J24: =F24+G24-H24 -> 0
A25: Оплата праці і нарахування на заробітну плату | B25: 2100 | C25: 030 | D25: =D26+D29 -> 0 | E25: 0 | F25: =F26+F29 -> 0 | G25: =G26+G29 -> 0 | H25: =H26+H29 -> 0 | I25: =I26+I29 -> 0 | J25: 0
A26: Оплата праці | B26: 2110 | C26: 040 | D26: =SUM(D27:D28) -> 0 | E26: 0 | F26: 0 | G26: 0 | H26: 0 | I26: 0 | J26: 0
A27: Заробітна плата | B27: 2111 | C27: 050 | D27: 0 | E27: 0 | F27: 0 | G27: 0 | H27: 0 | I27: 0 | J27: 0
A28: Грошове забезпечення військовослужбовців | B28: 2112 | C28: 060 | D28: 0 | E28: 0 | F28: 0 | G28: 0 | H28: 0 | I28: 0 | J28: 0
A29: Нарахування на оплату праці | B29: 2120 | C29: 070 | D29: 0 | E29: 0 | F29: 0 | G29: 0 | H29: 0 | I29: 0 | J29: 0
A30: Використання товарів і послуг | B30: 2200 | C30: 080 | D30: =SUM(D31:D37)+D44 -> 0 | E30: 0 | F30: =SUM(F31:F37)+F44 -> 0 | G30: =SUM(G31:G37)+G44 -> 0 | H30: =SUM(H31:H37)+H44 -> 0 | I30: =SUM(I31:I37)+I44 -> 0 | J30: 0
A31: Предмети, матеріали, обладнання та інвентар | B31: 2210 | C31: 090 | D31: 0 | E31: 0 | F31: 0 | G31: 0 | H31: 0 | I31: 0 | J31: 0
A32: Медикаменти та перев’язувальні матеріали | B32: 2220 | C32: 100 | D32: 0 | E32: 0 | F32: 0 | G32: 0 | H32: 0 | I32: 0 | J32: 0
A33: Продукти харчування | B33: 2230 | C33: 110 | D33: 0 | E33: 0 | F33: 0 | G33: 0 | H33: 0 | I33: 0 | J33: 0
A34: Оплата послуг (крім комунальних) | B34: 2240 | C34: 120 | D34: 0 | E34: 0 | F34: 0 | G34: 0 | H34: 0 | I34: 0 | J34: 0
A35: Видатки на відрядження | B35: 2250 | C35: 130 | D35: 0 | E35: 0 | F35: 0 | G35: 0 | H35: 0 | I35: 0 | J35: 0
A36: Видатки та заходи спеціального призначення | B36: 2260 | C36: 140 | D36: 0 | E36: 0 | F36: 0 | G36: 0 | H36: 0 | I36: 0 | J36: 0
A37: Оплата комунальних послуг та енергоносіїв | B37: 2270 | C37: 150 | D37: =SUM(D38:D43) -> 0 | E37: 0 | F37: =SUM(F38:F43) -> 0 | G37: =SUM(G38:G43) -> 0 | H37: =SUM(H38:H43) -> 0 | I37: =SUM(I38:I43) -> 0 | J37: =F37+G37-H37 -> 0
A38: Оплата теплопостачання | B38: 2271 | C38: 160 | D38: 0 | E38: 0 | F38: 0 | G38: 0 | H38: 0 | I38: 0 | J38: 0
A39: Оплата водопостачання та водовідведення | B39: 2272 | C39: 170 | D39: 0 | E39: 0 | F39: 0 | G39: 0 | H39: 0 | I39: 0 | J39: 0
A40: Оплата електроенергії | B40: 2273 | C40: 180 | D40: 0 | E40: 0 | F40: 0 | G40: 0 | H40: 0 | I40: 0 | J40: 0
A41: Оплата природного газу | B41: 2274 | C41: 190 | D41: 0 | E41: 0 | F41: 0 | G41: 0 | H41: 0 | I41: 0 | J41: 0
A42: Оплата інших енергоносіїв | B42: 2275 | C42: 200 | D42: 0 | E42: 0 | F42: 0 | G42: 0 | H42: 0 | I42: 0 | J42: 0
A43: Оплата енергосервісу | B43: 2276 | C43: 210 | D43: 0 | E43: 0 | F43: 0 | G43: 0 | H43: 0 | I43: 0 | J43: =F43+G43-H43 -> 0
A44: Дослідження і розробки, окремі заходи по реалізації державних (регіональних) програм | B44: 2280 | C44: 220 | D44: =SUM(D45:D46) -> 0 | E44: 0 | F44: =SUM(F45:F46) -> 0 | G44: =SUM(G45:G46) -> 0 | H44: =SUM(H45:H46) -> 0 | I44: =SUM(I45:I46) -> 0 | J44: 0
A45: Дослідження і розробки, окремі заходи розвитку по реалізації державних (регіональних) програм | B45: 2281 | C45: 230 | D45: 0 | E45: 0 | F45: 0 | G45: 0 | H45: 0 | I45: 0 | J45: 0
A46: Окремі заходи по реалізації державних (регіональних) програм, не віднесені до заходів розвитку | B46: 2282 | C46: 240 | D46: 0 | E46: 0 | F46: 0 | G46: 0 | H46: 0 | I46: 0 | J46: 0
A47: Обслуговування боргових зобов’язань | B47: 2400 | C47: 250 | D47: =SUM(D48:D49) -> 0 | E47: 0 | F47: 0 | G47: 0 | H47: 0 | I47: 0 | J47: 0
A48: Обслуговування внутрішніх боргових зобов’язань | B48: 2410 | C48: 260 | D48: 0 | E48: 0 | F48: 0 | G48: 0 | H48: 0 | I48: 0 | J48: 0
A49: Обслуговування зовнішніх боргових зобов’язань | B49: 2420 | C49: 270 | D49: 0 | E49: 0 | F49: 0 | G49: 0 | H49: 0 | I49: 0 | J49: 0
A50: Поточні трансферти | B50: 2600 | C50: 280 | D50: =SUM(D51:D53) -> 0 | E50: 0 | F50: 0 | G50: 0 | H50: 0 | I50: 0 | J50: 0
A51: Субсидії та поточні трансферти підприємствам (установам, організаціям) | B51: 2610 | C51: 290 | D51: 0 | E51: 0 | F51: 0 | G51: 0 | H51: 0 | I51: 0 | J51: 0
A52: Поточні трансферти органам державного управління інших рівнів | B52: 2620 | C52: 300 | D52: 0 | E52: 0 | F52: 0 | G52: 0 | H52: 0 | I52: 0 | J52: 0
A53: Поточні трансферти урядам іноземних держав та міжнародним організаціям | B53: 2630 | C53: 310 | D53: 0 | E53: 0 | F53: 0 | G53: 0 | H53: 0 | I53: 0 | J53: 0
A54: Соціальне забезпечення | B54: 2700 | C54: 320 | D54: =SUM(D55:D57) -> 0 | E54: 0 | F54: 0 | G54: 0 | H54: 0 | I54: 0 | J54: 0
A55: Виплата пенсій і допомоги | B55: 2710 | C55: 330 | D55: 0 | E55: 0 | F55: 0 | G55: 0 | H55: 0 | I55: 0 | J55: 0
A56: Стипендії | B56: 2720 | C56: 340 | D56: 0 | E56: 0 | F56: 0 | G56: 0 | H56: 0 | I56: 0 | J56: 0
A57: Інші виплати населенню | B57: 2730 | C57: 350 | D57: 0 | E57: 0 | F57: 0 | G57: 0 | H57: 0 | I57: 0 | J57: 0
A58: Інші поточні видатки | B58: 2800 | C58: 360 | D58: 0 | E58: 0 | F58: 0 | G58: 0 | H58: 0 | I58: 0 | J58: 0
A59: Капітальні видатки | B59: 3000 | C59: 370 | D59: =D60+D74 -> 0 | E59: 0 | F59: 0 | G59: 0 | H59: 0 | I59: 0 | J59: 0
A60: Придбання основного капіталу | B60: 3100 | C60: 380 | D60: =D61+D62+D65+D68+D72+D73 -> 0 | E60: 0 | F60: 0 | G60: 0 | H60: 0 | I60: 0 | J60: 0
A61: Придбання обладнання і предметів довгострокового користування | B61: 3110 | C61: 390 | D61: 0 | E61: 0 | F61: 0 | G61: 0 | H61: 0 | I61: 0 | J61: 0
A62: Капітальне будівництво (придбання) | B62: 3120 | C62: 400 | D62: =SUM(D63:D64) -> 0 | E62: 0 | F62: 0 | G62: 0 | H62: 0 | I62: 0 | J62: 0
A63: Капітальне будівництво (придбання) житла | B63: 3121 | C63: 410 | D63: 0 | E63: 0 | F63: 0 | G63: 0 | H63: 0 | I63: 0 | J63: 0
A64: Капітальне будівництво (придбання) інших об’єктів | B64: 3122 | C64: 420 | D64: 0 | E64: 0 | F64: 0 | G64: 0 | H64: 0 | I64: 0 | J64: 0
A65: Капітальний ремонт | B65: 3130 | C65: 430 | D65: =SUM(D66:D67) -> 0 | E65: 0 | F65: 0 | G65: 0 | H65: 0 | I65: 0 | J65: 0
A66: Капітальний ремонт житлового фонду (приміщень) | B66: 3131 | C66: 440 | D66: 0 | E66: 0 | F66: 0 | G66: 0 | H66: 0 | I66: 0 | J66: 0
A67: Капітальний ремонт інших об’єктів | B67: 3132 | C67: 450 | D67: 0 | E67: 0 | F67: 0 | G67: 0 | H67: 0 | I67: 0 | J67: 0
A68: Реконструкція та реставрація | B68: 3140 | C68: 460 | D68: =SUM(D69:D71) -> 0 | E68: 0 | F68: 0 | G68: 0 | H68: 0 | I68: 0 | J68: 0
A69: Реконструкція житлового фонду (приміщень) | B69: 3141 | C69: 470 | D69: 0 | E69: 0 | F69: 0 | G69: 0 | H69: 0 | I69: 0 | J69: 0
A70: Реконструкція та реставрація інших об’єктів | B70: 3142 | C70: 480 | D70: 0 | E70: 0 | F70: 0 | G70: 0 | H70: 0 | I70: 0 | J70: 0
A71: Реставрація пам’яток культури, історії та архітектури | B71: 3143 | C71: 490 | D71: 0 | E71: 0 | F71: 0 | G71: 0 | H71: 0 | I71: 0 | J71: 0
A72: Створення державних запасів і резервів | B72: 3150 | C72: 500 | D72: 0 | E72: 0 | F72: 0 | G72: 0 | H72: 0 | I72: 0 | J72: 0
A73: Придбання землі та нематеріальних активів | B73: 3160 | C73: 510 | D73: 0 | E73: 0 | F73: 0 | G73: 0 | H73: 0 | I73: 0 | J73: 0
A74: Капітальні трансферти | B74: 3200 | C74: 520 | D74: =SUM(D75:D78) -> 0 | E74: 0 | F74: 0 | G74: 0 | H74: 0 | I74: 0 | J74: 0
A75: Капітальні трансферти підприємствам (установам, організаціям) | B75: 3210 | C75: 530 | D75: 0 | E75: 0 | F75: 0 | G75: 0 | H75: 0 | I75: 0 | J75: 0
A76: Капітальні трансферти органам державного управління інших рівнів | B76: 3220 | C76: 540 | D76: 0 | E76: 0 | F76: 0 | G76: 0 | H76: 0 | I76: 0 | J76: 0
A77: Капітальні трансферти урядам іноземних держав та міжнародним організаціям | B77: 3230 | C77: 550 | D77: 0 | E77: 0 | F77: 0 | G77: 0 | H77: 0 | I77: 0 | J77: 0
A78: Капітальні трансферти населенню | B78: 3240 | C78: 560 | D78: 0 | E78: 0 | F78: 0 | G78: 0 | H78: 0 | I78: 0 | J78: 0
A79: Внутрішнє кредитування | B79: 4100 | C79: 570 | D79: =SUM(D80) -> 0 | E79: 0 | F79: 0 | G79: 0 | H79: 0 | I79: 0 | J79: 0
A80: Надання внутрішніх кредитів | B80: 4110 | C80: 580 | D80: =SUM(D81:D83) -> 0 | E80: 0 | F80: 0 | G80: 0 | H80: 0 | I80: 0 | J80: 0
A81: Надання кредитів органам державного управління інших рівнів | B81: 4111 | C81: 590 | D81: 0 | E81: 0 | F81: 0 | G81: 0 | H81: 0 | I81: 0 | J81: 0
A82: Надання кредитів підприємствам, установам, організаціям | B82: 4112 | C82: 600 | D82: 0 | E82: 0 | F82: 0 | G82: 0 | H82: 0 | I82: 0 | J82: 0
A83: Надання інших внутрішніх кредитів | B83: 4113 | C83: 610 | D83: 0 | E83: 0 | F83: 0 | G83: 0 | H83: 0 | I83: 0 | J83: 0
A84: Зовнішнє кредитування | B84: 4200 | C84: 620 | D84: =D85 -> 0 | E84: 0 | F84: 0 | G84: 0 | H84: 0 | I84: 0 | J84: 0
A85: Надання зовнішніх кредитів | B85: 4210 | C85: 630 | D85: 0 | E85: 0 | F85: 0 | G85: 0 | H85: 0 | I85: 0 | J85: 0
A86: Інші видатки | B86: 5000 | C86: 640 | D86: X | E86: 0 | F86: X | G86: X | H86: X | I86: X | J86: X
A87: Нерозподілені видатки | B87: 9000 | C87: 650 | D87: 0 | E87: 0 | F87: 0 | G87: 0 | H87: 0 | I87: 0 | J87: 0
C88: 650
A100: 1 Заповнюється розпорядниками бюджетних коштів.
A101: =ЗАПОЛНИТЬ!F30 -> Міський голова | G101: =ЗАПОЛНИТЬ!F26 -> Бондаренко О.А.
D102: (підпис) | G102: (ініціали, прізвище)
A103: =ЗАПОЛНИТЬ!F31 -> Начальник відділу бухгалтерського обліку, планування та звітності | G103: =ЗАПОЛНИТЬ!F28 -> Топчій Н.М.
A104: =ЗАПОЛНИТЬ!C19 -> "10"січня 2018 року | D104: (підпис) | G104: (ініціали, прізвище)

Sheet Ф.2.15 (hidden)
G1: Додаток 1 до Порядку складання бюджетної звітності розпорядниками та одержувачами бюджетних коштів, звітності фондами загальнообов’язкового державного соціального і пенсійного страхування (пункт 1 розділу ІІ)
A4: ЗВІТ
A5: =IF(ЗАПОЛНИТЬ!$F$7=1,CONCATENATE(шапки!A2),CONCATENATE(шапки!A2,шапки!C2)) -> про надходження та використання коштів загального фонду (форма №2д, | G5: =IF(ЗАПОЛНИТЬ!$F$7=1,шапки!C2,шапки!D2) -> №2м) | H5: =IF(ЗАПОЛНИТЬ!$F$7=1,шапки!D2,"") -> 
A6: =CONCATENATE("за ",ЗАПОЛНИТЬ!$B$17," ",ЗАПОЛНИТЬ!$C$17) -> за 2017 р.
J7: коди
A9: Установа | B9: =ЗАПОЛНИТЬ!B3 -> Новгород-Сіверська міська рада | H9: за ЄДРПОУ | J9: =ЗАПОЛНИТЬ!B13 -> 04061978
A10: Територія | B10: =ЗАПОЛНИТЬ!B5 -> 16000 Чернігівська обл.,м.Новгород-Сіверський вул. Губернська, 2 | H10: за КОАТУУ | J10: =ЗАПОЛНИТЬ!B14 -> 7410500000
A11: Організаційно-правова форма господарювання | B11: =ЗАПОЛНИТЬ!D15 -> Орган місцевого самоврядування | H11: за КОПФГ | J11: =ЗАПОЛНИТЬ!B15 -> 420
A12: Код та назва відомчої класифікації видатків та кредитування державного бюджету | D12: =ЗАПОЛНИТЬ!H9 -> 0 | E12: =IF(D12>0,VLOOKUP(D12,'ДовидникКВК(ГОС)'!A:B,2,FALSE),"") -> 
A13: Код та назва програмної класифікації видатків та кредитування державного бюджету | E13: =IF(D13>0,VLOOKUP(D13,ДовидникКПК!B:C,2,FALSE),"") -> 
A14: Код та назва типової відомчої класифікації видатків та кредитування місцевих бюджетів | D14: =ЗАПОЛНИТЬ!H10 -> 01 | E14: =ЗАПОЛНИТЬ!I10 -> рада
A15: Код та назва програмної класифікації видатків та кредитування місцевих бюджетів (код та назва Типової програмної класифікації видатків та кредитування місцевих бюджетів / Тимчасової класифікації видатків та кредитування для бюджетів місцевого самоврядування, які не застосовують програмно-цільового методу) | D15: - | E15: =VLOOKUP(RIGHT(D15,4),КПКВМБ!A:B,2,FALSE) -> -
A16: Періодичність: квартальна, річна
A17: Одиниця виміру: грн, коп.
A19: Показники | B19: КЕКВ та/або ККК | C19: Код рядка | D19: Затверджено на звітний рік | E19: Затверджено на звітний період (рік)1 | F19: Залишок на початок звітного року | G19: Надійшло коштів за звітний період (рік) | H19: Касові за звітний період (рік) | I19: Фактичні за звітний період (рік) | J19: Залишок на кінець звітного періоду (року)
A22: 1 | B22: 2 | C22: 3 | D22: 4 | E22: 5 | F22: 6 | G22: 7 | H22: 8 | I22: 9 | J22: 9
A23: Видатки та надання кредитів - усього | B23: Х | C23: 010 | D23: =D24+D59+D79+D84+D87 -> 0 | E23: =E26+E29+E32+E33+E37+E45+E46+E86+E54 -> 0 | F23: =F24+F59+F79+F84+F87 -> 0 | G23: =G24+G59+G79+G84+G87 -> 0 | H23: =H24+H59+H79+H84+H87 -> 0 | I23: =I24+I59+I79+I84+I87 -> 0 | J23: =F23+G23-H23 -> 0
A24: у тому числі: Поточні видатки | B24: 2000 | C24: 020 | D24: =D25+D30+D47+D50+D54+D58 -> 0 | E24: 0 | F24: 0 | G24: 0 | H24: 0 | I24: 0 | J24: =F24+G24-H24 -> 0
A25: Оплата праці і нарахування на заробітну плату | B25: 2100 | C25: 030 | D25: =D26+D29 -> 0 | E25: 0 | F25: =F26+F29 -> 0 | G25: =G26+G29 -> 0 | H25: =H26+H29 -> 0 | I25: =I26+I29 -> 0 | J25: 0
A26: Оплата праці | B26: 2110 | C26: 040 | D26: =SUM(D27:D28) -> 0 | E26: 0 | F26: 0 | G26: 0 | H26: 0 | I26: 0 | J26: 0
A27: Заробітна плата | B27: 2111 | C27: 050 | D27: 0 | E27: 0 | F27: 0 | G27: 0 | H27: 0 | I27: 0 | J27: 0
A28: Грошове забезпечення військовослужбовців | B28: 2112 | C28: 060 | D28: 0 | E28: 0 | F28: 0 | G28: 0 | H28: 0 | I28: 0 | J28: 0
A29: Нарахування на оплату праці | B29: 2120 | C29: 070 | D29: 0 | E29: 0 | F29: 0 | G29: 0 | H29: 0 | I29: 0 | J29: 0
A30: Використання товарів і послуг | B30: 2200 | C30: 080 | D30: =SUM(D31:D37)+D44 -> 0 | E30: 0 | F30: =SUM(F31:F37)+F44 -> 0 | G30: =SUM(G31:G37)+G44 -> 0 | H30: =SUM(H31:H37)+H44 -> 0 | I30: =SUM(I31:I37)+I44 -> 0 | J30: 0
A31: Предмети, матеріали, обладнання та інвентар | B31: 2210 | C31: 090 | D31: 0 | E31: 0 | F31: 0 | G31: 0 | H31: 0 | I31: 0 | J31: 0
A32: Медикаменти та перев’язувальні матеріали | B32: 2220 | C32: 100 | D32: 0 | E32: 0 | F32: 0 | G32: 0 | H32: 0 | I32: 0 | J32: 0
A33: Продукти харчування | B33: 2230 | C33: 110 | D33: 0 | E33: 0 | F33: 0 | G33: 0 | H33: 0 | I33: 0 | J33: 0
A34: Оплата послуг (крім комунальних) | B34: 2240 | C34: 120 | D34: 0 | E34: 0 | F34: 0 | G34: 0 | H34: 0 | I34: 0 | J34: 0
A35: Видатки на відрядження | B35: 2250 | C35: 130 | D35: 0 | E35: 0 | F35: 0 | G35: 0 | H35: 0 | I35: 0 | J35: 0
A36: Видатки та заходи спеціального призначення | B36: 2260 | C36: 140 | D36: 0 | E36: 0 | F36: 0 | G36: 0 | H36: 0 | I36: 0 | J36: 0
A37: Оплата комунальних послуг та енергоносіїв | B37: 2270 | C37: 150 | D37: =SUM(D38:D43) -> 0 | E37: 0 | F37: =SUM(F38:F43) -> 0 | G37: =SUM(G38:G43) -> 0 | H37: =SUM(H38:H43) -> 0 | I37: =SUM(I38:I43) -> 0 | J37: =F37+G37-H37 -> 0
A38: Оплата теплопостачання | B38: 2271 | C38: 160 | D38: 0 | E38: 0 | F38: 0 | G38: 0 | H38: 0 | I38: 0 | J38: 0
A39: Оплата водопостачання та водовідведення | B39: 2272 | C39: 170 | D39: 0 | E39: 0 | F39: 0 | G39: 0 | H39: 0 | I39: 0 | J39: 0
A40: Оплата електроенергії | B40: 2273 | C40: 180 | D40: 0 | E40: 0 | F40: 0 | G40: 0 | H40: 0 | I40: 0 | J40: 0
A41: Оплата природного газу | B41: 2274 | C41: 190 | D41: 0 | E41: 0 | F41: 0 | G41: 0 | H41: 0 | I41: 0 | J41: 0
A42: Оплата інших енергоносіїв | B42: 2275 | C42: 200 | D42: 0 | E42: 0 | F42: 0 | G42: 0 | H42: 0 | I42: 0 | J42: 0
A43: Оплата енергосервісу | B43: 2276 | C43: 210 | D43: 0 | E43: 0 | F43: 0 | G43: 0 | H43: 0 | I43: 0 | J43: =F43+G43-H43 -> 0
A44: Дослідження і розробки, окремі заходи по реалізації державних (регіональних) програм | B44: 2280 | C44: 220 | D44: =SUM(D45:D46) -> 0 | E44: 0 | F44: =SUM(F45:F46) -> 0 | G44: =SUM(G45:G46) -> 0 | H44: =SUM(H45:H46) -> 0 | I44: =SUM(I45:I46) -> 0 | J44: 0
A45: Дослідження і розробки, окремі заходи розвитку по реалізації державних (регіональних) програм | B45: 2281 | C45: 230 | D45: 0 | E45: 0 | F45: 0 | G45: 0 | H45: 0 | I45: 0 | J45: 0
A46: Окремі заходи по реалізації державних (регіональних) програм, не віднесені до заходів розвитку | B46: 2282 | C46: 240 | D46: 0 | E46: 0 | F46: 0 | G46: 0 | H46: 0 | I46: 0 | J46: 0
A47: Обслуговування боргових зобов’язань | B47: 2400 | C47: 250 | D47: =SUM(D48:D49) -> 0 | E47: 0 | F47: 0 | G47: 0 | H47: 0 | I47: 0 | J47: 0
A48: Обслуговування внутрішніх боргових зобов’язань | B48: 2410 | C48: 260 | D48: 0 | E48: 0 | F48: 0 | G48: 0 | H48: 0 | I48: 0 | J48: 0
A49: Обслуговування зовнішніх боргових зобов’язань | B49: 2420 | C49: 270 | D49: 0 | E49: 0 | F49: 0 | G49: 0 | H49: 0 | I49: 0 | J49: 0
A50: Поточні трансферти | B50: 2600 | C50: 280 | D50: =SUM(D51:D53) -> 0 | E50: 0 | F50: 0 | G50: 0 | H50: 0 | I50: 0 | J50: 0
A51: Субсидії та поточні трансферти підприємствам (установам, організаціям) | B51: 2610 | C51: 290 | D51: 0 | E51: 0 | F51: 0 | G51: 0 | H51: 0 | I51: 0 | J51: 0
A52: Поточні трансферти органам державного управління інших рівнів | B52: 2620 | C52: 300 | D52: 0 | E52: 0 | F52: 0 | G52: 0 | H52: 0 | I52: 0 | J52: 0
A53: Поточні трансферти урядам іноземних держав та міжнародним організаціям | B53: 2630 | C53: 310 | D53: 0 | E53: 0 | F53: 0 | G53: 0 | H53: 0 | I53: 0 | J53: 0
A54: Соціальне забезпечення | B54: 2700 | C54: 320 | D54: =SUM(D55:D57) -> 0 | E54: 0 | F54: 0 | G54: 0 | H54: 0 | I54: 0 | J54: 0
A55: Виплата пенсій і допомоги | B55: 2710 | C55: 330 | D55: 0 | E55: 0 | F55: 0 | G55: 0 | H55: 0 | I55: 0 | J55: 0
A56: Стипендії | B56: 2720 | C56: 340 | D56: 0 | E56: 0 | F56: 0 | G56: 0 | H56: 0 | I56: 0 | J56: 0
A57: Інші виплати населенню | B57: 2730 | C57: 350 | D57: 0 | E57: 0 | F57: 0 | G57: 0 | H57: 0 | I57: 0 | J57: 0
A58: Інші поточні видатки | B58: 2800 | C58: 360 | D58: 0 | E58: 0 | F58: 0 | G58: 0 | H58: 0 | I58: 0 | J58: 0
A59: Капітальні видатки | B59: 3000 | C59: 370 | D59: =D60+D74 -> 0 | E59: 0 | F59: 0 | G59: 0 | H59: 0 | I59: 0 | J59: 0
A60: Придбання основного капіталу | B60: 3100 | C60: 380 | D60: =D61+D62+D65+D68+D72+D73 -> 0 | E60: 0 | F60: 0 | G60: 0 | H60: 0 | I60: 0 | J60: 0
A61: Придбання обладнання і предметів довгострокового користування | B61: 3110 | C61: 390 | D61: 0 | E61: 0 | F61: 0 | G61: 0 | H61: 0 | I61: 0 | J61: 0
A62: Капітальне будівництво (придбання) | B62: 3120 | C62: 400 | D62: =SUM(D63:D64) -> 0 | E62: 0 | F62: 0 | G62: 0 | H62: 0 | I62: 0 | J62: 0
A63: Капітальне будівництво (придбання) житла | B63: 3121 | C63: 410 | D63: 0 | E63: 0 | F63: 0 | G63: 0 | H63: 0 | I63: 0 | J63: 0
A64: Капітальне будівництво (придбання) інших об’єктів | B64: 3122 | C64: 420 | D64: 0 | E64: 0 | F64: 0 | G64: 0 | H64: 0 | I64: 0 | J64: 0
A65: Капітальний ремонт | B65: 3130 | C65: 430 | D65: =SUM(D66:D67) -> 0 | E65: 0 | F65: 0 | G65: 0 | H65: 0 | I65: 0 | J65: 0
A66: Капітальний ремонт житлового фонду (приміщень) | B66: 3131 | C66: 440 | D66: 0 | E66: 0 | F66: 0 | G66: 0 | H66: 0 | I66: 0 | J66: 0
A67: Капітальний ремонт інших об’єктів | B67: 3132 | C67: 450 | D67: 0 | E67: 0 | F67: 0 | G67: 0 | H67: 0 | I67: 0 | J67: 0
A68: Реконструкція та реставрація | B68: 3140 | C68: 460 | D68: =SUM(D69:D71) -> 0 | E68: 0 | F68: 0 | G68: 0 | H68: 0 | I68: 0 | J68: 0
A69: Реконструкція житлового фонду (приміщень) | B69: 3141 | C69: 470 | D69: 0 | E69: 0 | F69: 0 | G69: 0 | H69: 0 | I69: 0 | J69: 0
A70: Реконструкція та реставрація інших об’єктів | B70: 3142 | C70: 480 | D70: 0 | E70: 0 | F70: 0 | G70: 0 | H70: 0 | I70: 0 | J70: 0
A71: Реставрація пам’яток культури, історії та архітектури | B71: 3143 | C71: 490 | D71: 0 | E71: 0 | F71: 0 | G71: 0 | H71: 0 | I71: 0 | J71: 0
A72: Створення державних запасів і резервів | B72: 3150 | C72: 500 | D72: 0 | E72: 0 | F72: 0 | G72: 0 | H72: 0 | I72: 0 | J72: 0
A73: Придбання землі та нематеріальних активів | B73: 3160 | C73: 510 | D73: 0 | E73: 0 | F73: 0 | G73: 0 | H73: 0 | I73: 0 | J73: 0
A74: Капітальні трансферти | B74: 3200 | C74: 520 | D74: =SUM(D75:D78) -> 0 | E74: 0 | F74: 0 | G74: 0 | H74: 0 | I74: 0 | J74: 0
A75: Капітальні трансферти підприємствам (установам, організаціям) | B75: 3210 | C75: 530 | D75: 0 | E75: 0 | F75: 0 | G75: 0 | H75: 0 | I75: 0 | J75: 0
A76: Капітальні трансферти органам державного управління інших рівнів | B76: 3220 | C76: 540 | D76: 0 | E76: 0 | F76: 0 | G76: 0 | H76: 0 | I76: 0 | J76: 0
A77: Капітальні трансферти урядам іноземних держав та міжнародним організаціям | B77: 3230 | C77: 550 | D77: 0 | E77: 0 | F77: 0 | G77: 0 | H77: 0 | I77: 0 | J77: 0
A78: Капітальні трансферти населенню | B78: 3240 | C78: 560 | D78: 0 | E78: 0 | F78: 0 | G78: 0 | H78: 0 | I78: 0 | J78: 0
A79: Внутрішнє кредитування | B79: 4100 | C79: 570 | D79: =SUM(D80) -> 0 | E79: 0 | F79: 0 | G79: 0 | H79: 0 | I79: 0 | J79: 0
A80: Надання внутрішніх кредитів | B80: 4110 | C80: 580 | D80: =SUM(D81:D83) -> 0 | E80: 0 | F80: 0 | G80: 0 | H80: 0 | I80: 0 | J80: 0
A81: Надання кредитів органам державного управління інших рівнів | B81: 4111 | C81: 590 | D81: 0 | E81: 0 | F81: 0 | G81: 0 | H81: 0 | I81: 0 | J81: 0
A82: Надання кредитів підприємствам, установам, організаціям | B82: 4112 | C82: 600 | D82: 0 | E82: 0 | F82: 0 | G82: 0 | H82: 0 | I82: 0 | J82: 0
A83: Надання інших внутрішніх кредитів | B83: 4113 | C83: 610 | D83: 0 | E83: 0 | F83: 0 | G83: 0 | H83: 0 | I83: 0 | J83: 0
A84: Зовнішнє кредитування | B84: 4200 | C84: 620 | D84: =D85 -> 0 | E84: 0 | F84: 0 | G84: 0 | H84: 0 | I84: 0 | J84: 0
A85: Надання зовнішніх кредитів | B85: 4210 | C85: 630 | D85: 0 | E85: 0 | F85: 0 | G85: 0 | H85: 0 | I85: 0 | J85: 0
A86: Інші видатки | B86: 5000 | C86: 640 | D86: X | E86: 0 | F86: X | G86: X | H86: X | I86: X | J86: X
A87: Нерозподілені видатки | B87: 9000 | C87: 650 | D87: 0 | E87: 0 | F87: 0 | G87: 0 | H87: 0 | I87: 0 | J87: 0
C88: 650
A100: 1 Заповнюється розпорядниками бюджетних коштів.
A101: =ЗАПОЛНИТЬ!F30 -> Міський голова | G101: =ЗАПОЛНИТЬ!F26 -> Бондаренко О.А.
D102: (підпис) | G102: (ініціали, прізвище)
A103: =ЗАПОЛНИТЬ!F31 -> Начальник відділу бухгалтерського обліку, планування та звітності | G103: =ЗАПОЛНИТЬ!F28 -> Топчій Н.М.
A104: =ЗАПОЛНИТЬ!C19 -> "10"січня 2018 року | D104: (підпис) | G104: (ініціали, прізвище)

Sheet Ф.2.16 (hidden)
G1: Додаток 1 до Порядку складання бюджетної звітності розпорядниками та одержувачами бюджетних коштів, звітності фондами загальнообов’язкового державного соціального і пенсійного страхування (пункт 1 розділу ІІ)
A4: ЗВІТ
A5: =IF(ЗАПОЛНИТЬ!$F$7=1,CONCATENATE(шапки!A2),CONCATENATE(шапки!A2,шапки!C2)) -> про надходження та використання коштів загального фонду (форма №2д, | G5: =IF(ЗАПОЛНИТЬ!$F$7=1,шапки!C2,шапки!D2) -> №2м) | H5: =IF(ЗАПОЛНИТЬ!$F$7=1,шапки!D2,"") -> 
A6: =CONCATENATE("за ",ЗАПОЛНИТЬ!$B$17," ",ЗАПОЛНИТЬ!$C$17) -> за 2017 р.
J7: коди
A9: Установа | B9: =ЗАПОЛНИТЬ!B3 -> Новгород-Сіверська міська рада | H9: за ЄДРПОУ | J9: =ЗАПОЛНИТЬ!B13 -> 04061978
A10: Територія | B10: =ЗАПОЛНИТЬ!B5 -> 16000 Чернігівська обл.,м.Новгород-Сіверський вул. Губернська, 2 | H10: за КОАТУУ | J10: =ЗАПОЛНИТЬ!B14 -> 7410500000
A11: Організаційно-правова форма господарювання | B11: =ЗАПОЛНИТЬ!D15 -> Орган місцевого самоврядування | H11: за КОПФГ | J11: =ЗАПОЛНИТЬ!B15 -> 420
A12: Код та назва відомчої класифікації видатків та кредитування державного бюджету | D12: =ЗАПОЛНИТЬ!H9 -> 0 | E12: =IF(D12>0,VLOOKUP(D12,'ДовидникКВК(ГОС)'!A:B,2,FALSE),"") -> 
A13: Код та назва програмної класифікації видатків та кредитування державного бюджету | E13: =IF(D13>0,VLOOKUP(D13,ДовидникКПК!B:C,2,FALSE),"") -> 
A14: Код та назва типової відомчої класифікації видатків та кредитування місцевих бюджетів | D14: =ЗАПОЛНИТЬ!H10 -> 01 | E14: =ЗАПОЛНИТЬ!I10 -> рада
A15: Код та назва програмної класифікації видатків та кредитування місцевих бюджетів (код та назва Типової програмної класифікації видатків та кредитування місцевих бюджетів / Тимчасової класифікації видатків та кредитування для бюджетів місцевого самоврядування, які не застосовують програмно-цільового методу) | D15: - | E15: =VLOOKUP(RIGHT(D15,4),КПКВМБ!A:B,2,FALSE) -> -
A16: Періодичність: квартальна, річна
A17: Одиниця виміру: грн, коп.
A19: Показники | B19: КЕКВ та/або ККК | C19: Код рядка | D19: Затверджено на звітний рік | E19: Затверджено на звітний період (рік)1 | F19: Залишок на початок звітного року | G19: Надійшло коштів за звітний період (рік) | H19: Касові за звітний період (рік) | I19: Фактичні за звітний період (рік) | J19: Залишок на кінець звітного періоду (року)
A22: 1 | B22: 2 | C22: 3 | D22: 4 | E22: 5 | F22: 6 | G22: 7 | H22: 8 | I22: 9 | J22: 9
A23: Видатки та надання кредитів - усього | B23: Х | C23: 010 | D23: =D24+D59+D79+D84+D87 -> 0 | E23: =E26+E29+E32+E33+E37+E45+E46+E86+E54 -> 0 | F23: =F24+F59+F79+F84+F87 -> 0 | G23: =G24+G59+G79+G84+G87 -> 0 | H23: =H24+H59+H79+H84+H87 -> 0 | I23: =I24+I59+I79+I84+I87 -> 0 | J23: =F23+G23-H23 -> 0
A24: у тому числі: Поточні видатки | B24: 2000 | C24: 020 | D24: =D25+D30+D47+D50+D54+D58 -> 0 | E24: 0 | F24: 0 | G24: 0 | H24: 0 | I24: 0 | J24: =F24+G24-H24 -> 0
A25: Оплата праці і нарахування на заробітну плату | B25: 2100 | C25: 030 | D25: =D26+D29 -> 0 | E25: 0 | F25: =F26+F29 -> 0 | G25: =G26+G29 -> 0 | H25: =H26+H29 -> 0 | I25: =I26+I29 -> 0 | J25: 0
A26: Оплата праці | B26: 2110 | C26: 040 | D26: =SUM(D27:D28) -> 0 | E26: 0 | F26: 0 | G26: 0 | H26: 0 | I26: 0 | J26: 0
A27: Заробітна плата | B27: 2111 | C27: 050 | D27: 0 | E27: 0 | F27: 0 | G27: 0 | H27: 0 | I27: 0 | J27: 0
A28: Грошове забезпечення військовослужбовців | B28: 2112 | C28: 060 | D28: 0 | E28: 0 | F28: 0 | G28: 0 | H28: 0 | I28: 0 | J28: 0
A29: Нарахування на оплату праці | B29: 2120 | C29: 070 | D29: 0 | E29: 0 | F29: 0 | G29: 0 | H29: 0 | I29: 0 | J29: 0
A30: Використання товарів і послуг | B30: 2200 | C30: 080 | D30: =SUM(D31:D37)+D44 -> 0 | E30: 0 | F30: =SUM(F31:F37)+F44 -> 0 | G30: =SUM(G31:G37)+G44 -> 0 | H30: =SUM(H31:H37)+H44 -> 0 | I30: =SUM(I31:I37)+I44 -> 0 | J30: 0
A31: Предмети, матеріали, обладнання та інвентар | B31: 2210 | C31: 090 | D31: 0 | E31: 0 | F31: 0 | G31: 0 | H31: 0 | I31: 0 | J31: 0
A32: Медикаменти та перев’язувальні матеріали | B32: 2220 | C32: 100 | D32: 0 | E32: 0 | F32: 0 | G32: 0 | H32: 0 | I32: 0 | J32: 0
A33: Продукти харчування | B33: 2230 | C33: 110 | D33: 0 | E33: 0 | F33: 0 | G33: 0 | H33: 0 | I33: 0 | J33: 0
A34: Оплата послуг (крім комунальних) | B34: 2240 | C34: 120 | D34: 0 | E34: 0 | F34: 0 | G34: 0 | H34: 0 | I34: 0 | J34: 0
A35: Видатки на відрядження | B35: 2250 | C35: 130 | D35: 0 | E35: 0 | F35: 0 | G35: 0 | H35: 0 | I35: 0 | J35: 0
A36: Видатки та заходи спеціального призначення | B36: 2260 | C36: 140 | D36: 0 | E36: 0 | F36: 0 | G36: 0 | H36: 0 | I36: 0 | J36: 0
A37: Оплата комунальних послуг та енергоносіїв | B37: 2270 | C37: 150 | D37: =SUM(D38:D43) -> 0 | E37: 0 | F37: =SUM(F38:F43) -> 0 | G37: =SUM(G38:G43) -> 0 | H37: =SUM(H38:H43) -> 0 | I37: =SUM(I38:I43) -> 0 | J37: =F37+G37-H37 -> 0
A38: Оплата теплопостачання | B38: 2271 | C38: 160 | D38: 0 | E38: 0 | F38: 0 | G38: 0 | H38: 0 | I38: 0 | J38: 0
A39: Оплата водопостачання та водовідведення | B39: 2272 | C39: 170 | D39: 0 | E39: 0 | F39: 0 | G39: 0 | H39: 0 | I39: 0 | J39: 0
A40: Оплата електроенергії | B40: 2273 | C40: 180 | D40: 0 | E40: 0 | F40: 0 | G40: 0 | H40: 0 | I40: 0 | J40: 0
A41: Оплата природного газу | B41: 2274 | C41: 190 | D41: 0 | E41: 0 | F41: 0 | G41: 0 | H41: 0 | I41: 0 | J41: 0
A42: Оплата інших енергоносіїв | B42: 2275 | C42: 200 | D42: 0 | E42: 0 | F42: 0 | G42: 0 | H42: 0 | I42: 0 | J42: 0
A43: Оплата енергосервісу | B43: 2276 | C43: 210 | D43: 0 | E43: 0 | F43: 0 | G43: 0 | H43: 0 | I43: 0 | J43: =F43+G43-H43 -> 0
A44: Дослідження і розробки, окремі заходи по реалізації державних (регіональних) програм | B44: 2280 | C44: 220 | D44: =SUM(D45:D46) -> 0 | E44: 0 | F44: =SUM(F45:F46) -> 0 | G44: =SUM(G45:G46) -> 0 | H44: =SUM(H45:H46) -> 0 | I44: =SUM(I45:I46) -> 0 | J44: 0
A45: Дослідження і розробки, окремі заходи розвитку по реалізації державних (регіональних) програм | B45: 2281 | C45: 230 | D45: 0 | E45: 0 | F45: 0 | G45: 0 | H45: 0 | I45: 0 | J45: 0
A46: Окремі заходи по реалізації державних (регіональних) програм, не віднесені до заходів розвитку | B46: 2282 | C46: 240 | D46: 0 | E46: 0 | F46: 0 | G46: 0 | H46: 0 | I46: 0 | J46: 0
A47: Обслуговування боргових зобов’язань | B47: 2400 | C47: 250 | D47: =SUM(D48:D49) -> 0 | E47: 0 | F47: 0 | G47: 0 | H47: 0 | I47: 0 | J47: 0
A48: Обслуговування внутрішніх боргових зобов’язань | B48: 2410 | C48: 260 | D48: 0 | E48: 0 | F48: 0 | G48: 0 | H48: 0 | I48: 0 | J48: 0
A49: Обслуговування зовнішніх боргових зобов’язань | B49: 2420 | C49: 270 | D49: 0 | E49: 0 | F49: 0 | G49: 0 | H49: 0 | I49: 0 | J49: 0
A50: Поточні трансферти | B50: 2600 | C50: 280 | D50: =SUM(D51:D53) -> 0 | E50: 0 | F50: 0 | G50: 0 | H50: 0 | I50: 0 | J50: 0
A51: Субсидії та поточні трансферти підприємствам (установам, організаціям) | B51: 2610 | C51: 290 | D51: 0 | E51: 0 | F51: 0 | G51: 0 | H51: 0 | I51: 0 | J51: 0
A52: Поточні трансферти органам державного управління інших рівнів | B52: 2620 | C52: 300 | D52: 0 | E52: 0 | F52: 0 | G52: 0 | H52: 0 | I52: 0 | J52: 0
A53: Поточні трансферти урядам іноземних держав та міжнародним організаціям | B53: 2630 | C53: 310 | D53: 0 | E53: 0 | F53: 0 | G53: 0 | H53: 0 | I53: 0 | J53: 0
A54: Соціальне забезпечення | B54: 2700 | C54: 320 | D54: =SUM(D55:D57) -> 0 | E54: 0 | F54: 0 | G54: 0 | H54: 0 | I54: 0 | J54: 0
A55: Виплата пенсій і допомоги | B55: 2710 | C55: 330 | D55: 0 | E55: 0 | F55: 0 | G55: 0 | H55: 0 | I55: 0 | J55: 0
A56: Стипендії | B56: 2720 | C56: 340 | D56: 0 | E56: 0 | F56: 0 | G56: 0 | H56: 0 | I56: 0 | J56: 0
A57: Інші виплати населенню | B57: 2730 | C57: 350 | D57: 0 | E57: 0 | F57: 0 | G57: 0 | H57: 0 | I57: 0 | J57: 0
A58: Інші поточні видатки | B58: 2800 | C58: 360 | D58: 0 | E58: 0 | F58: 0 | G58: 0 | H58: 0 | I58: 0 | J58: 0
A59: Капітальні видатки | B59: 3000 | C59: 370 | D59: =D60+D74 -> 0 | E59: 0 | F59: 0 | G59: 0 | H59: 0 | I59: 0 | J59: 0
A60: Придбання основного капіталу | B60: 3100 | C60: 380 | D60: =D61+D62+D65+D68+D72+D73 -> 0 | E60: 0 | F60: 0 | G60: 0 | H60: 0 | I60: 0 | J60: 0
A61: Придбання обладнання і предметів довгострокового користування | B61: 3110 | C61: 390 | D61: 0 | E61: 0 | F61: 0 | G61: 0 | H61: 0 | I61: 0 | J61: 0
A62: Капітальне будівництво (придбання) | B62: 3120 | C62: 400 | D62: =SUM(D63:D64) -> 0 | E62: 0 | F62: 0 | G62: 0 | H62: 0 | I62: 0 | J62: 0
A63: Капітальне будівництво (придбання) житла | B63: 3121 | C63: 410 | D63: 0 | E63: 0 | F63: 0 | G63: 0 | H63: 0 | I63: 0 | J63: 0
A64: Капітальне будівництво (придбання) інших об’єктів | B64: 3122 | C64: 420 | D64: 0 | E64: 0 | F64: 0 | G64: 0 | H64: 0 | I64: 0 | J64: 0
A65: Капітальний ремонт | B65: 3130 | C65: 430 | D65: =SUM(D66:D67) -> 0 | E65: 0 | F65: 0 | G65: 0 | H65: 0 | I65: 0 | J65: 0
A66: Капітальний ремонт житлового фонду (приміщень) | B66: 3131 | C66: 440 | D66: 0 | E66: 0 | F66: 0 | G66: 0 | H66: 0 | I66: 0 | J66: 0
A67: Капітальний ремонт інших об’єктів | B67: 3132 | C67: 450 | D67: 0 | E67: 0 | F67: 0 | G67: 0 | H67: 0 | I67: 0 | J67: 0
A68: Реконструкція та реставрація | B68: 3140 | C68: 460 | D68: =SUM(D69:D71) -> 0 | E68: 0 | F68: 0 | G68: 0 | H68: 0 | I68: 0 | J68: 0
A69: Реконструкція житлового фонду (приміщень) | B69: 3141 | C69: 470 | D69: 0 | E69: 0 | F69: 0 | G69: 0 | H69: 0 | I69: 0 | J69: 0
A70: Реконструкція та реставрація інших об’єктів | B70: 3142 | C70: 480 | D70: 0 | E70: 0 | F70: 0 | G70: 0 | H70: 0 | I70: 0 | J70: 0
A71: Реставрація пам’яток культури, історії та архітектури | B71: 3143 | C71: 490 | D71: 0 | E71: 0 | F71: 0 | G71: 0 | H71: 0 | I71: 0 | J71: 0
A72: Створення державних запасів і резервів | B72: 3150 | C72: 500 | D72: 0 | E72: 0 | F72: 0 | G72: 0 | H72: 0 | I72: 0 | J72: 0
A73: Придбання землі та нематеріальних активів | B73: 3160 | C73: 510 | D73: 0 | E73: 0 | F73: 0 | G73: 0 | H73: 0 | I73: 0 | J73: 0
A74: Капітальні трансферти | B74: 3200 | C74: 520 | D74: =SUM(D75:D78) -> 0 | E74: 0 | F74: 0 | G74: 0 | H74: 0 | I74: 0 | J74: 0
A75: Капітальні трансферти підприємствам (установам, організаціям) | B75: 3210 | C75: 530 | D75: 0 | E75: 0 | F75: 0 | G75: 0 | H75: 0 | I75: 0 | J75: 0
A76: Капітальні трансферти органам державного управління інших рівнів | B76: 3220 | C76: 540 | D76: 0 | E76: 0 | F76: 0 | G76: 0 | H76: 0 | I76: 0 | J76: 0
A77: Капітальні трансферти урядам іноземних держав та міжнародним організаціям | B77: 3230 | C77: 550 | D77: 0 | E77: 0 | F77: 0 | G77: 0 | H77: 0 | I77: 0 | J77: 0
A78: Капітальні трансферти населенню | B78: 3240 | C78: 560 | D78: 0 | E78: 0 | F78: 0 | G78: 0 | H78: 0 | I78: 0 | J78: 0
A79: Внутрішнє кредитування | B79: 4100 | C79: 570 | D79: =SUM(D80) -> 0 | E79: 0 | F79: 0 | G79: 0 | H79: 0 | I79: 0 | J79: 0
A80: Надання внутрішніх кредитів | B80: 4110 | C80: 580 | D80: =SUM(D81:D83) -> 0 | E80: 0 | F80: 0 | G80: 0 | H80: 0 | I80: 0 | J80: 0
A81: Надання кредитів органам державного управління інших рівнів | B81: 4111 | C81: 590 | D81: 0 | E81: 0 | F81: 0 | G81: 0 | H81: 0 | I81: 0 | J81: 0
A82: Надання кредитів підприємствам, установам, організаціям | B82: 4112 | C82: 600 | D82: 0 | E82: 0 | F82: 0 | G82: 0 | H82: 0 | I82: 0 | J82: 0
A83: Надання інших внутрішніх кредитів | B83: 4113 | C83: 610 | D83: 0 | E83: 0 | F83: 0 | G83: 0 | H83: 0 | I83: 0 | J83: 0
A84: Зовнішнє кредитування | B84: 4200 | C84: 620 | D84: =D85 -> 0 | E84: 0 | F84: 0 | G84: 0 | H84: 0 | I84: 0 | J84: 0
A85: Надання зовнішніх кредитів | B85: 4210 | C85: 630 | D85: 0 | E85: 0 | F85: 0 | G85: 0 | H85: 0 | I85: 0 | J85: 0
A86: Інші видатки | B86: 5000 | C86: 640 | D86: X | E86: 0 | F86: X | G86: X | H86: X | I86: X | J86: X
A87: Нерозподілені видатки | B87: 9000 | C87: 650 | D87: 0 | E87: 0 | F87: 0 | G87: 0 | H87: 0 | I87: 0 | J87: 0
C88: 650
A100: 1 Заповнюється розпорядниками бюджетних коштів.
A101: =ЗАПОЛНИТЬ!F30 -> Міський голова | G101: =ЗАПОЛНИТЬ!F26 -> Бондаренко О.А.
D102: (підпис) | G102: (ініціали, прізвище)
A103: =ЗАПОЛНИТЬ!F31 -> Начальник відділу бухгалтерського обліку, планування та звітності | G103: =ЗАПОЛНИТЬ!F28 -> Топчій Н.М.
A104: =ЗАПОЛНИТЬ!C19 -> "10"січня 2018 року | D104: (підпис) | G104: (ініціали, прізвище)

Sheet Ф.2.17 (hidden)
G1: Додаток 1 до Порядку складання бюджетної звітності розпорядниками та одержувачами бюджетних коштів, звітності фондами загальнообов’язкового державного соціального і пенсійного страхування (пункт 1 розділу ІІ)
A4: ЗВІТ
A5: =IF(ЗАПОЛНИТЬ!$F$7=1,CONCATENATE(шапки!A2),CONCATENATE(шапки!A2,шапки!C2)) -> про надходження та використання коштів загального фонду (форма №2д, | G5: =IF(ЗАПОЛНИТЬ!$F$7=1,шапки!C2,шапки!D2) -> №2м) | H5: =IF(ЗАПОЛНИТЬ!$F$7=1,шапки!D2,"") -> 
A6: =CONCATENATE("за ",ЗАПОЛНИТЬ!$B$17," ",ЗАПОЛНИТЬ!$C$17) -> за 2017 р.
J7: коди
A9: Установа | B9: =ЗАПОЛНИТЬ!B3 -> Новгород-Сіверська міська рада | H9: за ЄДРПОУ | J9: =ЗАПОЛНИТЬ!B13 -> 04061978
A10: Територія | B10: =ЗАПОЛНИТЬ!B5 -> 16000 Чернігівська обл.,м.Новгород-Сіверський вул. Губернська, 2 | H10: за КОАТУУ | J10: =ЗАПОЛНИТЬ!B14 -> 7410500000
A11: Організаційно-правова форма господарювання | B11: =ЗАПОЛНИТЬ!D15 -> Орган місцевого самоврядування | H11: за КОПФГ | J11: =ЗАПОЛНИТЬ!B15 -> 420
A12: Код та назва відомчої класифікації видатків та кредитування державного бюджету | D12: =ЗАПОЛНИТЬ!H9 -> 0 | E12: =IF(D12>0,VLOOKUP(D12,'ДовидникКВК(ГОС)'!A:B,2,FALSE),"") -> 
A13: Код та назва програмної класифікації видатків та кредитування державного бюджету | E13: =IF(D13>0,VLOOKUP(D13,ДовидникКПК!B:C,2,FALSE),"") -> 
A14: Код та назва типової відомчої класифікації видатків та кредитування місцевих бюджетів | D14: =ЗАПОЛНИТЬ!H10 -> 01 | E14: =ЗАПОЛНИТЬ!I10 -> рада
A15: Код та назва програмної класифікації видатків та кредитування місцевих бюджетів (код та назва Типової програмної класифікації видатків та кредитування місцевих бюджетів / Тимчасової класифікації видатків та кредитування для бюджетів місцевого самоврядування, які не застосовують програмно-цільового методу) | D15: - | E15: =VLOOKUP(RIGHT(D15,4),КПКВМБ!A:B,2,FALSE) -> -
A16: Періодичність: квартальна, річна
A17: Одиниця виміру: грн, коп.
A19: Показники | B19: КЕКВ та/або ККК | C19: Код рядка | D19: Затверджено на звітний рік | E19: Затверджено на звітний період (рік)1 | F19: Залишок на початок звітного року | G19: Надійшло коштів за звітний період (рік) | H19: Касові за звітний період (рік) | I19: Фактичні за звітний період (рік) | J19: Залишок на кінець звітного періоду (року)
A22: 1 | B22: 2 | C22: 3 | D22: 4 | E22: 5 | F22: 6 | G22: 7 | H22: 8 | I22: 9 | J22: 9
A23: Видатки та надання кредитів - усього | B23: Х | C23: 010 | D23: =D24+D59+D79+D84+D87 -> 0 | E23: =E26+E29+E32+E33+E37+E45+E46+E86+E54 -> 0 | F23: =F24+F59+F79+F84+F87 -> 0 | G23: =G24+G59+G79+G84+G87 -> 0 | H23: =H24+H59+H79+H84+H87 -> 0 | I23: =I24+I59+I79+I84+I87 -> 0 | J23: =F23+G23-H23 -> 0
A24: у тому числі: Поточні видатки | B24: 2000 | C24: 020 | D24: =D25+D30+D47+D50+D54+D58 -> 0 | E24: 0 | F24: 0 | G24: 0 | H24: 0 | I24: 0 | J24: =F24+G24-H24 -> 0
A25: Оплата праці і нарахування на заробітну плату | B25: 2100 | C25: 030 | D25: =D26+D29 -> 0 | E25: 0 | F25: =F26+F29 -> 0 | G25: =G26+G29 -> 0 | H25: =H26+H29 -> 0 | I25: =I26+I29 -> 0 | J25: 0
A26: Оплата праці | B26: 2110 | C26: 040 | D26: =SUM(D27:D28) -> 0 | E26: 0 | F26: 0 | G26: 0 | H26: 0 | I26: 0 | J26: 0
A27: Заробітна плата | B27: 2111 | C27: 050 | D27: 0 | E27: 0 | F27: 0 | G27: 0 | H27: 0 | I27: 0 | J27: 0
A28: Грошове забезпечення військовослужбовців | B28: 2112 | C28: 060 | D28: 0 | E28: 0 | F28: 0 | G28: 0 | H28: 0 | I28: 0 | J28: 0
A29: Нарахування на оплату праці | B29: 2120 | C29: 070 | D29: 0 | E29: 0 | F29: 0 | G29: 0 | H29: 0 | I29: 0 | J29: 0
A30: Використання товарів і послуг | B30: 2200 | C30: 080 | D30: =SUM(D31:D37)+D44 -> 0 | E30: 0 | F30: =SUM(F31:F37)+F44 -> 0 | G30: =SUM(G31:G37)+G44 -> 0 | H30: =SUM(H31:H37)+H44 -> 0 | I30: =SUM(I31:I37)+I44 -> 0 | J30: 0
A31: Предмети, матеріали, обладнання та інвентар | B31: 2210 | C31: 090 | D31: 0 | E31: 0 | F31: 0 | G31: 0 | H31: 0 | I31: 0 | J31: 0
A32: Медикаменти та перев’язувальні матеріали | B32: 2220 | C32: 100 | D32: 0 | E32: 0 | F32: 0 | G32: 0 | H32: 0 | I32: 0 | J32: 0
A33: Продукти харчування | B33: 2230 | C33: 110 | D33: 0 | E33: 0 | F33: 0 | G33: 0 | H33: 0 | I33: 0 | J33: 0
A34: Оплата послуг (крім комунальних) | B34: 2240 | C34: 120 | D34: 0 | E34: 0 | F34: 0 | G34: 0 | H34: 0 | I34: 0 | J34: 0
A35: Видатки на відрядження | B35: 2250 | C35: 130 | D35: 0 | E35: 0 | F35: 0 | G35: 0 | H35: 0 | I35: 0 | J35: 0
A36: Видатки та заходи спеціального призначення | B36: 2260 | C36: 140 | D36: 0 | E36: 0 | F36: 0 | G36: 0 | H36: 0 | I36: 0 | J36: 0
A37: Оплата комунальних послуг та енергоносіїв | B37: 2270 | C37: 150 | D37: =SUM(D38:D43) -> 0 | E37: 0 | F37: =SUM(F38:F43) -> 0 | G37: =SUM(G38:G43) -> 0 | H37: =SUM(H38:H43) -> 0 | I37: =SUM(I38:I43) -> 0 | J37: =F37+G37-H37 -> 0
A38: Оплата теплопостачання | B38: 2271 | C38: 160 | D38: 0 | E38: 0 | F38: 0 | G38: 0 | H38: 0 | I38: 0 | J38: 0
A39: Оплата водопостачання та водовідведення | B39: 2272 | C39: 170 | D39: 0 | E39: 0 | F39: 0 | G39: 0 | H39: 0 | I39: 0 | J39: 0
A40: Оплата електроенергії | B40: 2273 | C40: 180 | D40: 0 | E40: 0 | F40: 0 | G40: 0 | H40: 0 | I40: 0 | J40: 0
A41: Оплата природного газу | B41: 2274 | C41: 190 | D41: 0 | E41: 0 | F41: 0 | G41: 0 | H41: 0 | I41: 0 | J41: 0
A42: Оплата інших енергоносіїв | B42: 2275 | C42: 200 | D42: 0 | E42: 0 | F42: 0 | G42: 0 | H42: 0 | I42: 0 | J42: 0
A43: Оплата енергосервісу | B43: 2276 | C43: 210 | D43: 0 | E43: 0 | F43: 0 | G43: 0 | H43: 0 | I43: 0 | J43: =F43+G43-H43 -> 0
A44: Дослідження і розробки, окремі заходи по реалізації державних (регіональних) програм | B44: 2280 | C44: 220 | D44: =SUM(D45:D46) -> 0 | E44: 0 | F44: =SUM(F45:F46) -> 0 | G44: =SUM(G45:G46) -> 0 | H44: =SUM(H45:H46) -> 0 | I44: =SUM(I45:I46) -> 0 | J44: 0
A45: Дослідження і розробки, окремі заходи розвитку по реалізації державних (регіональних) програм | B45: 2281 | C45: 230 | D45: 0 | E45: 0 | F45: 0 | G45: 0 | H45: 0 | I45: 0 | J45: 0
A46: Окремі заходи по реалізації державних (регіональних) програм, не віднесені до заходів розвитку | B46: 2282 | C46: 240 | D46: 0 | E46: 0 | F46: 0 | G46: 0 | H46: 0 | I46: 0 | J46: 0
A47: Обслуговування боргових зобов’язань | B47: 2400 | C47: 250 | D47: =SUM(D48:D49) -> 0 | E47: 0 | F47: 0 | G47: 0 | H47: 0 | I47: 0 | J47: 0
A48: Обслуговування внутрішніх боргових зобов’язань | B48: 2410 | C48: 260 | D48: 0 | E48: 0 | F48: 0 | G48: 0 | H48: 0 | I48: 0 | J48: 0
A49: Обслуговування зовнішніх боргових зобов’язань | B49: 2420 | C49: 270 | D49: 0 | E49: 0 | F49: 0 | G49: 0 | H49: 0 | I49: 0 | J49: 0
A50: Поточні трансферти | B50: 2600 | C50: 280 | D50: =SUM(D51:D53) -> 0 | E50: 0 | F50: 0 | G50: 0 | H50: 0 | I50: 0 | J50: 0
A51: Субсидії та поточні трансферти підприємствам (установам, організаціям) | B51: 2610 | C51: 290 | D51: 0 | E51: 0 | F51: 0 | G51: 0 | H51: 0 | I51: 0 | J51: 0
A52: Поточні трансферти органам державного управління інших рівнів | B52: 2620 | C52: 300 | D52: 0 | E52: 0 | F52: 0 | G52: 0 | H52: 0 | I52: 0 | J52: 0
A53: Поточні трансферти урядам іноземних держав та міжнародним організаціям | B53: 2630 | C53: 310 | D53: 0 | E53: 0 | F53: 0 | G53: 0 | H53: 0 | I53: 0 | J53: 0
A54: Соціальне забезпечення | B54: 2700 | C54: 320 | D54: =SUM(D55:D57) -> 0 | E54: 0 | F54: 0 | G54: 0 | H54: 0 | I54: 0 | J54: 0
A55: Виплата пенсій і допомоги | B55: 2710 | C55: 330 | D55: 0 | E55: 0 | F55: 0 | G55: 0 | H55: 0 | I55: 0 | J55: 0
A56: Стипендії | B56: 2720 | C56: 340 | D56: 0 | E56: 0 | F56: 0 | G56: 0 | H56: 0 | I56: 0 | J56: 0
A57: Інші виплати населенню | B57: 2730 | C57: 350 | D57: 0 | E57: 0 | F57: 0 | G57: 0 | H57: 0 | I57: 0 | J57: 0
A58: Інші поточні видатки | B58: 2800 | C58: 360 | D58: 0 | E58: 0 | F58: 0 | G58: 0 | H58: 0 | I58: 0 | J58: 0
A59: Капітальні видатки | B59: 3000 | C59: 370 | D59: =D60+D74 -> 0 | E59: 0 | F59: 0 | G59: 0 | H59: 0 | I59: 0 | J59: 0
A60: Придбання основного капіталу | B60: 3100 | C60: 380 | D60: =D61+D62+D65+D68+D72+D73 -> 0 | E60: 0 | F60: 0 | G60: 0 | H60: 0 | I60: 0 | J60: 0
A61: Придбання обладнання і предметів довгострокового користування | B61: 3110 | C61: 390 | D61: 0 | E61: 0 | F61: 0 | G61: 0 | H61: 0 | I61: 0 | J61: 0
A62: Капітальне будівництво (придбання) | B62: 3120 | C62: 400 | D62: =SUM(D63:D64) -> 0 | E62: 0 | F62: 0 | G62: 0 | H62: 0 | I62: 0 | J62: 0
A63: Капітальне будівництво (придбання) житла | B63: 3121 | C63: 410 | D63: 0 | E63: 0 | F63: 0 | G63: 0 | H63: 0 | I63: 0 | J63: 0
A64: Капітальне будівництво (придбання) інших об’єктів | B64: 3122 | C64: 420 | D64: 0 | E64: 0 | F64: 0 | G64: 0 | H64: 0 | I64: 0 | J64: 0
A65: Капітальний ремонт | B65: 3130 | C65: 430 | D65: =SUM(D66:D67) -> 0 | E65: 0 | F65: 0 | G65: 0 | H65: 0 | I65: 0 | J65: 0
A66: Капітальний ремонт житлового фонду (приміщень) | B66: 3131 | C66: 440 | D66: 0 | E66: 0 | F66: 0 | G66: 0 | H66: 0 | I66: 0 | J66: 0
A67: Капітальний ремонт інших об’єктів | B67: 3132 | C67: 450 | D67: 0 | E67: 0 | F67: 0 | G67: 0 | H67: 0 | I67: 0 | J67: 0
A68: Реконструкція та реставрація | B68: 3140 | C68: 460 | D68: =SUM(D69:D71) -> 0 | E68: 0 | F68: 0 | G68: 0 | H68: 0 | I68: 0 | J68: 0
A69: Реконструкція житлового фонду (приміщень) | B69: 3141 | C69: 470 | D69: 0 | E69: 0 | F69: 0 | G69: 0 | H69: 0 | I69: 0 | J69: 0
A70: Реконструкція та реставрація інших об’єктів | B70: 3142 | C70: 480 | D70: 0 | E70: 0 | F70: 0 | G70: 0 | H70: 0 | I70: 0 | J70: 0
A71: Реставрація пам’яток культури, історії та архітектури | B71: 3143 | C71: 490 | D71: 0 | E71: 0 | F71: 0 | G71: 0 | H71: 0 | I71: 0 | J71: 0
A72: Створення державних запасів і резервів | B72: 3150 | C72: 500 | D72: 0 | E72: 0 | F72: 0 | G72: 0 | H72: 0 | I72: 0 | J72: 0
A73: Придбання землі та нематеріальних активів | B73: 3160 | C73: 510 | D73: 0 | E73: 0 | F73: 0 | G73: 0 | H73: 0 | I73: 0 | J73: 0
A74: Капітальні трансферти | B74: 3200 | C74: 520 | D74: =SUM(D75:D78) -> 0 | E74: 0 | F74: 0 | G74: 0 | H74: 0 | I74: 0 | J74: 0
A75: Капітальні трансферти підприємствам (установам, організаціям) | B75: 3210 | C75: 530 | D75: 0 | E75: 0 | F75: 0 | G75: 0 | H75: 0 | I75: 0 | J75: 0
A76: Капітальні трансферти органам державного управління інших рівнів | B76: 3220 | C76: 540 | D76: 0 | E76: 0 | F76: 0 | G76: 0 | H76: 0 | I76: 0 | J76: 0
A77: Капітальні трансферти урядам іноземних держав та міжнародним організаціям | B77: 3230 | C77: 550 | D77: 0 | E77: 0 | F77: 0 | G77: 0 | H77: 0 | I77: 0 | J77: 0
A78: Капітальні трансферти населенню | B78: 3240 | C78: 560 | D78: 0 | E78: 0 | F78: 0 | G78: 0 | H78: 0 | I78: 0 | J78: 0
A79: Внутрішнє кредитування | B79: 4100 | C79: 570 | D79: =SUM(D80) -> 0 | E79: 0 | F79: 0 | G79: 0 | H79: 0 | I79: 0 | J79: 0
A80: Надання внутрішніх кредитів | B80: 4110 | C80: 580 | D80: =SUM(D81:D83) -> 0 | E80: 0 | F80: 0 | G80: 0 | H80: 0 | I80: 0 | J80: 0
A81: Надання кредитів органам державного управління інших рівнів | B81: 4111 | C81: 590 | D81: 0 | E81: 0 | F81: 0 | G81: 0 | H81: 0 | I81: 0 | J81: 0
A82: Надання кредитів підприємствам, установам, організаціям | B82: 4112 | C82: 600 | D82: 0 | E82: 0 | F82: 0 | G82: 0 | H82: 0 | I82: 0 | J82: 0
A83: Надання інших внутрішніх кредитів | B83: 4113 | C83: 610 | D83: 0 | E83: 0 | F83: 0 | G83: 0 | H83: 0 | I83: 0 | J83: 0
A84: Зовнішнє кредитування | B84: 4200 | C84: 620 | D84: =D85 -> 0 | E84: 0 | F84: 0 | G84: 0 | H84: 0 | I84: 0 | J84: 0
A85: Надання зовнішніх кредитів | B85: 4210 | C85: 630 | D85: 0 | E85: 0 | F85: 0 | G85: 0 | H85: 0 | I85: 0 | J85: 0
A86: Інші видатки | B86: 5000 | C86: 640 | D86: X | E86: 0 | F86: X | G86: X | H86: X | I86: X | J86: X
A87: Нерозподілені видатки | B87: 9000 | C87: 650 | D87: 0 | E87: 0 | F87: 0 | G87: 0 | H87: 0 | I87: 0 | J87: 0
C88: 650
A100: 1 Заповнюється розпорядниками бюджетних коштів.
A101: =ЗАПОЛНИТЬ!F30 -> Міський голова | G101: =ЗАПОЛНИТЬ!F26 -> Бондаренко О.А.
D102: (підпис) | G102: (ініціали, прізвище)
A103: =ЗАПОЛНИТЬ!F31 -> Начальник відділу бухгалтерського обліку, планування та звітності | G103: =ЗАПОЛНИТЬ!F28 -> Топчій Н.М.
A104: =ЗАПОЛНИТЬ!C19 -> "10"січня 2018 року | D104: (підпис) | G104: (ініціали, прізвище)

Sheet Ф.2.18 (hidden)
G1: Додаток 1 до Порядку складання бюджетної звітності розпорядниками та одержувачами бюджетних коштів, звітності фондами загальнообов’язкового державного соціального і пенсійного страхування (пункт 1 розділу ІІ)
A4: ЗВІТ
A5: =IF(ЗАПОЛНИТЬ!$F$7=1,CONCATENATE(шапки!A2),CONCATENATE(шапки!A2,шапки!C2)) -> про надходження та використання коштів загального фонду (форма №2д, | G5: =IF(ЗАПОЛНИТЬ!$F$7=1,шапки!C2,шапки!D2) -> №2м) | H5: =IF(ЗАПОЛНИТЬ!$F$7=1,шапки!D2,"") -> 
A6: =CONCATENATE("за ",ЗАПОЛНИТЬ!$B$17," ",ЗАПОЛНИТЬ!$C$17) -> за 2017 р.
J7: коди
A9: Установа | B9: =ЗАПОЛНИТЬ!B3 -> Новгород-Сіверська міська рада | H9: за ЄДРПОУ | J9: =ЗАПОЛНИТЬ!B13 -> 04061978
A10: Територія | B10: =ЗАПОЛНИТЬ!B5 -> 16000 Чернігівська обл.,м.Новгород-Сіверський вул. Губернська, 2 | H10: за КОАТУУ | J10: =ЗАПОЛНИТЬ!B14 -> 7410500000
A11: Організаційно-правова форма господарювання | B11: =ЗАПОЛНИТЬ!D15 -> Орган місцевого самоврядування | H11: за КОПФГ | J11: =ЗАПОЛНИТЬ!B15 -> 420
A12: Код та назва відомчої класифікації видатків та кредитування державного бюджету | D12: =ЗАПОЛНИТЬ!H9 -> 0 | E12: =IF(D12>0,VLOOKUP(D12,'ДовидникКВК(ГОС)'!A:B,2,FALSE),"") -> 
A13: Код та назва програмної класифікації видатків та кредитування державного бюджету | E13: =IF(D13>0,VLOOKUP(D13,ДовидникКПК!B:C,2,FALSE),"") -> 
A14: Код та назва типової відомчої класифікації видатків та кредитування місцевих бюджетів | D14: =ЗАПОЛНИТЬ!H10 -> 01 | E14: =ЗАПОЛНИТЬ!I10 -> рада
A15: Код та назва програмної класифікації видатків та кредитування місцевих бюджетів (код та назва Типової програмної класифікації видатків та кредитування місцевих бюджетів / Тимчасової класифікації видатків та кредитування для бюджетів місцевого самоврядування, які не застосовують програмно-цільового методу) | D15: - | E15: =VLOOKUP(RIGHT(D15,4),КПКВМБ!A:B,2,FALSE) -> -
A16: Періодичність: квартальна, річна
A17: Одиниця виміру: грн, коп.
A19: Показники | B19: КЕКВ та/або ККК | C19: Код рядка | D19: Затверджено на звітний рік | E19: Затверджено на звітний період (рік)1 | F19: Залишок на початок звітного року | G19: Надійшло коштів за звітний період (рік) | H19: Касові за звітний період (рік) | I19: Фактичні за звітний період (рік) | J19: Залишок на кінець звітного періоду (року)
A22: 1 | B22: 2 | C22: 3 | D22: 4 | E22: 5 | F22: 6 | G22: 7 | H22: 8 | I22: 9 | J22: 9
A23: Видатки та надання кредитів - усього | B23: Х | C23: 010 | D23: =D24+D59+D79+D84+D87 -> 0 | E23: =E26+E29+E32+E33+E37+E45+E46+E86+E54 -> 0 | F23: =F24+F59+F79+F84+F87 -> 0 | G23: =G24+G59+G79+G84+G87 -> 0 | H23: =H24+H59+H79+H84+H87 -> 0 | I23: =I24+I59+I79+I84+I87 -> 0 | J23: =F23+G23-H23 -> 0
A24: у тому числі: Поточні видатки | B24: 2000 | C24: 020 | D24: =D25+D30+D47+D50+D54+D58 -> 0 | E24: 0 | F24: 0 | G24: 0 | H24: 0 | I24: 0 | J24: =F24+G24-H24 -> 0
A25: Оплата праці і нарахування на заробітну плату | B25: 2100 | C25: 030 | D25: =D26+D29 -> 0 | E25: 0 | F25: =F26+F29 -> 0 | G25: =G26+G29 -> 0 | H25: =H26+H29 -> 0 | I25: =I26+I29 -> 0 | J25: 0
A26: Оплата праці | B26: 2110 | C26: 040 | D26: =SUM(D27:D28) -> 0 | E26: 0 | F26: 0 | G26: 0 | H26: 0 | I26: 0 | J26: 0
A27: Заробітна плата | B27: 2111 | C27: 050 | D27: 0 | E27: 0 | F27: 0 | G27: 0 | H27: 0 | I27: 0 | J27: 0
A28: Грошове забезпечення військовослужбовців | B28: 2112 | C28: 060 | D28: 0 | E28: 0 | F28: 0 | G28: 0 | H28: 0 | I28: 0 | J28: 0
A29: Нарахування на оплату праці | B29: 2120 | C29: 070 | D29: 0 | E29: 0 | F29: 0 | G29: 0 | H29: 0 | I29: 0 | J29: 0
A30: Використання товарів і послуг | B30: 2200 | C30: 080 | D30: =SUM(D31:D37)+D44 -> 0 | E30: 0 | F30: =SUM(F31:F37)+F44 -> 0 | G30: =SUM(G31:G37)+G44 -> 0 | H30: =SUM(H31:H37)+H44 -> 0 | I30: =SUM(I31:I37)+I44 -> 0 | J30: 0
A31: Предмети, матеріали, обладнання та інвентар | B31: 2210 | C31: 090 | D31: 0 | E31: 0 | F31: 0 | G31: 0 | H31: 0 | I31: 0 | J31: 0
A32: Медикаменти та перев’язувальні матеріали | B32: 2220 | C32: 100 | D32: 0 | E32: 0 | F32: 0 | G32: 0 | H32: 0 | I32: 0 | J32: 0
A33: Продукти харчування | B33: 2230 | C33: 110 | D33: 0 | E33: 0 | F33: 0 | G33: 0 | H33: 0 | I33: 0 | J33: 0
A34: Оплата послуг (крім комунальних) | B34: 2240 | C34: 120 | D34: 0 | E34: 0 | F34: 0 | G34: 0 | H34: 0 | I34: 0 | J34: 0
A35: Видатки на відрядження | B35: 2250 | C35: 130 | D35: 0 | E35: 0 | F35: 0 | G35: 0 | H35: 0 | I35: 0 | J35: 0
A36: Видатки та заходи спеціального призначення | B36: 2260 | C36: 140 | D36: 0 | E36: 0 | F36: 0 | G36: 0 | H36: 0 | I36: 0 | J36: 0
A37: Оплата комунальних послуг та енергоносіїв | B37: 2270 | C37: 150 | D37: =SUM(D38:D43) -> 0 | E37: 0 | F37: =SUM(F38:F43) -> 0 | G37: =SUM(G38:G43) -> 0 | H37: =SUM(H38:H43) -> 0 | I37: =SUM(I38:I43) -> 0 | J37: =F37+G37-H37 -> 0
A38: Оплата теплопостачання | B38: 2271 | C38: 160 | D38: 0 | E38: 0 | F38: 0 | G38: 0 | H38: 0 | I38: 0 | J38: 0
A39: Оплата водопостачання та водовідведення | B39: 2272 | C39: 170 | D39: 0 | E39: 0 | F39: 0 | G39: 0 | H39: 0 | I39: 0 | J39: 0
A40: Оплата електроенергії | B40: 2273 | C40: 180 | D40: 0 | E40: 0 | F40: 0 | G40: 0 | H40: 0 | I40: 0 | J40: 0
A41: Оплата природного газу | B41: 2274 | C41: 190 | D41: 0 | E41: 0 | F41: 0 | G41: 0 | H41: 0 | I41: 0 | J41: 0
A42: Оплата інших енергоносіїв | B42: 2275 | C42: 200 | D42: 0 | E42: 0 | F42: 0 | G42: 0 | H42: 0 | I42: 0 | J42: 0
A43: Оплата енергосервісу | B43: 2276 | C43: 210 | D43: 0 | E43: 0 | F43: 0 | G43: 0 | H43: 0 | I43: 0 | J43: =F43+G43-H43 -> 0
A44: Дослідження і розробки, окремі заходи по реалізації державних (регіональних) програм | B44: 2280 | C44: 220 | D44: =SUM(D45:D46) -> 0 | E44: 0 | F44: =SUM(F45:F46) -> 0 | G44: =SUM(G45:G46) -> 0 | H44: =SUM(H45:H46) -> 0 | I44: =SUM(I45:I46) -> 0 | J44: 0
A45: Дослідження і розробки, окремі заходи розвитку по реалізації державних (регіональних) програм | B45: 2281 | C45: 230 | D45: 0 | E45: 0 | F45: 0 | G45: 0 | H45: 0 | I45: 0 | J45: 0
A46: Окремі заходи по реалізації державних (регіональних) програм, не віднесені до заходів розвитку | B46: 2282 | C46: 240 | D46: 0 | E46: 0 | F46: 0 | G46: 0 | H46: 0 | I46: 0 | J46: 0
A47: Обслуговування боргових зобов’язань | B47: 2400 | C47: 250 | D47: =SUM(D48:D49) -> 0 | E47: 0 | F47: 0 | G47: 0 | H47: 0 | I47: 0 | J47: 0
A48: Обслуговування внутрішніх боргових зобов’язань | B48: 2410 | C48: 260 | D48: 0 | E48: 0 | F48: 0 | G48: 0 | H48: 0 | I48: 0 | J48: 0
A49: Обслуговування зовнішніх боргових зобов’язань | B49: 2420 | C49: 270 | D49: 0 | E49: 0 | F49: 0 | G49: 0 | H49: 0 | I49: 0 | J49: 0
A50: Поточні трансферти | B50: 2600 | C50: 280 | D50: =SUM(D51:D53) -> 0 | E50: 0 | F50: 0 | G50: 0 | H50: 0 | I50: 0 | J50: 0
A51: Субсидії та поточні трансферти підприємствам (установам, організаціям) | B51: 2610 | C51: 290 | D51: 0 | E51: 0 | F51: 0 | G51: 0 | H51: 0 | I51: 0 | J51: 0
A52: Поточні трансферти органам державного управління інших рівнів | B52: 2620 | C52: 300 | D52: 0 | E52: 0 | F52: 0 | G52: 0 | H52: 0 | I52: 0 | J52: 0
A53: Поточні трансферти урядам іноземних держав та міжнародним організаціям | B53: 2630 | C53: 310 | D53: 0 | E53: 0 | F53: 0 | G53: 0 | H53: 0 | I53: 0 | J53: 0
A54: Соціальне забезпечення | B54: 2700 | C54: 320 | D54: =SUM(D55:D57) -> 0 | E54: 0 | F54: 0 | G54: 0 | H54: 0 | I54: 0 | J54: 0
A55: Виплата пенсій і допомоги | B55: 2710 | C55: 330 | D55: 0 | E55: 0 | F55: 0 | G55: 0 | H55: 0 | I55: 0 | J55: 0
A56: Стипендії | B56: 2720 | C56: 340 | D56: 0 | E56: 0 | F56: 0 | G56: 0 | H56: 0 | I56: 0 | J56: 0
A57: Інші виплати населенню | B57: 2730 | C57: 350 | D57: 0 | E57: 0 | F57: 0 | G57: 0 | H57: 0 | I57: 0 | J57: 0
A58: Інші поточні видатки | B58: 2800 | C58: 360 | D58: 0 | E58: 0 | F58: 0 | G58: 0 | H58: 0 | I58: 0 | J58: 0
A59: Капітальні видатки | B59: 3000 | C59: 370 | D59: =D60+D74 -> 0 | E59: 0 | F59: 0 | G59: 0 | H59: 0 | I59: 0 | J59: 0
A60: Придбання основного капіталу | B60: 3100 | C60: 380 | D60: =D61+D62+D65+D68+D72+D73 -> 0 | E60: 0 | F60: 0 | G60: 0 | H60: 0 | I60: 0 | J60: 0
A61: Придбання обладнання і предметів довгострокового користування | B61: 3110 | C61: 390 | D61: 0 | E61: 0 | F61: 0 | G61: 0 | H61: 0 | I61: 0 | J61: 0
A62: Капітальне будівництво (придбання) | B62: 3120 | C62: 400 | D62: =SUM(D63:D64) -> 0 | E62: 0 | F62: 0 | G62: 0 | H62: 0 | I62: 0 | J62: 0
A63: Капітальне будівництво (придбання) житла | B63: 3121 | C63: 410 | D63: 0 | E63: 0 | F63: 0 | G63: 0 | H63: 0 | I63: 0 | J63: 0
A64: Капітальне будівництво (придбання) інших об’єктів | B64: 3122 | C64: 420 | D64: 0 | E64: 0 | F64: 0 | G64: 0 | H64: 0 | I64: 0 | J64: 0
A65: Капітальний ремонт | B65: 3130 | C65: 430 | D65: =SUM(D66:D67) -> 0 | E65: 0 | F65: 0 | G65: 0 | H65: 0 | I65: 0 | J65: 0
A66: Капітальний ремонт житлового фонду (приміщень) | B66: 3131 | C66: 440 | D66: 0 | E66: 0 | F66: 0 | G66: 0 | H66: 0 | I66: 0 | J66: 0
A67: Капітальний ремонт інших об’єктів | B67: 3132 | C67: 450 | D67: 0 | E67: 0 | F67: 0 | G67: 0 | H67: 0 | I67: 0 | J67: 0
A68: Реконструкція та реставрація | B68: 3140 | C68: 460 | D68: =SUM(D69:D71) -> 0 | E68: 0 | F68: 0 | G68: 0 | H68: 0 | I68: 0 | J68: 0
A69: Реконструкція житлового фонду (приміщень) | B69: 3141 | C69: 470 | D69: 0 | E69: 0 | F69: 0 | G69: 0 | H69: 0 | I69: 0 | J69: 0
A70: Реконструкція та реставрація інших об’єктів | B70: 3142 | C70: 480 | D70: 0 | E70: 0 | F70: 0 | G70: 0 | H70: 0 | I70: 0 | J70: 0
A71: Реставрація пам’яток культури, історії та архітектури | B71: 3143 | C71: 490 | D71: 0 | E71: 0 | F71: 0 | G71: 0 | H71: 0 | I71: 0 | J71: 0
A72: Створення державних запасів і резервів | B72: 3150 | C72: 500 | D72: 0 | E72: 0 | F72: 0 | G72: 0 | H72: 0 | I72: 0 | J72: 0
A73: Придбання землі та нематеріальних активів | B73: 3160 | C73: 510 | D73: 0 | E73: 0 | F73: 0 | G73: 0 | H73: 0 | I73: 0 | J73: 0
A74: Капітальні трансферти | B74: 3200 | C74: 520 | D74: =SUM(D75:D78) -> 0 | E74: 0 | F74: 0 | G74: 0 | H74: 0 | I74: 0 | J74: 0
A75: Капітальні трансферти підприємствам (установам, організаціям) | B75: 3210 | C75: 530 | D75: 0 | E75: 0 | F75: 0 | G75: 0 | H75: 0 | I75: 0 | J75: 0
A76: Капітальні трансферти органам державного управління інших рівнів | B76: 3220 | C76: 540 | D76: 0 | E76: 0 | F76: 0 | G76: 0 | H76: 0 | I76: 0 | J76: 0
A77: Капітальні трансферти урядам іноземних держав та міжнародним організаціям | B77: 3230 | C77: 550 | D77: 0 | E77: 0 | F77: 0 | G77: 0 | H77: 0 | I77: 0 | J77: 0
A78: Капітальні трансферти населенню | B78: 3240 | C78: 560 | D78: 0 | E78: 0 | F78: 0 | G78: 0 | H78: 0 | I78: 0 | J78: 0
A79: Внутрішнє кредитування | B79: 4100 | C79: 570 | D79: =SUM(D80) -> 0 | E79: 0 | F79: 0 | G79: 0 | H79: 0 | I79: 0 | J79: 0
A80: Надання внутрішніх кредитів | B80: 4110 | C80: 580 | D80: =SUM(D81:D83) -> 0 | E80: 0 | F80: 0 | G80: 0 | H80: 0 | I80: 0 | J80: 0
A81: Надання кредитів органам державного управління інших рівнів | B81: 4111 | C81: 590 | D81: 0 | E81: 0 | F81: 0 | G81: 0 | H81: 0 | I81: 0 | J81: 0
A82: Надання кредитів підприємствам, установам, організаціям | B82: 4112 | C82: 600 | D82: 0 | E82: 0 | F82: 0 | G82: 0 | H82: 0 | I82: 0 | J82: 0
A83: Надання інших внутрішніх кредитів | B83: 4113 | C83: 610 | D83: 0 | E83: 0 | F83: 0 | G83: 0 | H83: 0 | I83: 0 | J83: 0
A84: Зовнішнє кредитування | B84: 4200 | C84: 620 | D84: =D85 -> 0 | E84: 0 | F84: 0 | G84: 0 | H84: 0 | I84: 0 | J84: 0
A85: Надання зовнішніх кредитів | B85: 4210 | C85: 630 | D85: 0 | E85: 0 | F85: 0 | G85: 0 | H85: 0 | I85: 0 | J85: 0
A86: Інші видатки | B86: 5000 | C86: 640 | D86: X | E86: 0 | F86: X | G86: X | H86: X | I86: X | J86: X
A87: Нерозподілені видатки | B87: 9000 | C87: 650 | D87: 0 | E87: 0 | F87: 0 | G87: 0 | H87: 0 | I87: 0 | J87: 0
C88: 650
A100: 1 Заповнюється розпорядниками бюджетних коштів.
A101: =ЗАПОЛНИТЬ!F30 -> Міський голова | G101: =ЗАПОЛНИТЬ!F26 -> Бондаренко О.А.
D102: (підпис) | G102: (ініціали, прізвище)
A103: =ЗАПОЛНИТЬ!F31 -> Начальник відділу бухгалтерського обліку, планування та звітності | G103: =ЗАПОЛНИТЬ!F28 -> Топчій Н.М.
A104: =ЗАПОЛНИТЬ!C19 -> "10"січня 2018 року | D104: (підпис) | G104: (ініціали, прізвище)

Sheet Ф.2.19 (hidden)
G1: Додаток 1 до Порядку складання бюджетної звітності розпорядниками та одержувачами бюджетних коштів, звітності фондами загальнообов’язкового державного соціального і пенсійного страхування (пункт 1 розділу ІІ)
A4: ЗВІТ
A5: =IF(ЗАПОЛНИТЬ!$F$7=1,CONCATENATE(шапки!A2),CONCATENATE(шапки!A2,шапки!C2)) -> про надходження та використання коштів загального фонду (форма №2д, | G5: =IF(ЗАПОЛНИТЬ!$F$7=1,шапки!C2,шапки!D2) -> №2м) | H5: =IF(ЗАПОЛНИТЬ!$F$7=1,шапки!D2,"") -> 
A6: =CONCATENATE("за ",ЗАПОЛНИТЬ!$B$17," ",ЗАПОЛНИТЬ!$C$17) -> за 2017 р.
J7: коди
A9: Установа | B9: =ЗАПОЛНИТЬ!B3 -> Новгород-Сіверська міська рада | H9: за ЄДРПОУ | J9: =ЗАПОЛНИТЬ!B13 -> 04061978
A10: Територія | B10: =ЗАПОЛНИТЬ!B5 -> 16000 Чернігівська обл.,м.Новгород-Сіверський вул. Губернська, 2 | H10: за КОАТУУ | J10: =ЗАПОЛНИТЬ!B14 -> 7410500000
A11: Організаційно-правова форма господарювання | B11: =ЗАПОЛНИТЬ!D15 -> Орган місцевого самоврядування | H11: за КОПФГ | J11: =ЗАПОЛНИТЬ!B15 -> 420
A12: Код та назва відомчої класифікації видатків та кредитування державного бюджету | D12: =ЗАПОЛНИТЬ!H9 -> 0 | E12: =IF(D12>0,VLOOKUP(D12,'ДовидникКВК(ГОС)'!A:B,2,FALSE),"") -> 
A13: Код та назва програмної класифікації видатків та кредитування державного бюджету | E13: =IF(D13>0,VLOOKUP(D13,ДовидникКПК!B:C,2,FALSE),"") -> 
A14: Код та назва типової відомчої класифікації видатків та кредитування місцевих бюджетів | D14: =ЗАПОЛНИТЬ!H10 -> 01 | E14: =ЗАПОЛНИТЬ!I10 -> рада
A15: Код та назва програмної класифікації видатків та кредитування місцевих бюджетів (код та назва Типової програмної класифікації видатків та кредитування місцевих бюджетів / Тимчасової класифікації видатків та кредитування для бюджетів місцевого самоврядування, які не застосовують програмно-цільового методу) | D15: - | E15: =VLOOKUP(RIGHT(D15,4),КПКВМБ!A:B,2,FALSE) -> -
A16: Періодичність: квартальна, річна
A17: Одиниця виміру: грн, коп.
A19: Показники | B19: КЕКВ та/або ККК | C19: Код рядка | D19: Затверджено на звітний рік | E19: Затверджено на звітний період (рік)1 | F19: Залишок на початок звітного року | G19: Надійшло коштів за звітний період (рік) | H19: Касові за звітний період (рік) | I19: Фактичні за звітний період (рік) | J19: Залишок на кінець звітного періоду (року)
A22: 1 | B22: 2 | C22: 3 | D22: 4 | E22: 5 | F22: 6 | G22: 7 | H22: 8 | I22: 9 | J22: 9
A23: Видатки та надання кредитів - усього | B23: Х | C23: 010 | D23: =D24+D59+D79+D84+D87 -> 0 | E23: =E26+E29+E32+E33+E37+E45+E46+E86+E54 -> 0 | F23: =F24+F59+F79+F84+F87 -> 0 | G23: =G24+G59+G79+G84+G87 -> 0 | H23: =H24+H59+H79+H84+H87 -> 0 | I23: =I24+I59+I79+I84+I87 -> 0 | J23: =F23+G23-H23 -> 0
A24: у тому числі: Поточні видатки | B24: 2000 | C24: 020 | D24: =D25+D30+D47+D50+D54+D58 -> 0 | E24: 0 | F24: 0 | G24: 0 | H24: 0 | I24: 0 | J24: =F24+G24-H24 -> 0
A25: Оплата праці і нарахування на заробітну плату | B25: 2100 | C25: 030 | D25: =D26+D29 -> 0 | E25: 0 | F25: =F26+F29 -> 0 | G25: =G26+G29 -> 0 | H25: =H26+H29 -> 0 | I25: =I26+I29 -> 0 | J25: 0
A26: Оплата праці | B26: 2110 | C26: 040 | D26: =SUM(D27:D28) -> 0 | E26: 0 | F26: 0 | G26: 0 | H26: 0 | I26: 0 | J26: 0
A27: Заробітна плата | B27: 2111 | C27: 050 | D27: 0 | E27: 0 | F27: 0 | G27: 0 | H27: 0 | I27: 0 | J27: 0
A28: Грошове забезпечення військовослужбовців | B28: 2112 | C28: 060 | D28: 0 | E28: 0 | F28: 0 | G28: 0 | H28: 0 | I28: 0 | J28: 0
A29: Нарахування на оплату праці | B29: 2120 | C29: 070 | D29: 0 | E29: 0 | F29: 0 | G29: 0 | H29: 0 | I29: 0 | J29: 0
A30: Використання товарів і послуг | B30: 2200 | C30: 080 | D30: =SUM(D31:D37)+D44 -> 0 | E30: 0 | F30: =SUM(F31:F37)+F44 -> 0 | G30: =SUM(G31:G37)+G44 -> 0 | H30: =SUM(H31:H37)+H44 -> 0 | I30: =SUM(I31:I37)+I44 -> 0 | J30: 0
A31: Предмети, матеріали, обладнання та інвентар | B31: 2210 | C31: 090 | D31: 0 | E31: 0 | F31: 0 | G31: 0 | H31: 0 | I31: 0 | J31: 0
A32: Медикаменти та перев’язувальні матеріали | B32: 2220 | C32: 100 | D32: 0 | E32: 0 | F32: 0 | G32: 0 | H32: 0 | I32: 0 | J32: 0
A33: Продукти харчування | B33: 2230 | C33: 110 | D33: 0 | E33: 0 | F33: 0 | G33: 0 | H33: 0 | I33: 0 | J33: 0
A34: Оплата послуг (крім комунальних) | B34: 2240 | C34: 120 | D34: 0 | E34: 0 | F34: 0 | G34: 0 | H34: 0 | I34: 0 | J34: 0
A35: Видатки на відрядження | B35: 2250 | C35: 130 | D35: 0 | E35: 0 | F35: 0 | G35: 0 | H35: 0 | I35: 0 | J35: 0
A36: Видатки та заходи спеціального призначення | B36: 2260 | C36: 140 | D36: 0 | E36: 0 | F36: 0 | G36: 0 | H36: 0 | I36: 0 | J36: 0
A37: Оплата комунальних послуг та енергоносіїв | B37: 2270 | C37: 150 | D37: =SUM(D38:D43) -> 0 | E37: 0 | F37: =SUM(F38:F43) -> 0 | G37: =SUM(G38:G43) -> 0 | H37: =SUM(H38:H43) -> 0 | I37: =SUM(I38:I43) -> 0 | J37: =F37+G37-H37 -> 0
A38: Оплата теплопостачання | B38: 2271 | C38: 160 | D38: 0 | E38: 0 | F38: 0 | G38: 0 | H38: 0 | I38: 0 | J38: 0
A39: Оплата водопостачання та водовідведення | B39: 2272 | C39: 170 | D39: 0 | E39: 0 | F39: 0 | G39: 0 | H39: 0 | I39: 0 | J39: 0
A40: Оплата електроенергії | B40: 2273 | C40: 180 | D40: 0 | E40: 0 | F40: 0 | G40: 0 | H40: 0 | I40: 0 | J40: 0
A41: Оплата природного газу | B41: 2274 | C41: 190 | D41: 0 | E41: 0 | F41: 0 | G41: 0 | H41: 0 | I41: 0 | J41: 0
A42: Оплата інших енергоносіїв | B42: 2275 | C42: 200 | D42: 0 | E42: 0 | F42: 0 | G42: 0 | H42: 0 | I42: 0 | J42: 0
A43: Оплата енергосервісу | B43: 2276 | C43: 210 | D43: 0 | E43: 0 | F43: 0 | G43: 0 | H43: 0 | I43: 0 | J43: =F43+G43-H43 -> 0
A44: Дослідження і розробки, окремі заходи по реалізації державних (регіональних) програм | B44: 2280 | C44: 220 | D44: =SUM(D45:D46) -> 0 | E44: 0 | F44: =SUM(F45:F46) -> 0 | G44: =SUM(G45:G46) -> 0 | H44: =SUM(H45:H46) -> 0 | I44: =SUM(I45:I46) -> 0 | J44: 0
A45: Дослідження і розробки, окремі заходи розвитку по реалізації державних (регіональних) програм | B45: 2281 | C45: 230 | D45: 0 | E45: 0 | F45: 0 | G45: 0 | H45: 0 | I45: 0 | J45: 0
A46: Окремі заходи по реалізації державних (регіональних) програм, не віднесені до заходів розвитку | B46: 2282 | C46: 240 | D46: 0 | E46: 0 | F46: 0 | G46: 0 | H46: 0 | I46: 0 | J46: 0
A47: Обслуговування боргових зобов’язань | B47: 2400 | C47: 250 | D47: =SUM(D48:D49) -> 0 | E47: 0 | F47: 0 | G47: 0 | H47: 0 | I47: 0 | J47: 0
A48: Обслуговування внутрішніх боргових зобов’язань | B48: 2410 | C48: 260 | D48: 0 | E48: 0 | F48: 0 | G48: 0 | H48: 0 | I48: 0 | J48: 0
A49: Обслуговування зовнішніх боргових зобов’язань | B49: 2420 | C49: 270 | D49: 0 | E49: 0 | F49: 0 | G49: 0 | H49: 0 | I49: 0 | J49: 0
A50: Поточні трансферти | B50: 2600 | C50: 280 | D50: =SUM(D51:D53) -> 0 | E50: 0 | F50: 0 | G50: 0 | H50: 0 | I50: 0 | J50: 0
A51: Субсидії та поточні трансферти підприємствам (установам, організаціям) | B51: 2610 | C51: 290 | D51: 0 | E51: 0 | F51: 0 | G51: 0 | H51: 0 | I51: 0 | J51: 0
A52: Поточні трансферти органам державного управління інших рівнів | B52: 2620 | C52: 300 | D52: 0 | E52: 0 | F52: 0 | G52: 0 | H52: 0 | I52: 0 | J52: 0
A53: Поточні трансферти урядам іноземних держав та міжнародним організаціям | B53: 2630 | C53: 310 | D53: 0 | E53: 0 | F53: 0 | G53: 0 | H53: 0 | I53: 0 | J53: 0
A54: Соціальне забезпечення | B54: 2700 | C54: 320 | D54: =SUM(D55:D57) -> 0 | E54: 0 | F54: 0 | G54: 0 | H54: 0 | I54: 0 | J54: 0
A55: Виплата пенсій і допомоги | B55: 2710 | C55: 330 | D55: 0 | E55: 0 | F55: 0 | G55: 0 | H55: 0 | I55: 0 | J55: 0
A56: Стипендії | B56: 2720 | C56: 340 | D56: 0 | E56: 0 | F56: 0 | G56: 0 | H56: 0 | I56: 0 | J56: 0
A57: Інші виплати населенню | B57: 2730 | C57: 350 | D57: 0 | E57: 0 | F57: 0 | G57: 0 | H57: 0 | I57: 0 | J57: 0
A58: Інші поточні видатки | B58: 2800 | C58: 360 | D58: 0 | E58: 0 | F58: 0 | G58: 0 | H58: 0 | I58: 0 | J58: 0
A59: Капітальні видатки | B59: 3000 | C59: 370 | D59: =D60+D74 -> 0 | E59: 0 | F59: 0 | G59: 0 | H59: 0 | I59: 0 | J59: 0
A60: Придбання основного капіталу | B60: 3100 | C60: 380 | D60: =D61+D62+D65+D68+D72+D73 -> 0 | E60: 0 | F60: 0 | G60: 0 | H60: 0 | I60: 0 | J60: 0
A61: Придбання обладнання і предметів довгострокового користування | B61: 3110 | C61: 390 | D61: 0 | E61: 0 | F61: 0 | G61: 0 | H61: 0 | I61: 0 | J61: 0
A62: Капітальне будівництво (придбання) | B62: 3120 | C62: 400 | D62: =SUM(D63:D64) -> 0 | E62: 0 | F62: 0 | G62: 0 | H62: 0 | I62: 0 | J62: 0
A63: Капітальне будівництво (придбання) житла | B63: 3121 | C63: 410 | D63: 0 | E63: 0 | F63: 0 | G63: 0 | H63: 0 | I63: 0 | J63: 0
A64: Капітальне будівництво (придбання) інших об’єктів | B64: 3122 | C64: 420 | D64: 0 | E64: 0 | F64: 0 | G64: 0 | H64: 0 | I64: 0 | J64: 0
A65: Капітальний ремонт | B65: 3130 | C65: 430 | D65: =SUM(D66:D67) -> 0 | E65: 0 | F65: 0 | G65: 0 | H65: 0 | I65: 0 | J65: 0
A66: Капітальний ремонт житлового фонду (приміщень) | B66: 3131 | C66: 440 | D66: 0 | E66: 0 | F66: 0 | G66: 0 | H66: 0 | I66: 0 | J66: 0
A67: Капітальний ремонт інших об’єктів | B67: 3132 | C67: 450 | D67: 0 | E67: 0 | F67: 0 | G67: 0 | H67: 0 | I67: 0 | J67: 0
A68: Реконструкція та реставрація | B68: 3140 | C68: 460 | D68: =SUM(D69:D71) -> 0 | E68: 0 | F68: 0 | G68: 0 | H68: 0 | I68: 0 | J68: 0
A69: Реконструкція житлового фонду (приміщень) | B69: 3141 | C69: 470 | D69: 0 | E69: 0 | F69: 0 | G69: 0 | H69: 0 | I69: 0 | J69: 0
A70: Реконструкція та реставрація інших об’єктів | B70: 3142 | C70: 480 | D70: 0 | E70: 0 | F70: 0 | G70: 0 | H70: 0 | I70: 0 | J70: 0
A71: Реставрація пам’яток культури, історії та архітектури | B71: 3143 | C71: 490 | D71: 0 | E71: 0 | F71: 0 | G71: 0 | H71: 0 | I71: 0 | J71: 0
A72: Створення державних запасів і резервів | B72: 3150 | C72: 500 | D72: 0 | E72: 0 | F72: 0 | G72: 0 | H72: 0 | I72: 0 | J72: 0
A73: Придбання землі та нематеріальних активів | B73: 3160 | C73: 510 | D73: 0 | E73: 0 | F73: 0 | G73: 0 | H73: 0 | I73: 0 | J73: 0
A74: Капітальні трансферти | B74: 3200 | C74: 520 | D74: =SUM(D75:D78) -> 0 | E74: 0 | F74: 0 | G74: 0 | H74: 0 | I74: 0 | J74: 0
A75: Капітальні трансферти підприємствам (установам, організаціям) | B75: 3210 | C75: 530 | D75: 0 | E75: 0 | F75: 0 | G75: 0 | H75: 0 | I75: 0 | J75: 0
A76: Капітальні трансферти органам державного управління інших рівнів | B76: 3220 | C76: 540 | D76: 0 | E76: 0 | F76: 0 | G76: 0 | H76: 0 | I76: 0 | J76: 0
A77: Капітальні трансферти урядам іноземних держав та міжнародним організаціям | B77: 3230 | C77: 550 | D77: 0 | E77: 0 | F77: 0 | G77: 0 | H77: 0 | I77: 0 | J77: 0
A78: Капітальні трансферти населенню | B78: 3240 | C78: 560 | D78: 0 | E78: 0 | F78: 0 | G78: 0 | H78: 0 | I78: 0 | J78: 0
A79: Внутрішнє кредитування | B79: 4100 | C79: 570 | D79: =SUM(D80) -> 0 | E79: 0 | F79: 0 | G79: 0 | H79: 0 | I79: 0 | J79: 0
A80: Надання внутрішніх кредитів | B80: 4110 | C80: 580 | D80: =SUM(D81:D83) -> 0 | E80: 0 | F80: 0 | G80: 0 | H80: 0 | I80: 0 | J80: 0
A81: Надання кредитів органам державного управління інших рівнів | B81: 4111 | C81: 590 | D81: 0 | E81: 0 | F81: 0 | G81: 0 | H81: 0 | I81: 0 | J81: 0
A82: Надання кредитів підприємствам, установам, організаціям | B82: 4112 | C82: 600 | D82: 0 | E82: 0 | F82: 0 | G82: 0 | H82: 0 | I82: 0 | J82: 0
A83: Надання інших внутрішніх кредитів | B83: 4113 | C83: 610 | D83: 0 | E83: 0 | F83: 0 | G83: 0 | H83: 0 | I83: 0 | J83: 0
A84: Зовнішнє кредитування | B84: 4200 | C84: 620 | D84: =D85 -> 0 | E84: 0 | F84: 0 | G84: 0 | H84: 0 | I84: 0 | J84: 0
A85: Надання зовнішніх кредитів | B85: 4210 | C85: 630 | D85: 0 | E85: 0 | F85: 0 | G85: 0 | H85: 0 | I85: 0 | J85: 0
A86: Інші видатки | B86: 5000 | C86: 640 | D86: X | E86: 0 | F86: X | G86: X | H86: X | I86: X | J86: X
A87: Нерозподілені видатки | B87: 9000 | C87: 650 | D87: 0 | E87: 0 | F87: 0 | G87: 0 | H87: 0 | I87: 0 | J87: 0
C88: 650
A100: 1 Заповнюється розпорядниками бюджетних коштів.
A101: =ЗАПОЛНИТЬ!F30 -> Міський голова | G101: =ЗАПОЛНИТЬ!F26 -> Бондаренко О.А.
D102: (підпис) | G102: (ініціали, прізвище)
A103: =ЗАПОЛНИТЬ!F31 -> Начальник відділу бухгалтерського обліку, планування та звітності | G103: =ЗАПОЛНИТЬ!F28 -> Топчій Н.М.
A104: =ЗАПОЛНИТЬ!C19 -> "10"січня 2018 року | D104: (підпис) | G104: (ініціали, прізвище)

Sheet Ф.2.20 (hidden)
G1: Додаток 1 до Порядку складання бюджетної звітності розпорядниками та одержувачами бюджетних коштів, звітності фондами загальнообов’язкового державного соціального і пенсійного страхування (пункт 1 розділу ІІ)
A4: ЗВІТ
A5: =IF(ЗАПОЛНИТЬ!$F$7=1,CONCATENATE(шапки!A2),CONCATENATE(шапки!A2,шапки!C2)) -> про надходження та використання коштів загального фонду (форма №2д, | G5: =IF(ЗАПОЛНИТЬ!$F$7=1,шапки!C2,шапки!D2) -> №2м) | H5: =IF(ЗАПОЛНИТЬ!$F$7=1,шапки!D2,"") -> 
A6: =CONCATENATE("за ",ЗАПОЛНИТЬ!$B$17," ",ЗАПОЛНИТЬ!$C$17) -> за 2017 р.
J7: коди
A9: Установа | B9: =ЗАПОЛНИТЬ!B3 -> Новгород-Сіверська міська рада | H9: за ЄДРПОУ | J9: =ЗАПОЛНИТЬ!B13 -> 04061978
A10: Територія | B10: =ЗАПОЛНИТЬ!B5 -> 16000 Чернігівська обл.,м.Новгород-Сіверський вул. Губернська, 2 | H10: за КОАТУУ | J10: =ЗАПОЛНИТЬ!B14 -> 7410500000
A11: Організаційно-правова форма господарювання | B11: =ЗАПОЛНИТЬ!D15 -> Орган місцевого самоврядування | H11: за КОПФГ | J11: =ЗАПОЛНИТЬ!B15 -> 420
A12: Код та назва відомчої класифікації видатків та кредитування державного бюджету | D12: =ЗАПОЛНИТЬ!H9 -> 0 | E12: =IF(D12>0,VLOOKUP(D12,'ДовидникКВК(ГОС)'!A:B,2,FALSE),"") -> 
A13: Код та назва програмної класифікації видатків та кредитування державного бюджету | E13: =IF(D13>0,VLOOKUP(D13,ДовидникКПК!B:C,2,FALSE),"") -> 
A14: Код та назва типової відомчої класифікації видатків та кредитування місцевих бюджетів | D14: =ЗАПОЛНИТЬ!H10 -> 01 | E14: =ЗАПОЛНИТЬ!I10 -> рада
A15: Код та назва програмної класифікації видатків та кредитування місцевих бюджетів (код та назва Типової програмної класифікації видатків та кредитування місцевих бюджетів / Тимчасової класифікації видатків та кредитування для бюджетів місцевого самоврядування, які не застосовують програмно-цільового методу) | D15: - | E15: =VLOOKUP(RIGHT(D15,4),КПКВМБ!A:B,2,FALSE) -> -
A16: Періодичність: квартальна, річна
A17: Одиниця виміру: грн, коп.
A19: Показники | B19: КЕКВ та/або ККК | C19: Код рядка | D19: Затверджено на звітний рік | E19: Затверджено на звітний період (рік)1 | F19: Залишок на початок звітного року | G19: Надійшло коштів за звітний період (рік) | H19: Касові за звітний період (рік) | I19: Фактичні за звітний період (рік) | J19: Залишок на кінець звітного періоду (року)
A22: 1 | B22: 2 | C22: 3 | D22: 4 | E22: 5 | F22: 6 | G22: 7 | H22: 8 | I22: 9 | J22: 9
A23: Видатки та надання кредитів - усього | B23: Х | C23: 010 | D23: =D24+D59+D79+D84+D87 -> 0 | E23: =E26+E29+E32+E33+E37+E45+E46+E86+E54 -> 0 | F23: =F24+F59+F79+F84+F87 -> 0 | G23: =G24+G59+G79+G84+G87 -> 0 | H23: =H24+H59+H79+H84+H87 -> 0 | I23: =I24+I59+I79+I84+I87 -> 0 | J23: =F23+G23-H23 -> 0
A24: у тому числі: Поточні видатки | B24: 2000 | C24: 020 | D24: =D25+D30+D47+D50+D54+D58 -> 0 | E24: 0 | F24: 0 | G24: 0 | H24: 0 | I24: 0 | J24: =F24+G24-H24 -> 0
A25: Оплата праці і нарахування на заробітну плату | B25: 2100 | C25: 030 | D25: =D26+D29 -> 0 | E25: 0 | F25: =F26+F29 -> 0 | G25: =G26+G29 -> 0 | H25: =H26+H29 -> 0 | I25: =I26+I29 -> 0 | J25: 0
A26: Оплата праці | B26: 2110 | C26: 040 | D26: =SUM(D27:D28) -> 0 | E26: 0 | F26: 0 | G26: 0 | H26: 0 | I26: 0 | J26: 0
A27: Заробітна плата | B27: 2111 | C27: 050 | D27: 0 | E27: 0 | F27: 0 | G27: 0 | H27: 0 | I27: 0 | J27: 0
A28: Грошове забезпечення військовослужбовців | B28: 2112 | C28: 060 | D28: 0 | E28: 0 | F28: 0 | G28: 0 | H28: 0 | I28: 0 | J28: 0
A29: Нарахування на оплату праці | B29: 2120 | C29: 070 | D29: 0 | E29: 0 | F29: 0 | G29: 0 | H29: 0 | I29: 0 | J29: 0
A30: Використання товарів і послуг | B30: 2200 | C30: 080 | D30: =SUM(D31:D37)+D44 -> 0 | E30: 0 | F30: =SUM(F31:F37)+F44 -> 0 | G30: =SUM(G31:G37)+G44 -> 0 | H30: =SUM(H31:H37)+H44 -> 0 | I30: =SUM(I31:I37)+I44 -> 0 | J30: 0
A31: Предмети, матеріали, обладнання та інвентар | B31: 2210 | C31: 090 | D31: 0 | E31: 0 | F31: 0 | G31: 0 | H31: 0 | I31: 0 | J31: 0
A32: Медикаменти та перев’язувальні матеріали | B32: 2220 | C32: 100 | D32: 0 | E32: 0 | F32: 0 | G32: 0 | H32: 0 | I32: 0 | J32: 0
A33: Продукти харчування | B33: 2230 | C33: 110 | D33: 0 | E33: 0 | F33: 0 | G33: 0 | H33: 0 | I33: 0 | J33: 0
A34: Оплата послуг (крім комунальних) | B34: 2240 | C34: 120 | D34: 0 | E34: 0 | F34: 0 | G34: 0 | H34: 0 | I34: 0 | J34: 0
A35: Видатки на відрядження | B35: 2250 | C35: 130 | D35: 0 | E35: 0 | F35: 0 | G35: 0 | H35: 0 | I35: 0 | J35: 0
A36: Видатки та заходи спеціального призначення | B36: 2260 | C36: 140 | D36: 0 | E36: 0 | F36: 0 | G36: 0 | H36: 0 | I36: 0 | J36: 0
A37: Оплата комунальних послуг та енергоносіїв | B37: 2270 | C37: 150 | D37: =SUM(D38:D43) -> 0 | E37: 0 | F37: =SUM(F38:F43) -> 0 | G37: =SUM(G38:G43) -> 0 | H37: =SUM(H38:H43) -> 0 | I37: =SUM(I38:I43) -> 0 | J37: =F37+G37-H37 -> 0
A38: Оплата теплопостачання | B38: 2271 | C38: 160 | D38: 0 | E38: 0 | F38: 0 | G38: 0 | H38: 0 | I38: 0 | J38: 0
A39: Оплата водопостачання та водовідведення | B39: 2272 | C39: 170 | D39: 0 | E39: 0 | F39: 0 | G39: 0 | H39: 0 | I39: 0 | J39: 0
A40: Оплата електроенергії | B40: 2273 | C40: 180 | D40: 0 | E40: 0 | F40: 0 | G40: 0 | H40: 0 | I40: 0 | J40: 0
A41: Оплата природного газу | B41: 2274 | C41: 190 | D41: 0 | E41: 0 | F41: 0 | G41: 0 | H41: 0 | I41: 0 | J41: 0
A42: Оплата інших енергоносіїв | B42: 2275 | C42: 200 | D42: 0 | E42: 0 | F42: 0 | G42: 0 | H42: 0 | I42: 0 | J42: 0
A43: Оплата енергосервісу | B43: 2276 | C43: 210 | D43: 0 | E43: 0 | F43: 0 | G43: 0 | H43: 0 | I43: 0 | J43: =F43+G43-H43 -> 0
A44: Дослідження і розробки, окремі заходи по реалізації державних (регіональних) програм | B44: 2280 | C44: 220 | D44: =SUM(D45:D46) -> 0 | E44: 0 | F44: =SUM(F45:F46) -> 0 | G44: =SUM(G45:G46) -> 0 | H44: =SUM(H45:H46) -> 0 | I44: =SUM(I45:I46) -> 0 | J44: 0
A45: Дослідження і розробки, окремі заходи розвитку по реалізації державних (регіональних) програм | B45: 2281 | C45: 230 | D45: 0 | E45: 0 | F45: 0 | G45: 0 | H45: 0 | I45: 0 | J45: 0
A46: Окремі заходи по реалізації державних (регіональних) програм, не віднесені до заходів розвитку | B46: 2282 | C46: 240 | D46: 0 | E46: 0 | F46: 0 | G46: 0 | H46: 0 | I46: 0 | J46: 0
A47: Обслуговування боргових зобов’язань | B47: 2400 | C47: 250 | D47: =SUM(D48:D49) -> 0 | E47: 0 | F47: 0 | G47: 0 | H47: 0 | I47: 0 | J47: 0
A48: Обслуговування внутрішніх боргових зобов’язань | B48: 2410 | C48: 260 | D48: 0 | E48: 0 | F48: 0 | G48: 0 | H48: 0 | I48: 0 | J48: 0
A49: Обслуговування зовнішніх боргових зобов’язань | B49: 2420 | C49: 270 | D49: 0 | E49: 0 | F49: 0 | G49: 0 | H49: 0 | I49: 0 | J49: 0
A50: Поточні трансферти | B50: 2600 | C50: 280 | D50: =SUM(D51:D53) -> 0 | E50: 0 | F50: 0 | G50: 0 | H50: 0 | I50: 0 | J50: 0
A51: Субсидії та поточні трансферти підприємствам (установам, організаціям) | B51: 2610 | C51: 290 | D51: 0 | E51: 0 | F51: 0 | G51: 0 | H51: 0 | I51: 0 | J51: 0
A52: Поточні трансферти органам державного управління інших рівнів | B52: 2620 | C52: 300 | D52: 0 | E52: 0 | F52: 0 | G52: 0 | H52: 0 | I52: 0 | J52: 0
A53: Поточні трансферти урядам іноземних держав та міжнародним організаціям | B53: 2630 | C53: 310 | D53: 0 | E53: 0 | F53: 0 | G53: 0 | H53: 0 | I53: 0 | J53: 0
A54: Соціальне забезпечення | B54: 2700 | C54: 320 | D54: =SUM(D55:D57) -> 0 | E54: 0 | F54: 0 | G54: 0 | H54: 0 | I54: 0 | J54: 0
A55: Виплата пенсій і допомоги | B55: 2710 | C55: 330 | D55: 0 | E55: 0 | F55: 0 | G55: 0 | H55: 0 | I55: 0 | J55: 0
A56: Стипендії | B56: 2720 | C56: 340 | D56: 0 | E56: 0 | F56: 0 | G56: 0 | H56: 0 | I56: 0 | J56: 0
A57: Інші виплати населенню | B57: 2730 | C57: 350 | D57: 0 | E57: 0 | F57: 0 | G57: 0 | H57: 0 | I57: 0 | J57: 0
A58: Інші поточні видатки | B58: 2800 | C58: 360 | D58: 0 | E58: 0 | F58: 0 | G58: 0 | H58: 0 | I58: 0 | J58: 0
A59: Капітальні видатки | B59: 3000 | C59: 370 | D59: =D60+D74 -> 0 | E59: 0 | F59: 0 | G59: 0 | H59: 0 | I59: 0 | J59: 0
A60: Придбання основного капіталу | B60: 3100 | C60: 380 | D60: =D61+D62+D65+D68+D72+D73 -> 0 | E60: 0 | F60: 0 | G60: 0 | H60: 0 | I60: 0 | J60: 0
A61: Придбання обладнання і предметів довгострокового користування | B61: 3110 | C61: 390 | D61: 0 | E61: 0 | F61: 0 | G61: 0 | H61: 0 | I61: 0 | J61: 0
A62: Капітальне будівництво (придбання) | B62: 3120 | C62: 400 | D62: =SUM(D63:D64) -> 0 | E62: 0 | F62: 0 | G62: 0 | H62: 0 | I62: 0 | J62: 0
A63: Капітальне будівництво (придбання) житла | B63: 3121 | C63: 410 | D63: 0 | E63: 0 | F63: 0 | G63: 0 | H63: 0 | I63: 0 | J63: 0
A64: Капітальне будівництво (придбання) інших об’єктів | B64: 3122 | C64: 420 | D64: 0 | E64: 0 | F64: 0 | G64: 0 | H64: 0 | I64: 0 | J64: 0
A65: Капітальний ремонт | B65: 3130 | C65: 430 | D65: =SUM(D66:D67) -> 0 | E65: 0 | F65: 0 | G65: 0 | H65: 0 | I65: 0 | J65: 0
A66: Капітальний ремонт житлового фонду (приміщень) | B66: 3131 | C66: 440 | D66: 0 | E66: 0 | F66: 0 | G66: 0 | H66: 0 | I66: 0 | J66: 0
A67: Капітальний ремонт інших об’єктів | B67: 3132 | C67: 450 | D67: 0 | E67: 0 | F67: 0 | G67: 0 | H67: 0 | I67: 0 | J67: 0
A68: Реконструкція та реставрація | B68: 3140 | C68: 460 | D68: =SUM(D69:D71) -> 0 | E68: 0 | F68: 0 | G68: 0 | H68: 0 | I68: 0 | J68: 0
A69: Реконструкція житлового фонду (приміщень) | B69: 3141 | C69: 470 | D69: 0 | E69: 0 | F69: 0 | G69: 0 | H69: 0 | I69: 0 | J69: 0
A70: Реконструкція та реставрація інших об’єктів | B70: 3142 | C70: 480 | D70: 0 | E70: 0 | F70: 0 | G70: 0 | H70: 0 | I70: 0 | J70: 0
A71: Реставрація пам’яток культури, історії та архітектури | B71: 3143 | C71: 490 | D71: 0 | E71: 0 | F71: 0 | G71: 0 | H71: 0 | I71: 0 | J71: 0
A72: Створення державних запасів і резервів | B72: 3150 | C72: 500 | D72: 0 | E72: 0 | F72: 0 | G72: 0 | H72: 0 | I72: 0 | J72: 0
A73: Придбання землі та нематеріальних активів | B73: 3160 | C73: 510 | D73: 0 | E73: 0 | F73: 0 | G73: 0 | H73: 0 | I73: 0 | J73: 0
A74: Капітальні трансферти | B74: 3200 | C74: 520 | D74: =SUM(D75:D78) -> 0 | E74: 0 | F74: 0 | G74: 0 | H74: 0 | I74: 0 | J74: 0
A75: Капітальні трансферти підприємствам (установам, організаціям) | B75: 3210 | C75: 530 | D75: 0 | E75: 0 | F75: 0 | G75: 0 | H75: 0 | I75: 0 | J75: 0
A76: Капітальні трансферти органам державного управління інших рівнів | B76: 3220 | C76: 540 | D76: 0 | E76: 0 | F76: 0 | G76: 0 | H76: 0 | I76: 0 | J76: 0
A77: Капітальні трансферти урядам іноземних держав та міжнародним організаціям | B77: 3230 | C77: 550 | D77: 0 | E77: 0 | F77: 0 | G77: 0 | H77: 0 | I77: 0 | J77: 0
A78: Капітальні трансферти населенню | B78: 3240 | C78: 560 | D78: 0 | E78: 0 | F78: 0 | G78: 0 | H78: 0 | I78: 0 | J78: 0
A79: Внутрішнє кредитування | B79: 4100 | C79: 570 | D79: =SUM(D80) -> 0 | E79: 0 | F79: 0 | G79: 0 | H79: 0 | I79: 0 | J79: 0
A80: Надання внутрішніх кредитів | B80: 4110 | C80: 580 | D80: =SUM(D81:D83) -> 0 | E80: 0 | F80: 0 | G80: 0 | H80: 0 | I80: 0 | J80: 0
A81: Надання кредитів органам державного управління інших рівнів | B81: 4111 | C81: 590 | D81: 0 | E81: 0 | F81: 0 | G81: 0 | H81: 0 | I81: 0 | J81: 0
A82: Надання кредитів підприємствам, установам, організаціям | B82: 4112 | C82: 600 | D82: 0 | E82: 0 | F82: 0 | G82: 0 | H82: 0 | I82: 0 | J82: 0
A83: Надання інших внутрішніх кредитів | B83: 4113 | C83: 610 | D83: 0 | E83: 0 | F83: 0 | G83: 0 | H83: 0 | I83: 0 | J83: 0
A84: Зовнішнє кредитування | B84: 4200 | C84: 620 | D84: =D85 -> 0 | E84: 0 | F84: 0 | G84: 0 | H84: 0 | I84: 0 | J84: 0
A85: Надання зовнішніх кредитів | B85: 4210 | C85: 630 | D85: 0 | E85: 0 | F85: 0 | G85: 0 | H85: 0 | I85: 0 | J85: 0
A86: Інші видатки | B86: 5000 | C86: 640 | D86: X | E86: 0 | F86: X | G86: X | H86: X | I86: X | J86: X
A87: Нерозподілені видатки | B87: 9000 | C87: 650 | D87: 0 | E87: 0 | F87: 0 | G87: 0 | H87: 0 | I87: 0 | J87: 0
C88: 650
A100: 1 Заповнюється розпорядниками бюджетних коштів.
A101: =ЗАПОЛНИТЬ!F30 -> Міський голова | G101: =ЗАПОЛНИТЬ!F26 -> Бондаренко О.А.
D102: (підпис) | G102: (ініціали, прізвище)
A103: =ЗАПОЛНИТЬ!F31 -> Начальник відділу бухгалтерського обліку, планування та звітності | G103: =ЗАПОЛНИТЬ!F28 -> Топчій Н.М.
A104: =ЗАПОЛНИТЬ!C19 -> "10"січня 2018 року | D104: (підпис) | G104: (ініціали, прізвище)

Sheet Ф.2.21 (hidden)
G1: Додаток 1 до Порядку складання бюджетної звітності розпорядниками та одержувачами бюджетних коштів, звітності фондами загальнообов’язкового державного соціального і пенсійного страхування (пункт 1 розділу ІІ)
A4: ЗВІТ
A5: =IF(ЗАПОЛНИТЬ!$F$7=1,CONCATENATE(шапки!A2),CONCATENATE(шапки!A2,шапки!C2)) -> про надходження та використання коштів загального фонду (форма №2д, | G5: =IF(ЗАПОЛНИТЬ!$F$7=1,шапки!C2,шапки!D2) -> №2м) | H5: =IF(ЗАПОЛНИТЬ!$F$7=1,шапки!D2,"") -> 
A6: =CONCATENATE("за ",ЗАПОЛНИТЬ!$B$17," ",ЗАПОЛНИТЬ!$C$17) -> за 2017 р.
J7: коди
A9: Установа | B9: =ЗАПОЛНИТЬ!B3 -> Новгород-Сіверська міська рада | H9: за ЄДРПОУ | J9: =ЗАПОЛНИТЬ!B13 -> 04061978
A10: Територія | B10: =ЗАПОЛНИТЬ!B5 -> 16000 Чернігівська обл.,м.Новгород-Сіверський вул. Губернська, 2 | H10: за КОАТУУ | J10: =ЗАПОЛНИТЬ!B14 -> 7410500000
A11: Організаційно-правова форма господарювання | B11: =ЗАПОЛНИТЬ!D15 -> Орган місцевого самоврядування | H11: за КОПФГ | J11: =ЗАПОЛНИТЬ!B15 -> 420
A12: Код та назва відомчої класифікації видатків та кредитування державного бюджету | D12: =ЗАПОЛНИТЬ!H9 -> 0 | E12: =IF(D12>0,VLOOKUP(D12,'ДовидникКВК(ГОС)'!A:B,2,FALSE),"") -> 
A13: Код та назва програмної класифікації видатків та кредитування державного бюджету | E13: =IF(D13>0,VLOOKUP(D13,ДовидникКПК!B:C,2,FALSE),"") -> 
A14: Код та назва типової відомчої класифікації видатків та кредитування місцевих бюджетів | D14: =ЗАПОЛНИТЬ!H10 -> 01 | E14: =ЗАПОЛНИТЬ!I10 -> рада
A15: Код та назва програмної класифікації видатків та кредитування місцевих бюджетів (код та назва Типової програмної класифікації видатків та кредитування місцевих бюджетів / Тимчасової класифікації видатків та кредитування для бюджетів місцевого самоврядування, які не застосовують програмно-цільового методу) | D15: - | E15: =VLOOKUP(RIGHT(D15,4),КПКВМБ!A:B,2,FALSE) -> -
A16: Періодичність: квартальна, річна
A17: Одиниця виміру: грн, коп.
A19: Показники | B19: КЕКВ та/або ККК | C19: Код рядка | D19: Затверджено на звітний рік | E19: Затверджено на звітний період (рік)1 | F19: Залишок на початок звітного року | G19: Надійшло коштів за звітний період (рік) | H19: Касові за звітний період (рік) | I19: Фактичні за звітний період (рік) | J19: Залишок на кінець звітного періоду (року)
A22: 1 | B22: 2 | C22: 3 | D22: 4 | E22: 5 | F22: 6 | G22: 7 | H22: 8 | I22: 9 | J22: 9
A23: Видатки та надання кредитів - усього | B23: Х | C23: 010 | D23: =D24+D59+D79+D84+D87 -> 0 | E23: =E26+E29+E32+E33+E37+E45+E46+E86+E54 -> 0 | F23: =F24+F59+F79+F84+F87 -> 0 | G23: =G24+G59+G79+G84+G87 -> 0 | H23: =H24+H59+H79+H84+H87 -> 0 | I23: =I24+I59+I79+I84+I87 -> 0 | J23: =F23+G23-H23 -> 0
A24: у тому числі: Поточні видатки | B24: 2000 | C24: 020 | D24: =D25+D30+D47+D50+D54+D58 -> 0 | E24: 0 | F24: 0 | G24: 0 | H24: 0 | I24: 0 | J24: =F24+G24-H24 -> 0
A25: Оплата праці і нарахування на заробітну плату | B25: 2100 | C25: 030 | D25: =D26+D29 -> 0 | E25: 0 | F25: =F26+F29 -> 0 | G25: =G26+G29 -> 0 | H25: =H26+H29 -> 0 | I25: =I26+I29 -> 0 | J25: 0
A26: Оплата праці | B26: 2110 | C26: 040 | D26: =SUM(D27:D28) -> 0 | E26: 0 | F26: 0 | G26: 0 | H26: 0 | I26: 0 | J26: 0
A27: Заробітна плата | B27: 2111 | C27: 050 | D27: 0 | E27: 0 | F27: 0 | G27: 0 | H27: 0 | I27: 0 | J27: 0
A28: Грошове забезпечення військовослужбовців | B28: 2112 | C28: 060 | D28: 0 | E28: 0 | F28: 0 | G28: 0 | H28: 0 | I28: 0 | J28: 0
A29: Нарахування на оплату праці | B29: 2120 | C29: 070 | D29: 0 | E29: 0 | F29: 0 | G29: 0 | H29: 0 | I29: 0 | J29: 0
A30: Використання товарів і послуг | B30: 2200 | C30: 080 | D30: =SUM(D31:D37)+D44 -> 0 | E30: 0 | F30: =SUM(F31:F37)+F44 -> 0 | G30: =SUM(G31:G37)+G44 -> 0 | H30: =SUM(H31:H37)+H44 -> 0 | I30: =SUM(I31:I37)+I44 -> 0 | J30: 0
A31: Предмети, матеріали, обладнання та інвентар | B31: 2210 | C31: 090 | D31: 0 | E31: 0 | F31: 0 | G31: 0 | H31: 0 | I31: 0 | J31: 0
A32: Медикаменти та перев’язувальні матеріали | B32: 2220 | C32: 100 | D32: 0 | E32: 0 | F32: 0 | G32: 0 | H32: 0 | I32: 0 | J32: 0
A33: Продукти харчування | B33: 2230 | C33: 110 | D33: 0 | E33: 0 | F33: 0 | G33: 0 | H33: 0 | I33: 0 | J33: 0
A34: Оплата послуг (крім комунальних) | B34: 2240 | C34: 120 | D34: 0 | E34: 0 | F34: 0 | G34: 0 | H34: 0 | I34: 0 | J34: 0
A35: Видатки на відрядження | B35: 2250 | C35: 130 | D35: 0 | E35: 0 | F35: 0 | G35: 0 | H35: 0 | I35: 0 | J35: 0
A36: Видатки та заходи спеціального призначення | B36: 2260 | C36: 140 | D36: 0 | E36: 0 | F36: 0 | G36: 0 | H36: 0 | I36: 0 | J36: 0
A37: Оплата комунальних послуг та енергоносіїв | B37: 2270 | C37: 150 | D37: =SUM(D38:D43) -> 0 | E37: 0 | F37: =SUM(F38:F43) -> 0 | G37: =SUM(G38:G43) -> 0 | H37: =SUM(H38:H43) -> 0 | I37: =SUM(I38:I43) -> 0 | J37: =F37+G37-H37 -> 0
A38: Оплата теплопостачання | B38: 2271 | C38: 160 | D38: 0 | E38: 0 | F38: 0 | G38: 0 | H38: 0 | I38: 0 | J38: 0
A39: Оплата водопостачання та водовідведення | B39: 2272 | C39: 170 | D39: 0 | E39: 0 | F39: 0 | G39: 0 | H39: 0 | I39: 0 | J39: 0
A40: Оплата електроенергії | B40: 2273 | C40: 180 | D40: 0 | E40: 0 | F40: 0 | G40: 0 | H40: 0 | I40: 0 | J40: 0
A41: Оплата природного газу | B41: 2274 | C41: 190 | D41: 0 | E41: 0 | F41: 0 | G41: 0 | H41: 0 | I41: 0 | J41: 0
A42: Оплата інших енергоносіїв | B42: 2275 | C42: 200 | D42: 0 | E42: 0 | F42: 0 | G42: 0 | H42: 0 | I42: 0 | J42: 0
A43: Оплата енергосервісу | B43: 2276 | C43: 210 | D43: 0 | E43: 0 | F43: 0 | G43: 0 | H43: 0 | I43: 0 | J43: =F43+G43-H43 -> 0
A44: Дослідження і розробки, окремі заходи по реалізації державних (регіональних) програм | B44: 2280 | C44: 220 | D44: =SUM(D45:D46) -> 0 | E44: 0 | F44: =SUM(F45:F46) -> 0 | G44: =SUM(G45:G46) -> 0 | H44: =SUM(H45:H46) -> 0 | I44: =SUM(I45:I46) -> 0 | J44: 0
A45: Дослідження і розробки, окремі заходи розвитку по реалізації державних (регіональних) програм | B45: 2281 | C45: 230 | D45: 0 | E45: 0 | F45: 0 | G45: 0 | H45: 0 | I45: 0 | J45: 0
A46: Окремі заходи по реалізації державних (регіональних) програм, не віднесені до заходів розвитку | B46: 2282 | C46: 240 | D46: 0 | E46: 0 | F46: 0 | G46: 0 | H46: 0 | I46: 0 | J46: 0
A47: Обслуговування боргових зобов’язань | B47: 2400 | C47: 250 | D47: =SUM(D48:D49) -> 0 | E47: 0 | F47: 0 | G47: 0 | H47: 0 | I47: 0 | J47: 0
A48: Обслуговування внутрішніх боргових зобов’язань | B48: 2410 | C48: 260 | D48: 0 | E48: 0 | F48: 0 | G48: 0 | H48: 0 | I48: 0 | J48: 0
A49: Обслуговування зовнішніх боргових зобов’язань | B49: 2420 | C49: 270 | D49: 0 | E49: 0 | F49: 0 | G49: 0 | H49: 0 | I49: 0 | J49: 0
A50: Поточні трансферти | B50: 2600 | C50: 280 | D50: =SUM(D51:D53) -> 0 | E50: 0 | F50: 0 | G50: 0 | H50: 0 | I50: 0 | J50: 0
A51: Субсидії та поточні трансферти підприємствам (установам, організаціям) | B51: 2610 | C51: 290 | D51: 0 | E51: 0 | F51: 0 | G51: 0 | H51: 0 | I51: 0 | J51: 0
A52: Поточні трансферти органам державного управління інших рівнів | B52: 2620 | C52: 300 | D52: 0 | E52: 0 | F52: 0 | G52: 0 | H52: 0 | I52: 0 | J52: 0
A53: Поточні трансферти урядам іноземних держав та міжнародним організаціям | B53: 2630 | C53: 310 | D53: 0 | E53: 0 | F53: 0 | G53: 0 | H53: 0 | I53: 0 | J53: 0
A54: Соціальне забезпечення | B54: 2700 | C54: 320 | D54: =SUM(D55:D57) -> 0 | E54: 0 | F54: 0 | G54: 0 | H54: 0 | I54: 0 | J54: 0
A55: Виплата пенсій і допомоги | B55: 2710 | C55: 330 | D55: 0 | E55: 0 | F55: 0 | G55: 0 | H55: 0 | I55: 0 | J55: 0
A56: Стипендії | B56: 2720 | C56: 340 | D56: 0 | E56: 0 | F56: 0 | G56: 0 | H56: 0 | I56: 0 | J56: 0
A57: Інші виплати населенню | B57: 2730 | C57: 350 | D57: 0 | E57: 0 | F57: 0 | G57: 0 | H57: 0 | I57: 0 | J57: 0
A58: Інші поточні видатки | B58: 2800 | C58: 360 | D58: 0 | E58: 0 | F58: 0 | G58: 0 | H58: 0 | I58: 0 | J58: 0
A59: Капітальні видатки | B59: 3000 | C59: 370 | D59: =D60+D74 -> 0 | E59: 0 | F59: 0 | G59: 0 | H59: 0 | I59: 0 | J59: 0
A60: Придбання основного капіталу | B60: 3100 | C60: 380 | D60: =D61+D62+D65+D68+D72+D73 -> 0 | E60: 0 | F60: 0 | G60: 0 | H60: 0 | I60: 0 | J60: 0
A61: Придбання обладнання і предметів довгострокового користування | B61: 3110 | C61: 390 | D61: 0 | E61: 0 | F61: 0 | G61: 0 | H61: 0 | I61: 0 | J61: 0
A62: Капітальне будівництво (придбання) | B62: 3120 | C62: 400 | D62: =SUM(D63:D64) -> 0 | E62: 0 | F62: 0 | G62: 0 | H62: 0 | I62: 0 | J62: 0
A63: Капітальне будівництво (придбання) житла | B63: 3121 | C63: 410 | D63: 0 | E63: 0 | F63: 0 | G63: 0 | H63: 0 | I63: 0 | J63: 0
A64: Капітальне будівництво (придбання) інших об’єктів | B64: 3122 | C64: 420 | D64: 0 | E64: 0 | F64: 0 | G64: 0 | H64: 0 | I64: 0 | J64: 0
A65: Капітальний ремонт | B65: 3130 | C65: 430 | D65: =SUM(D66:D67) -> 0 | E65: 0 | F65: 0 | G65: 0 | H65: 0 | I65: 0 | J65: 0
A66: Капітальний ремонт житлового фонду (приміщень) | B66: 3131 | C66: 440 | D66: 0 | E66: 0 | F66: 0 | G66: 0 | H66: 0 | I66: 0 | J66: 0
A67: Капітальний ремонт інших об’єктів | B67: 3132 | C67: 450 | D67: 0 | E67: 0 | F67: 0 | G67: 0 | H67: 0 | I67: 0 | J67: 0
A68: Реконструкція та реставрація | B68: 3140 | C68: 460 | D68: =SUM(D69:D71) -> 0 | E68: 0 | F68: 0 | G68: 0 | H68: 0 | I68: 0 | J68: 0
A69: Реконструкція житлового фонду (приміщень) | B69: 3141 | C69: 470 | D69: 0 | E69: 0 | F69: 0 | G69: 0 | H69: 0 | I69: 0 | J69: 0
A70: Реконструкція та реставрація інших об’єктів | B70: 3142 | C70: 480 | D70: 0 | E70: 0 | F70: 0 | G70: 0 | H70: 0 | I70: 0 | J70: 0
A71: Реставрація пам’яток культури, історії та архітектури | B71: 3143 | C71: 490 | D71: 0 | E71: 0 | F71: 0 | G71: 0 | H71: 0 | I71: 0 | J71: 0
A72: Створення державних запасів і резервів | B72: 3150 | C72: 500 | D72: 0 | E72: 0 | F72: 0 | G72: 0 | H72: 0 | I72: 0 | J72: 0
A73: Придбання землі та нематеріальних активів | B73: 3160 | C73: 510 | D73: 0 | E73: 0 | F73: 0 | G73: 0 | H73: 0 | I73: 0 | J73: 0
A74: Капітальні трансферти | B74: 3200 | C74: 520 | D74: =SUM(D75:D78) -> 0 | E74: 0 | F74: 0 | G74: 0 | H74: 0 | I74: 0 | J74: 0
A75: Капітальні трансферти підприємствам (установам, організаціям) | B75: 3210 | C75: 530 | D75: 0 | E75: 0 | F75: 0 | G75: 0 | H75: 0 | I75: 0 | J75: 0
A76: Капітальні трансферти органам державного управління інших рівнів | B76: 3220 | C76: 540 | D76: 0 | E76: 0 | F76: 0 | G76: 0 | H76: 0 | I76: 0 | J76: 0
A77: Капітальні трансферти урядам іноземних держав та міжнародним організаціям | B77: 3230 | C77: 550 | D77: 0 | E77: 0 | F77: 0 | G77: 0 | H77: 0 | I77: 0 | J77: 0
A78: Капітальні трансферти населенню | B78: 3240 | C78: 560 | D78: 0 | E78: 0 | F78: 0 | G78: 0 | H78: 0 | I78: 0 | J78: 0
A79: Внутрішнє кредитування | B79: 4100 | C79: 570 | D79: =SUM(D80) -> 0 | E79: 0 | F79: 0 | G79: 0 | H79: 0 | I79: 0 | J79: 0
A80: Надання внутрішніх кредитів | B80: 4110 | C80: 580 | D80: =SUM(D81:D83) -> 0 | E80: 0 | F80: 0 | G80: 0 | H80: 0 | I80: 0 | J80: 0
A81: Надання кредитів органам державного управління інших рівнів | B81: 4111 | C81: 590 | D81: 0 | E81: 0 | F81: 0 | G81: 0 | H81: 0 | I81: 0 | J81: 0
A82: Надання кредитів підприємствам, установам, організаціям | B82: 4112 | C82: 600 | D82: 0 | E82: 0 | F82: 0 | G82: 0 | H82: 0 | I82: 0 | J82: 0
A83: Надання інших внутрішніх кредитів | B83: 4113 | C83: 610 | D83: 0 | E83: 0 | F83: 0 | G83: 0 | H83: 0 | I83: 0 | J83: 0
A84: Зовнішнє кредитування | B84: 4200 | C84: 620 | D84: =D85 -> 0 | E84: 0 | F84: 0 | G84: 0 | H84: 0 | I84: 0 | J84: 0
A85: Надання зовнішніх кредитів | B85: 4210 | C85: 630 | D85: 0 | E85: 0 | F85: 0 | G85: 0 | H85: 0 | I85: 0 | J85: 0
A86: Інші видатки | B86: 5000 | C86: 640 | D86: X | E86: 0 | F86: X | G86: X | H86: X | I86: X | J86: X
A87: Нерозподілені видатки | B87: 9000 | C87: 650 | D87: 0 | E87: 0 | F87: 0 | G87: 0 | H87: 0 | I87: 0 | J87: 0
C88: 650
A100: 1 Заповнюється розпорядниками бюджетних коштів.
A101: =ЗАПОЛНИТЬ!F30 -> Міський голова | G101: =ЗАПОЛНИТЬ!F26 -> Бондаренко О.А.
D102: (підпис) | G102: (ініціали, прізвище)
A103: =ЗАПОЛНИТЬ!F31 -> Начальник відділу бухгалтерського обліку, планування та звітності | G103: =ЗАПОЛНИТЬ!F28 -> Топчій Н.М.
A104: =ЗАПОЛНИТЬ!C19 -> "10"січня 2018 року | D104: (підпис) | G104: (ініціали, прізвище)

Sheet Ф.2.22 (hidden)
G1: Додаток 1 до Порядку складання бюджетної звітності розпорядниками та одержувачами бюджетних коштів, звітності фондами загальнообов’язкового державного соціального і пенсійного страхування (пункт 1 розділу ІІ)
A4: ЗВІТ
A5: =IF(ЗАПОЛНИТЬ!$F$7=1,CONCATENATE(шапки!A2),CONCATENATE(шапки!A2,шапки!C2)) -> про надходження та використання коштів загального фонду (форма №2д, | G5: =IF(ЗАПОЛНИТЬ!$F$7=1,шапки!C2,шапки!D2) -> №2м) | H5: =IF(ЗАПОЛНИТЬ!$F$7=1,шапки!D2,"") -> 
A6: =CONCATENATE("за ",ЗАПОЛНИТЬ!$B$17," ",ЗАПОЛНИТЬ!$C$17) -> за 2017 р.
J7: коди
A9: Установа | B9: =ЗАПОЛНИТЬ!B3 -> Новгород-Сіверська міська рада | H9: за ЄДРПОУ | J9: =ЗАПОЛНИТЬ!B13 -> 04061978
A10: Територія | B10: =ЗАПОЛНИТЬ!B5 -> 16000 Чернігівська обл.,м.Новгород-Сіверський вул. Губернська, 2 | H10: за КОАТУУ | J10: =ЗАПОЛНИТЬ!B14 -> 7410500000
A11: Організаційно-правова форма господарювання | B11: =ЗАПОЛНИТЬ!D15 -> Орган місцевого самоврядування | H11: за КОПФГ | J11: =ЗАПОЛНИТЬ!B15 -> 420
A12: Код та назва відомчої класифікації видатків та кредитування державного бюджету | D12: =ЗАПОЛНИТЬ!H9 -> 0 | E12: =IF(D12>0,VLOOKUP(D12,'ДовидникКВК(ГОС)'!A:B,2,FALSE),"") -> 
A13: Код та назва програмної класифікації видатків та кредитування державного бюджету | E13: =IF(D13>0,VLOOKUP(D13,ДовидникКПК!B:C,2,FALSE),"") -> 
A14: Код та назва типової відомчої класифікації видатків та кредитування місцевих бюджетів | D14: =ЗАПОЛНИТЬ!H10 -> 01 | E14: =ЗАПОЛНИТЬ!I10 -> рада
A15: Код та назва програмної класифікації видатків та кредитування місцевих бюджетів (код та назва Типової програмної класифікації видатків та кредитування місцевих бюджетів / Тимчасової класифікації видатків та кредитування для бюджетів місцевого самоврядування, які не застосовують програмно-цільового методу) | D15: - | E15: =VLOOKUP(RIGHT(D15,4),КПКВМБ!A:B,2,FALSE) -> -
A16: Періодичність: квартальна, річна
A17: Одиниця виміру: грн, коп.
A19: Показники | B19: КЕКВ та/або ККК | C19: Код рядка | D19: Затверджено на звітний рік | E19: Затверджено на звітний період (рік)1 | F19: Залишок на початок звітного року | G19: Надійшло коштів за звітний період (рік) | H19: Касові за звітний період (рік) | I19: Фактичні за звітний період (рік) | J19: Залишок на кінець звітного періоду (року)
A22: 1 | B22: 2 | C22: 3 | D22: 4 | E22: 5 | F22: 6 | G22: 7 | H22: 8 | I22: 9 | J22: 9
A23: Видатки та надання кредитів - усього | B23: Х | C23: 010 | D23: =D24+D59+D79+D84+D87 -> 0 | E23: =E26+E29+E32+E33+E37+E45+E46+E86+E54 -> 0 | F23: =F24+F59+F79+F84+F87 -> 0 | G23: =G24+G59+G79+G84+G87 -> 0 | H23: =H24+H59+H79+H84+H87 -> 0 | I23: =I24+I59+I79+I84+I87 -> 0 | J23: =F23+G23-H23 -> 0
A24: у тому числі: Поточні видатки | B24: 2000 | C24: 020 | D24: =D25+D30+D47+D50+D54+D58 -> 0 | E24: 0 | F24: 0 | G24: 0 | H24: 0 | I24: 0 | J24: =F24+G24-H24 -> 0
A25: Оплата праці і нарахування на заробітну плату | B25: 2100 | C25: 030 | D25: =D26+D29 -> 0 | E25: 0 | F25: =F26+F29 -> 0 | G25: =G26+G29 -> 0 | H25: =H26+H29 -> 0 | I25: =I26+I29 -> 0 | J25: 0
A26: Оплата праці | B26: 2110 | C26: 040 | D26: =SUM(D27:D28) -> 0 | E26: 0 | F26: 0 | G26: 0 | H26: 0 | I26: 0 | J26: 0
A27: Заробітна плата | B27: 2111 | C27: 050 | D27: 0 | E27: 0 | F27: 0 | G27: 0 | H27: 0 | I27: 0 | J27: 0
A28: Грошове забезпечення військовослужбовців | B28: 2112 | C28: 060 | D28: 0 | E28: 0 | F28: 0 | G28: 0 | H28: 0 | I28: 0 | J28: 0
A29: Нарахування на оплату праці | B29: 2120 | C29: 070 | D29: 0 | E29: 0 | F29: 0 | G29: 0 | H29: 0 | I29: 0 | J29: 0
A30: Використання товарів і послуг | B30: 2200 | C30: 080 | D30: =SUM(D31:D37)+D44 -> 0 | E30: 0 | F30: =SUM(F31:F37)+F44 -> 0 | G30: =SUM(G31:G37)+G44 -> 0 | H30: =SUM(H31:H37)+H44 -> 0 | I30: =SUM(I31:I37)+I44 -> 0 | J30: 0
A31: Предмети, матеріали, обладнання та інвентар | B31: 2210 | C31: 090 | D31: 0 | E31: 0 | F31: 0 | G31: 0 | H31: 0 | I31: 0 | J31: 0
A32: Медикаменти та перев’язувальні матеріали | B32: 2220 | C32: 100 | D32: 0 | E32: 0 | F32: 0 | G32: 0 | H32: 0 | I32: 0 | J32: 0
A33: Продукти харчування | B33: 2230 | C33: 110 | D33: 0 | E33: 0 | F33: 0 | G33: 0 | H33: 0 | I33: 0 | J33: 0
A34: Оплата послуг (крім комунальних) | B34: 2240 | C34: 120 | D34: 0 | E34: 0 | F34: 0 | G34: 0 | H34: 0 | I34: 0 | J34: 0
A35: Видатки на відрядження | B35: 2250 | C35: 130 | D35: 0 | E35: 0 | F35: 0 | G35: 0 | H35: 0 | I35: 0 | J35: 0
A36: Видатки та заходи спеціального призначення | B36: 2260 | C36: 140 | D36: 0 | E36: 0 | F36: 0 | G36: 0 | H36: 0 | I36: 0 | J36: 0
A37: Оплата комунальних послуг та енергоносіїв | B37: 2270 | C37: 150 | D37: =SUM(D38:D43) -> 0 | E37: 0 | F37: =SUM(F38:F43) -> 0 | G37: =SUM(G38:G43) -> 0 | H37: =SUM(H38:H43) -> 0 | I37: =SUM(I38:I43) -> 0 | J37: =F37+G37-H37 -> 0
A38: Оплата теплопостачання | B38: 2271 | C38: 160 | D38: 0 | E38: 0 | F38: 0 | G38: 0 | H38: 0 | I38: 0 | J38: 0
A39: Оплата водопостачання та водовідведення | B39: 2272 | C39: 170 | D39: 0 | E39: 0 | F39: 0 | G39: 0 | H39: 0 | I39: 0 | J39: 0
A40: Оплата електроенергії | B40: 2273 | C40: 180 | D40: 0 | E40: 0 | F40: 0 | G40: 0 | H40: 0 | I40: 0 | J40: 0
A41: Оплата природного газу | B41: 2274 | C41: 190 | D41: 0 | E41: 0 | F41: 0 | G41: 0 | H41: 0 | I41: 0 | J41: 0
A42: Оплата інших енергоносіїв | B42: 2275 | C42: 200 | D42: 0 | E42: 0 | F42: 0 | G42: 0 | H42: 0 | I42: 0 | J42: 0
A43: Оплата енергосервісу | B43: 2276 | C43: 210 | D43: 0 | E43: 0 | F43: 0 | G43: 0 | H43: 0 | I43: 0 | J43: =F43+G43-H43 -> 0
A44: Дослідження і розробки, окремі заходи по реалізації державних (регіональних) програм | B44: 2280 | C44: 220 | D44: =SUM(D45:D46) -> 0 | E44: 0 | F44: =SUM(F45:F46) -> 0 | G44: =SUM(G45:G46) -> 0 | H44: =SUM(H45:H46) -> 0 | I44: =SUM(I45:I46) -> 0 | J44: 0
A45: Дослідження і розробки, окремі заходи розвитку по реалізації державних (регіональних) програм | B45: 2281 | C45: 230 | D45: 0 | E45: 0 | F45: 0 | G45: 0 | H45: 0 | I45: 0 | J45: 0
A46: Окремі заходи по реалізації державних (регіональних) програм, не віднесені до заходів розвитку | B46: 2282 | C46: 240 | D46: 0 | E46: 0 | F46: 0 | G46: 0 | H46: 0 | I46: 0 | J46: 0
A47: Обслуговування боргових зобов’язань | B47: 2400 | C47: 250 | D47: =SUM(D48:D49) -> 0 | E47: 0 | F47: 0 | G47: 0 | H47: 0 | I47: 0 | J47: 0
A48: Обслуговування внутрішніх боргових зобов’язань | B48: 2410 | C48: 260 | D48: 0 | E48: 0 | F48: 0 | G48: 0 | H48: 0 | I48: 0 | J48: 0
A49: Обслуговування зовнішніх боргових зобов’язань | B49: 2420 | C49: 270 | D49: 0 | E49: 0 | F49: 0 | G49: 0 | H49: 0 | I49: 0 | J49: 0
A50: Поточні трансферти | B50: 2600 | C50: 280 | D50: =SUM(D51:D53) -> 0 | E50: 0 | F50: 0 | G50: 0 | H50: 0 | I50: 0 | J50: 0
A51: Субсидії та поточні трансферти підприємствам (установам, організаціям) | B51: 2610 | C51: 290 | D51: 0 | E51: 0 | F51: 0 | G51: 0 | H51: 0 | I51: 0 | J51: 0
A52: Поточні трансферти органам державного управління інших рівнів | B52: 2620 | C52: 300 | D52: 0 | E52: 0 | F52: 0 | G52: 0 | H52: 0 | I52: 0 | J52: 0
A53: Поточні трансферти урядам іноземних держав та міжнародним організаціям | B53: 2630 | C53: 310 | D53: 0 | E53: 0 | F53: 0 | G53: 0 | H53: 0 | I53: 0 | J53: 0
A54: Соціальне забезпечення | B54: 2700 | C54: 320 | D54: =SUM(D55:D57) -> 0 | E54: 0 | F54: 0 | G54: 0 | H54: 0 | I54: 0 | J54: 0
A55: Виплата пенсій і допомоги | B55: 2710 | C55: 330 | D55: 0 | E55: 0 | F55: 0 | G55: 0 | H55: 0 | I55: 0 | J55: 0
A56: Стипендії | B56: 2720 | C56: 340 | D56: 0 | E56: 0 | F56: 0 | G56: 0 | H56: 0 | I56: 0 | J56: 0
A57: Інші виплати населенню | B57: 2730 | C57: 350 | D57: 0 | E57: 0 | F57: 0 | G57: 0 | H57: 0 | I57: 0 | J57: 0
A58: Інші поточні видатки | B58: 2800 | C58: 360 | D58: 0 | E58: 0 | F58: 0 | G58: 0 | H58: 0 | I58: 0 | J58: 0
A59: Капітальні видатки | B59: 3000 | C59: 370 | D59: =D60+D74 -> 0 | E59: 0 | F59: 0 | G59: 0 | H59: 0 | I59: 0 | J59: 0
A60: Придбання основного капіталу | B60: 3100 | C60: 380 | D60: =D61+D62+D65+D68+D72+D73 -> 0 | E60: 0 | F60: 0 | G60: 0 | H60: 0 | I60: 0 | J60: 0
A61: Придбання обладнання і предметів довгострокового користування | B61: 3110 | C61: 390 | D61: 0 | E61: 0 | F61: 0 | G61: 0 | H61: 0 | I61: 0 | J61: 0
A62: Капітальне будівництво (придбання) | B62: 3120 | C62: 400 | D62: =SUM(D63:D64) -> 0 | E62: 0 | F62: 0 | G62: 0 | H62: 0 | I62: 0 | J62: 0
A63: Капітальне будівництво (придбання) житла | B63: 3121 | C63: 410 | D63: 0 | E63: 0 | F63: 0 | G63: 0 | H63: 0 | I63: 0 | J63: 0
A64: Капітальне будівництво (придбання) інших об’єктів | B64: 3122 | C64: 420 | D64: 0 | E64: 0 | F64: 0 | G64: 0 | H64: 0 | I64: 0 | J64: 0
A65: Капітальний ремонт | B65: 3130 | C65: 430 | D65: =SUM(D66:D67) -> 0 | E65: 0 | F65: 0 | G65: 0 | H65: 0 | I65: 0 | J65: 0
A66: Капітальний ремонт житлового фонду (приміщень) | B66: 3131 | C66: 440 | D66: 0 | E66: 0 | F66: 0 | G66: 0 | H66: 0 | I66: 0 | J66: 0
A67: Капітальний ремонт інших об’єктів | B67: 3132 | C67: 450 | D67: 0 | E67: 0 | F67: 0 | G67: 0 | H67: 0 | I67: 0 | J67: 0
A68: Реконструкція та реставрація | B68: 3140 | C68: 460 | D68: =SUM(D69:D71) -> 0 | E68: 0 | F68: 0 | G68: 0 | H68: 0 | I68: 0 | J68: 0
A69: Реконструкція житлового фонду (приміщень) | B69: 3141 | C69: 470 | D69: 0 | E69: 0 | F69: 0 | G69: 0 | H69: 0 | I69: 0 | J69: 0
A70: Реконструкція та реставрація інших об’єктів | B70: 3142 | C70: 480 | D70: 0 | E70: 0 | F70: 0 | G70: 0 | H70: 0 | I70: 0 | J70: 0
A71: Реставрація пам’яток культури, історії та архітектури | B71: 3143 | C71: 490 | D71: 0 | E71: 0 | F71: 0 | G71: 0 | H71: 0 | I71: 0 | J71: 0
A72: Створення державних запасів і резервів | B72: 3150 | C72: 500 | D72: 0 | E72: 0 | F72: 0 | G72: 0 | H72: 0 | I72: 0 | J72: 0
A73: Придбання землі та нематеріальних активів | B73: 3160 | C73: 510 | D73: 0 | E73: 0 | F73: 0 | G73: 0 | H73: 0 | I73: 0 | J73: 0
A74: Капітальні трансферти | B74: 3200 | C74: 520 | D74: =SUM(D75:D78) -> 0 | E74: 0 | F74: 0 | G74: 0 | H74: 0 | I74: 0 | J74: 0
A75: Капітальні трансферти підприємствам (установам, організаціям) | B75: 3210 | C75: 530 | D75: 0 | E75: 0 | F75: 0 | G75: 0 | H75: 0 | I75: 0 | J75: 0
A76: Капітальні трансферти органам державного управління інших рівнів | B76: 3220 | C76: 540 | D76: 0 | E76: 0 | F76: 0 | G76: 0 | H76: 0 | I76: 0 | J76: 0
A77: Капітальні трансферти урядам іноземних держав та міжнародним організаціям | B77: 3230 | C77: 550 | D77: 0 | E77: 0 | F77: 0 | G77: 0 | H77: 0 | I77: 0 | J77: 0
A78: Капітальні трансферти населенню | B78: 3240 | C78: 560 | D78: 0 | E78: 0 | F78: 0 | G78: 0 | H78: 0 | I78: 0 | J78: 0
A79: Внутрішнє кредитування | B79: 4100 | C79: 570 | D79: =SUM(D80) -> 0 | E79: 0 | F79: 0 | G79: 0 | H79: 0 | I79: 0 | J79: 0
A80: Надання внутрішніх кредитів | B80: 4110 | C80: 580 | D80: =SUM(D81:D83) -> 0 | E80: 0 | F80: 0 | G80: 0 | H80: 0 | I80: 0 | J80: 0
A81: Надання кредитів органам державного управління інших рівнів | B81: 4111 | C81: 590 | D81: 0 | E81: 0 | F81: 0 | G81: 0 | H81: 0 | I81: 0 | J81: 0
A82: Надання кредитів підприємствам, установам, організаціям | B82: 4112 | C82: 600 | D82: 0 | E82: 0 | F82: 0 | G82: 0 | H82: 0 | I82: 0 | J82: 0
A83: Надання інших внутрішніх кредитів | B83: 4113 | C83: 610 | D83: 0 | E83: 0 | F83: 0 | G83: 0 | H83: 0 | I83: 0 | J83: 0
A84: Зовнішнє кредитування | B84: 4200 | C84: 620 | D84: =D85 -> 0 | E84: 0 | F84: 0 | G84: 0 | H84: 0 | I84: 0 | J84: 0
A85: Надання зовнішніх кредитів | B85: 4210 | C85: 630 | D85: 0 | E85: 0 | F85: 0 | G85: 0 | H85: 0 | I85: 0 | J85: 0
A86: Інші видатки | B86: 5000 | C86: 640 | D86: X | E86: 0 | F86: X | G86: X | H86: X | I86: X | J86: X
A87: Нерозподілені видатки | B87: 9000 | C87: 650 | D87: 0 | E87: 0 | F87: 0 | G87: 0 | H87: 0 | I87: 0 | J87: 0
C88: 650
A100: 1 Заповнюється розпорядниками бюджетних коштів.
A101: =ЗАПОЛНИТЬ!F30 -> Міський голова | G101: =ЗАПОЛНИТЬ!F26 -> Бондаренко О.А.
D102: (підпис) | G102: (ініціали, прізвище)
A103: =ЗАПОЛНИТЬ!F31 -> Начальник відділу бухгалтерського обліку, планування та звітності | G103: =ЗАПОЛНИТЬ!F28 -> Топчій Н.М.
A104: =ЗАПОЛНИТЬ!C19 -> "10"січня 2018 року | D104: (підпис) | G104: (ініціали, прізвище)

Sheet Ф.2.23 (hidden)
G1: Додаток 1 до Порядку складання бюджетної звітності розпорядниками та одержувачами бюджетних коштів, звітності фондами загальнообов’язкового державного соціального і пенсійного страхування (пункт 1 розділу ІІ)
A4: ЗВІТ
A5: =IF(ЗАПОЛНИТЬ!$F$7=1,CONCATENATE(шапки!A2),CONCATENATE(шапки!A2,шапки!C2)) -> про надходження та використання коштів загального фонду (форма №2д, | G5: =IF(ЗАПОЛНИТЬ!$F$7=1,шапки!C2,шапки!D2) -> №2м) | H5: =IF(ЗАПОЛНИТЬ!$F$7=1,шапки!D2,"") -> 
A6: =CONCATENATE("за ",ЗАПОЛНИТЬ!$B$17," ",ЗАПОЛНИТЬ!$C$17) -> за 2017 р.
J7: коди
A9: Установа | B9: =ЗАПОЛНИТЬ!B3 -> Новгород-Сіверська міська рада | H9: за ЄДРПОУ | J9: =ЗАПОЛНИТЬ!B13 -> 04061978
A10: Територія | B10: =ЗАПОЛНИТЬ!B5 -> 16000 Чернігівська обл.,м.Новгород-Сіверський вул. Губернська, 2 | H10: за КОАТУУ | J10: =ЗАПОЛНИТЬ!B14 -> 7410500000
A11: Організаційно-правова форма господарювання | B11: =ЗАПОЛНИТЬ!D15 -> Орган місцевого самоврядування | H11: за КОПФГ | J11: =ЗАПОЛНИТЬ!B15 -> 420
A12: Код та назва відомчої класифікації видатків та кредитування державного бюджету | D12: =ЗАПОЛНИТЬ!H9 -> 0 | E12: =IF(D12>0,VLOOKUP(D12,'ДовидникКВК(ГОС)'!A:B,2,FALSE),"") -> 
A13: Код та назва програмної класифікації видатків та кредитування державного бюджету | E13: =IF(D13>0,VLOOKUP(D13,ДовидникКПК!B:C,2,FALSE),"") -> 
A14: Код та назва типової відомчої класифікації видатків та кредитування місцевих бюджетів | D14: =ЗАПОЛНИТЬ!H10 -> 01 | E14: =ЗАПОЛНИТЬ!I10 -> рада
A15: Код та назва програмної класифікації видатків та кредитування місцевих бюджетів (код та назва Типової програмної класифікації видатків та кредитування місцевих бюджетів / Тимчасової класифікації видатків та кредитування для бюджетів місцевого самоврядування, які не застосовують програмно-цільового методу) | D15: - | E15: =VLOOKUP(RIGHT(D15,4),КПКВМБ!A:B,2,FALSE) -> -
A16: Періодичність: квартальна, річна
A17: Одиниця виміру: грн, коп.
A19: Показники | B19: КЕКВ та/або ККК | C19: Код рядка | D19: Затверджено на звітний рік | E19: Затверджено на звітний період (рік)1 | F19: Залишок на початок звітного року | G19: Надійшло коштів за звітний період (рік) | H19: Касові за звітний період (рік) | I19: Фактичні за звітний період (рік) | J19: Залишок на кінець звітного періоду (року)
A22: 1 | B22: 2 | C22: 3 | D22: 4 | E22: 5 | F22: 6 | G22: 7 | H22: 8 | I22: 9 | J22: 9
A23: Видатки та надання кредитів - усього | B23: Х | C23: 010 | D23: =D24+D59+D79+D84+D87 -> 0 | E23: =E26+E29+E32+E33+E37+E45+E46+E86+E54 -> 0 | F23: =F24+F59+F79+F84+F87 -> 0 | G23: =G24+G59+G79+G84+G87 -> 0 | H23: =H24+H59+H79+H84+H87 -> 0 | I23: =I24+I59+I79+I84+I87 -> 0 | J23: =F23+G23-H23 -> 0
A24: у тому числі: Поточні видатки | B24: 2000 | C24: 020 | D24: =D25+D30+D47+D50+D54+D58 -> 0 | E24: 0 | F24: 0 | G24: 0 | H24: 0 | I24: 0 | J24: =F24+G24-H24 -> 0
A25: Оплата праці і нарахування на заробітну плату | B25: 2100 | C25: 030 | D25: =D26+D29 -> 0 | E25: 0 | F25: =F26+F29 -> 0 | G25: =G26+G29 -> 0 | H25: =H26+H29 -> 0 | I25: =I26+I29 -> 0 | J25: 0
A26: Оплата праці | B26: 2110 | C26: 040 | D26: =SUM(D27:D28) -> 0 | E26: 0 | F26: 0 | G26: 0 | H26: 0 | I26: 0 | J26: 0
A27: Заробітна плата | B27: 2111 | C27: 050 | D27: 0 | E27: 0 | F27: 0 | G27: 0 | H27: 0 | I27: 0 | J27: 0
A28: Грошове забезпечення військовослужбовців | B28: 2112 | C28: 060 | D28: 0 | E28: 0 | F28: 0 | G28: 0 | H28: 0 | I28: 0 | J28: 0
A29: Нарахування на оплату праці | B29: 2120 | C29: 070 | D29: 0 | E29: 0 | F29: 0 | G29: 0 | H29: 0 | I29: 0 | J29: 0
A30: Використання товарів і послуг | B30: 2200 | C30: 080 | D30: =SUM(D31:D37)+D44 -> 0 | E30: 0 | F30: =SUM(F31:F37)+F44 -> 0 | G30: =SUM(G31:G37)+G44 -> 0 | H30: =SUM(H31:H37)+H44 -> 0 | I30: =SUM(I31:I37)+I44 -> 0 | J30: 0
A31: Предмети, матеріали, обладнання та інвентар | B31: 2210 | C31: 090 | D31: 0 | E31: 0 | F31: 0 | G31: 0 | H31: 0 | I31: 0 | J31: 0
A32: Медикаменти та перев’язувальні матеріали | B32: 2220 | C32: 100 | D32: 0 | E32: 0 | F32: 0 | G32: 0 | H32: 0 | I32: 0 | J32: 0
A33: Продукти харчування | B33: 2230 | C33: 110 | D33: 0 | E33: 0 | F33: 0 | G33: 0 | H33: 0 | I33: 0 | J33: 0
A34: Оплата послуг (крім комунальних) | B34: 2240 | C34: 120 | D34: 0 | E34: 0 | F34: 0 | G34: 0 | H34: 0 | I34: 0 | J34: 0
A35: Видатки на відрядження | B35: 2250 | C35: 130 | D35: 0 | E35: 0 | F35: 0 | G35: 0 | H35: 0 | I35: 0 | J35: 0
A36: Видатки та заходи спеціального призначення | B36: 2260 | C36: 140 | D36: 0 | E36: 0 | F36: 0 | G36: 0 | H36: 0 | I36: 0 | J36: 0
A37: Оплата комунальних послуг та енергоносіїв | B37: 2270 | C37: 150 | D37: =SUM(D38:D43) -> 0 | E37: 0 | F37: =SUM(F38:F43) -> 0 | G37: =SUM(G38:G43) -> 0 | H37: =SUM(H38:H43) -> 0 | I37: =SUM(I38:I43) -> 0 | J37: =F37+G37-H37 -> 0
A38: Оплата теплопостачання | B38: 2271 | C38: 160 | D38: 0 | E38: 0 | F38: 0 | G38: 0 | H38: 0 | I38: 0 | J38: 0
A39: Оплата водопостачання та водовідведення | B39: 2272 | C39: 170 | D39: 0 | E39: 0 | F39: 0 | G39: 0 | H39: 0 | I39: 0 | J39: 0
A40: Оплата електроенергії | B40: 2273 | C40: 180 | D40: 0 | E40: 0 | F40: 0 | G40: 0 | H40: 0 | I40: 0 | J40: 0
A41: Оплата природного газу | B41: 2274 | C41: 190 | D41: 0 | E41: 0 | F41: 0 | G41: 0 | H41: 0 | I41: 0 | J41: 0
A42: Оплата інших енергоносіїв | B42: 2275 | C42: 200 | D42: 0 | E42: 0 | F42: 0 | G42: 0 | H42: 0 | I42: 0 | J42: 0
A43: Оплата енергосервісу | B43: 2276 | C43: 210 | D43: 0 | E43: 0 | F43: 0 | G43: 0 | H43: 0 | I43: 0 | J43: =F43+G43-H43 -> 0
A44: Дослідження і розробки, окремі заходи по реалізації державних (регіональних) програм | B44: 2280 | C44: 220 | D44: =SUM(D45:D46) -> 0 | E44: 0 | F44: =SUM(F45:F46) -> 0 | G44: =SUM(G45:G46) -> 0 | H44: =SUM(H45:H46) -> 0 | I44: =SUM(I45:I46) -> 0 | J44: 0
A45: Дослідження і розробки, окремі заходи розвитку по реалізації державних (регіональних) програм | B45: 2281 | C45: 230 | D45: 0 | E45: 0 | F45: 0 | G45: 0 | H45: 0 | I45: 0 | J45: 0
A46: Окремі заходи по реалізації державних (регіональних) програм, не віднесені до заходів розвитку | B46: 2282 | C46: 240 | D46: 0 | E46: 0 | F46: 0 | G46: 0 | H46: 0 | I46: 0 | J46: 0
A47: Обслуговування боргових зобов’язань | B47: 2400 | C47: 250 | D47: =SUM(D48:D49) -> 0 | E47: 0 | F47: 0 | G47: 0 | H47: 0 | I47: 0 | J47: 0
A48: Обслуговування внутрішніх боргових зобов’язань | B48: 2410 | C48: 260 | D48: 0 | E48: 0 | F48: 0 | G48: 0 | H48: 0 | I48: 0 | J48: 0
A49: Обслуговування зовнішніх боргових зобов’язань | B49: 2420 | C49: 270 | D49: 0 | E49: 0 | F49: 0 | G49: 0 | H49: 0 | I49: 0 | J49: 0
A50: Поточні трансферти | B50: 2600 | C50: 280 | D50: =SUM(D51:D53) -> 0 | E50: 0 | F50: 0 | G50: 0 | H50: 0 | I50: 0 | J50: 0
A51: Субсидії та поточні трансферти підприємствам (установам, організаціям) | B51: 2610 | C51: 290 | D51: 0 | E51: 0 | F51: 0 | G51: 0 | H51: 0 | I51: 0 | J51: 0
A52: Поточні трансферти органам державного управління інших рівнів | B52: 2620 | C52: 300 | D52: 0 | E52: 0 | F52: 0 | G52: 0 | H52: 0 | I52: 0 | J52: 0
A53: Поточні трансферти урядам іноземних держав та міжнародним організаціям | B53: 2630 | C53: 310 | D53: 0 | E53: 0 | F53: 0 | G53: 0 | H53: 0 | I53: 0 | J53: 0
A54: Соціальне забезпечення | B54: 2700 | C54: 320 | D54: =SUM(D55:D57) -> 0 | E54: 0 | F54: 0 | G54: 0 | H54: 0 | I54: 0 | J54: 0
A55: Виплата пенсій і допомоги | B55: 2710 | C55: 330 | D55: 0 | E55: 0 | F55: 0 | G55: 0 | H55: 0 | I55: 0 | J55: 0
A56: Стипендії | B56: 2720 | C56: 340 | D56: 0 | E56: 0 | F56: 0 | G56: 0 | H56: 0 | I56: 0 | J56: 0
A57: Інші виплати населенню | B57: 2730 | C57: 350 | D57: 0 | E57: 0 | F57: 0 | G57: 0 | H57: 0 | I57: 0 | J57: 0
A58: Інші поточні видатки | B58: 2800 | C58: 360 | D58: 0 | E58: 0 | F58: 0 | G58: 0 | H58: 0 | I58: 0 | J58: 0
